Workbook

Sheet العمليات

Sheet متابعة الشيكات
G1: الوقت الان | I1: =NOW() -> 43712.0328 | J1: ←خاص الوقت المتبقي للصرف | K1: =NOW() -> 2019-09-04T00:47:13.830 | L1: الوقت المتبقي لصرف الشيكات | O1: باقي بالايام لصرف الشيك
G2: التاريخ | I2: =TODAY() -> 2019-09-04 | J2: مجموع الشيكات | K2: =SUM(G26,G29:G36,G39,G54:G1057) -> 1008734
A3: رقم | B3: اسم الزبون | C3: نوع السيارة | D3: لون السيارة | E3: قوة المحرك | F3: رقمها بالشراء | G3: قيمة الشيك | H3: رقم الشيك | I3: البنك | J3: تاريخ الاستحقاق | K3: اسم صاحب الشيك | L3: يوم | M3: شهور | N3: سنة | O3: =TODAY() -> 2019-09-04 | P3: حالة الشيك | Q3: صور الشيكات
A4: 1 | B4: يزيد قنيبي | C4: سكودا استيشن | D4: احمر | E4: 1600 | G4: 1000 | H4: 100 | I4: فلسطين | J4: 2019-02-25 | K4: يونس باسم حلايقة الشيوخ وسط البلد 0599287083 | L4: =DATEDIF($K$1,J4,"md") & "أيام" ->  | M4: =DATEDIF($K$1,J4,"ym") & "شهر" ->  | N4: =DATEDIF($K$1,J4,"y") & "سنة" ->  | O4: =J4-$O$3 -> -191 | P4: مجير لرشوان | Q4: 1 | S4: مجموع شيكات يزيد
A5: 2 | B5: يزيد قنيبي | C5: سكودا استيشن | D5: احمر | E5: 1600 | G5: 1500 | H5: 64 | I5: القاهرة عمان | J5: 2019-03-25 | K5: محمد اسماعيل حموده الدوده حلحول الخليل 0592334962 | O5: -163 | P5: مجير لرشوان | S5: =SUM(G4:G45) -> 81000
A6: 3 | B6: يزيد قنيبي | C6: سكودا استيشن | D6: احمر | E6: 1600 | G6: 1000 | H6: 2 | I6: فلسطين | J6: 2019-03-30 | K6: مهند محمد عبد الحافظ ابو شمعه مخيم العروب 0597137966 | O6: -158 | P6: مجير لرشوان
A7: 4 | B7: يزيد قنيبي | C7: سكودا استيشن | D7: احمر | E7: 1600 | G7: 1000 | H7: 1274 | I7: الاسكان | J7: 2019-04-20 | K7: يزيد محمد لطفي يوسف اقنيبي | O7: -137 | P7: قيد التحصيل
A8: 5 | B8: يزيد قنيبي | C8: سكودا استيشن | D8: احمر | E8: 1600 | G8: 3000 | H8: 28 | I8: الاسلامي الفلسطيني | J8: 2019-04-30 | K8: نادر عبد الفتاح اسليميه اذنا خلة الغامقه 0569080816 | O8: -127 | P8: مجير لرشوان
A9: 6 | B9: يزيد قنيبي | C9: سكودا استيشن | D9: احمر | E9: 1600 | G9: 1000 | H9: 1275 | I9: الاسكان | J9: 2019-05-20 | K9: يزيد محمد لطفي يوسف اقنيبي | O9: -107 | P9: قيد التحصيل
A10: 7 | B10: يزيد قنيبي | C10: سكودا استيشن | D10: احمر | E10: 1600 | G10: 3000 | H10: 29 | I10: الاسلامي الفلسطيني | J10: 2019-05-30 | K10: نادر عبد الفتاح اسليميه اذنا خلة الغامقه 0569080816 | O10: -97 | P10: مجير لرشوان
A11: 8 | B11: يزيد قنيبي | C11: سكودا استيشن | D11: احمر | E11: 1600 | G11: 1000 | H11: 1276 | I11: الاسكان | J11: 2019-06-20 | K11: يزيد محمد لطفي يوسف اقنيبي | O11: -76 | P11: قيد التحصيل
A12: 9 | B12: يزيد قنيبي | C12: سكودا استيشن | D12: احمر | E12: 1600 | G12: 3000 | H12: 30 | I12: الاسلامي الفلسطيني | J12: 2019-06-30 | K12: نادر عبد الفتاح اسليميه اذنا خلة الغامقه 0569080816 | O12: -66 | P12: مجير لرشوان
A13: 10 | B13: يزيد قنيبي | C13: سكودا استيشن | D13: احمر | E13: 1600 | G13: 1000 | H13: 1277 | I13: الاسكان | J13: 2019-07-20 | K13: يزيد محمد لطفي يوسف اقنيبي | O13: -46 | P13: قيد التحصيل
A14: 11 | B14: يزيد قنيبي | C14: سكودا استيشن | D14: احمر | E14: 1600 | G14: 3000 | H14: 1004 | I14: الاسكان | J14: 2019-07-30 | K14: عادل اسماعيل حموده دوده | O14: -36 | P14: مجير لرشوان | S14: باقي بالصندوق من شيكات يزيد
A15: 12 | B15: يزيد قنيبي | C15: سكودا استيشن | D15: احمر | E15: 1600 | G15: 3000 | H15: 31 | I15: فلسطين | J15: 2019-08-05 | K15: نضال موسى شاكر دنديس دويربان 0599434153 | O15: -30 | P15: مجير لرشوان | S15: =G7+G9+G11+G13+G16+G17+G19+G21+G24+G25+G27+G29+G30+G31+G32+G33+G34+G35+G36+G37+G39+G40+G41+G42+G43+G44+G45 -> 43500
A16: 13 | B16: يزيد قنيبي | C16: سكودا استيشن | D16: احمر | E16: 1600 | G16: 1000 | H16: 1278 | I16: الاسكان | J16: 2019-08-20 | K16: يزيد محمد لطفي يوسف اقنيبي | O16: -15 | P16: قيد التحصيل
A17: 14 | B17: يزيد قنيبي | C17: سكودا استيشن | D17: احمر | E17: 1600 | G17: 1000 | H17: 1279 | I17: الاسكان | J17: 2019-09-30 | K17: يزيد محمد لطفي يوسف اقنيبي | L17: 26أيام | M17: 0شهر | N17: 0سنة | O17: 26 | P17: قيد التحصيل
A18: 15 | B18: يزيد قنيبي | C18: سكودا استيشن | D18: احمر | E18: 1600 | G18: 3000 | H18: 193 | I18: الاسلامي الفلسطيني | J18: 2019-09-30 | K18: ايهاب عبد الفتاح اسليميه اذنا خلة الغامقه 0592377987 | L18: 26أيام | M18: 0شهر | N18: 0سنة | O18: 26 | P18: مجير لرشوان
A19: 16 | B19: يزيد قنيبي | C19: سكودا استيشن | D19: احمر | E19: 1600 | G19: 1000 | H19: 1280 | I19: الاسكان | J19: 2019-10-30 | K19: يزيد محمد لطفي يوسف اقنيبي | L19: 26أيام | M19: 1شهر | N19: 0سنة | O19: 56 | P19: قيد التحصيل
A20: 17 | B20: يزيد قنيبي | C20: سكودا استيشن | D20: احمر | E20: 1600 | G20: 3000 | H20: 194 | I20: الاسلامي الفلسطيني | J20: 2019-10-30 | K20: ايهاب عبد الفتاح اسليميه اذنا خلة الغامقه 0592377987 | L20: 26أيام | M20: 1شهر | N20: 0سنة | O20: 56 | P20: مجير لرشوان
A21: 18 | B21: يزيد قنيبي | C21: سكودا استيشن | D21: احمر | E21: 1600 | G21: 1000 | H21: 1281 | I21: الاسكان | J21: 2019-11-30 | K21: يزيد محمد لطفي يوسف اقنيبي | L21: 26أيام | M21: 2شهر | N21: 0سنة | O21: 87 | P21: قيد التحصيل
A22: 19 | B22: يزيد قنيبي | C22: سكودا استيشن | D22: احمر | E22: 1600 | G22: 3000 | H22: 195 | I22: الاسلامي الفلسطيني | J22: 2019-11-30 | K22: ايهاب عبد الفتاح اسليميه اذنا خلة الغامقه 0592377987 | L22: 26أيام | M22: 2شهر | N22: 0سنة | O22: 87 | P22: مجير لرشوان
A23: 20 | B23: يزيد قنيبي | C23: سكودا استيشن | D23: احمر | E23: 1600 | G23: 3000 | H23: 115 | I23: الاسلامي الفلسطيني | J23: 2019-12-15 | K23: سمر ابراهيم هاشم الشريف واد الهرية 0599838273 | L23: 11أيام | M23: 3شهر | N23: 0سنة | O23: 102 | P23: مجير لرشوان
A24: 21 | B24: يزيد قنيبي | C24: سكودا استيشن | D24: احمر | E24: 1600 | G24: 1000 | H24: 1282 | I24: الاسكان | J24: 2019-12-30 | K24: يزيد محمد لطفي يوسف اقنيبي | L24: 26أيام | M24: 3شهر | N24: 0سنة | O24: 117 | P24: قيد التحصيل
A25: 22 | B25: يزيد قنيبي | C25: سكودا استيشن | D25: احمر | E25: 1600 | G25: 1000 | H25: 1283 | I25: الاسكان | J25: 2020-01-30 | K25: يزيد محمد لطفي يوسف اقنيبي | L25: 26أيام | M25: 4شهر | N25: 0سنة | O25: 148 | P25: قيد التحصيل
A26: 23 | B26: يزيد قنيبي | C26: سكودا استيشن | D26: احمر | E26: 1600 | G26: 3000 | H26: 1008 | I26: الاسكان | J26: 2020-01-30 | K26: عادل اسماعيل حموده دوده | L26: 26أيام | M26: 4شهر | N26: 0سنة | O26: =J26-$O$3 -> 148 | P26: قيد التحصيل | Q26: معتصم
A27: 24 | B27: يزيد قنيبي | C27: سكودا استيشن | D27: احمر | E27: 1600 | G27: 1500 | H27: 1284 | I27: الاسكان | J27: 30/2/2020 | K27: يزيد محمد لطفي يوسف اقنيبي | P27: قيد التحصيل
A28: 25 | B28: يزيد قنيبي | C28: سكودا استيشن | D28: احمر | E28: 1600 | G28: 2500 | H28: 264 | I28: فلسطين | J28: 30/02/2020 | K28: سناء احمد طروه سعير وادي الشرق 0599640079 | P28: مجير لمعتصم | S28: دفعة لمعتصم تعديل راس المال
A29: 26 | B29: يزيد قنيبي | C29: سكودا استيشن | D29: احمر | E29: 1600 | G29: 3000 | H29: 605234 | I29: الاسلامي الفلسطيني | J29: 2020-03-20 | K29: محمد احمد عبد الرزاق برادعيه صوريف 0598136442 | L29: 16أيام | M29: 6شهر | N29: 0سنة | O29: 198 | P29: قيد التحصيل
P30: قيد التحصيل
A31: 28 | B31: يزيد قنيبي | C31: سكودا استيشن | D31: احمر | E31: 1600 | G31: 1500 | H31: 1285 | I31: الاسكان | J31: 2020-03-30 | K31: يزيد محمد لطفي يوسف اقنيبي | O31: 208 | P31: قيد التحصيل
A32: 29 | B32: يزيد قنيبي | C32: سكودا استيشن | D32: احمر | E32: 1600 | G32: 3000 | H32: 37494501 | I32: العربي | J32: 2020-04-15 | K32: عيسى علي عبد الفتاح ثوابته بيت فجار شارع شنه 0599045441 | L32: =DATEDIF($K$1,J32,"md") & "أيام" -> 11أيام | M32: =DATEDIF($K$1,J32,"ym") & "شهر" -> 7شهر | N32: =DATEDIF($K$1,J32,"y") & "سنة" -> 0سنة | O32: 224 | P32: قيد التحصيل
A33: 30 | B33: يزيد قنيبي | C33: سكودا استيشن | D33: احمر | E33: 1600 | G33: 1500 | H33: 1286 | I33: الاسكان | J33: 2020-04-30 | K33: يزيد محمد لطفي يوسف اقنيبي | O33: 239 | P33: قيد التحصيل
A34: 31 | B34: يزيد قنيبي | C34: سكودا استيشن | D34: احمر | E34: 1600 | G34: 1500 | H34: 1287 | I34: الاسكان | J34: 2020-05-30 | K34: يزيد محمد لطفي يوسف اقنيبي | O34: 269 | P34: قيد التحصيل
A35: 32 | B35: يزيد قنيبي | C35: سكودا استيشن | D35: احمر | E35: 1600 | G35: 3000 | H35: 160 | I35: فلسطين | J35: 2020-05-30 | K35: غانم عابد كوازبه سعير 0569253173 | L35: =DATEDIF($K$1,J35,"md") & "أيام" -> 26أيام | M35: =DATEDIF($K$1,J35,"ym") & "شهر" -> 8شهر | N35: =DATEDIF($K$1,J35,"y") & "سنة" -> 0سنة | O35: 269 | P35: قيد التحصيل
A36: 33 | B36: يزيد قنيبي | C36: سكودا استيشن | D36: احمر | E36: 1600 | G36: 3000 | H36: 37494502 | I36: العربي | J36: 2020-06-15 | K36: عيسى علي عبد الفتاح ثوابته بيت فجار شارع شنه 0599045441 | L36: =DATEDIF($K$1,J36,"md") & "أيام" -> 11أيام | M36: =DATEDIF($K$1,J36,"ym") & "شهر" -> 9شهر | N36: =DATEDIF($K$1,J36,"y") & "سنة" -> 0سنة | O36: 285 | P36: قيد التحصيل
A37: 34 | B37: يزيد قنيبي | C37: سكودا استيشن | D37: احمر | E37: 1600 | G37: 1500 | H37: 1288 | I37: الاسكان | J37: 2020-06-30 | K37: يزيد محمد لطفي يوسف اقنيبي | O37: 300 | P37: قيد التحصيل
A38: 35 | B38: يزيد قنيبي | C38: سكودا استيشن | D38: احمر | E38: 1600 | G38: 1500 | H38: 102 | I38: الاردن | J38: 2020-07-05 | K38: ماجده ذيب حسني التميمي الخليل 22299905 | L38: =DATEDIF($K$1,J38,"md") & "أيام" -> 1أيام | M38: =DATEDIF($K$1,J38,"ym") & "شهر" -> 10شهر | N38: =DATEDIF($K$1,J38,"y") & "سنة" -> 0سنة | O38: =J38-$O$3 -> 305 | P38: دفعة لمعتصم | S38: دفعة لمعتصم لتعديل راس المال
A39: 36 | B39: يزيد قنيبي | C39: سكودا استيشن | D39: احمر | E39: 1600 | G39: 3500 | H39: 1093 | I39: الاسكان | J39: 2020-07-20 | K39: عبد الرحمن محمد عوايصه الظاهريه | L39: 16أيام | M39: 10شهر | N39: 0سنة | O39: 320 | P39: قيد التحصيل
A40: 37 | B40: يزيد قنيبي | C40: سكودا استيشن | D40: احمر | E40: 1600 | G40: 1500 | H40: 1289 | I40: الاسكان | J40: 2020-07-30 | K40: يزيد محمد لطفي يوسف اقنيبي | L40: 26أيام | M40: 10شهر | N40: 0سنة | O40: 330 | P40: قيد التحصيل
A41: 38 | B41: يزيد قنيبي | C41: سكودا استيشن | D41: احمر | E41: 1600 | G41: 1500 | H41: 1290 | I41: الاسكان | J41: 2020-08-30 | K41: يزيد محمد لطفي يوسف اقنيبي | L41: 26أيام | M41: 11شهر | N41: 0سنة | O41: 361 | P41: قيد التحصيل
A42: 39 | B42: يزيد قنيبي | C42: سكودا استيشن | D42: احمر | E42: 1600 | G42: 1500 | H42: 1251 | I42: الاسكان | J42: 2020-09-30 | K42: يزيد محمد لطفي يوسف اقنيبي | L42: 26أيام | M42: 0شهر | N42: 1سنة | O42: 392 | P42: قيد التحصيل
A43: 40 | B43: يزيد قنيبي | C43: سكودا استيشن | D43: احمر | E43: 1600 | G43: 1500 | H43: 1252 | I43: الاسكان | J43: 2020-10-30 | K43: يزيد محمد لطفي يوسف اقنيبي | L43: 26أيام | M43: 1شهر | N43: 1سنة | O43: 422 | P43: قيد التحصيل
A44: 41 | B44: يزيد قنيبي | C44: سكودا استيشن | D44: احمر | E44: 1600 | G44: 2250 | H44: 1253 | I44: الاسكان | J44: 2020-11-30 | K44: يزيد محمد لطفي يوسف اقنيبي | L44: 26أيام | M44: 2شهر | N44: 1سنة | O44: 453 | P44: قيد التحصيل
A45: 42 | B45: يزيد قنيبي | C45: سكودا استيشن | D45: احمر | E45: 1600 | G45: 2250 | H45: 1254 | I45: الاسكان | J45: 2020-12-30 | K45: يزيد محمد لطفي يوسف اقنيبي | L45: =DATEDIF($K$1,J45,"md") & "أيام" -> 26أيام | M45: =DATEDIF($K$1,J45,"ym") & "شهر" -> 3شهر | N45: =DATEDIF($K$1,J45,"y") & "سنة" -> 1سنة | O45: =J45-$O$3 -> 483 | P45: قيد التحصيل
A46: 43 | B46: يزيد قنيبي | C46: سكودا استيشن | D46: احمر | E46: 1600 | G46: 4500 | H46: 1264 | I46: الاسكان | J46: 2019-03-20 | K46: يزيد محمد لطفي يوسف اقنيبي | L46: =DATEDIF($K$1,J46,"md") & "أيام" ->  | M46: =DATEDIF($K$1,J46,"ym") & "شهر" ->  | N46: =DATEDIF($K$1,J46,"y") & "سنة" ->  | O46: =J46-$O$3 -> -168 | P46: تم تبديله | Q46: من شييك 9000
A47: 44 | B47: يزيد قنيبي | C47: سكودا استيشن | D47: احمر | E47: 1600 | G47: 4500 | H47: 1265 | I47: الاسكان | J47: 2019-04-30 | K47: يزيد محمد لطفي يوسف اقنيبي | L47: =DATEDIF($K$1,J47,"md") & "أيام" ->  | M47: =DATEDIF($K$1,J47,"ym") & "شهر" ->  | N47: =DATEDIF($K$1,J47,"y") & "سنة" ->  | O47: =J47-$O$3 -> -127 | P47: تم صرفه نقدا | Q47: من شيك 9000
A48: رقم الشيك | B48: اسم الزبون | C48: نوع السيارة | D48: لون السيارة | E48: قوة المحرك | G48: قيمة الشيك | H48: رقم الشيك | I48: البنك | J48: تاريخ الاستحقاق | K48: اسم صاحب الشيك | L48: يوم | M48: شهور | N48: سنة | O48: =TODAY() -> 2019-09-04 | P48: حالة الشيك | Q48: صور الشيكات
A49: 1 | B49: سعدي ابو الحلاوة | C49: كيا فورتي | D49: سكني | G49: 3000 | H49: 121 | I49: الاسلامي الفلسطيني | J49: 31/4/2019 | K49: انس رياض عمر مخلوف بيت لحم الكركفه احذية توب شوز 02276684 | L49: =DATEDIF($K$1,J49,"md") & "أيام" ->  | M49: =DATEDIF($K$1,J49,"ym") & "شهر" ->  | N49: =DATEDIF($K$1,J49,"y") & "سنة" ->  | O49: =J49-$O$3 ->  | P49: مجير لرشوان
A50: 2 | B50: سعدي ابو الحلاوة | C50: كيا فورتي | D50: سكني | G50: 3000 | H50: 164 | I50: الاسلامي الفلسطيني | J50: 31/4/2019 | K50: انس رياض عمر مخلوف بيت لحم الكركفه احذية توب شوز 02276685 | P50: مجير لرشوان
A51: 3 | B51: سعدي ابو الحلاوة | C51: كيا فورتي | D51: سكني | G51: 3000 | H51: 147 | I51: الاسلامي الفلسطيني | J51: 31/5/2019 | K51: انس رياض عمر مخلوف بيت لحم الكركفه احذية توب شوز 02276686 | O51: -96 | P51: مجير لرشوان
A52: 4 | B52: سعدي ابو الحلاوة | C52: كيا فورتي | D52: سكني | G52: 3000 | H52: 144 | I52: الاسلامي الفلسطيني | J52: 2019-07-31 | K52: انس رياض عمر مخلوف بيت لحم الكركفه احذية توب شوز 02276687 | O52: -35 | P52: مجير لرشوان
A53: رقم الشيك | B53: اسم الزبون | C53: نوع السيارة | D53: لون السيارة | E53: قوة المحرك | G53: قيمة الشيك | H53: رقم الشيك | I53: البنك | J53: تاريخ الاستحقاق | K53: اسم صاحب الشيك | L53: يوم | M53: شهور | N53: سنة | O53: =TODAY() -> 2019-09-04 | P53: حالة الشيك | Q53: صور الشيكات
A54: 1 | B54: صلاح الدين علي عطية عطا | C54: سيات ابيزا | D54: ابيض | E54: 1250 تبيرو | G54: 3000 | H54: 286 | I54: الاسلامي الفلسطيني | J54: 2019-02-10 | K54: انصاف جميل محمد سليمان حوسان الخله 0587560600 | O54: -206 | P54: قيد التحصيل
A55: 2 | B55: صلاح الدين علي عطية عطا | C55: سيات ابيزا | D55: ابيض | E55: 1251 تبيرو | G55: 15000 | H55: 22 | I55: الاستثمار الفلسطيني | J55: 2019-02-15 | K55: صلاح الدين علي عطية بيت لحم واد فوكين 0522859051 | O55: -201 | P55: قيد التحصيل
A56: 3 | B56: صلاح الدين علي عطية عطا | C56: سيات ابيزا | D56: ابيض | E56: 1252 تبيرو | G56: 3000 | H56: 19 | I56: فلسطين | J56: 2019-02-28 | K56: نفوز عبد المجيد النجار الفوار شارع بيت جبرين 0569436016 | O56: -188 | P56: قيد التحصيل
A57: 4 | B57: صلاح الدين علي عطية عطا | C57: سيات ابيزا | D57: ابيض | E57: 1253 تبيرو | G57: 3000 | H57: 287 | I57: الاسلامي الفلسطيني | J57: 2019-03-10 | K57: انصاف جميل محمد سليمان حوسان الخله 0587560600 | O57: -178 | P57: قيد التحصيل
A58: 5 | B58: صلاح الدين علي عطية عطا | C58: سيات ابيزا | D58: ابيض | E58: 1254 تبيرو | G58: 3000 | H58: 288 | I58: الاسلامي الفلسطيني | J58: 2019-04-10 | K58: انصاف جميل محمد سليمان حوسان الخله 0587560600 | O58: -147 | P58: قيد التحصيل
A59: 6 | B59: صلاح الدين علي عطية عطا | C59: سيات ابيزا | D59: ابيض | E59: 1255 تبيرو | G59: 3000 | H59: 289 | I59: الاسلامي الفلسطيني | J59: 2019-05-10 | K59: انصاف جميل محمد سليمان حوسان الخله 0587560600 | O59: -117 | P59: قيد التحصيل
A60: 7 | B60: صلاح الدين علي عطية عطا | C60: سيات ابيزا | D60: ابيض | E60: 1256 تبيرو | G60: 3500 | H60: 291 | I60: الاسلامي الفلسطيني | J60: 2019-06-10 | K60: انصاف جميل محمد سليمان حوسان الخله 0587560600 | O60: -86 | P60: قيد التحصيل
A61: 8 | B61: صلاح الدين علي عطية عطا | C61: سيات ابيزا | D61: ابيض | E61: 1257 تبيرو | G61: 3500 | H61: 292 | I61: الاسلامي الفلسطيني | J61: 2019-07-10 | K61: انصاف جميل محمد سليمان حوسان الخله 0587560600 | O61: -56 | P61: قيد التحصيل
A62: 9 | B62: صلاح الدين علي عطية عطا | C62: سيات ابيزا | D62: ابيض | E62: 1258 تبيرو | G62: 3500 | H62: 293 | I62: الاسلامي الفلسطيني | J62: 2019-08-10 | K62: انصاف جميل محمد سليمان حوسان الخله 0587560600 | O62: -25 | P62: قيد التحصيل
A63: 10 | B63: صلاح الدين علي عطية عطا | C63: سيات ابيزا | D63: ابيض | E63: 1259 تبيرو | G63: 1600 | H63: 23 | I63: الاستثمار الفلسطيني | J63: 2019-08-20 | K63: صلاح الدين علي عطية بيت لحم واد فوكين 0522859051 | O63: -15 | P63: قيد التحصيل
A64: 11 | B64: صلاح الدين علي عطية عطا | C64: سيات ابيزا | D64: ابيض | E64: 1260 تبيرو | G64: 3500 | H64: 294 | I64: الاسلامي الفلسطيني | J64: 2019-09-10 | K64: انصاف جميل محمد سليمان حوسان الخله 0587560600 | L64: 6أيام | M64: 0شهر | N64: 0سنة | O64: 6 | P64: قيد التحصيل
A65: 12 | B65: صلاح الدين علي عطية عطا | C65: سيات ابيزا | D65: ابيض | E65: 1261 تبيرو | G65: 1600 | H65: 24 | I65: الاستثمار الفلسطيني | J65: 2019-09-20 | K65: صلاح الدين علي عطية بيت لحم واد فوكين 0522859051 | L65: 16أيام | M65: 0شهر | N65: 0سنة | O65: 16 | P65: قيد التحصيل | S65: مجموع شيكات سعدي
A66: 13 | B66: صلاح الدين علي عطية عطا | C66: سيات ابيزا | D66: ابيض | E66: 1262 تبيرو | G66: 1600 | H66: 25 | I66: الاستثمار الفلسطيني | J66: 2019-10-20 | K66: صلاح الدين علي عطية بيت لحم واد فوكين 0522859051 | L66: 16أيام | M66: 1شهر | N66: 0سنة | O66: 46 | P66: قيد التحصيل | S66: =SUM(G49:G52) -> 12000
A67: 14 | B67: صلاح الدين علي عطية عطا | C67: سيات ابيزا | D67: ابيض | E67: 1263 تبيرو | G67: 4000 | H67: 296 | I67: الاسلامي الفلسطيني | J67: 2019-11-10 | K67: انصاف جميل محمد سليمان حوسان الخله 0587560600 | L67: 6أيام | M67: 2شهر | N67: 0سنة | O67: 67 | P67: قيد التحصيل | S67: شيكات مجيرة من سعدي
A68: 15 | B68: صلاح الدين علي عطية عطا | C68: سيات ابيزا | D68: ابيض | E68: 1264 تبيرو | G68: 1600 | H68: 26 | I68: الاستثمار الفلسطيني | J68: 2019-11-20 | K68: صلاح الدين علي عطية بيت لحم واد فوكين 0522859051 | L68: 16أيام | M68: 2شهر | N68: 0سنة | O68: 77 | P68: قيد التحصيل | S68: 1200
A69: 16 | B69: صلاح الدين علي عطية عطا | C69: سيات ابيزا | D69: ابيض | E69: 1265 تبيرو | G69: 1600 | H69: 27 | I69: الاستثمار الفلسطيني | J69: 2019-12-20 | K69: صلاح الدين علي عطية بيت لحم واد فوكين 0522859051 | L69: 16أيام | M69: 3شهر | N69: 0سنة | O69: 107 | P69: قيد التحصيل
A70: 17 | B70: صلاح الدين علي عطية عطا | C70: سيات ابيزا | D70: ابيض | E70: 1266 تبيرو | G70: 1600 | H70: 28 | I70: الاستثمار الفلسطيني | J70: 2020-01-20 | K70: صلاح الدين علي عطية بيت لحم واد فوكين 0522859051 | L70: 16أيام | M70: 4شهر | N70: 0سنة | O70: 138 | P70: قيد التحصيل | S70: مجموع شيكات صلاح
A71: 18 | B71: صلاح الدين علي عطية عطا | C71: سيات ابيزا | D71: ابيض | E71: 1267 تبيرو | G71: 1600 | H71: 29 | I71: الاستثمار الفلسطيني | J71: 2020-02-20 | K71: صلاح الدين علي عطية بيت لحم واد فوكين 0522859051 | L71: 16أيام | M71: 5شهر | N71: 0سنة | O71: 169 | P71: قيد التحصيل | S71: =SUM(G54:G82) -> 76000
A72: 19 | B72: صلاح الدين علي عطية عطا | C72: سيات ابيزا | D72: ابيض | E72: 1268 تبيرو | G72: 1600 | H72: 30 | I72: الاستثمار الفلسطيني | J72: 2020-03-20 | K72: صلاح الدين علي عطية بيت لحم واد فوكين 0522859051 | L72: 16أيام | M72: 6شهر | N72: 0سنة | O72: 198 | P72: قيد التحصيل
A73: 20 | B73: صلاح الدين علي عطية عطا | C73: سيات ابيزا | D73: ابيض | E73: 1269 تبيرو | G73: 1600 | H73: 31 | I73: الاستثمار الفلسطيني | J73: 2020-04-20 | K73: صلاح الدين علي عطية بيت لحم واد فوكين 0522859051 | L73: 16أيام | M73: 7شهر | N73: 0سنة | O73: 229 | P73: قيد التحصيل | S73: بالصندوق من شيكات صلاح
A74: 21 | B74: صلاح الدين علي عطية عطا | C74: سيات ابيزا | D74: ابيض | E74: 1270 تبيرو | G74: 1600 | H74: 32 | I74: الاستثمار الفلسطيني | J74: 2020-05-20 | K74: صلاح الدين علي عطية بيت لحم واد فوكين 0522859051 | L74: 16أيام | M74: 8شهر | N74: 0سنة | O74: 259 | P74: قيد التحصيل | S74: 76000
A75: 22 | B75: صلاح الدين علي عطية عطا | C75: سيات ابيزا | D75: ابيض | E75: 1271 تبيرو | G75: 1600 | H75: 33 | I75: الاستثمار الفلسطيني | J75: 2020-06-20 | K75: صلاح الدين علي عطية بيت لحم واد فوكين 0522859051 | L75: 16أيام | M75: 9شهر | N75: 0سنة | O75: 290 | P75: قيد التحصيل
A76: 23 | B76: صلاح الدين علي عطية عطا | C76: سيات ابيزا | D76: ابيض | E76: 1272 تبيرو | G76: 1600 | H76: 34 | I76: الاستثمار الفلسطيني | J76: 2020-07-20 | K76: صلاح الدين علي عطية بيت لحم واد فوكين 0522859051 | L76: 16أيام | M76: 10شهر | N76: 0سنة | O76: 320 | P76: قيد التحصيل
A77: 24 | B77: صلاح الدين علي عطية عطا | C77: سيات ابيزا | D77: ابيض | E77: 1273 تبيرو | G77: 1600 | H77: 35 | I77: الاستثمار الفلسطيني | J77: 2020-08-20 | K77: صلاح الدين علي عطية بيت لحم واد فوكين 0522859051 | L77: 16أيام | M77: 11شهر | N77: 0سنة | O77: 351 | P77: قيد التحصيل
A78: 25 | B78: صلاح الدين علي عطية عطا | C78: سيات ابيزا | D78: ابيض | E78: 1274 تبيرو | G78: 1600 | H78: 36 | I78: الاستثمار الفلسطيني | J78: 2020-09-20 | K78: صلاح الدين علي عطية بيت لحم واد فوكين 0522859051 | L78: 16أيام | M78: 0شهر | N78: 1سنة | O78: 382 | P78: قيد التحصيل
A79: 26 | B79: صلاح الدين علي عطية عطا | C79: سيات ابيزا | D79: ابيض | E79: 1275 تبيرو | G79: 1600 | H79: 37 | I79: الاستثمار الفلسطيني | J79: 2020-10-20 | K79: صلاح الدين علي عطية بيت لحم واد فوكين 0522859051 | L79: 16أيام | M79: 1شهر | N79: 1سنة | O79: 412 | P79: قيد التحصيل
A80: 27 | B80: صلاح الدين علي عطية عطا | C80: سيات ابيزا | D80: ابيض | E80: 1276 تبيرو | G80: 1600 | H80: 38 | I80: الاستثمار الفلسطيني | J80: 2020-11-20 | K80: صلاح الدين علي عطية بيت لحم واد فوكين 0522859051 | L80: 16أيام | M80: 2شهر | N80: 1سنة | O80: 443 | P80: قيد التحصيل
A81: 28 | B81: صلاح الدين علي عطية عطا | C81: سيات ابيزا | D81: ابيض | E81: 1277 تبيرو | G81: 1400 | H81: 39 | I81: الاستثمار الفلسطيني | J81: 2020-12-20 | K81: صلاح الدين علي عطية بيت لحم واد فوكين 0522859051 | L81: 16أيام | M81: 3شهر | N81: 1سنة | O81: 473 | P81: قيد التحصيل
A82: 29 | B82: صلاح الدين علي عطية عطا | C82: سيات ابيزا | D82: ابيض | E82: 1278 تبيرو | G82: 1000 | H82: 41 | I82: الاستثمار الفلسطيني | J82: 2020-12-30 | K82: صلاح الدين علي عطية بيت لحم واد فوكين 0522859051 | L82: 26أيام | M82: 3شهر | N82: 1سنة | O82: 483 | P82: تم تجييرة | Q82: بدل سمسره
A83: رقم الشيك | B83: اسم الزبون | C83: نوع السيارة | D83: لون السيارة | E83: قوة المحرك | G83: قيمة الشيك | H83: رقم الشيك | I83: البنك | J83: تاريخ الاستحقاق | K83: اسم صاحب الشيك | L83: يوم | M83: شهور | N83: سنة | O83: =TODAY() -> 2019-09-04 | P83: حالة الشيك | Q83: صور الشيكات
A84: 1 | B84: يحيى محمد اسماعيل ابو لوحه | C84: بيكانتو جنط 16 | D84: فيراني | E84: 1000 | G84: 850 | H84: 1290 | I84: الاسكان | J84: 2019-05-28 | K84: هاشم عبد القادر درويش الطوس الخليل | O84: -99 | P84: قيد التحصيل
A85: رقم الشيك | B85: اسم الزبون | C85: نوع السيارة | D85: لون السيارة | E85: قوة المحرك | G85: قيمة الشيك | H85: رقم الشيك | I85: البنك | J85: تاريخ الاستحقاق | K85: اسم صاحب الشيك | L85: يوم | M85: شهور | N85: سنة | O85: =TODAY() -> 2019-09-04 | P85: حالة الشيك | Q85: صور الشيكات
A86: 1 | B86: عادل القواسمي | C86: بيكانتو بدون جنط | D86: ابيض | E86: 1000 | G86: 5000 | H86: 328 | I86: القدس | J86: 2019-03-30 | K86: شركة الفرنس للادوات المنزلية نابلس الباذان | L86: =DATEDIF($K$1,J86,"md") & "أيام" ->  | M86: =DATEDIF($K$1,J86,"ym") & "شهر" ->  | N86: =DATEDIF($K$1,J86,"y") & "سنة" ->  | O86: =J86-$O$3 -> -158 | P86: قيد التحصيل
A87: 2 | B87: عادل القواسمي | C87: بيكانتو بدون جنط | D87: ابيض | E87: 1000 | G87: 2500 | H87: 1147 | I87: الاستثمار الفلسطيني | J87: 2019-04-30 | K87: شركة الوان للتسويق 0599294140 وائل | O87: -127 | P87: قيد التحصيل
A88: 3 | B88: عادل القواسمي | C88: بيكانتو بدون جنط | D88: ابيض | E88: 1000 | G88: 1450 | H88: 119 | I88: القاهرة عمان | J88: 2019-04-15 | K88: خولة عبد الحافظ احمد ابو لبده قلقيليه 0598887450 | O88: -142 | P88: قيد التحصيل
A89: 4 | B89: عادل القواسمي | C89: بيكانتو بدون جنط | D89: ابيض | E89: 1000 | G89: 2500 | H89: 1148 | I89: الاستثمار الفلسطيني | J89: 2019-05-30 | K89: شركة الوان للتسويق 0599294140 وائل | O89: -97 | P89: قيد التحصيل
A90: 5 | B90: عادل القواسمي | C90: بيكانتو بدون جنط | D90: ابيض | E90: 1000 | G90: 3500 | H90: 53 | I90: الاستثمار الفلسطيني | J90: 2019-05-31 | K90: عز الدين حمد خليل الهريمي بيت لحم شارع المهد 2741594 | O90: -96 | P90: قيد التحصيل
A91: 6 | B91: عادل القواسمي | C91: بيكانتو بدون جنط | D91: ابيض | E91: 1000 | G91: 3200 | H91: 1149 | I91: الاستثمار الفلسطيني | J91: 2019-06-30 | K91: شركة الوان للتسويق 0599294140 وائل | O91: -66 | P91: قيد التحصيل
A92: 7 | B92: عادل القواسمي | C92: بيكانتو بدون جنط | D92: ابيض | E92: 1000 | G92: 600 | H92: 622 | I92: القاهرة عمان | J92: 2019-06-07 | K92: عيسى محمود حمج علان سميرات بيت لحم 0599534646 | O92: -89 | P92: قيد التحصيل
A93: 8 | B93: عادل القواسمي | C93: بيكانتو بدون جنط | D93: ابيض | E93: 1000 | G93: 3000 | H93: 71 | I93: الوطني | J93: 31/06/2019 | K93: طارق زياد نمر حمدان "عرابه" | P93: قيد التحصيل
A94: 9 | B94: عادل القواسمي | C94: بيكانتو بدون جنط | D94: ابيض | E94: 1000 | G94: 4000 | H94: 72 | I94: الوطني | J94: 2019-07-10 | K94: طارق زياد نمر حمدان "عرابه" | O94: -56 | P94: قيد التحصيل
A95: 10 | B95: عادل القواسمي | C95: بيكانتو بدون جنط | D95: ابيض | E95: 1000 | G95: 3200 | H95: 1151 | I95: الاستثمار الفلسطيني | J95: 2019-08-30 | K95: شركة الوان للتسويق 0599294140 وائل | O95: -5 | P95: قيد التحصيل
A96: 11 | B96: عادل القواسمي | C96: بيكانتو بدون جنط | D96: ابيض | E96: 1000 | G96: 5500 | H96: 270 | I96: القدس | J96: 2019-09-30 | K96: مالك عادل حسني قواسمه فرش الهوى 0597081206 | L96: 26أيام | M96: 0شهر | N96: 0سنة | O96: 26 | P96: قيد التحصيل
A97: 12 | B97: عادل القواسمي | C97: بيكانتو بدون جنط | D97: ابيض | E97: 1000 | G97: 5500 | H97: 271 | I97: القدس | J97: 2019-10-30 | K97: مالك عادل حسني قواسمه فرش الهوى 0597081206 | L97: 26أيام | M97: 1شهر | N97: 0سنة | O97: 56 | P97: قيد التحصيل
A98: 13 | B98: عادل القواسمي | C98: بيكانتو بدون جنط | D98: ابيض | E98: 1000 | G98: 5500 | H98: 272 | I98: القدس | J98: 2019-11-30 | K98: مالك عادل حسني قواسمه فرش الهوى 0597081206 | L98: 26أيام | M98: 2شهر | N98: 0سنة | O98: 87 | P98: قيد التحصيل
A99: 14 | B99: عادل القواسمي | C99: بيكانتو بدون جنط | D99: ابيض | E99: 1000 | G99: 6000 | H99: 273 | I99: القدس | J99: 2019-12-31 | K99: مالك عادل حسني قواسمه فرش الهوى 0597081206 | L99: 27أيام | M99: 3شهر | N99: 0سنة | O99: 118 | P99: قيد التحصيل
A100: رقم الشيك | B100: اسم الزبون | C100: نوع السيارة | D100: لون السيارة | E100: قوة المحرك | G100: قيمة الشيك | H100: رقم الشيك | I100: البنك | J100: تاريخ الاستحقاق | K100: اسم صاحب الشيك | L100: يوم | M100: شهور | N100: سنة | O100: =TODAY() -> 2019-09-04 | P100: حالة الشيك | Q100: صور الشيكات
L101: =DATEDIF($K$1,J101,"md") & "أيام" ->  | M101: =DATEDIF($K$1,J101,"ym") & "شهر" ->  | N101: =DATEDIF($K$1,J101,"y") & "سنة" ->  | O101: =J101-$O$3 -> -43712 | P101: قيد التحصيل
A102: 1 | B102: محمد الشروف | C102: هونداي اكسينت | D102: بترولي | E102: 1600 | G102: 2000 | H102: 123 | I102: فلسطين | J102: 2019-03-30 | K102: يزن محمد الشروف نوبا 0598448027 | O102: -158 | P102: قيد التحصيل
A103: 2 | B103: محمد الشروف | C103: هونداي اكسينت | D103: بترولي | E103: 1600 | G103: 5000 | H103: 124 | I103: فلسطين | J103: 2019-04-30 | K103: يزن محمد الشروف نوبا 0598448028 | O103: -127 | P103: قيد التحصيل
A104: 3 | B104: محمد الشروف | C104: هونداي اكسينت | D104: بترولي | E104: 1600 | G104: 2500 | H104: 125 | I104: فلسطين | J104: 2019-05-30 | K104: يزن محمد الشروف نوبا 0598448029 | O104: -97 | P104: قيد التحصيل
A105: 4 | B105: محمد الشروف | C105: هونداي اكسينت | D105: بترولي | E105: 1600 | G105: 4000 | H105: 126 | I105: فلسطين | J105: 2019-06-30 | K105: يزن محمد الشروف نوبا 0598448030 | O105: -66 | P105: قيد التحصيل
A106: 5 | B106: محمد الشروف | C106: هونداي اكسينت | D106: بترولي | E106: 1600 | G106: 5000 | H106: 127 | I106: فلسطين | J106: 2019-07-30 | K106: يزن محمد الشروف نوبا 0598448031 | O106: -36 | P106: قيد التحصيل
A107: 6 | B107: محمد الشروف | C107: هونداي اكسينت | D107: بترولي | E107: 1600 | G107: 3500 | H107: 128 | I107: فلسطين | J107: 2019-08-30 | K107: يزن محمد الشروف نوبا 0598448032 | O107: -5 | P107: قيد التحصيل
A108: 7 | B108: محمد الشروف | C108: هونداي اكسينت | D108: بترولي | E108: 1600 | G108: 3500 | H108: 129 | I108: فلسطين | J108: 2019-09-30 | K108: يزن محمد الشروف نوبا 0598448033 | L108: 26أيام | M108: 0شهر | N108: 0سنة | O108: 26 | P108: قيد التحصيل
A109: 8 | B109: محمد الشروف | C109: هونداي اكسينت | D109: بترولي | E109: 1600 | G109: 3500 | H109: 130 | I109: فلسطين | J109: 2019-10-30 | K109: يزن محمد الشروف نوبا 0598448034 | L109: 26أيام | M109: 1شهر | N109: 0سنة | O109: 56 | P109: قيد التحصيل
A110: 9 | B110: محمد الشروف | C110: هونداي اكسينت | D110: بترولي | E110: 1600 | G110: 3500 | H110: 131 | I110: فلسطين | J110: 2019-11-30 | K110: يزن محمد الشروف نوبا 0598448035 | L110: 26أيام | M110: 2شهر | N110: 0سنة | O110: 87 | P110: قيد التحصيل
A111: 10 | B111: محمد الشروف | C111: هونداي اكسينت | D111: بترولي | E111: 1600 | G111: 3500 | H111: 132 | I111: فلسطين | J111: 2019-12-30 | K111: يزن محمد الشروف نوبا 0598448036 | L111: 26أيام | M111: 3شهر | N111: 0سنة | O111: 117 | P111: قيد التحصيل
A112: 11 | B112: محمد الشروف | C112: هونداي اكسينت | D112: بترولي | E112: 1600 | G112: 7500 | H112: 133 | I112: فلسطين | J112: 2020-02-28 | K112: يزن محمد الشروف نوبا 0598448037 | L112: 24أيام | M112: 5شهر | N112: 0سنة | O112: 177 | P112: قيد التحصيل
A113: 12 | B113: محمد الشروف | C113: هونداي اكسينت | D113: بترولي | E113: 1600 | G113: 6500 | H113: 134 | I113: فلسطين | J113: 2020-04-30 | K113: يزن محمد الشروف نوبا 0598448038 | L113: 26أيام | M113: 7شهر | N113: 0سنة | O113: 239 | P113: قيد التحصيل
A114: 13 | B114: محمد الشروف | C114: هونداي اكسينت | D114: بترولي | E114: 1600 | G114: 7000 | H114: 135 | I114: فلسطين | J114: 2020-06-30 | K114: يزن محمد الشروف نوبا 0598448039 | L114: 26أيام | M114: 9شهر | N114: 0سنة | O114: 300 | P114: قيد التحصيل
A115: 14 | B115: محمد الشروف | C115: هونداي اكسينت | D115: بترولي | E115: 1600 | G115: 3500 | H115: 136 | I115: فلسطين | J115: 2020-07-30 | K115: يزن محمد الشروف نوبا 0598448040 | L115: 26أيام | M115: 10شهر | N115: 0سنة | O115: 330 | P115: قيد التحصيل
A116: 15 | B116: محمد الشروف | C116: هونداي اكسينت | D116: بترولي | E116: 1600 | G116: 3500 | H116: 137 | I116: فلسطين | J116: 2020-08-30 | K116: يزن محمد الشروف نوبا 0598448041 | L116: 26أيام | M116: 11شهر | N116: 0سنة | O116: 361 | P116: قيد التحصيل
A117: 16 | B117: محمد الشروف | C117: هونداي اكسينت | D117: بترولي | E117: 1600 | G117: 7000 | H117: 138 | I117: فلسطين | J117: 2020-10-30 | K117: يزن محمد الشروف نوبا 0598448042 | L117: 26أيام | M117: 1شهر | N117: 1سنة | O117: 422 | P117: قيد التحصيل
A118: 17 | B118: محمد الشروف | C118: هونداي اكسينت | D118: بترولي | E118: 1600 | G118: 3500 | H118: 139 | I118: فلسطين | J118: 2020-11-30 | K118: يزن محمد الشروف نوبا 0598448043 | L118: 26أيام | M118: 2شهر | N118: 1سنة | O118: 453 | P118: قيد التحصيل
A119: 18 | B119: محمد الشروف | C119: هونداي اكسينت | D119: بترولي | E119: 1600 | G119: 3000 | H119: 140 | I119: فلسطين | J119: 2020-12-30 | K119: يزن محمد الشروف نوبا 0598448044 | L119: 26أيام | M119: 3شهر | N119: 1سنة | O119: 483 | P119: قيد التحصيل
A120: رقم الشيك | B120: اسم الزبون | C120: نوع السيارة | D120: لون السيارة | E120: قوة المحرك | G120: قيمة الشيك | H120: رقم الشيك | I120: البنك | J120: تاريخ الاستحقاق | K120: اسم صاحب الشيك | L120: يوم | M120: شهور | N120: سنة | O120: =TODAY() -> 2019-09-04 | P120: حالة الشيك | Q120: صور الشيكات
A121: 1 | B121: جويد ابو اسنينة | C121: كيا ريو | D121: سلفر | E121: 1400 | G121: 3000 | H121: 22 | I121: الاسلامي الفلسطيني | J121: 2019-03-20 | K121: محمد باسم صبحي الهيموني 0569241276 | O121: -168 | P121: تم صرفه نقدا
A122: 2 | B122: جويد ابو اسنينة | C122: كيا ريو | D122: سلفر | E122: 1400 | G122: 2000 | H122: 23 | I122: فلسطين | J122: 2019-07-30 | K122: عبد العظيم رمضان احمد النتشه 0599373051 | O122: -36 | P122: قيد التحصيل
A123: 3 | B123: جويد ابو اسنينة | C123: كيا ريو | D123: سلفر | E123: 1400 | G123: 2000 | H123: 14 | I123: القدس | J123: 2019-07-30 | K123: ثائر فواز رشيد السكافي 0594272776 | O123: -36 | P123: قيد التحصيل
A124: 4 | B124: جويد ابو اسنينة | C124: كيا ريو | D124: سلفر | E124: 1400 | G124: 2000 | H124: 15 | I124: القدس | J124: 2019-08-30 | K124: ثائر فواز رشيد السكافي 0594272776 | O124: -5
A125: 5 | B125: جويد ابو اسنينة | C125: كيا ريو | D125: سلفر | E125: 1400 | G125: 2000 | H125: 24 | I125: فلسطين | J125: 2019-08-30 | K125: عبد العظيم رمضان احمد النتشه 0599373051 | O125: -5
A126: 6 | B126: جويد ابو اسنينة | C126: كيا ريو | D126: سلفر | E126: 1400 | G126: 2000 | H126: 16 | I126: القدس | J126: 2019-09-30 | K126: ثائر فواز رشيد السكافي 0594272776 | L126: 26أيام | M126: 0شهر | N126: 0سنة | O126: 26
A127: 7 | B127: جويد ابو اسنينة | C127: كيا ريو | D127: سلفر | E127: 1400 | G127: 2000 | H127: 25 | I127: فلسطين | J127: 2019-09-30 | K127: عبد العظيم رمضان احمد النتشه 0599373051 | L127: 26أيام | M127: 0شهر | N127: 0سنة | O127: 26
A128: 8 | B128: جويد ابو اسنينة | C128: كيا ريو | D128: سلفر | E128: 1400 | G128: 2000 | H128: 17 | I128: القدس | J128: 2019-10-30 | K128: ثائر فواز رشيد السكافي 0594272776 | L128: 26أيام | M128: 1شهر | N128: 0سنة | O128: 56
A129: 9 | B129: جويد ابو اسنينة | C129: كيا ريو | D129: سلفر | E129: 1400 | G129: 3000 | H129: 28 | I129: الاسلامي الفلسطيني | J129: 2019-11-25 | K129: محمد باسم صبحي الهيموني 0569241276 | L129: 21أيام | M129: 2شهر | N129: 0سنة | O129: 82
A130: رقم الشيك | B130: اسم الزبون | C130: نوع السيارة | D130: لون السيارة | E130: قوة المحرك | G130: قيمة الشيك | H130: رقم الشيك | I130: البنك | J130: تاريخ الاستحقاق | K130: اسم صاحب الشيك | L130: يوم | M130: شهور | N130: سنة | O130: =TODAY() -> 2019-09-04 | P130: حالة الشيك | Q130: صور الشيكات
A131: 1 | B131: وائل موسى احمد فنون | C131: اوبيل كورسا | D131: سلفر | E131: 1400 | G131: 2250 | H131: 1 | I131: الاستثمار الفلسطيني | J131: 2019-03-30 | K131: وائل موسى احمد فنون | L131: =DATEDIF($K$1,J131,"md") & "أيام" ->  | M131: =DATEDIF($K$1,J131,"ym") & "شهر" ->  | N131: =DATEDIF($K$1,J131,"y") & "سنة" ->  | O131: =J131-$O$3 -> -158 | P131: تم صرفه
A132: 2 | B132: وائل موسى احمد فنون | C132: اوبيل كورسا | D132: سلفر | E132: 1400 | G132: 1800 | H132: 2 | I132: الاستثمار الفلسطيني | J132: 2019-04-10 | K132: وائل موسى احمد فنون | O132: -147 | P132: تم صرفه من البنك
A133: 3 | B133: وائل موسى احمد فنون | C133: اوبيل كورسا | D133: سلفر | E133: 1400 | G133: 2250 | H133: 3 | I133: الاستثمار الفلسطيني | J133: 2019-05-10 | K133: وائل موسى احمد فنون | O133: -117 | P133: تم صرفه نقدا بدل شراء جوال لحنين
A134: 4 | B134: وائل موسى احمد فنون | C134: اوبيل كورسا | D134: سلفر | E134: 1400 | G134: 2250 | H134: 4 | I134: الاستثمار الفلسطيني | J134: 2019-06-15 | K134: وائل موسى احمد فنون | O134: -81 | P134: تم صرفه نقدا من شهاب شاور
A135: 5 | B135: وائل موسى احمد فنون | C135: اوبيل كورسا | D135: سلفر | E135: 1400 | G135: 2250 | H135: 5 | I135: الاستثمار الفلسطيني | J135: 2019-07-15 | K135: وائل موسى احمد فنون | O135: -51
A136: 6 | B136: وائل موسى احمد فنون | C136: اوبيل كورسا | D136: سلفر | E136: 1400 | G136: 2250 | H136: 6 | I136: الاستثمار الفلسطيني | J136: 2019-08-15 | K136: وائل موسى احمد فنون | O136: -20
A137: 7 | B137: وائل موسى احمد فنون | C137: اوبيل كورسا | D137: سلفر | E137: 1400 | G137: 2250 | H137: 7 | I137: الاستثمار الفلسطيني | J137: 2019-09-15 | K137: وائل موسى احمد فنون | L137: 11أيام | M137: 0شهر | N137: 0سنة | O137: 11
A138: 8 | B138: وائل موسى احمد فنون | C138: اوبيل كورسا | D138: سلفر | E138: 1400 | G138: 1500 | H138: 8 | I138: الاستثمار الفلسطيني | J138: 2019-10-15 | K138: وائل موسى احمد فنون | L138: 11أيام | M138: 1شهر | N138: 0سنة | O138: 41
A139: 9 | B139: وائل موسى احمد فنون | C139: اوبيل كورسا | D139: سلفر | E139: 1400 | G139: 2250 | H139: 9 | I139: الاستثمار الفلسطيني | J139: 2019-11-15 | K139: وائل موسى احمد فنون | L139: 11أيام | M139: 2شهر | N139: 0سنة | O139: 72
A140: 10 | B140: وائل موسى احمد فنون | C140: اوبيل كورسا | D140: سلفر | E140: 1400 | G140: 3000 | H140: 10 | I140: الاستثمار الفلسطيني | J140: 2019-12-15 | K140: وائل موسى احمد فنون | L140: 11أيام | M140: 3شهر | N140: 0سنة | O140: 102
A141: 11 | B141: وائل موسى احمد فنون | C141: اوبيل كورسا | D141: سلفر | E141: 1400 | G141: 2500 | H141: 11 | I141: الاستثمار الفلسطيني | J141: 2020-01-15 | K141: وائل موسى احمد فنون | L141: 11أيام | M141: 4شهر | N141: 0سنة | O141: 133
A142: 12 | B142: وائل موسى احمد فنون | C142: اوبيل كورسا | D142: سلفر | E142: 1400 | G142: 2500 | H142: 12 | I142: الاستثمار الفلسطيني | J142: 2020-02-15 | K142: وائل موسى احمد فنون | L142: 11أيام | M142: 5شهر | N142: 0سنة | O142: 164
A143: 13 | B143: وائل موسى احمد فنون | C143: اوبيل كورسا | D143: سلفر | E143: 1400 | G143: 2250 | H143: 13 | I143: الاستثمار الفلسطيني | J143: 2020-03-15 | K143: وائل موسى احمد فنون | L143: 11أيام | M143: 6شهر | N143: 0سنة | O143: 193
A144: 14 | B144: وائل موسى احمد فنون | C144: اوبيل كورسا | D144: سلفر | E144: 1400 | G144: 2250 | H144: 14 | I144: الاستثمار الفلسطيني | J144: 2020-04-15 | K144: وائل موسى احمد فنون | L144: 11أيام | M144: 7شهر | N144: 0سنة | O144: 224
A145: 15 | B145: وائل موسى احمد فنون | C145: اوبيل كورسا | D145: سلفر | E145: 1400 | G145: 2250 | H145: 15 | I145: الاستثمار الفلسطيني | J145: 2020-05-15 | K145: وائل موسى احمد فنون | L145: 11أيام | M145: 8شهر | N145: 0سنة | O145: 254
A146: 16 | B146: وائل موسى احمد فنون | C146: اوبيل كورسا | D146: سلفر | E146: 1400 | G146: 2250 | H146: 16 | I146: الاستثمار الفلسطيني | J146: 2020-06-15 | K146: وائل موسى احمد فنون | L146: 11أيام | M146: 9شهر | N146: 0سنة | O146: 285
A147: 17 | B147: وائل موسى احمد فنون | C147: اوبيل كورسا | D147: سلفر | E147: 1400 | G147: 2250 | H147: 17 | I147: الاستثمار الفلسطيني | J147: 2020-07-15 | K147: وائل موسى احمد فنون | L147: 11أيام | M147: 10شهر | N147: 0سنة | O147: 315
A148: 18 | B148: وائل موسى احمد فنون | C148: اوبيل كورسا | D148: سلفر | E148: 1400 | G148: 2250 | H148: 18 | I148: الاستثمار الفلسطيني | J148: 2020-08-15 | K148: وائل موسى احمد فنون | L148: 11أيام | M148: 11شهر | N148: 0سنة | O148: 346
A149: 19 | B149: وائل موسى احمد فنون | C149: اوبيل كورسا | D149: سلفر | E149: 1400 | G149: 2250 | H149: 19 | I149: الاستثمار الفلسطيني | J149: 2020-09-15 | K149: وائل موسى احمد فنون | L149: 11أيام | M149: 0شهر | N149: 1سنة | O149: 377
A150: 20 | B150: وائل موسى احمد فنون | C150: اوبيل كورسا | D150: سلفر | E150: 1400 | G150: 2200 | H150: 20 | I150: الاستثمار الفلسطيني | J150: 2020-10-15 | K150: وائل موسى احمد فنون | L150: =DATEDIF($K$1,J150,"md") & "أيام" -> 11أيام | M150: 1شهر | N150: 1سنة | O150: 407
A151: رقم الشيك | B151: اسم الزبون | C151: نوع السيارة | D151: لون السيارة | E151: قوة المحرك | G151: قيمة الشيك | H151: رقم الشيك | I151: البنك | J151: تاريخ الاستحقاق | K151: اسم صاحب الشيك | L151: يوم | M151: شهور | N151: سنة | O151: =TODAY() -> 2019-09-04 | P151: حالة الشيك | Q151: صور الشيكات
A152: 1 | B152: مهدي سمير محمود ابو عامود | C152: فورد فوكس | D152: اسود | E152: 1600 | G152: 20000 | H152: 1020 | I152: الاسكان | J152: 17/3/2019 | K152: مهدي سمير محمود ابو عامود نوبا بجانب مركز الشرطة 0595990122 | L152: =DATEDIF($K$1,J152,"md") & "أيام" ->  | M152: =DATEDIF($K$1,J152,"ym") & "شهر" ->  | N152: =DATEDIF($K$1,J152,"y") & "سنة" ->  | O152: =J152-$O$3 -> -171 | P152: تم صرفه
A153: 2 | B153: مهدي سمير محمود ابو عامود | C153: فورد فوكس | D153: اسود | E153: 1600 | G153: 5000 | H153: 226 | I153: الاسلامي الفلسطيني | J153: 30/3/2019 | K153: نديم خليل احمد طميزة اذنا الزحليقه 0597256187 | L153: =DATEDIF($K$1,J153,"md") & "أيام" ->  | O153: -158 | P153: تم تجييرة
A154: 3 | B154: مهدي سمير محمود ابو عامود | C154: فورد فوكس | D154: اسود | E154: 1600 | G154: 2000 | H154: 1001 | I154: الاسكان | J154: 30/4/2019 | K154: مهدي سمير محمود ابو عامود نوبا بجانب مركز الشرطة 0595990122 | O154: -127 | P154: تم دفعه بدل شيك راجع حماده ناصر الدين شهر 4
A155: 4 | B155: مهدي سمير محمود ابو عامود | C155: فورد فوكس | D155: اسود | E155: 1600 | G155: 2000 | H155: 1002 | I155: الاسكان | J155: 30/5/2019 | K155: مهدي سمير محمود ابو عامود نوبا بجانب مركز الشرطة 0595990122 | O155: -97
A156: 5 | B156: مهدي سمير محمود ابو عامود | C156: فورد فوكس | D156: اسود | E156: 1600 | G156: 2000 | H156: 1003 | I156: الاسكان | J156: 30/6/2019 | K156: مهدي سمير محمود ابو عامود نوبا بجانب مركز الشرطة 0595990122 | O156: -66
A157: 6 | B157: مهدي سمير محمود ابو عامود | C157: فورد فوكس | D157: اسود | E157: 1600 | G157: 2000 | H157: 1004 | I157: الاسكان | J157: 30/7/2019 | K157: مهدي سمير محمود ابو عامود نوبا بجانب مركز الشرطة 0595990123 | O157: -36
A158: 7 | B158: مهدي سمير محمود ابو عامود | C158: فورد فوكس | D158: اسود | E158: 1600 | G158: 2000 | H158: 1005 | I158: الاسكان | J158: 30/8/2019 | K158: مهدي سمير محمود ابو عامود نوبا بجانب مركز الشرطة 0595990124 | O158: -5
A159: 8 | B159: مهدي سمير محمود ابو عامود | C159: فورد فوكس | D159: اسود | E159: 1600 | G159: 2000 | H159: 1006 | I159: الاسكان | J159: 30/9/2019 | K159: مهدي سمير محمود ابو عامود نوبا بجانب مركز الشرطة 0595990125 | L159: 26أيام | M159: 0شهر | N159: 0سنة | O159: 26
A160: 9 | B160: مهدي سمير محمود ابو عامود | C160: فورد فوكس | D160: اسود | E160: 1600 | G160: 2000 | H160: 1007 | I160: الاسكان | J160: 30/10/2019 | K160: مهدي سمير محمود ابو عامود نوبا بجانب مركز الشرطة 0595990126 | L160: 26أيام | M160: 1شهر | N160: 0سنة | O160: 56
A161: 10 | B161: مهدي سمير محمود ابو عامود | C161: فورد فوكس | D161: اسود | E161: 1600 | G161: 2000 | H161: 1008 | I161: الاسكان | J161: 30/11/2019 | K161: مهدي سمير محمود ابو عامود نوبا بجانب مركز الشرطة 0595990127 | L161: 26أيام | M161: 2شهر | N161: 0سنة | O161: 87
A162: 11 | B162: مهدي سمير محمود ابو عامود | C162: فورد فوكس | D162: اسود | E162: 1600 | G162: 2000 | H162: 1009 | I162: الاسكان | J162: 30/12/2019 | K162: مهدي سمير محمود ابو عامود نوبا بجانب مركز الشرطة 0595990128 | L162: 26أيام | M162: 3شهر | N162: 0سنة | O162: 117
A163: 12 | B163: مهدي سمير محمود ابو عامود | C163: فورد فوكس | D163: اسود | E163: 1600 | G163: 2600 | H163: 1010 | I163: الاسكان | J163: 30/1/2020 | K163: مهدي سمير محمود ابو عامود نوبا بجانب مركز الشرطة 0595990129 | L163: 26أيام | M163: 4شهر | N163: 0سنة | O163: 148
A164: 13 | B164: مهدي سمير محمود ابو عامود | C164: فورد فوكس | D164: اسود | E164: 1600 | G164: 2600 | H164: 1011 | I164: الاسكان | J164: 28/2/2020 | K164: مهدي سمير محمود ابو عامود نوبا بجانب مركز الشرطة 0595990130 | L164: 24أيام | M164: 5شهر | N164: 0سنة | O164: 177
A165: 14 | B165: مهدي سمير محمود ابو عامود | C165: فورد فوكس | D165: اسود | E165: 1600 | G165: 2600 | H165: 1012 | I165: الاسكان | J165: 30/3/2020 | K165: مهدي سمير محمود ابو عامود نوبا بجانب مركز الشرطة 0595990131 | L165: 26أيام | M165: 6شهر | N165: 0سنة | O165: 208
A166: 15 | B166: مهدي سمير محمود ابو عامود | C166: فورد فوكس | D166: اسود | E166: 1600 | G166: 2600 | H166: 1013 | I166: الاسكان | J166: 30/4/2020 | K166: مهدي سمير محمود ابو عامود نوبا بجانب مركز الشرطة 0595990132 | L166: 26أيام | M166: 7شهر | N166: 0سنة | O166: 239
A167: 16 | B167: مهدي سمير محمود ابو عامود | C167: فورد فوكس | D167: اسود | E167: 1600 | G167: 2600 | H167: 1014 | I167: الاسكان | J167: 30/5/2020 | K167: مهدي سمير محمود ابو عامود نوبا بجانب مركز الشرطة 0595990133 | L167: 26أيام | M167: 8شهر | N167: 0سنة | O167: 269
A168: 17 | B168: مهدي سمير محمود ابو عامود | C168: فورد فوكس | D168: اسود | E168: 1600 | G168: 2600 | H168: 1015 | I168: الاسكان | J168: 30/6/2020 | K168: مهدي سمير محمود ابو عامود نوبا بجانب مركز الشرطة 0595990134 | L168: 26أيام | M168: 9شهر | N168: 0سنة | O168: 300
A169: 18 | B169: مهدي سمير محمود ابو عامود | C169: فورد فوكس | D169: اسود | E169: 1600 | G169: 2600 | H169: 1016 | I169: الاسكان | J169: 30/7/2020 | K169: مهدي سمير محمود ابو عامود نوبا بجانب مركز الشرطة 0595990135 | L169: 26أيام | M169: 10شهر | N169: 0سنة | O169: 330
A170: 19 | B170: مهدي سمير محمود ابو عامود | C170: فورد فوكس | D170: اسود | E170: 1600 | G170: 2600 | H170: 1017 | I170: الاسكان | J170: 30/8/2020 | K170: مهدي سمير محمود ابو عامود نوبا بجانب مركز الشرطة 0595990136 | L170: 26أيام | M170: 11شهر | N170: 0سنة | O170: 361
A171: 20 | B171: مهدي سمير محمود ابو عامود | C171: فورد فوكس | D171: اسود | E171: 1600 | G171: 3800 | H171: 1018 | I171: الاسكان | J171: 30/9/2020 | K171: مهدي سمير محمود ابو عامود نوبا بجانب مركز الشرطة 0595990137 | L171: 26أيام | M171: 0شهر | N171: 1سنة | O171: 392
A172: 21 | B172: مهدي سمير محمود ابو عامود | C172: فورد فوكس | D172: اسود | E172: 1600 | G172: 3700 | H172: 1019 | I172: الاسكان | J172: 30/10/2020 | K172: مهدي سمير محمود ابو عامود نوبا بجانب مركز الشرطة 0595990138 | L172: 26أيام | M172: 1شهر | N172: 1سنة | O172: 422
A173: 22 | B173: مهدي سمير محمود ابو عامود | C173: فورد فوكس | D173: اسود | E173: 1600 | G173: 3700 | H173: 69 | I173: فلسطين | J173: 30/12/2020 | K173: سامر بسام ابو عامود نوبا-المشاهد 0597932504 | L173: 26أيام | M173: 3شهر | N173: 1سنة | O173: 483
A174: رقم الشيك | B174: اسم الزبون | C174: نوع السيارة | D174: لون السيارة | E174: قوة المحرك | G174: قيمة الشيك | H174: رقم الشيك | I174: البنك | J174: تاريخ الاستحقاق | K174: اسم صاحب الشيك | L174: يوم | M174: شهور | N174: سنة | O174: =TODAY() -> 2019-09-04 | P174: حالة الشيك | Q174: صور الشيكات
A175: 1 | B175: خالد جمعة محمد قديمات | C175: توسان | D175: اسود | E175: 2000 | G175: 3000 | H175: 30546891 | I175: الاسلامي الفلسطيني | J175: 30/6/2019 | K175: خالد جمعة محمد قديمات خاراس وسط البلد 0595061410 | L175: =DATEDIF($K$1,J175,"md") & "أيام" ->  | M175: =DATEDIF($K$1,J175,"ym") & "شهر" ->  | N175: =DATEDIF($K$1,J175,"y") & "سنة" ->  | O175: =J175-$O$3 -> -66
A176: 2 | B176: خالد جمعة محمد قديمات | C176: توسان | D176: اسود | E176: 2000 | G176: 3000 | H176: 30546892 | I176: الاسلامي الفلسطيني | J176: 30/9/2019 | K176: خالد جمعة محمد قديمات خاراس وسط البلد 0595061411 | L176: =DATEDIF($K$1,J176,"md") & "أيام" -> 26أيام | M176: 0شهر | N176: 0سنة | O176: 26
A177: 3 | B177: خالد جمعة محمد قديمات | C177: توسان | D177: اسود | E177: 2000 | G177: 4000 | H177: 30546893 | I177: الاسلامي الفلسطيني | J177: 30/10/2019 | K177: خالد جمعة محمد قديمات خاراس وسط البلد 0595061412 | L177: 26أيام | M177: 1شهر | N177: 0سنة | O177: 56
A178: 4 | B178: خالد جمعة محمد قديمات | C178: توسان | D178: اسود | E178: 2000 | G178: 7000 | H178: 30546894 | I178: الاسلامي الفلسطيني | J178: 30/11/2019 | K178: خالد جمعة محمد قديمات خاراس وسط البلد 0595061413 | L178: 26أيام | M178: 2شهر | N178: 0سنة | O178: 87
A179: 5 | B179: خالد جمعة محمد قديمات | C179: توسان | D179: اسود | E179: 2000 | G179: 7000 | H179: 30546895 | I179: الاسلامي الفلسطيني | J179: 30/12/2019 | K179: خالد جمعة محمد قديمات خاراس وسط البلد 0595061414 | L179: 26أيام | M179: 3شهر | N179: 0سنة | O179: 117
A180: 6 | B180: خالد جمعة محمد قديمات | C180: توسان | D180: اسود | E180: 2000 | G180: 6000 | H180: 30546896 | I180: الاسلامي الفلسطيني | J180: 28/2/2020 | K180: خالد جمعة محمد قديمات خاراس وسط البلد 0595061415 | L180: 24أيام | M180: 5شهر | N180: 0سنة | O180: 177
A181: 7 | B181: خالد جمعة محمد قديمات | C181: توسان | D181: اسود | E181: 2000 | G181: 6000 | H181: 30546897 | I181: الاسلامي الفلسطيني | J181: 30/4/2020 | K181: خالد جمعة محمد قديمات خاراس وسط البلد 0595061416 | L181: 26أيام | M181: 7شهر | N181: 0سنة | O181: 239
A182: 8 | B182: خالد جمعة محمد قديمات | C182: توسان | D182: اسود | E182: 2000 | G182: 6000 | H182: 30546898 | I182: الاسلامي الفلسطيني | J182: 30/6/2020 | K182: خالد جمعة محمد قديمات خاراس وسط البلد 0595061417 | L182: 26أيام | M182: 9شهر | N182: 0سنة | O182: 300
A183: 9 | B183: خالد جمعة محمد قديمات | C183: توسان | D183: اسود | E183: 2000 | G183: 3000 | H183: 30546899 | I183: الاسلامي الفلسطيني | J183: 30/8/2020 | K183: خالد جمعة محمد قديمات خاراس وسط البلد 0595061418 | L183: 26أيام | M183: 11شهر | N183: 0سنة | O183: 361
A184: رقم الشيك | B184: اسم الزبون | C184: نوع السيارة | D184: لون السيارة | E184: قوة المحرك | G184: قيمة الشيك | H184: رقم الشيك | I184: البنك | J184: تاريخ الاستحقاق | K184: اسم صاحب الشيك | L184: يوم | M184: شهور | N184: سنة | O184: =TODAY() -> 2019-09-04 | P184: حالة الشيك | Q184: صور الشيكات
A185: 1 | B185: رائد نصر رمضان ابو سليمه | C185: سكودا استيشن | D185: اسود | E185: 1600 | G185: 1000 | H185: 56 | I185: فلسطين | J185: 30/5/2019 | K185: جهاد فلاح سدر االخليل 0599503319 | L185: =DATEDIF($K$1,J185,"md") & "أيام" ->  | M185: =DATEDIF($K$1,J185,"ym") & "شهر" ->  | N185: =DATEDIF($K$1,J185,"y") & "سنة" ->  | O185: =J185-$O$3 -> -97
A186: 2 | B186: رائد نصر رمضان ابو سليمه | C186: سكودا استيشن | D186: اسود | E186: 1600 | G186: 2000 | H186: 2 | I186: فلسطين | J186: 30/6/2019 | K186: رامي علي شلالدة سعير - قطيه 0599938012 | L186: =DATEDIF($K$1,J186,"md") & "أيام" ->  | O186: -66
A187: 3 | B187: رائد نصر رمضان ابو سليمه | C187: سكودا استيشن | D187: اسود | E187: 1600 | G187: 1000 | H187: 58 | I187: فلسطين | J187: 30/7/2019 | K187: جهاد فلاح سدر االخليل 0599503319 | O187: -36
A188: 4 | B188: رائد نصر رمضان ابو سليمه | C188: سكودا استيشن | D188: اسود | E188: 1600 | G188: 2000 | H188: 3 | I188: فلسطين | J188: 30/7/2019 | K188: رامي علي شلالدة سعير - قطيه 0599938012 | O188: -36
A189: 5 | B189: رائد نصر رمضان ابو سليمه | C189: سكودا استيشن | D189: اسود | E189: 1600 | G189: 1000 | H189: 59 | I189: فلسطين | J189: 30/8/2019 | K189: جهاد فلاح سدر االخليل 0599503319 | O189: -5
A190: 6 | B190: رائد نصر رمضان ابو سليمه | C190: سكودا استيشن | D190: اسود | E190: 1600 | G190: 2000 | H190: 4 | I190: فلسطين | J190: 30/8/2019 | K190: رامي علي شلالدة سعير - قطيه 0599938012 | O190: -5
A191: 7 | B191: رائد نصر رمضان ابو سليمه | C191: سكودا استيشن | D191: اسود | E191: 1600 | G191: 2500 | H191: 93 | I191: الاسلامي الفلسطيني | J191: 15/9/2019 | K191: رفيدة محمد احمد قيمري جبل جوهر | L191: 11أيام | M191: 0شهر | N191: 0سنة | O191: 11
A192: 8 | B192: رائد نصر رمضان ابو سليمه | C192: سكودا استيشن | D192: اسود | E192: 1600 | G192: 8000 | H192: 117 | I192: فلسطين | J192: 30/9/2019 | K192: سهام محمد دبابسه ترقوميه - دوقاس الغربيه 0598824354 | L192: 26أيام | M192: 0شهر | N192: 0سنة | O192: 26
A193: 9 | B193: رائد نصر رمضان ابو سليمه | C193: سكودا استيشن | D193: اسود | E193: 1600 | G193: 2000 | H193: 5 | I193: فلسطين | J193: 30/9/2019 | K193: رامي علي شلالدة سعير - قطيه 0599938012 | L193: 26أيام | M193: 0شهر | N193: 0سنة | O193: 26
A194: 10 | B194: رائد نصر رمضان ابو سليمه | C194: سكودا استيشن | D194: اسود | E194: 1600 | G194: 2000 | H194: 6 | I194: فلسطين | J194: 30/10/2019 | K194: رامي علي شلالدة سعير - قطيه 0599938012 | L194: 26أيام | M194: 1شهر | N194: 0سنة | O194: 56
A195: 11 | B195: رائد نصر رمضان ابو سليمه | C195: سكودا استيشن | D195: اسود | E195: 1600 | G195: 2000 | H195: 53 | I195: الاسلامي العربي | J195: 30/10/2019 | K195: هاني خضر عبد الغني رجبي جبل جوهر 0598131443 | L195: 26أيام | M195: 1شهر | N195: 0سنة | O195: 56
A196: 12 | B196: رائد نصر رمضان ابو سليمه | C196: سكودا استيشن | D196: اسود | E196: 1600 | G196: 2200 | H196: 1011 | I196: الاسكان | J196: 20/11/2019 | K196: هدايا ربحي عبد الله الحطبه حلحول | L196: 16أيام | M196: 2شهر | N196: 0سنة | O196: 77 | P196: مجير لمعتصم قرضه شراء سبورتاج خالد بدر
A197: 13 | B197: رائد نصر رمضان ابو سليمه | C197: سكودا استيشن | D197: اسود | E197: 1600 | G197: 2000 | H197: 7 | I197: فلسطين | J197: 30/11/2019 | K197: رامي علي شلالدة سعير - قطيه 0599938012 | L197: 26أيام | M197: 2شهر | N197: 0سنة | O197: 87
A198: 14 | B198: رائد نصر رمضان ابو سليمه | C198: سكودا استيشن | D198: اسود | E198: 1600 | G198: 2200 | H198: 1012 | I198: الاسكان | J198: 20/12/2019 | K198: هدايا ربحي عبد الله الحطبه حلحول | L198: 16أيام | M198: 3شهر | N198: 0سنة | O198: 107 | P198: مجير لمعتصم قرضه شراء سبورتاج خالد بدر
A199: 15 | B199: رائد نصر رمضان ابو سليمه | C199: سكودا استيشن | D199: اسود | E199: 1600 | G199: 2000 | H199: 8 | I199: فلسطين | J199: 30/12/2019 | K199: رامي علي شلالدة سعير - قطيه 0599938012 | L199: 26أيام | M199: 3شهر | N199: 0سنة | O199: 117
A200: 16 | B200: رائد نصر رمضان ابو سليمه | C200: سكودا استيشن | D200: اسود | E200: 1600 | G200: 2200 | H200: 1013 | I200: الاسكان | J200: 20/1/2020 | K200: هدايا ربحي عبد الله الحطبه حلحول | L200: 16أيام | M200: 4شهر | N200: 0سنة | O200: 138
... 4300 more rows

Sheet شراء
B1: التاريخ | E1: الساعة الان
B2: =TODAY() -> 2019-09-04 | E2: =NOW() -> 43712.0328
N3: مقبوض ع البدل | P3: مدفوع ع بدل
A4: رقم | B4: البائع | C4: العنوان | D4: نوع السيارة | E4: لون السيارة | F4: الجير | G4: الموديل | H4: قوة المحرك | I4: نوع الوقود | J4: اصل المركبة | K4: طريقة الشراء | L4: نقدا | M4: شيكات | N4: نقدا بدل | O4: شيكات بدل | P4: نقدا بدل | Q4: شيكات بدل | R4: قيمة السيارة المبدله | S4: تفاصيل البدل | T4: سعر الشراء | U4: مصاريف | V4: ملاحظات | W4: التكلفة النهائية | X4: الحالة | Y4: ملاحظات | Z4: رقم الشاصي | AA4: رقم الماتور | AB4: نمرة المركبة | AC4: التاريخ
A5: 1 | B5: ابو طارق القواسمي | C5: الخليل | D5: سكودا استيشن | E5: فيراني "سكني" | F5: اوتوماتيك | G5: 2015 | H5: 2000 | I5: ديزل | K5: نقدا وشيكات | L5: 40000 | M5: 52000 | T5: =SUM(L5+M5) -> 92000 | U5: 0 | W5: =T5+U5 -> 92000 | X5: تم البيع
A6: 2 | B6: سامر التميمي | C6: الخليل | D6: سكودا استيشن | E6: احمر | F6: عادي | G6: 2013 | H6: 1600 | I6: ديزل | K6: تبديل | S6: بدل سكودا استيشن فيراني | U6: 0 | V6: بتكلفة 90.000 | W6: 0 | X6: تم البيع
A7: 3 | B7: رشوان | C7: اذنا | D7: بيكانتو | E7: فيراني "سكني" | F7: اوتوماتيك | G7: 2015 | H7: 1000 | I7: بنزين | K7: نقدا وشيكات | L7: 20000 | M7: 25500 | T7: =SUM(L7+M7) -> 45500 | U7: 0 | V7: جنط 16 | W7: 45500 | X7: تم البيع | AC7: 2018-10-12
A8: 4 | B8: رشوان | C8: اذنا | D8: سيات ابيزا | E8: ابيض | F8: عادي | G8: 2015 | H8: tirbo1250 | I8: بنزين | K8: نقدا وشيكات | L8: 20000 | M8: 38000 | T8: 58000 | U8: 0 | W8: 58000 | X8: تم البيع | AC8: 10l12l2018 | AD8: مجموع الشراء | AG8: راس المال
A9: 5 | B9: وليد الشريف | C9: الخليل | D9: بيكانتو | E9: ابيض | F9: اوتوماتيك | G9: 2015 | H9: 1000 | I9: بنزين | K9: نقدا وشيكات | L9: 20000 | M9: 28000 | T9: 48000 | U9: 0 | V9: بصمة | W9: 48000 | AC9: 13/12/2018 | AD9: =SUM(W:W)-W14-W15+الصندوق!I9 ->  | AG9: نقدا | AH9: شيكات
A10: 6 | B10: وليد الشريف | C10: الخليل | D10: بيكانتو | E10: بيج | F10: اوتوماتيك | G10: 2015 | H10: 1000 | I10: بنزين | K10: نقدا وشيكات | L10: 22000 | M10: 28000 | T10: 50000 | U10: 0 | V10: فتحة سقف | W10: 50000 | AG10: 200000 | AH10: 200000
A11: 7 | B11: مهند محمد بدر النتشة | C11: الخليل | D11: اوبيل كورسا | E11: سكني | F11: عادي | G11: 2015 | H11: 1400 | I11: بنزين | K11: نقدا وشيكات | L11: 36000 | M11: 10000 | T11: 46000 | U11: 0 | W11: 46000 | X11: تم البيع | AC11: 15/2/2018 | AD11: شراء نقدا | AG11: المجموع
A12: 8 | B12: معتصم بصل | C12: الخليل | D12: كيا ريو | E12: سكني | F12: اوتوماتيك | G12: 2004 | I12: بنزين | K12: نقدا | L12: 15000 | T12: 15000 | U12: 0 | W12: 15000 | AD12: =SUM(L:L)-الصندوق!R6-7000 -> 307050 | AG12: 400000
A13: 9 | B13: معتصم بصل | C13: الخليل | D13: كيا فورتي | E13: سكني | F13: اوتوماتيك | G13: 2008 | H13: 1500 | I13: بنزين | K13: نقدا وشيكات | L13: 30000 | T13: 30000 | U13: 0 | W13: 30000 | X13: تم البيع | Z13: knafh22139a014872
A14: 10 | B14: رشوان | C14: اذنا | D14: بيكانتو | E14: ابيض | F14: اوتوماتيك | G14: 2015 | H14: 1000 | I14: بنزين | K14: نقدا وشيكات | L14: 26400 | M14: 22000 | T14: 48400 | U14: 0 | V14: خصم 100 بدل جنط | W14: 48400 | X14: تم البيع | Y14: بدون جنط | AC14: 2019-01-29 | AD14: شراء شيكات
A15: 11 | B15: رشوان | C15: اذنا | D15: بيكانتو | E15: سلفر "سكني" | F15: اوتوماتيك | G15: 2015 | H15: 1000 | I15: بنزين | K15: نقدا وشيكات | L15: 28000 | M15: 20500 | T15: 48500 | U15: 0 | W15: 48500 | AC15: 2019-01-29 | AD15: =SUM(M:M)-الصندوق!I5-الصندوق!I6+الصندوق!I9+3000 -> 766150
A16: 12 | B16: يحيى محمد اسماعيل ابو لوحه | C16: بيت لحم / نحالين | D16: فورد | E16: ابيض | F16: جير | G16: 2001 | H16: 1200 | I16: ديزل | J16: عمومي | K16: بدل | L16: 0 | M16: 0 | N16: 28000 | O16: 850 | R16: 57000 | S16: بدل بيكانتو فيراني 3 | T16: 28400 | U16: 250 | V16: 100 فحص + 150 مصاريف بيت لحم | W16: 28650 | X16: تم البيع | Y16: بدل بيكانتو فيراني جنط 16 | AC16: 2019-02-03 | AG16: صندوق النقدي
A17: 13 | B17: خالد بدر | C17: الحاووز الثاني | D17: بيكانتو | E17: اسود | F17: اوتوماتيك | G17: 2015 | H17: 1000 | I17: بنزين | K17: نقدا وشيكات | L17: 9350 | M17: 37050 | T17: 46400 | U17: 0 | W17: 46400 | AC17: 2019-02-04 | AG17: =AG10-AD12 -> -107050
A18: 14 | B18: خالد بدر | C18: الحاووز الثاني | D18: بيكانتو | E18: ابيض | F18: اوتوماتيك | G18: 2015 | H18: 1000 | I18: بنزين | K18: نقدا وشيكات | L18: 9300 | M18: 36000 | T18: 45300 | U18: 0 | W18: 45300 | Z18: KNABE511BGT142049 | AC18: 2019-02-04
A19: 15 | B19: خالد بدر | C19: الحاووز الثاني | D19: بيكانتو | E19: طحيني "بيج" | F19: اوتوماتيك | G19: 2015 | H19: 1000 | I19: بنزين | K19: نقدا وشيكات | L19: 9300 | M19: 36000 | T19: 45300 | U19: 0 | W19: 45300 | AC19: 2019-02-04 | AD19: دين للشركة من راس المال
A20: 16 | B20: مالك البطران | C20: اذنا | D20: هونداي اكسينت | E20: بترولي | F20: اوتوماتيك | G20: 2015 | H20: 1600 | I20: ديزل | K20: تبديل | L20: 0 | M20: 0 | P20: 2850 | Q20: 14450 | R20: 48500 | S20: بدل بيكانتو سلفر رشوان 11 | T20: 65800 | U20: 0 | V20: سعر البيكانتو 48,500 بالاضافه دفع النقدي +الشيكات | W20: 65800 | X20: تم البيع | AC20: 26/02/2019 | AD20: =AG12-AD9 -> 
A21: 17 | B21: مالك عادل القواسمي | C21: الخليل | D21: فورد فوكس | E21: اسود | F21: اوتوماتيك | G21: 2016 | H21: 1600 | I21: بنزين | K21: نقدا وشيكات | L21: 20000 | M21: 46000 | T21: 66000 | U21: 400 | W21: 66400 | X21: تم البيع | Z21: wfo4xxgcc4gr47141 | AA21: ggr47141 | AC21: 2019-03-05
A22: 18 | B22: جويد ابو اسنينه | C22: الخليل | D22: هونداي توسان | E22: اسود | F22: اوتوماتيك | G22: 2015 | H22: 2000 | I22: ديزل | K22: بدل | P22: 30300 | Q22: 29700 | R22: 39000 | S22: بدل الفورد الترانزيت 12 | T22: 99000 | U22: 0 | W22: 99000 | X22: تم البيع | AG22: صندوق الشيكات
A23: 19 | B23: خالد جمعة محمد قديمات | C23: خاراس | D23: سكودا استيشن | E23: اسود | F23: عادي | G23: 2014 | H23: 2000 | I23: ديزل | K23: بدل | L23: 0 | M23: 0 | O23: 45000 | S23: بدل توسان اسود 18 | T23: 75000 | U23: 1450 | V23: دراي كلين(200)فتح برميل بيئة(200) بوليش (250) كوشوك وجنطات(600)تعتيم(100)لمبة زينون (100) | W23: 76450 | AG23: =AH10-AD15 -> -566150
A24: 20 | B24: همام شريف محمد دعنا | C24: الخليل | D24: شفروليت | E24: سلفر | G24: 2008 | H24: 2000 | I24: ديزل | K24: نقدا وشيكات | L24: 21000 | M24: 40000 | T24: 61000 | U24: 2700 | V24: بوليش وشراء صندوق بيئه | W24: 63700 | X24: تم البيع | Y24: تم تبديله على مرسيدس ودفع الفرقيه منا 12 الف شيكات | AB24: 9651591 | AC24: 14/4/2019
A25: 21 | B25: محمود ابراهيم محمد ابو دريه | C25: بيت لحم / بيت جالا | D25: مرسيدس | E25: اسود | F25: اوتوماتيك | G25: 2008 | H25: 3000 | I25: بنزين | K25: بدل | L25: 0 | M25: 0 | N25: 0 | O25: 0 | P25: 0 | Q25: 12000 | R25: 63700 | S25: تم دفع 12 الف فوق جيب الشفروليت 20 | T25: 75700 | U25: 0 | W25: 75700 | X25: تم البيع
A26: 22 | B26: خالد بدر | C26: الحاووز الثاني | D26: هيونداي اكسينت | E26: ابيض | F26: اوتوماتيك | G26: 2016 | H26: 1400 | I26: بنزين | K26: نقدا وشيكات | L26: 25000 | M26: 42000 | T26: 67000 | U26: 0 | W26: 67000
A27: 23 | B27: كمال جمال ربيع الدويك | C27: الخليل | D27: فورد فوكس | E27: ابيض | F27: اوتوماتيك | G27: 2012 | H27: 1400 | I27: بنزين | K27: بدل | L27: 0 | M27: 0 | N27: 0 | O27: 2000 | R27: 45300 | S27: تم قبض 2000 فوق الفورد | T27: 43525 | U27: 225 | V27: فحص كاظم 65+102 تنازل باسمي+ دينمو58 | W27: 43750 | AB27: 9168894 | AC27: 15/5/2019
A28: 24 | B28: خالد بدر | C28: الحاووز الثاني | D28: كيا مورنينج | E28: أبيض | F28: اوتوماتيك | G28: 2017 | H28: 1000 | I28: بنزين | K28: شيكات | M28: 55000 | T28: 55000 | U28: 20 | V28: بنزين | W28: 55020 | Y28: صور شيكات الشراء مرفقه في ملف كيا مورنينج بيج رقم 27 | Z28: KNAB3511BHT004697 | AC28: 2019-06-22
A29: 25 | B29: خالد بدر | C29: الحاووز الثاني | D29: كيا مورنينج | E29: فيراني "سكني" | F29: اوتوماتيك | G29: 2016 | H29: 1000 | I29: بنزين | K29: شيكات | M29: 48000 | T29: 48000 | U29: 0 | W29: 48000 | Y29: صور شيكات الشراء مرفقه في ملف كيا مورنينج بيج رقم 28 | Z29: KNABE511BGT341348 | AC29: 2019-06-22
A30: 26 | B30: خالد بدر | C30: الحاووز الثاني | D30: كيا مورنينج | E30: فيراني "سكني" | F30: اوتوماتيك | G30: 2016 | H30: 1000 | I30: بنزين | K30: شيكات | M30: 48000 | T30: 48000 | U30: 300 | W30: 48300 | Y30: صور شيكات الشراء مرفقه في ملف كيا مورنينج بيج رقم 29 | Z30: KNABE511bgt360263 | AC30: 2019-06-22
A31: 27 | B31: خالد بدر | C31: الحاووز الثاني | D31: كيا مورنينج | E31: بيج | F31: اوتوماتيك | G31: 2016 | H31: 1000 | I31: بنزين | K31: شيكات | M31: 45000 | T31: 45000 | U31: 10 | V31: بنزين | W31: 45010 | Y31: صور شيكات الشراء مرفقه في ملف كيا مورنينج بيج رقم 30 | Z31: KNABD511BGT277027 | AC31: 2019-06-22
A32: 28 | B32: خالد بدر | C32: الحاووز الثاني | D32: كيا مورنينج | E32: فيراني "سكني" | F32: اوتوماتيك | G32: 2016 | H32: 1000 | I32: بنزين | K32: شيكات | M32: 48000 | T32: 48000 | U32: 20 | V32: بنزين | W32: 48020 | Y32: صور شيكات الشراء مرفقه في ملف كيا مورنينج بيج رقم 31 | Z32: KNABE511BGT360261 | AC32: 2019-06-22
A33: 29 | B33: خالد بدر | C33: الحاووز الثاني | D33: كيا مورنينج | E33: فيراني "سكني" | F33: اوتوماتيك | G33: 2016 | H33: 1000 | I33: بنزين | K33: شيكات | M33: 48000 | T33: 48000 | U33: 20 | V33: بنزين | W33: 48020 | Y33: صور شيكات الشراء مرفقه في ملف كيا مورنينج بيج رقم 32 | Z33: KNABE511BGT354394 | AC33: 2019-06-22
A34: 30 | B34: خالد بدر | C34: الحاووز الثاني | D34: كيا مورنينج | E34: اسود سبور | F34: اوتوماتيك | G34: 2017 | H34: 1000 | I34: بنزين | K34: نقدا وشيكات | L34: 20000 | M34: 37000 | T34: 57000 | U34: 0 | W34: 57000 | Z34: KNAB5511BHT014344 | AC34: 2019-08-04
A35: 31 | B35: محمد سالم الكركي | C35: الخليل | D35: هيونداي افانتي | E35: ابيض | F35: اوتوماتيك | G35: 2005 | H35: 1600 | I35: بنزين | K35: بدل | L35: 0 | M35: 0 | N35: 19500 | R35: 45300 | S35: بدل بيكانتو قفيشة 14 | T35: 25800 | U35: 85 | V35: فحص السيارة 65 + 20 بنزين | W35: 25885 | Z35: KMHDN41BP5U178384 | AC35: 2019-08-08
A36: 32 | B36: معاذ شاور | C36: الخليل | D36: اوبيل | E36: احمر | F36: عادي | G36: 1988 | H36: 1600 | I36: ديزل | J36: خصوصي | K36: خصوصي | L36: خصوصي | M36: خصوصي | N36: خصوصي | O36: خصوصي | P36: خصوصي | Q36: خصوصي | R36: خصوصي | S36: خصوصي | T36: خصوصي | U36: خصوصي | V36: خصوصي
A37: 55 | B37: يونس | C37: فلسطين | D37: كيا | E37: اصفر | F37: اوتوماتيك | G37: 1988 | H37: 1400 | I37: بنزين | J37: خصوصي | K37: خصوصي | L37: خصوصي | M37: خصوصي | N37: خصوصي | O37: خصوصي | P37: خصوصي | Q37: خصوصي | R37: خصوصي | S37: خصوصي | T37: خصوصي | U37: خصوصي | V37: خصوصي
A38: 48 | B38: زهير | C38: الاردن | D38: فيات | E38: سكني | F38: اوتوماتيك | G38: 1988 | H38: 1200 | I38: بنزين | J38: خصوصي | K38: نقدا وشيكات | L38: 200 | M38: 100 | T38: 50 | U38: خمسين بنزين | V38: EF87EFv5
T39: 0 | U39: 0 | W39: 0
T40: 0 | U40: 0 | W40: 0
T41: 0 | U41: 0 | W41: 0
T42: 0 | U42: 0 | W42: 0
T43: 0 | U43: 0 | W43: 0
T44: 0 | U44: 0 | W44: 0
T45: 0 | U45: 0 | W45: 0
T46: 0 | U46: 0 | W46: 0
T47: 0 | U47: 0 | W47: 0
T48: 0 | U48: 0 | W48: 0
T49: 0 | U49: 0 | W49: 0
T50: 0 | U50: 0 | W50: 0
T51: 0 | U51: 0 | W51: 0
T52: 0 | U52: 0 | W52: 0
T53: 0 | U53: 0 | W53: 0
T54: 0 | U54: 0 | W54: 0
T55: 0 | U55: 0 | W55: 0
T56: 0 | U56: 0 | W56: 0
T57: 0 | U57: 0 | W57: 0
T58: 0 | U58: 0 | W58: 0
T59: 0 | U59: 0 | W59: 0
T60: 0 | U60: 0 | W60: 0
T61: 0 | U61: 0 | W61: 0
T62: 0 | U62: 0 | W62: 0
T63: 0 | U63: 0 | W63: 0
T64: 0 | U64: 0 | W64: 0
T65: 0 | U65: 0 | W65: 0
T66: 0 | U66: 0 | W66: 0
T67: 0 | U67: 0 | W67: 0
T68: 0 | U68: 0 | W68: 0
T69: 0 | U69: 0 | W69: =T69+U69 -> 0
T70: 0 | U70: 0 | W70: 0
T71: =SUM(L71+M71) -> 0 | U71: 0 | W71: 0
T72: 0 | U72: 0 | W72: 0
T73: 0 | U73: 0 | W73: 0
T74: 0 | U74: 0 | W74: 0
T75: 0 | U75: 0 | W75: 0
T76: 0 | U76: 0 | W76: 0
T77: 0 | U77: 0 | W77: 0
T78: 0 | U78: 0 | W78: 0
T79: 0 | U79: 0 | W79: 0
T80: 0 | U80: 0 | W80: 0
T81: 0 | U81: 0 | W81: 0
T82: 0 | U82: 0 | W82: 0
T83: 0 | U83: 0 | W83: 0
T84: 0 | U84: 0 | W84: 0
T85: 0 | U85: 0 | W85: 0
T86: 0 | U86: 0 | W86: 0
T87: 0 | U87: 0 | W87: 0
T88: 0 | U88: 0 | W88: 0
T89: 0 | U89: 0 | W89: 0
T90: 0 | U90: 0 | W90: 0
T91: 0 | U91: 0 | W91: 0
T92: 0 | U92: 0 | W92: 0
T93: 0 | U93: 0 | W93: 0
T94: 0 | U94: 0 | W94: 0
T95: 0 | U95: 0 | W95: 0
T96: 0 | U96: 0 | W96: 0
T97: 0 | U97: 0 | W97: 0
T98: 0 | U98: 0 | W98: 0
T99: 0 | U99: 0 | W99: 0
T100: 0 | U100: 0 | W100: 0
T101: 0 | U101: 0 | W101: 0
T102: 0 | U102: 0 | W102: 0
T103: 0 | U103: 0 | W103: 0
T104: 0 | U104: 0 | W104: 0
T105: 0 | U105: 0 | W105: 0
T106: 0 | U106: 0 | W106: 0
T107: 0 | U107: 0 | W107: 0
T108: 0 | U108: 0 | W108: 0
T109: 0 | U109: 0 | W109: 0
T110: 0 | U110: 0 | W110: 0
T111: 0 | U111: 0 | W111: 0
T112: 0 | U112: 0 | W112: 0
T113: 0 | U113: 0 | W113: 0
T114: 0 | U114: 0 | W114: 0
T115: 0 | U115: 0 | W115: 0
T116: 0 | U116: 0 | W116: 0
T117: 0 | U117: 0 | W117: 0
T118: 0 | U118: 0 | W118: 0
T119: 0 | U119: 0 | W119: 0
T120: 0 | U120: 0 | W120: 0
T121: 0 | U121: 0 | W121: 0
T122: 0 | U122: 0 | W122: 0
T123: 0 | U123: 0 | W123: 0
T124: 0 | U124: 0 | W124: 0
T125: 0 | U125: 0 | W125: 0
T126: 0 | U126: 0 | W126: 0
T127: 0 | U127: 0 | W127: 0
T128: 0 | U128: 0 | W128: 0
T129: 0 | U129: 0 | W129: 0
T130: 0 | U130: 0 | W130: 0
T131: 0 | U131: 0 | W131: 0
T132: 0 | U132: 0 | W132: 0
T133: 0 | U133: 0 | W133: =T133+U133 -> 0
T134: 0 | U134: 0 | W134: 0
T135: =SUM(L135+M135) -> 0 | U135: 0 | W135: 0
T136: 0 | U136: 0 | W136: 0
T137: 0 | U137: 0 | W137: 0
T138: 0 | U138: 0 | W138: 0
T139: 0 | U139: 0 | W139: 0
T140: 0 | U140: 0 | W140: 0
T141: 0 | U141: 0 | W141: 0
T142: 0 | U142: 0 | W142: 0
T143: 0 | U143: 0 | W143: 0
T144: 0 | U144: 0 | W144: 0
T145: 0 | U145: 0 | W145: 0
T146: 0 | U146: 0 | W146: 0
T147: 0 | U147: 0 | W147: 0
T148: 0 | U148: 0 | W148: 0
T149: 0 | U149: 0 | W149: 0
T150: 0 | U150: 0 | W150: 0
T151: 0 | U151: 0 | W151: 0
T152: 0 | U152: 0 | W152: 0
T153: 0 | U153: 0 | W153: 0
T154: 0 | U154: 0 | W154: 0
T155: 0 | U155: 0 | W155: 0
T156: 0 | U156: 0 | W156: 0
T157: 0 | U157: 0 | W157: 0
T158: 0 | U158: 0 | W158: 0
T159: 0 | U159: 0 | W159: 0
T160: 0 | U160: 0 | W160: 0
T161: 0 | U161: 0 | W161: 0
T162: 0 | U162: 0 | W162: 0
T163: 0 | U163: 0 | W163: 0
T164: 0 | U164: 0 | W164: 0
T165: 0 | U165: 0 | W165: 0
T166: 0 | U166: 0 | W166: 0
T167: 0 | U167: 0 | W167: 0
T168: 0 | U168: 0 | W168: 0
T169: 0 | U169: 0 | W169: 0
T170: 0 | U170: 0 | W170: 0
T171: 0 | U171: 0 | W171: 0
T172: 0 | U172: 0 | W172: 0
T173: 0 | U173: 0 | W173: 0
T174: 0 | U174: 0 | W174: 0
T175: 0 | U175: 0 | W175: 0
T176: 0 | U176: 0 | W176: 0
T177: 0 | U177: 0 | W177: 0
T178: 0 | U178: 0 | W178: 0
T179: 0 | U179: 0 | W179: 0
T180: 0 | U180: 0 | W180: 0
T181: 0 | U181: 0 | W181: 0
T182: 0 | U182: 0 | W182: 0
T183: 0 | U183: 0 | W183: 0
T184: 0 | U184: 0 | W184: 0
T185: 0 | U185: 0 | W185: 0
T186: 0 | U186: 0 | W186: 0
T187: 0 | U187: 0 | W187: 0
T188: 0 | U188: 0 | W188: 0
T189: 0 | U189: 0 | W189: 0
T190: 0 | U190: 0 | W190: 0
T191: 0 | U191: 0 | W191: 0
T192: 0 | U192: 0 | W192: 0
T193: 0 | U193: 0 | W193: 0
T194: 0 | U194: 0 | W194: 0
T195: 0 | U195: 0 | W195: 0
T196: 0 | U196: 0 | W196: 0
T197: 0 | U197: 0 | W197: =T197+U197 -> 0
T198: 0 | U198: 0 | W198: 0
T199: =SUM(L199+M199) -> 0 | U199: 0 | W199: 0
T200: 0 | U200: 0 | W200: 0
... 882 more rows

Sheet بيع
E1: المربح | H1: مجموع البيع | J1: التاريخ | M1: الساعة الان | O1: مجموع ديون | W1: مجموع البيع نقدا | Z1: مجموع البيع شيكات
E2: =SUM(AE:AE) -> 263294 | H2: =SUM(W:W) -> 1796250 | J2: =TODAY() -> 2019-09-04 | M2: =NOW() -> 43712.0328 | O2: =SUM(AD:AD) -> 1700 | W2: =SUM(N:N) -> 169050 | Z2: =SUM(O:U) -> 2361018
Q4: مقبوض على البدل | S4: مدفوع على البدل
E5: اسم المشتري | F5: نوع السيارة | G5: لون السيارة | H5: نوع الحبر | I5: الموديل | J5: قوة المحرك | K5: رقمها بالشراء | L5: نوع الوقود | M5: طريقة البيع | N5: نقدا | O5: شيكات | P5: بدل | Q5: نقدا | R5: شيكات | S5: نقدا | T5: شيكات | U5: المبلغ المدفوع | V5: سعر الشراء | W5: سعر البيع | X5: خصومات | Y5: سمسرة | Z5: ملاحظات | AA5: التكلفة النهائية | AB5: الحالة | AC5: حالة الملف | AD5: باقي حساب | AE5: المربح | AF5: صور الكمبيالة | AG5: رقم الشاصي | AH5: كفيل | AI5: ملاحظات
B6: =IFERROR(VLOOKUP(ROWS($B$6:B6),$D$6:$E$1002,2,FALSE),"") ->  | C6: =OFFSET($B$6,,,COUNTIF($B$6:B1002,"?*")) ->  | D6: =IF(ISNUMBER(SEARCH(بحث!$D$5,بيع!E6)),MAX($D$5:D5)+1,0) -> 0 | E6: سامر التميمي | F6: سكودا استيشن | G6: فيراني "سكني" | H6: اوتوماتيك | I6: 2015 | J6: 2000 | K6: 1 | L6: ديزل | M6: نقدا وبدل | N6: 15500 | O6: 90000 | U6: =N6+O6 -> 105500 | V6: 92000 | W6: 107000 | X6: 0 | Y6: 0 | AA6: =W6-Y6-X6 -> 107000 | AB6: تم البيع | AC6: معلق | AD6: =W6-U6-Y6 -> 1500 | AE6: =W6-V6-Y6-X6 -> 15000 | AI6: 1500 مبلغ محول على ابي
B7: =IFERROR(VLOOKUP(ROWS($B$6:B7),$D$6:$E$1002,2,FALSE),"") ->  | D7: =IF(ISNUMBER(SEARCH(بحث!$D$5,بيع!E7)),MAX($D$5:D6)+1,0) -> 0 | E7: يزيد قنيبي | F7: سكودا استيشن | G7: احمر | H7: عادي | I7: 2013 | J7: 1600 | K7: 2 | L7: ديزل | M7: شيكات | N7: 0 | O7: 90000 | U7: 90000 | V7: 90000 | W7: 90000 | X7: 0 | Y7: 0 | AB7: تم البيع | AC7: جاهز | AE7: 0
A8: ش | B8: =IFERROR(VLOOKUP(ROWS($B$6:B8),$D$6:$E$1002,2,FALSE),"") ->  | D8: =IF(ISNUMBER(SEARCH(بحث!$D$5,بيع!E8)),MAX($D$5:D7)+1,0) -> 0 | E8: سعدي ابو الحلاوة | F8: كيا فورتي | G8: سكني | H8: اوتوماتيك | I8: 2008 | J8: 1500 | K8: 9 | L8: بنزين | M8: نقدا وشيكات | N8: 28000 | O8: 12000 | U8: =N8+O8 -> 40000 | V8: 30000 | W8: 42000 | X8: 0 | Y8: 2000 | Z8: =U8-X8 -> 40000 | AA8: =W8-Y8-X8 -> 40000 | AB8: تم البيع | AC8: جاهز | AD8: =W8-U8-Y8 -> 0 | AE8: 10000
B9: =IFERROR(VLOOKUP(ROWS($B$6:B9),$D$6:$E$1002,2,FALSE),"") ->  | D9: =IF(ISNUMBER(SEARCH(بحث!$D$5,بيع!E9)),MAX($D$5:D8)+1,0) -> 0 | E9: صلاح الدين علي عطية عطا | F9: سيات ابيزا | G9: ابيض | H9: عادي | I9: 2015 | J9: tirbo 1250 | K9: 4 | L9: بنزين | M9: شيكات | N9: 0 | O9: 76000 | U9: =N9+O9 -> 76000 | V9: 58000 | W9: 76000 | X9: 1000 | Y9: 0 | Z9: خصم بدل ترخيص وفحص بوليتيكنيك | AA9: 75000 | AB9: تم البيع | AC9: جاهز | AD9: =W9-U9-Y9 -> 0 | AE9: =W9-V9-Y9-X9 -> 17000
A10: 5 | B10: =IFERROR(VLOOKUP(ROWS($B$6:B10),$D$6:$E$1002,2,FALSE),"") ->  | D10: =IF(ISNUMBER(SEARCH(بحث!$D$5,بيع!E10)),MAX($D$5:D9)+1,0) -> 0 | E10: يحيى محمد اسماعيل ابو لوحه | F10: بيكانتو | G10: فيراني "سكني" | H10: اوتوماتيك | I10: 2015 | J10: 1000 | K10: 3 | L10: بنزين | M10: نقدا وشيكات وبدل | N10: 28000 | O10: 850 | U10: 0 | V10: 45500 | W10: 58000 | X10: 0 | Y10: 1000 | Z10: جنط 16 | AA10: 57000 | AB10: تم البيع | AC10: جاهز | AD10: 0 | AE10: 11500
A11: 6 | B11: =IFERROR(VLOOKUP(ROWS($B$6:B11),$D$6:$E$1002,2,FALSE),"") ->  | D11: =IF(ISNUMBER(SEARCH(بحث!$D$5,بيع!E11)),MAX($D$5:D10)+1,0) -> 0 | E11: جويد ابو اسنينة | F11: فورد ترانزيت | G11: ابيض | H11: عادي | I11: 2001 | K11: 12 | L11: ديزل | N11: 0 | O11: 0 | P11: بدل | U11: =SUM(N11+O11) -> 0 | V11: 28650 | W11: 39000 | Y11: 0 | AA11: 39000 | AB11: تم البيع | AC11: جاهز | AD11: 0 | AE11: 10350
A12: 7 | B12: =IFERROR(VLOOKUP(ROWS($B$6:B12),$D$6:$E$1002,2,FALSE),"") ->  | D12: =IF(ISNUMBER(SEARCH(بحث!$D$5,بيع!E12)),MAX($D$5:D11)+1,0) -> 0 | E12: خالد جمعة محمد قديمات | F12: هونداي توسان | G12: اسود | H12: اوتوماتيك | I12: 2015 | J12: 2000 | K12: 18 | L12: ديزل | M12: بدل وشيكات | N12: 0 | O12: 45000 | P12: بدل | V12: 99000 | W12: 120000 | X12: 0 | Y12: 0 | Z12: تم دفع سكودا استيشن بقيمه 75 الف | AA12: 120000 | AB12: تم البيع | AC12: جاهز | AD12: 0 | AE12: 21000
A13: 8 | B13: =IFERROR(VLOOKUP(ROWS($B$6:B13),$D$6:$E$1002,2,FALSE),"") ->  | D13: =IF(ISNUMBER(SEARCH(بحث!$D$5,بيع!E13)),MAX($D$5:D12)+1,0) -> 0 | E13: رائد نصر رمضان ابو سليمه | F13: سكودا استيشن | G13: اسود | H13: اوتوماتيك | I13: 2014 | J13: 2000 | K13: 19 | L13: ديزل | M13: نقدا وشيكات | N13: 20000 | O13: 65000 | U13: 84900 | V13: 76450 | W13: 85000 | Z13: باقي دين على رائد 100 شيقل | AA13: 85000 | AB13: تم البيع | AC13: معلق | AD13: 100 | AE13: 8550
A14: 9 | B14: =IFERROR(VLOOKUP(ROWS($B$6:B14),$D$6:$E$1002,2,FALSE),"") ->  | D14: =IF(ISNUMBER(SEARCH(بحث!$D$5,بيع!E14)),MAX($D$5:D13)+1,0) -> 0 | E14: عادل القواسمي | F14: بيكانتو | G14: ابيض | H14: اوتوماتيك | I14: 2015 | J14: 1000 | K14: 10 | L14: بنزين | M14: شيكات | N14: 0 | O14: 52000 | U14: 51450 | V14: 48400 | W14: 52000 | X14: 550 | Y14: 0 | Z14: بدون جنط بدون بصمه | AA14: 51450 | AB14: تم البيع | AC14: جاهز | AD14: 0 | AE14: =W14-V14-Y14-X14 -> 3050
A15: 11 | B15: =IFERROR(VLOOKUP(ROWS($B$6:B15),$D$6:$E$1002,2,FALSE),"") ->  | D15: =IF(ISNUMBER(SEARCH(بحث!$D$5,بيع!E15)),MAX($D$5:D14)+1,0) -> 0 | E15: مالك البطران | F15: بيكانتو | G15: سلفر | H15: اوتوماتيك | I15: 2015 | J15: 1000 | K15: 11 | L15: بنزين | M15: بدل | P15: دفعة بدل نقدا اكسينت بترولي | Q15: 0 | S15: 2850 | T15: 14450 | U15: =N15+O15 -> 0 | V15: 48500 | W15: 48500 | X15: 0 | Y15: 0 | Z15: تم دفع منا شيكات 14450 ونقدا 3550-700 دفعهم مالك فرقية تبديل السيارة | AA15: 0 | AB15: تم البيع | AC15: جاهز | AD15: 0 | AE15: 0
A16: 12 | B16: =IFERROR(VLOOKUP(ROWS($B$6:B16),$D$6:$E$1002,2,FALSE),"") ->  | D16: =IF(ISNUMBER(SEARCH(بحث!$D$5,بيع!E16)),MAX($D$5:D15)+1,0) -> 0 | E16: محمد الشروف | F16: اكسينت | G16: بترولي | H16: اوتوماتيك | I16: 2015 | J16: 1600 | K16: 16 | L16: ديزل | M16: شيكات | N16: 0 | O16: 88000 | U16: =N16+O16 -> 88000 | V16: 65800 | W16: 88000 | X16: 500 | Y16: 0 | Z16: تم تعديل سعر الاكسينت بسبب تبديل (بالشراء)سيارة البيكانتو ابيض 14 الى سلفر11 | AA16: 87500 | AB16: تم البيع | AC16: جاهز | AD16: 0 | AE16: 21700
A17: 13 | B17: =IFERROR(VLOOKUP(ROWS($B$6:B17),$D$6:$E$1002,2,FALSE),"") ->  | D17: =IF(ISNUMBER(SEARCH(بحث!$D$5,بيع!E17)),MAX($D$5:D16)+1,0) -> 0 | E17: جويد ابو اسنينة | F17: كيا ريو | G17: سلفر | H17: اوتوماتيك | I17: 2004 | J17: 1400 | K17: 8 | L17: بنزين | M17: شيكات | N17: 0 | O17: 20000 | U17: 20000 | V17: 15000 | W17: 20000 | X17: 1000 | Y17: 0 | Z17: خصم 1000 شيكل نقدا بعد البيع | AA17: 19000 | AB17: تم البيع | AC17: جاهز | AD17: 0 | AE17: 4000
A18: 14 | B18: =IFERROR(VLOOKUP(ROWS($B$6:B18),$D$6:$E$1002,2,FALSE),"") ->  | D18: =IF(ISNUMBER(SEARCH(بحث!$D$5,بيع!E18)),MAX($D$5:D17)+1,0) -> 0 | E18: وائل موسى احمد فنون | F18: اوبيل كورسا | G18: سلفر | H18: عادي | I18: 2015 | J18: 1400 | K18: 7 | L18: بنزين | M18: نقدا وشيكات | N18: 17000 | O18: 45000 | U18: 62000 | V18: 46000 | W18: =SUM(P18+U18) -> 62000 | X18: 200 | Y18: 0 | Z18: خصم 200 بدل فحص وبنزين | AA18: 61800 | AB18: تم البيع | AC18: جاهز | AD18: 0 | AE18: 15800
A19: 15 | B19: =IFERROR(VLOOKUP(ROWS($B$6:B19),$D$6:$E$1002,2,FALSE),"") ->  | D19: =IF(ISNUMBER(SEARCH(بحث!$D$5,بيع!E19)),MAX($D$5:D18)+1,0) -> 0 | E19: مهدي سمير محمود ابو عامود | F19: فورد فوكس | G19: اسود | H19: اوتوماتيك | I19: 2016 | J19: 1600 | K19: 17 | L19: بنزين | M19: شيكات | N19: 0 | O19: 75000 | U19: 75000 | V19: 66400 | W19: 75000 | X19: 0 | Y19: 0 | AA19: 75000 | AB19: تم البيع | AC19: جاهز | AD19: 0 | AE19: 8600 | AJ19: 2019-02-23
A20: 16 | B20: =IFERROR(VLOOKUP(ROWS($B$6:B20),$D$6:$E$1002,2,FALSE),"") ->  | D20: =IF(ISNUMBER(SEARCH(بحث!$D$5,بيع!E20)),MAX($D$5:D19)+1,0) -> 0 | E20: محمود ابراهيم محمد ابو دريه | F20: شفروليت | G20: سلفر | H20: اوتوماتيك | I20: 2008 | J20: 2000 | K20: 20 | L20: ديزل | M20: بدل | N20: 0 | O20: 0 | P20: بدل مرسيدس اسود | Q20: 0 | R20: 0 | S20: 0 | T20: 12000 | U20: 0 | V20: 63700 | W20: 63700 | X20: 0 | Y20: 0 | AA20: 63700 | AB20: تم البيع | AC20: جاهز | AD20: 0 | AE20: 0
A21: 17 | B21: =IFERROR(VLOOKUP(ROWS($B$6:B21),$D$6:$E$1002,2,FALSE),"") ->  | D21: =IF(ISNUMBER(SEARCH(بحث!$D$5,بيع!E21)),MAX($D$5:D20)+1,0) -> 0 | E21: ضياء اسماعيل محمد قرجه | F21: مرسيدس | G21: اسود | H21: اوتوماتيك | I21: 2008 | J21: 3000 | K21: 21 | L21: بنزين | M21: شيكات | N21: 0 | O21: 110000 | U21: 110000 | V21: 75700 | W21: 110000 | X21: 100 | Y21: 0 | Z21: سمسرة الف شيكل ابو عبد الله ابو رموز+ تم بيعهم التامين 1000 شيقل+100 تنازل السيارة باسمنا | AA21: 109900 | AB21: تم البيع | AC21: جاهز | AD21: 0 | AE21: 34200
A22: 18 | B22: =IFERROR(VLOOKUP(ROWS($B$6:B22),$D$6:$E$1002,2,FALSE),"") ->  | D22: =IF(ISNUMBER(SEARCH(بحث!$D$5,بيع!E22)),MAX($D$5:D21)+1,0) -> 0 | E22: شادي قباجة | F22: هونداي اكسينت | G22: ابيض | H22: اوتوماتيك | I22: 2016 | J22: 1400 | K22: 22 | L22: بنزين | M22: نقدا وشيكات | N22: 18550 | O22: 55450 | U22: 74000 | V22: 67000 | W22: 74000 | X22: 0 | Y22: 0 | AA22: 74000 | AB22: تم البيع | AC22: جاهز | AD22: 0 | AE22: 0 | AF22: تم توزيع المربح
A23: 19 | B23: =IFERROR(VLOOKUP(ROWS($B$6:B23),$D$6:$E$1002,2,FALSE),"") ->  | D23: =IF(ISNUMBER(SEARCH(بحث!$D$5,بيع!E23)),MAX($D$5:D22)+1,0) -> 0 | E23: كمال جمال ربيع الدويك | F23: بيكانتو | G23: طحيني"بيج" | H23: اوتوماتيك | I23: 2015 | J23: 1000 | K23: 15 | L23: بنزين | M23: بدل | Q23: 0 | R23: 2000 | U23: 2000 | V23: 45300 | W23: 45300 | X23: 0 | Y23: 0 | AA23: 45300 | AB23: معلق | AC23: معلق | AD23: 0 | AE23: 0
A24: 19 | B24: =IFERROR(VLOOKUP(ROWS($B$6:B24),$D$6:$E$1002,2,FALSE),"") ->  | D24: =IF(ISNUMBER(SEARCH(بحث!$D$5,بيع!E24)),MAX($D$5:D23)+1,0) -> 0 | F24: فورد فوكس | G24: ابيض | H24: اوتوماتيك | I24: 2012 | K24: 23 | L24: بنزين | U24: 0 | V24: 43525 | X24: 0 | Y24: 0 | AA24: 0 | AB24: معلق | AC24: معلق | AD24: 0 | AE24: 0
A25: 21 | B25: =IFERROR(VLOOKUP(ROWS($B$6:B25),$D$6:$E$1002,2,FALSE),"") ->  | D25: =IF(ISNUMBER(SEARCH(بحث!$D$5,بيع!E25)),MAX($D$5:D24)+1,0) -> 0 | E25: مجدي خلف نعمان قفيشة | F25: بيكانتو | G25: ابيض | H25: اوتوماتيك | I25: 2015 | J25: 1000 | K25: 14 | L25: بنزين | M25: شيكات | N25: 0 | O25: 39900 | U25: 64900 | V25: 45300 | W25: 64900 | X25: 1010 | Y25: 0 | Z25: خصم الف بدل تامين "خصم 10شيكل" مدفوع بدل مخسر11500 - 1010 = 10490 | AA25: 63890 | AB25: تم البيع | AC25: جاهز | AD25: 0 | AE25: 10490
A26: 21 | E26: محمد سالم الكركي | F26: بيكانتو | G26: ابيض | H26: اوتوماتيك | I26: 2015 | J26: 1000 | K26: 14 | L26: بنزين | M26: بدل | Q26: 19500 | U26: 19500 | V26: 45300 | W26: 45300 | X26: 0 | Y26: 0 | AA26: 45300 | AD26: 0 | AE26: 0 | AG26: KNABE511BGT142049
A27: 21 | F27: هونداي افانتي | G27: ابيض | H27: اوتوماتيك | I27: 2005 | J27: 1600 | K27: 31 | L27: بنزين | U27: 0 | V27: 25885 | AD27: 0 | AE27: 0 | AG27: KMHDN41BP5U178384
A28: 22 | B28: =IFERROR(VLOOKUP(ROWS($B$6:B28),$D$6:$E$1002,2,FALSE),"") ->  | D28: =IF(ISNUMBER(SEARCH(بحث!$D$5,بيع!E28)),MAX($D$5:D25)+1,0) -> 0 | E28: محمد عايد محمد عوض | F28: بيكانتو | G28: بيج فتحه | H28: اوتوماتيك | I28: 2015 | J28: 1000 | K28: 6 | L28: بنزين | M28: نقدا وشيكات | N28: 15000 | O28: 54500 | U28: 69500 | V28: 50000 | W28: 69500 | X28: 0 | Y28: 0 | AA28: 69500 | AB28: تم البيع | AC28: جاهز | AD28: 0 | AE28: 19500
A29: 23 | B29: =IFERROR(VLOOKUP(ROWS($B$6:B29),$D$6:$E$1002,2,FALSE),"") ->  | D29: =IF(ISNUMBER(SEARCH(بحث!$D$5,بيع!E29)),MAX($D$5:D28)+1,0) -> 0 | E29: نجوان احمد عبد النبي الطقاطقة | F29: بيكانتو | G29: اسود | H29: اوتوماتيك | I29: 2015 | J29: 1000 | K29: 13 | L29: بنزين | M29: نقدا وشيكات | N29: 5000 | O29: 60000 | U29: 65000 | V29: 46400 | W29: 65000 | X29: 20 | Y29: 0 | AA29: 64980 | AB29: تم البيع | AC29: جاهز | AD29: 0 | AE29: 18580
A30: 24 | B30: =IFERROR(VLOOKUP(ROWS($B$6:B30),$D$6:$E$1002,2,FALSE),"") ->  | D30: =IF(ISNUMBER(SEARCH(بحث!$D$5,بيع!E30)),MAX($D$5:D29)+1,0) -> 0 | E30: ضياء اسماعيل احمد عمرو | F30: بيكانتو | G30: ابيض | H30: اوتوماتيك | I30: 2015 | J30: 1000 | K30: 5 | L30: بنزين | M30: نقدا وشيكات | N30: 12000 | O30: 50000 | U30: 62000 | V30: 48000 | W30: 62000 | X30: 0 | Y30: 0 | AA30: 62000 | AB30: تم البيع | AC30: جاهز | AD30: 0 | AE30: 14000
A31: 25 | B31: =IFERROR(VLOOKUP(ROWS($B$6:B31),$D$6:$E$1002,2,FALSE),"") ->  | D31: =IF(ISNUMBER(SEARCH(بحث!$D$5,بيع!E31)),MAX($D$5:D30)+1,0) -> 0 | E31: رافت عبد الجليل اسماعيل القواسمه | F31: بيكانتو | G31: بيج | H31: اوتوماتيك | I31: 2016 | J31: 1000 | K31: 27 | L31: بنزين | M31: نقدا وشيكات | N31: 10000 | O31: 54984 | U31: 64984 | V31: 45010 | W31: 65000 | X31: 16 | Y31: 0 | Z31: خصم 16 بعد كتابه الشيكات+ 10 بنزين | AA31: 64984 | AB31: تم البيع | AC31: جاهز | AD31: 0 | AE31: 19974
A32: 26 | D32: =IF(ISNUMBER(SEARCH(بحث!$D$5,بيع!E32)),MAX($D$5:D31)+1,0) -> 0 | E32: op | K32: 0 | U32: 100 | AD32: 100 | AI32: uio
D33: =IF(ISNUMBER(SEARCH(بحث!$D$5,بيع!E33)),MAX($D$5:D32)+1,0) -> 0
D34: =IF(ISNUMBER(SEARCH(بحث!$D$5,بيع!E34)),MAX($D$5:D33)+1,0) -> 0
D35: =IF(ISNUMBER(SEARCH(بحث!$D$5,بيع!E35)),MAX($D$5:D34)+1,0) -> 0
D36: =IF(ISNUMBER(SEARCH(بحث!$D$5,بيع!E36)),MAX($D$5:D35)+1,0) -> 0
D37: =IF(ISNUMBER(SEARCH(بحث!$D$5,بيع!E37)),MAX($D$5:D36)+1,0) -> 0
D38: =IF(ISNUMBER(SEARCH(بحث!$D$5,بيع!E38)),MAX($D$5:D37)+1,0) -> 0
B39: =IFERROR(VLOOKUP(ROWS($B$6:B39),$D$6:$E$1002,2,FALSE),"") ->  | D39: =IF(ISNUMBER(SEARCH(بحث!$D$5,بيع!E39)),MAX($D$5:D38)+1,0) -> 0 | U39: 0 | X39: 0 | Y39: 0 | AA39: 0 | AD39: 0 | AE39: 0
B40: =IFERROR(VLOOKUP(ROWS($B$6:B40),$D$6:$E$1002,2,FALSE),"") ->  | D40: =IF(ISNUMBER(SEARCH(بحث!$D$5,بيع!E40)),MAX($D$5:D39)+1,0) -> 0 | U40: 0 | X40: 0 | Y40: 0 | AA40: 0 | AD40: 0 | AE40: 0
B41: =IFERROR(VLOOKUP(ROWS($B$6:B41),$D$6:$E$1002,2,FALSE),"") ->  | D41: =IF(ISNUMBER(SEARCH(بحث!$D$5,بيع!E41)),MAX($D$5:D40)+1,0) -> 0 | U41: 0 | X41: 0 | Y41: 0 | AA41: 0 | AD41: 0 | AE41: 0
B42: =IFERROR(VLOOKUP(ROWS($B$6:B42),$D$6:$E$1002,2,FALSE),"") ->  | D42: =IF(ISNUMBER(SEARCH(بحث!$D$5,بيع!E42)),MAX($D$5:D41)+1,0) -> 0 | U42: 0 | X42: 0 | Y42: 0 | AA42: 0 | AD42: 0 | AE42: 0
B43: =IFERROR(VLOOKUP(ROWS($B$6:B43),$D$6:$E$1002,2,FALSE),"") ->  | D43: =IF(ISNUMBER(SEARCH(بحث!$D$5,بيع!E43)),MAX($D$5:D42)+1,0) -> 0 | U43: 0 | X43: 0 | Y43: 0 | AA43: 0 | AD43: 0 | AE43: 0
B44: =IFERROR(VLOOKUP(ROWS($B$6:B44),$D$6:$E$1002,2,FALSE),"") ->  | D44: =IF(ISNUMBER(SEARCH(بحث!$D$5,بيع!E44)),MAX($D$5:D43)+1,0) -> 0 | U44: 0 | X44: 0 | Y44: 0 | AA44: 0 | AD44: 0 | AE44: 0
B45: =IFERROR(VLOOKUP(ROWS($B$6:B45),$D$6:$E$1002,2,FALSE),"") ->  | D45: =IF(ISNUMBER(SEARCH(بحث!$D$5,بيع!E45)),MAX($D$5:D44)+1,0) -> 0 | U45: 0 | X45: 0 | Y45: 0 | AA45: 0 | AD45: 0 | AE45: 0
B46: =IFERROR(VLOOKUP(ROWS($B$6:B46),$D$6:$E$1002,2,FALSE),"") ->  | D46: =IF(ISNUMBER(SEARCH(بحث!$D$5,بيع!E46)),MAX($D$5:D45)+1,0) -> 0 | U46: =N46+O46 -> 0 | X46: 0 | Y46: 0 | AA46: 0 | AD46: 0 | AE46: 0
B47: =IFERROR(VLOOKUP(ROWS($B$6:B47),$D$6:$E$1002,2,FALSE),"") ->  | D47: =IF(ISNUMBER(SEARCH(بحث!$D$5,بيع!E47)),MAX($D$5:D46)+1,0) -> 0 | U47: 0 | X47: 0 | Y47: 0 | AA47: 0 | AD47: 0 | AE47: 0
B48: =IFERROR(VLOOKUP(ROWS($B$6:B48),$D$6:$E$1002,2,FALSE),"") ->  | D48: =IF(ISNUMBER(SEARCH(بحث!$D$5,بيع!E48)),MAX($D$5:D47)+1,0) -> 0 | U48: 0 | X48: 0 | Y48: 0 | AA48: 0 | AD48: 0 | AE48: 0
B49: =IFERROR(VLOOKUP(ROWS($B$6:B49),$D$6:$E$1002,2,FALSE),"") ->  | D49: =IF(ISNUMBER(SEARCH(بحث!$D$5,بيع!E49)),MAX($D$5:D48)+1,0) -> 0 | U49: 0 | X49: 0 | Y49: 0 | AA49: 0 | AD49: 0 | AE49: 0
B50: =IFERROR(VLOOKUP(ROWS($B$6:B50),$D$6:$E$1002,2,FALSE),"") ->  | D50: =IF(ISNUMBER(SEARCH(بحث!$D$5,بيع!E50)),MAX($D$5:D49)+1,0) -> 0 | U50: 0 | X50: 0 | Y50: 0 | AA50: 0 | AD50: 0 | AE50: 0
B51: =IFERROR(VLOOKUP(ROWS($B$6:B51),$D$6:$E$1002,2,FALSE),"") ->  | D51: =IF(ISNUMBER(SEARCH(بحث!$D$5,بيع!E51)),MAX($D$5:D50)+1,0) -> 0 | U51: 0 | X51: 0 | Y51: 0 | AA51: 0 | AD51: 0 | AE51: 0
B52: =IFERROR(VLOOKUP(ROWS($B$6:B52),$D$6:$E$1002,2,FALSE),"") ->  | D52: =IF(ISNUMBER(SEARCH(بحث!$D$5,بيع!E52)),MAX($D$5:D51)+1,0) -> 0 | U52: 0 | X52: 0 | Y52: 0 | AA52: 0 | AD52: 0 | AE52: 0
B53: =IFERROR(VLOOKUP(ROWS($B$6:B53),$D$6:$E$1002,2,FALSE),"") ->  | D53: =IF(ISNUMBER(SEARCH(بحث!$D$5,بيع!E53)),MAX($D$5:D52)+1,0) -> 0 | U53: 0 | X53: 0 | Y53: 0 | AA53: 0 | AD53: 0 | AE53: 0
B54: =IFERROR(VLOOKUP(ROWS($B$6:B54),$D$6:$E$1002,2,FALSE),"") ->  | D54: =IF(ISNUMBER(SEARCH(بحث!$D$5,بيع!E54)),MAX($D$5:D53)+1,0) -> 0 | U54: 0 | X54: 0 | Y54: 0 | AA54: 0 | AD54: 0 | AE54: 0
B55: =IFERROR(VLOOKUP(ROWS($B$6:B55),$D$6:$E$1002,2,FALSE),"") ->  | D55: =IF(ISNUMBER(SEARCH(بحث!$D$5,بيع!E55)),MAX($D$5:D54)+1,0) -> 0 | U55: 0 | X55: 0 | Y55: 0 | AA55: 0 | AD55: 0 | AE55: 0
B56: =IFERROR(VLOOKUP(ROWS($B$6:B56),$D$6:$E$1002,2,FALSE),"") ->  | D56: =IF(ISNUMBER(SEARCH(بحث!$D$5,بيع!E56)),MAX($D$5:D55)+1,0) -> 0 | U56: 0 | X56: 0 | Y56: 0 | AA56: 0 | AD56: 0 | AE56: 0
B57: =IFERROR(VLOOKUP(ROWS($B$6:B57),$D$6:$E$1002,2,FALSE),"") ->  | D57: =IF(ISNUMBER(SEARCH(بحث!$D$5,بيع!E57)),MAX($D$5:D56)+1,0) -> 0 | U57: 0 | X57: 0 | Y57: 0 | AA57: 0 | AD57: 0 | AE57: 0
B58: =IFERROR(VLOOKUP(ROWS($B$6:B58),$D$6:$E$1002,2,FALSE),"") ->  | D58: =IF(ISNUMBER(SEARCH(بحث!$D$5,بيع!E58)),MAX($D$5:D57)+1,0) -> 0 | U58: 0 | X58: 0 | Y58: 0 | AA58: 0 | AD58: 0 | AE58: 0
B59: =IFERROR(VLOOKUP(ROWS($B$6:B59),$D$6:$E$1002,2,FALSE),"") ->  | D59: =IF(ISNUMBER(SEARCH(بحث!$D$5,بيع!E59)),MAX($D$5:D58)+1,0) -> 0 | U59: 0 | X59: 0 | Y59: 0 | AA59: 0 | AD59: 0 | AE59: 0
B60: =IFERROR(VLOOKUP(ROWS($B$6:B60),$D$6:$E$1002,2,FALSE),"") ->  | D60: =IF(ISNUMBER(SEARCH(بحث!$D$5,بيع!E60)),MAX($D$5:D59)+1,0) -> 0 | U60: 0 | X60: 0 | Y60: 0 | AA60: 0 | AD60: 0 | AE60: 0
B61: =IFERROR(VLOOKUP(ROWS($B$6:B61),$D$6:$E$1002,2,FALSE),"") ->  | D61: =IF(ISNUMBER(SEARCH(بحث!$D$5,بيع!E61)),MAX($D$5:D60)+1,0) -> 0 | U61: 0 | X61: 0 | Y61: 0 | AA61: 0 | AD61: 0 | AE61: 0
B62: =IFERROR(VLOOKUP(ROWS($B$6:B62),$D$6:$E$1002,2,FALSE),"") ->  | D62: =IF(ISNUMBER(SEARCH(بحث!$D$5,بيع!E62)),MAX($D$5:D61)+1,0) -> 0 | U62: 0 | X62: 0 | Y62: 0 | AA62: 0 | AD62: 0 | AE62: 0
B63: =IFERROR(VLOOKUP(ROWS($B$6:B63),$D$6:$E$1002,2,FALSE),"") ->  | D63: =IF(ISNUMBER(SEARCH(بحث!$D$5,بيع!E63)),MAX($D$5:D62)+1,0) -> 0 | U63: 0 | X63: 0 | Y63: 0 | AA63: 0 | AD63: 0 | AE63: 0
B64: =IFERROR(VLOOKUP(ROWS($B$6:B64),$D$6:$E$1002,2,FALSE),"") ->  | D64: =IF(ISNUMBER(SEARCH(بحث!$D$5,بيع!E64)),MAX($D$5:D63)+1,0) -> 0 | U64: 0 | X64: 0 | Y64: 0 | AA64: 0 | AD64: 0 | AE64: 0
B65: =IFERROR(VLOOKUP(ROWS($B$6:B65),$D$6:$E$1002,2,FALSE),"") ->  | D65: =IF(ISNUMBER(SEARCH(بحث!$D$5,بيع!E65)),MAX($D$5:D64)+1,0) -> 0 | U65: 0 | X65: 0 | Y65: 0 | AA65: 0 | AD65: 0 | AE65: 0
B66: =IFERROR(VLOOKUP(ROWS($B$6:B66),$D$6:$E$1002,2,FALSE),"") ->  | D66: =IF(ISNUMBER(SEARCH(بحث!$D$5,بيع!E66)),MAX($D$5:D65)+1,0) -> 0 | U66: 0 | X66: 0 | Y66: 0 | AA66: 0 | AD66: 0 | AE66: 0
B67: =IFERROR(VLOOKUP(ROWS($B$6:B67),$D$6:$E$1002,2,FALSE),"") ->  | D67: =IF(ISNUMBER(SEARCH(بحث!$D$5,بيع!E67)),MAX($D$5:D66)+1,0) -> 0 | U67: 0 | X67: 0 | Y67: 0 | AA67: 0 | AD67: 0 | AE67: 0
B68: =IFERROR(VLOOKUP(ROWS($B$6:B68),$D$6:$E$1002,2,FALSE),"") ->  | D68: =IF(ISNUMBER(SEARCH(بحث!$D$5,بيع!E68)),MAX($D$5:D67)+1,0) -> 0 | U68: 0 | X68: 0 | Y68: 0 | AA68: 0 | AD68: 0 | AE68: 0
B69: =IFERROR(VLOOKUP(ROWS($B$6:B69),$D$6:$E$1002,2,FALSE),"") ->  | D69: =IF(ISNUMBER(SEARCH(بحث!$D$5,بيع!E69)),MAX($D$5:D68)+1,0) -> 0 | U69: 0 | X69: 0 | Y69: 0 | AA69: 0 | AD69: 0 | AE69: 0
B70: =IFERROR(VLOOKUP(ROWS($B$6:B70),$D$6:$E$1002,2,FALSE),"") ->  | D70: =IF(ISNUMBER(SEARCH(بحث!$D$5,بيع!E70)),MAX($D$5:D69)+1,0) -> 0 | U70: 0 | X70: 0 | Y70: 0 | AA70: 0 | AD70: 0 | AE70: 0
B71: =IFERROR(VLOOKUP(ROWS($B$6:B71),$D$6:$E$1002,2,FALSE),"") ->  | D71: =IF(ISNUMBER(SEARCH(بحث!$D$5,بيع!E71)),MAX($D$5:D70)+1,0) -> 0 | U71: 0 | X71: 0 | Y71: 0 | AA71: 0 | AD71: 0 | AE71: 0
B72: =IFERROR(VLOOKUP(ROWS($B$6:B72),$D$6:$E$1002,2,FALSE),"") ->  | D72: =IF(ISNUMBER(SEARCH(بحث!$D$5,بيع!E72)),MAX($D$5:D71)+1,0) -> 0 | U72: 0 | X72: 0 | Y72: 0 | AA72: 0 | AD72: 0 | AE72: 0
B73: =IFERROR(VLOOKUP(ROWS($B$6:B73),$D$6:$E$1002,2,FALSE),"") ->  | D73: =IF(ISNUMBER(SEARCH(بحث!$D$5,بيع!E73)),MAX($D$5:D72)+1,0) -> 0 | U73: 0 | X73: 0 | Y73: 0 | AA73: 0 | AD73: 0 | AE73: 0
B74: =IFERROR(VLOOKUP(ROWS($B$6:B74),$D$6:$E$1002,2,FALSE),"") ->  | D74: =IF(ISNUMBER(SEARCH(بحث!$D$5,بيع!E74)),MAX($D$5:D73)+1,0) -> 0 | U74: 0 | X74: 0 | Y74: 0 | AA74: 0 | AD74: 0 | AE74: 0
B75: =IFERROR(VLOOKUP(ROWS($B$6:B75),$D$6:$E$1002,2,FALSE),"") ->  | D75: =IF(ISNUMBER(SEARCH(بحث!$D$5,بيع!E75)),MAX($D$5:D74)+1,0) -> 0 | U75: =N75+O75 -> 0 | X75: 0 | Y75: 0 | AA75: =W75-Y75-X75 -> 0 | AD75: 0 | AE75: 0
B76: =IFERROR(VLOOKUP(ROWS($B$6:B76),$D$6:$E$1002,2,FALSE),"") ->  | D76: =IF(ISNUMBER(SEARCH(بحث!$D$5,بيع!E76)),MAX($D$5:D75)+1,0) -> 0 | U76: 0 | X76: 0 | Y76: 0 | AA76: 0 | AD76: =W76-U76-Y76 -> 0 | AE76: 0
B77: =IFERROR(VLOOKUP(ROWS($B$6:B77),$D$6:$E$1002,2,FALSE),"") ->  | D77: =IF(ISNUMBER(SEARCH(بحث!$D$5,بيع!E77)),MAX($D$5:D76)+1,0) -> 0 | U77: 0 | X77: 0 | Y77: 0 | AA77: 0 | AD77: 0 | AE77: =W77-V77-Y77-X77 -> 0
B78: =IFERROR(VLOOKUP(ROWS($B$6:B78),$D$6:$E$1002,2,FALSE),"") ->  | D78: =IF(ISNUMBER(SEARCH(بحث!$D$5,بيع!E78)),MAX($D$5:D77)+1,0) -> 0 | U78: 0 | X78: 0 | Y78: 0 | AA78: 0 | AD78: 0 | AE78: 0
B79: =IFERROR(VLOOKUP(ROWS($B$6:B79),$D$6:$E$1002,2,FALSE),"") ->  | D79: =IF(ISNUMBER(SEARCH(بحث!$D$5,بيع!E79)),MAX($D$5:D78)+1,0) -> 0 | U79: 0 | X79: 0 | Y79: 0 | AA79: 0 | AD79: 0 | AE79: 0
B80: =IFERROR(VLOOKUP(ROWS($B$6:B80),$D$6:$E$1002,2,FALSE),"") ->  | D80: =IF(ISNUMBER(SEARCH(بحث!$D$5,بيع!E80)),MAX($D$5:D79)+1,0) -> 0 | U80: 0 | X80: 0 | Y80: 0 | AA80: 0 | AD80: 0 | AE80: 0
B81: =IFERROR(VLOOKUP(ROWS($B$6:B81),$D$6:$E$1002,2,FALSE),"") ->  | D81: =IF(ISNUMBER(SEARCH(بحث!$D$5,بيع!E81)),MAX($D$5:D80)+1,0) -> 0 | U81: 0 | X81: 0 | Y81: 0 | AA81: 0 | AD81: 0 | AE81: 0
B82: =IFERROR(VLOOKUP(ROWS($B$6:B82),$D$6:$E$1002,2,FALSE),"") ->  | D82: =IF(ISNUMBER(SEARCH(بحث!$D$5,بيع!E82)),MAX($D$5:D81)+1,0) -> 0 | U82: 0 | X82: 0 | Y82: 0 | AA82: 0 | AD82: 0 | AE82: 0
B83: =IFERROR(VLOOKUP(ROWS($B$6:B83),$D$6:$E$1002,2,FALSE),"") ->  | D83: =IF(ISNUMBER(SEARCH(بحث!$D$5,بيع!E83)),MAX($D$5:D82)+1,0) -> 0 | U83: 0 | X83: 0 | Y83: 0 | AA83: 0 | AD83: 0 | AE83: 0
B84: =IFERROR(VLOOKUP(ROWS($B$6:B84),$D$6:$E$1002,2,FALSE),"") ->  | D84: =IF(ISNUMBER(SEARCH(بحث!$D$5,بيع!E84)),MAX($D$5:D83)+1,0) -> 0 | U84: 0 | X84: 0 | Y84: 0 | AA84: 0 | AD84: 0 | AE84: 0
B85: =IFERROR(VLOOKUP(ROWS($B$6:B85),$D$6:$E$1002,2,FALSE),"") ->  | D85: =IF(ISNUMBER(SEARCH(بحث!$D$5,بيع!E85)),MAX($D$5:D84)+1,0) -> 0 | U85: 0 | X85: 0 | Y85: 0 | AA85: 0 | AD85: 0 | AE85: 0
B86: =IFERROR(VLOOKUP(ROWS($B$6:B86),$D$6:$E$1002,2,FALSE),"") ->  | D86: =IF(ISNUMBER(SEARCH(بحث!$D$5,بيع!E86)),MAX($D$5:D85)+1,0) -> 0 | U86: 0 | X86: 0 | Y86: 0 | AA86: 0 | AD86: 0 | AE86: 0
B87: =IFERROR(VLOOKUP(ROWS($B$6:B87),$D$6:$E$1002,2,FALSE),"") ->  | D87: =IF(ISNUMBER(SEARCH(بحث!$D$5,بيع!E87)),MAX($D$5:D86)+1,0) -> 0 | U87: 0 | X87: 0 | Y87: 0 | AA87: 0 | AD87: 0 | AE87: 0
B88: =IFERROR(VLOOKUP(ROWS($B$6:B88),$D$6:$E$1002,2,FALSE),"") ->  | D88: =IF(ISNUMBER(SEARCH(بحث!$D$5,بيع!E88)),MAX($D$5:D87)+1,0) -> 0 | U88: 0 | X88: 0 | Y88: 0 | AA88: 0 | AD88: 0 | AE88: 0
B89: =IFERROR(VLOOKUP(ROWS($B$6:B89),$D$6:$E$1002,2,FALSE),"") ->  | D89: =IF(ISNUMBER(SEARCH(بحث!$D$5,بيع!E89)),MAX($D$5:D88)+1,0) -> 0 | U89: 0 | X89: 0 | Y89: 0 | AA89: 0 | AD89: 0 | AE89: 0
B90: =IFERROR(VLOOKUP(ROWS($B$6:B90),$D$6:$E$1002,2,FALSE),"") ->  | D90: =IF(ISNUMBER(SEARCH(بحث!$D$5,بيع!E90)),MAX($D$5:D89)+1,0) -> 0 | U90: 0 | X90: 0 | Y90: 0 | AA90: 0 | AD90: 0 | AE90: 0
B91: =IFERROR(VLOOKUP(ROWS($B$6:B91),$D$6:$E$1002,2,FALSE),"") ->  | D91: =IF(ISNUMBER(SEARCH(بحث!$D$5,بيع!E91)),MAX($D$5:D90)+1,0) -> 0 | U91: 0 | X91: 0 | Y91: 0 | AA91: 0 | AD91: 0 | AE91: 0
B92: =IFERROR(VLOOKUP(ROWS($B$6:B92),$D$6:$E$1002,2,FALSE),"") ->  | D92: =IF(ISNUMBER(SEARCH(بحث!$D$5,بيع!E92)),MAX($D$5:D91)+1,0) -> 0 | U92: 0 | X92: 0 | Y92: 0 | AA92: 0 | AD92: 0 | AE92: 0
B93: =IFERROR(VLOOKUP(ROWS($B$6:B93),$D$6:$E$1002,2,FALSE),"") ->  | D93: =IF(ISNUMBER(SEARCH(بحث!$D$5,بيع!E93)),MAX($D$5:D92)+1,0) -> 0 | U93: 0 | X93: 0 | Y93: 0 | AA93: 0 | AD93: 0 | AE93: 0
B94: =IFERROR(VLOOKUP(ROWS($B$6:B94),$D$6:$E$1002,2,FALSE),"") ->  | D94: =IF(ISNUMBER(SEARCH(بحث!$D$5,بيع!E94)),MAX($D$5:D93)+1,0) -> 0 | U94: 0 | X94: 0 | Y94: 0 | AA94: 0 | AD94: 0 | AE94: 0
B95: =IFERROR(VLOOKUP(ROWS($B$6:B95),$D$6:$E$1002,2,FALSE),"") ->  | D95: =IF(ISNUMBER(SEARCH(بحث!$D$5,بيع!E95)),MAX($D$5:D94)+1,0) -> 0 | U95: 0 | X95: 0 | Y95: 0 | AA95: 0 | AD95: 0 | AE95: 0
B96: =IFERROR(VLOOKUP(ROWS($B$6:B96),$D$6:$E$1002,2,FALSE),"") ->  | D96: =IF(ISNUMBER(SEARCH(بحث!$D$5,بيع!E96)),MAX($D$5:D95)+1,0) -> 0 | U96: 0 | X96: 0 | Y96: 0 | AA96: 0 | AD96: 0 | AE96: 0
B97: =IFERROR(VLOOKUP(ROWS($B$6:B97),$D$6:$E$1002,2,FALSE),"") ->  | D97: =IF(ISNUMBER(SEARCH(بحث!$D$5,بيع!E97)),MAX($D$5:D96)+1,0) -> 0 | U97: 0 | X97: 0 | Y97: 0 | AA97: 0 | AD97: 0 | AE97: 0
B98: =IFERROR(VLOOKUP(ROWS($B$6:B98),$D$6:$E$1002,2,FALSE),"") ->  | D98: =IF(ISNUMBER(SEARCH(بحث!$D$5,بيع!E98)),MAX($D$5:D97)+1,0) -> 0 | U98: 0 | X98: 0 | Y98: 0 | AA98: 0 | AD98: 0 | AE98: 0
B99: =IFERROR(VLOOKUP(ROWS($B$6:B99),$D$6:$E$1002,2,FALSE),"") ->  | D99: =IF(ISNUMBER(SEARCH(بحث!$D$5,بيع!E99)),MAX($D$5:D98)+1,0) -> 0 | U99: 0 | X99: 0 | Y99: 0 | AA99: 0 | AD99: 0 | AE99: 0
B100: =IFERROR(VLOOKUP(ROWS($B$6:B100),$D$6:$E$1002,2,FALSE),"") ->  | D100: =IF(ISNUMBER(SEARCH(بحث!$D$5,بيع!E100)),MAX($D$5:D99)+1,0) -> 0 | U100: 0 | X100: 0 | Y100: 0 | AA100: 0 | AD100: 0 | AE100: 0
B101: =IFERROR(VLOOKUP(ROWS($B$6:B101),$D$6:$E$1002,2,FALSE),"") ->  | D101: =IF(ISNUMBER(SEARCH(بحث!$D$5,بيع!E101)),MAX($D$5:D100)+1,0) -> 0 | U101: 0 | X101: 0 | Y101: 0 | AA101: 0 | AD101: 0 | AE101: 0
B102: =IFERROR(VLOOKUP(ROWS($B$6:B102),$D$6:$E$1002,2,FALSE),"") ->  | D102: =IF(ISNUMBER(SEARCH(بحث!$D$5,بيع!E102)),MAX($D$5:D101)+1,0) -> 0 | U102: 0 | X102: 0 | Y102: 0 | AA102: 0 | AD102: 0 | AE102: 0
B103: =IFERROR(VLOOKUP(ROWS($B$6:B103),$D$6:$E$1002,2,FALSE),"") ->  | D103: =IF(ISNUMBER(SEARCH(بحث!$D$5,بيع!E103)),MAX($D$5:D102)+1,0) -> 0 | U103: 0 | X103: 0 | Y103: 0 | AA103: 0 | AD103: 0 | AE103: 0
B104: =IFERROR(VLOOKUP(ROWS($B$6:B104),$D$6:$E$1002,2,FALSE),"") ->  | D104: =IF(ISNUMBER(SEARCH(بحث!$D$5,بيع!E104)),MAX($D$5:D103)+1,0) -> 0 | U104: 0 | X104: 0 | Y104: 0 | AA104: 0 | AD104: 0 | AE104: 0
B105: =IFERROR(VLOOKUP(ROWS($B$6:B105),$D$6:$E$1002,2,FALSE),"") ->  | D105: =IF(ISNUMBER(SEARCH(بحث!$D$5,بيع!E105)),MAX($D$5:D104)+1,0) -> 0 | U105: 0 | X105: 0 | Y105: 0 | AA105: 0 | AD105: 0 | AE105: 0
B106: =IFERROR(VLOOKUP(ROWS($B$6:B106),$D$6:$E$1002,2,FALSE),"") ->  | D106: =IF(ISNUMBER(SEARCH(بحث!$D$5,بيع!E106)),MAX($D$5:D105)+1,0) -> 0 | U106: 0 | X106: 0 | Y106: 0 | AA106: 0 | AD106: 0 | AE106: 0
B107: =IFERROR(VLOOKUP(ROWS($B$6:B107),$D$6:$E$1002,2,FALSE),"") ->  | D107: =IF(ISNUMBER(SEARCH(بحث!$D$5,بيع!E107)),MAX($D$5:D106)+1,0) -> 0 | U107: 0 | X107: 0 | Y107: 0 | AA107: 0 | AD107: 0 | AE107: 0
B108: =IFERROR(VLOOKUP(ROWS($B$6:B108),$D$6:$E$1002,2,FALSE),"") ->  | D108: =IF(ISNUMBER(SEARCH(بحث!$D$5,بيع!E108)),MAX($D$5:D107)+1,0) -> 0 | U108: 0 | X108: 0 | Y108: 0 | AA108: 0 | AD108: 0 | AE108: 0
B109: =IFERROR(VLOOKUP(ROWS($B$6:B109),$D$6:$E$1002,2,FALSE),"") ->  | D109: =IF(ISNUMBER(SEARCH(بحث!$D$5,بيع!E109)),MAX($D$5:D108)+1,0) -> 0 | U109: 0 | X109: 0 | Y109: 0 | AA109: 0 | AD109: 0 | AE109: 0
B110: =IFERROR(VLOOKUP(ROWS($B$6:B110),$D$6:$E$1002,2,FALSE),"") ->  | D110: =IF(ISNUMBER(SEARCH(بحث!$D$5,بيع!E110)),MAX($D$5:D109)+1,0) -> 0 | U110: 0 | X110: 0 | Y110: 0 | AA110: 0 | AD110: 0 | AE110: 0
B111: =IFERROR(VLOOKUP(ROWS($B$6:B111),$D$6:$E$1002,2,FALSE),"") ->  | D111: =IF(ISNUMBER(SEARCH(بحث!$D$5,بيع!E111)),MAX($D$5:D110)+1,0) -> 0 | U111: 0 | X111: 0 | Y111: 0 | AA111: 0 | AD111: 0 | AE111: 0
B112: =IFERROR(VLOOKUP(ROWS($B$6:B112),$D$6:$E$1002,2,FALSE),"") ->  | D112: =IF(ISNUMBER(SEARCH(بحث!$D$5,بيع!E112)),MAX($D$5:D111)+1,0) -> 0 | U112: 0 | X112: 0 | Y112: 0 | AA112: 0 | AD112: 0 | AE112: 0
B113: =IFERROR(VLOOKUP(ROWS($B$6:B113),$D$6:$E$1002,2,FALSE),"") ->  | D113: =IF(ISNUMBER(SEARCH(بحث!$D$5,بيع!E113)),MAX($D$5:D112)+1,0) -> 0 | U113: 0 | X113: 0 | Y113: 0 | AA113: 0 | AD113: 0 | AE113: 0
B114: =IFERROR(VLOOKUP(ROWS($B$6:B114),$D$6:$E$1002,2,FALSE),"") ->  | D114: =IF(ISNUMBER(SEARCH(بحث!$D$5,بيع!E114)),MAX($D$5:D113)+1,0) -> 0 | U114: 0 | X114: 0 | Y114: 0 | AA114: 0 | AD114: 0 | AE114: 0
B115: =IFERROR(VLOOKUP(ROWS($B$6:B115),$D$6:$E$1002,2,FALSE),"") ->  | D115: =IF(ISNUMBER(SEARCH(بحث!$D$5,بيع!E115)),MAX($D$5:D114)+1,0) -> 0 | U115: 0 | X115: 0 | Y115: 0 | AA115: 0 | AD115: 0 | AE115: 0
B116: =IFERROR(VLOOKUP(ROWS($B$6:B116),$D$6:$E$1002,2,FALSE),"") ->  | D116: =IF(ISNUMBER(SEARCH(بحث!$D$5,بيع!E116)),MAX($D$5:D115)+1,0) -> 0 | U116: 0 | X116: 0 | Y116: 0 | AA116: 0 | AD116: 0 | AE116: 0
B117: =IFERROR(VLOOKUP(ROWS($B$6:B117),$D$6:$E$1002,2,FALSE),"") ->  | D117: =IF(ISNUMBER(SEARCH(بحث!$D$5,بيع!E117)),MAX($D$5:D116)+1,0) -> 0 | U117: 0 | X117: 0 | Y117: 0 | AA117: 0 | AD117: 0 | AE117: 0
B118: =IFERROR(VLOOKUP(ROWS($B$6:B118),$D$6:$E$1002,2,FALSE),"") ->  | D118: =IF(ISNUMBER(SEARCH(بحث!$D$5,بيع!E118)),MAX($D$5:D117)+1,0) -> 0 | U118: 0 | X118: 0 | Y118: 0 | AA118: 0 | AD118: 0 | AE118: 0
B119: =IFERROR(VLOOKUP(ROWS($B$6:B119),$D$6:$E$1002,2,FALSE),"") ->  | D119: =IF(ISNUMBER(SEARCH(بحث!$D$5,بيع!E119)),MAX($D$5:D118)+1,0) -> 0 | U119: 0 | X119: 0 | Y119: 0 | AA119: 0 | AD119: 0 | AE119: 0
B120: =IFERROR(VLOOKUP(ROWS($B$6:B120),$D$6:$E$1002,2,FALSE),"") ->  | D120: =IF(ISNUMBER(SEARCH(بحث!$D$5,بيع!E120)),MAX($D$5:D119)+1,0) -> 0 | U120: 0 | X120: 0 | Y120: 0 | AA120: 0 | AD120: 0 | AE120: 0
B121: =IFERROR(VLOOKUP(ROWS($B$6:B121),$D$6:$E$1002,2,FALSE),"") ->  | D121: =IF(ISNUMBER(SEARCH(بحث!$D$5,بيع!E121)),MAX($D$5:D120)+1,0) -> 0 | U121: 0 | X121: 0 | Y121: 0 | AA121: 0 | AD121: 0 | AE121: 0
B122: =IFERROR(VLOOKUP(ROWS($B$6:B122),$D$6:$E$1002,2,FALSE),"") ->  | D122: =IF(ISNUMBER(SEARCH(بحث!$D$5,بيع!E122)),MAX($D$5:D121)+1,0) -> 0 | U122: 0 | X122: 0 | Y122: 0 | AA122: 0 | AD122: 0 | AE122: 0
B123: =IFERROR(VLOOKUP(ROWS($B$6:B123),$D$6:$E$1002,2,FALSE),"") ->  | D123: =IF(ISNUMBER(SEARCH(بحث!$D$5,بيع!E123)),MAX($D$5:D122)+1,0) -> 0 | U123: 0 | X123: 0 | Y123: 0 | AA123: 0 | AD123: 0 | AE123: 0
B124: =IFERROR(VLOOKUP(ROWS($B$6:B124),$D$6:$E$1002,2,FALSE),"") ->  | D124: =IF(ISNUMBER(SEARCH(بحث!$D$5,بيع!E124)),MAX($D$5:D123)+1,0) -> 0 | U124: 0 | X124: 0 | Y124: 0 | AA124: 0 | AD124: 0 | AE124: 0
B125: =IFERROR(VLOOKUP(ROWS($B$6:B125),$D$6:$E$1002,2,FALSE),"") ->  | D125: =IF(ISNUMBER(SEARCH(بحث!$D$5,بيع!E125)),MAX($D$5:D124)+1,0) -> 0 | U125: 0 | X125: 0 | Y125: 0 | AA125: 0 | AD125: 0 | AE125: 0
B126: =IFERROR(VLOOKUP(ROWS($B$6:B126),$D$6:$E$1002,2,FALSE),"") ->  | D126: =IF(ISNUMBER(SEARCH(بحث!$D$5,بيع!E126)),MAX($D$5:D125)+1,0) -> 0 | U126: 0 | X126: 0 | Y126: 0 | AA126: 0 | AD126: 0 | AE126: 0
B127: =IFERROR(VLOOKUP(ROWS($B$6:B127),$D$6:$E$1002,2,FALSE),"") ->  | D127: =IF(ISNUMBER(SEARCH(بحث!$D$5,بيع!E127)),MAX($D$5:D126)+1,0) -> 0 | U127: 0 | X127: 0 | Y127: 0 | AA127: 0 | AD127: 0 | AE127: 0
B128: =IFERROR(VLOOKUP(ROWS($B$6:B128),$D$6:$E$1002,2,FALSE),"") ->  | D128: =IF(ISNUMBER(SEARCH(بحث!$D$5,بيع!E128)),MAX($D$5:D127)+1,0) -> 0 | U128: 0 | X128: 0 | Y128: 0 | AA128: 0 | AD128: 0 | AE128: 0
B129: =IFERROR(VLOOKUP(ROWS($B$6:B129),$D$6:$E$1002,2,FALSE),"") ->  | D129: =IF(ISNUMBER(SEARCH(بحث!$D$5,بيع!E129)),MAX($D$5:D128)+1,0) -> 0 | U129: 0 | X129: 0 | Y129: 0 | AA129: 0 | AD129: 0 | AE129: 0
B130: =IFERROR(VLOOKUP(ROWS($B$6:B130),$D$6:$E$1002,2,FALSE),"") ->  | D130: =IF(ISNUMBER(SEARCH(بحث!$D$5,بيع!E130)),MAX($D$5:D129)+1,0) -> 0 | U130: 0 | X130: 0 | Y130: 0 | AA130: 0 | AD130: 0 | AE130: 0
B131: =IFERROR(VLOOKUP(ROWS($B$6:B131),$D$6:$E$1002,2,FALSE),"") ->  | D131: =IF(ISNUMBER(SEARCH(بحث!$D$5,بيع!E131)),MAX($D$5:D130)+1,0) -> 0 | U131: 0 | X131: 0 | Y131: 0 | AA131: 0 | AD131: 0 | AE131: 0
B132: =IFERROR(VLOOKUP(ROWS($B$6:B132),$D$6:$E$1002,2,FALSE),"") ->  | D132: =IF(ISNUMBER(SEARCH(بحث!$D$5,بيع!E132)),MAX($D$5:D131)+1,0) -> 0 | U132: 0 | X132: 0 | Y132: 0 | AA132: 0 | AD132: 0 | AE132: 0
B133: =IFERROR(VLOOKUP(ROWS($B$6:B133),$D$6:$E$1002,2,FALSE),"") ->  | D133: =IF(ISNUMBER(SEARCH(بحث!$D$5,بيع!E133)),MAX($D$5:D132)+1,0) -> 0 | U133: 0 | X133: 0 | Y133: 0 | AA133: 0 | AD133: 0 | AE133: 0
B134: =IFERROR(VLOOKUP(ROWS($B$6:B134),$D$6:$E$1002,2,FALSE),"") ->  | D134: =IF(ISNUMBER(SEARCH(بحث!$D$5,بيع!E134)),MAX($D$5:D133)+1,0) -> 0 | U134: 0 | X134: 0 | Y134: 0 | AA134: 0 | AD134: 0 | AE134: 0
B135: =IFERROR(VLOOKUP(ROWS($B$6:B135),$D$6:$E$1002,2,FALSE),"") ->  | D135: =IF(ISNUMBER(SEARCH(بحث!$D$5,بيع!E135)),MAX($D$5:D134)+1,0) -> 0 | U135: 0 | X135: 0 | Y135: 0 | AA135: 0 | AD135: 0 | AE135: 0
B136: =IFERROR(VLOOKUP(ROWS($B$6:B136),$D$6:$E$1002,2,FALSE),"") ->  | D136: =IF(ISNUMBER(SEARCH(بحث!$D$5,بيع!E136)),MAX($D$5:D135)+1,0) -> 0 | U136: 0 | X136: 0 | Y136: 0 | AA136: 0 | AD136: 0 | AE136: 0
B137: =IFERROR(VLOOKUP(ROWS($B$6:B137),$D$6:$E$1002,2,FALSE),"") ->  | D137: =IF(ISNUMBER(SEARCH(بحث!$D$5,بيع!E137)),MAX($D$5:D136)+1,0) -> 0 | U137: 0 | X137: 0 | Y137: 0 | AA137: 0 | AD137: 0 | AE137: 0
B138: =IFERROR(VLOOKUP(ROWS($B$6:B138),$D$6:$E$1002,2,FALSE),"") ->  | D138: =IF(ISNUMBER(SEARCH(بحث!$D$5,بيع!E138)),MAX($D$5:D137)+1,0) -> 0 | U138: 0 | X138: 0 | Y138: 0 | AA138: 0 | AD138: 0 | AE138: 0
B139: =IFERROR(VLOOKUP(ROWS($B$6:B139),$D$6:$E$1002,2,FALSE),"") ->  | D139: =IF(ISNUMBER(SEARCH(بحث!$D$5,بيع!E139)),MAX($D$5:D138)+1,0) -> 0 | U139: =N139+O139 -> 0 | X139: 0 | Y139: 0 | AA139: =W139-Y139-X139 -> 0 | AD139: 0 | AE139: 0
B140: =IFERROR(VLOOKUP(ROWS($B$6:B140),$D$6:$E$1002,2,FALSE),"") ->  | D140: =IF(ISNUMBER(SEARCH(بحث!$D$5,بيع!E140)),MAX($D$5:D139)+1,0) -> 0 | U140: 0 | X140: 0 | Y140: 0 | AA140: 0 | AD140: =W140-U140-Y140 -> 0 | AE140: 0
B141: =IFERROR(VLOOKUP(ROWS($B$6:B141),$D$6:$E$1002,2,FALSE),"") ->  | D141: =IF(ISNUMBER(SEARCH(بحث!$D$5,بيع!E141)),MAX($D$5:D140)+1,0) -> 0 | U141: 0 | X141: 0 | Y141: 0 | AA141: 0 | AD141: 0 | AE141: =W141-V141-Y141-X141 -> 0
B142: =IFERROR(VLOOKUP(ROWS($B$6:B142),$D$6:$E$1002,2,FALSE),"") ->  | D142: =IF(ISNUMBER(SEARCH(بحث!$D$5,بيع!E142)),MAX($D$5:D141)+1,0) -> 0 | U142: 0 | X142: 0 | Y142: 0 | AA142: 0 | AD142: 0 | AE142: 0
B143: =IFERROR(VLOOKUP(ROWS($B$6:B143),$D$6:$E$1002,2,FALSE),"") ->  | D143: =IF(ISNUMBER(SEARCH(بحث!$D$5,بيع!E143)),MAX($D$5:D142)+1,0) -> 0 | U143: 0 | X143: 0 | Y143: 0 | AA143: 0 | AD143: 0 | AE143: 0
B144: =IFERROR(VLOOKUP(ROWS($B$6:B144),$D$6:$E$1002,2,FALSE),"") ->  | D144: =IF(ISNUMBER(SEARCH(بحث!$D$5,بيع!E144)),MAX($D$5:D143)+1,0) -> 0 | U144: 0 | X144: 0 | Y144: 0 | AA144: 0 | AD144: 0 | AE144: 0
B145: =IFERROR(VLOOKUP(ROWS($B$6:B145),$D$6:$E$1002,2,FALSE),"") ->  | D145: =IF(ISNUMBER(SEARCH(بحث!$D$5,بيع!E145)),MAX($D$5:D144)+1,0) -> 0 | U145: 0 | X145: 0 | Y145: 0 | AA145: 0 | AD145: 0 | AE145: 0
B146: =IFERROR(VLOOKUP(ROWS($B$6:B146),$D$6:$E$1002,2,FALSE),"") ->  | D146: =IF(ISNUMBER(SEARCH(بحث!$D$5,بيع!E146)),MAX($D$5:D145)+1,0) -> 0 | U146: 0 | X146: 0 | Y146: 0 | AA146: 0 | AD146: 0 | AE146: 0
B147: =IFERROR(VLOOKUP(ROWS($B$6:B147),$D$6:$E$1002,2,FALSE),"") ->  | D147: =IF(ISNUMBER(SEARCH(بحث!$D$5,بيع!E147)),MAX($D$5:D146)+1,0) -> 0 | U147: 0 | X147: 0 | Y147: 0 | AA147: 0 | AD147: 0 | AE147: 0
B148: =IFERROR(VLOOKUP(ROWS($B$6:B148),$D$6:$E$1002,2,FALSE),"") ->  | D148: =IF(ISNUMBER(SEARCH(بحث!$D$5,بيع!E148)),MAX($D$5:D147)+1,0) -> 0 | U148: 0 | X148: 0 | Y148: 0 | AA148: 0 | AD148: 0 | AE148: 0
B149: =IFERROR(VLOOKUP(ROWS($B$6:B149),$D$6:$E$1002,2,FALSE),"") ->  | D149: =IF(ISNUMBER(SEARCH(بحث!$D$5,بيع!E149)),MAX($D$5:D148)+1,0) -> 0 | U149: 0 | X149: 0 | Y149: 0 | AA149: 0 | AD149: 0 | AE149: 0
B150: =IFERROR(VLOOKUP(ROWS($B$6:B150),$D$6:$E$1002,2,FALSE),"") ->  | D150: =IF(ISNUMBER(SEARCH(بحث!$D$5,بيع!E150)),MAX($D$5:D149)+1,0) -> 0 | U150: 0 | X150: 0 | Y150: 0 | AA150: 0 | AD150: 0 | AE150: 0
B151: =IFERROR(VLOOKUP(ROWS($B$6:B151),$D$6:$E$1002,2,FALSE),"") ->  | D151: =IF(ISNUMBER(SEARCH(بحث!$D$5,بيع!E151)),MAX($D$5:D150)+1,0) -> 0 | U151: 0 | X151: 0 | Y151: 0 | AA151: 0 | AD151: 0 | AE151: 0
B152: =IFERROR(VLOOKUP(ROWS($B$6:B152),$D$6:$E$1002,2,FALSE),"") ->  | D152: =IF(ISNUMBER(SEARCH(بحث!$D$5,بيع!E152)),MAX($D$5:D151)+1,0) -> 0 | U152: 0 | X152: 0 | Y152: 0 | AA152: 0 | AD152: 0 | AE152: 0
B153: =IFERROR(VLOOKUP(ROWS($B$6:B153),$D$6:$E$1002,2,FALSE),"") ->  | D153: =IF(ISNUMBER(SEARCH(بحث!$D$5,بيع!E153)),MAX($D$5:D152)+1,0) -> 0 | U153: 0 | X153: 0 | Y153: 0 | AA153: 0 | AD153: 0 | AE153: 0
B154: =IFERROR(VLOOKUP(ROWS($B$6:B154),$D$6:$E$1002,2,FALSE),"") ->  | D154: =IF(ISNUMBER(SEARCH(بحث!$D$5,بيع!E154)),MAX($D$5:D153)+1,0) -> 0 | U154: 0 | X154: 0 | Y154: 0 | AA154: 0 | AD154: 0 | AE154: 0
B155: =IFERROR(VLOOKUP(ROWS($B$6:B155),$D$6:$E$1002,2,FALSE),"") ->  | D155: =IF(ISNUMBER(SEARCH(بحث!$D$5,بيع!E155)),MAX($D$5:D154)+1,0) -> 0 | U155: 0 | X155: 0 | Y155: 0 | AA155: 0 | AD155: 0 | AE155: 0
B156: =IFERROR(VLOOKUP(ROWS($B$6:B156),$D$6:$E$1002,2,FALSE),"") ->  | D156: =IF(ISNUMBER(SEARCH(بحث!$D$5,بيع!E156)),MAX($D$5:D155)+1,0) -> 0 | U156: 0 | X156: 0 | Y156: 0 | AA156: 0 | AD156: 0 | AE156: 0
B157: =IFERROR(VLOOKUP(ROWS($B$6:B157),$D$6:$E$1002,2,FALSE),"") ->  | D157: =IF(ISNUMBER(SEARCH(بحث!$D$5,بيع!E157)),MAX($D$5:D156)+1,0) -> 0 | U157: 0 | X157: 0 | Y157: 0 | AA157: 0 | AD157: 0 | AE157: 0
B158: =IFERROR(VLOOKUP(ROWS($B$6:B158),$D$6:$E$1002,2,FALSE),"") ->  | D158: =IF(ISNUMBER(SEARCH(بحث!$D$5,بيع!E158)),MAX($D$5:D157)+1,0) -> 0 | U158: 0 | X158: 0 | Y158: 0 | AA158: 0 | AD158: 0 | AE158: 0
B159: =IFERROR(VLOOKUP(ROWS($B$6:B159),$D$6:$E$1002,2,FALSE),"") ->  | D159: =IF(ISNUMBER(SEARCH(بحث!$D$5,بيع!E159)),MAX($D$5:D158)+1,0) -> 0 | U159: 0 | X159: 0 | Y159: 0 | AA159: 0 | AD159: 0 | AE159: 0
B160: =IFERROR(VLOOKUP(ROWS($B$6:B160),$D$6:$E$1002,2,FALSE),"") ->  | D160: =IF(ISNUMBER(SEARCH(بحث!$D$5,بيع!E160)),MAX($D$5:D159)+1,0) -> 0 | U160: 0 | X160: 0 | Y160: 0 | AA160: 0 | AD160: 0 | AE160: 0
B161: =IFERROR(VLOOKUP(ROWS($B$6:B161),$D$6:$E$1002,2,FALSE),"") ->  | D161: =IF(ISNUMBER(SEARCH(بحث!$D$5,بيع!E161)),MAX($D$5:D160)+1,0) -> 0 | U161: 0 | X161: 0 | Y161: 0 | AA161: 0 | AD161: 0 | AE161: 0
B162: =IFERROR(VLOOKUP(ROWS($B$6:B162),$D$6:$E$1002,2,FALSE),"") ->  | D162: =IF(ISNUMBER(SEARCH(بحث!$D$5,بيع!E162)),MAX($D$5:D161)+1,0) -> 0 | U162: 0 | X162: 0 | Y162: 0 | AA162: 0 | AD162: 0 | AE162: 0
B163: =IFERROR(VLOOKUP(ROWS($B$6:B163),$D$6:$E$1002,2,FALSE),"") ->  | D163: =IF(ISNUMBER(SEARCH(بحث!$D$5,بيع!E163)),MAX($D$5:D162)+1,0) -> 0 | U163: 0 | X163: 0 | Y163: 0 | AA163: 0 | AD163: 0 | AE163: 0
B164: =IFERROR(VLOOKUP(ROWS($B$6:B164),$D$6:$E$1002,2,FALSE),"") ->  | D164: =IF(ISNUMBER(SEARCH(بحث!$D$5,بيع!E164)),MAX($D$5:D163)+1,0) -> 0 | U164: 0 | X164: 0 | Y164: 0 | AA164: 0 | AD164: 0 | AE164: 0
B165: =IFERROR(VLOOKUP(ROWS($B$6:B165),$D$6:$E$1002,2,FALSE),"") ->  | D165: =IF(ISNUMBER(SEARCH(بحث!$D$5,بيع!E165)),MAX($D$5:D164)+1,0) -> 0 | U165: 0 | X165: 0 | Y165: 0 | AA165: 0 | AD165: 0 | AE165: 0
B166: =IFERROR(VLOOKUP(ROWS($B$6:B166),$D$6:$E$1002,2,FALSE),"") ->  | D166: =IF(ISNUMBER(SEARCH(بحث!$D$5,بيع!E166)),MAX($D$5:D165)+1,0) -> 0 | U166: 0 | X166: 0 | Y166: 0 | AA166: 0 | AD166: 0 | AE166: 0
B167: =IFERROR(VLOOKUP(ROWS($B$6:B167),$D$6:$E$1002,2,FALSE),"") ->  | D167: =IF(ISNUMBER(SEARCH(بحث!$D$5,بيع!E167)),MAX($D$5:D166)+1,0) -> 0 | U167: 0 | X167: 0 | Y167: 0 | AA167: 0 | AD167: 0 | AE167: 0
B168: =IFERROR(VLOOKUP(ROWS($B$6:B168),$D$6:$E$1002,2,FALSE),"") ->  | D168: =IF(ISNUMBER(SEARCH(بحث!$D$5,بيع!E168)),MAX($D$5:D167)+1,0) -> 0 | U168: 0 | X168: 0 | Y168: 0 | AA168: 0 | AD168: 0 | AE168: 0
B169: =IFERROR(VLOOKUP(ROWS($B$6:B169),$D$6:$E$1002,2,FALSE),"") ->  | D169: =IF(ISNUMBER(SEARCH(بحث!$D$5,بيع!E169)),MAX($D$5:D168)+1,0) -> 0 | U169: 0 | X169: 0 | Y169: 0 | AA169: 0 | AD169: 0 | AE169: 0
B170: =IFERROR(VLOOKUP(ROWS($B$6:B170),$D$6:$E$1002,2,FALSE),"") ->  | D170: =IF(ISNUMBER(SEARCH(بحث!$D$5,بيع!E170)),MAX($D$5:D169)+1,0) -> 0 | U170: 0 | X170: 0 | Y170: 0 | AA170: 0 | AD170: 0 | AE170: 0
B171: =IFERROR(VLOOKUP(ROWS($B$6:B171),$D$6:$E$1002,2,FALSE),"") ->  | D171: =IF(ISNUMBER(SEARCH(بحث!$D$5,بيع!E171)),MAX($D$5:D170)+1,0) -> 0 | U171: 0 | X171: 0 | Y171: 0 | AA171: 0 | AD171: 0 | AE171: 0
B172: =IFERROR(VLOOKUP(ROWS($B$6:B172),$D$6:$E$1002,2,FALSE),"") ->  | D172: =IF(ISNUMBER(SEARCH(بحث!$D$5,بيع!E172)),MAX($D$5:D171)+1,0) -> 0 | U172: 0 | X172: 0 | Y172: 0 | AA172: 0 | AD172: 0 | AE172: 0
B173: =IFERROR(VLOOKUP(ROWS($B$6:B173),$D$6:$E$1002,2,FALSE),"") ->  | D173: =IF(ISNUMBER(SEARCH(بحث!$D$5,بيع!E173)),MAX($D$5:D172)+1,0) -> 0 | U173: 0 | X173: 0 | Y173: 0 | AA173: 0 | AD173: 0 | AE173: 0
B174: =IFERROR(VLOOKUP(ROWS($B$6:B174),$D$6:$E$1002,2,FALSE),"") ->  | D174: =IF(ISNUMBER(SEARCH(بحث!$D$5,بيع!E174)),MAX($D$5:D173)+1,0) -> 0 | U174: 0 | X174: 0 | Y174: 0 | AA174: 0 | AD174: 0 | AE174: 0
B175: =IFERROR(VLOOKUP(ROWS($B$6:B175),$D$6:$E$1002,2,FALSE),"") ->  | D175: =IF(ISNUMBER(SEARCH(بحث!$D$5,بيع!E175)),MAX($D$5:D174)+1,0) -> 0 | U175: 0 | X175: 0 | Y175: 0 | AA175: 0 | AD175: 0 | AE175: 0
B176: =IFERROR(VLOOKUP(ROWS($B$6:B176),$D$6:$E$1002,2,FALSE),"") ->  | D176: =IF(ISNUMBER(SEARCH(بحث!$D$5,بيع!E176)),MAX($D$5:D175)+1,0) -> 0 | U176: 0 | X176: 0 | Y176: 0 | AA176: 0 | AD176: 0 | AE176: 0
B177: =IFERROR(VLOOKUP(ROWS($B$6:B177),$D$6:$E$1002,2,FALSE),"") ->  | D177: =IF(ISNUMBER(SEARCH(بحث!$D$5,بيع!E177)),MAX($D$5:D176)+1,0) -> 0 | U177: 0 | X177: 0 | Y177: 0 | AA177: 0 | AD177: 0 | AE177: 0
B178: =IFERROR(VLOOKUP(ROWS($B$6:B178),$D$6:$E$1002,2,FALSE),"") ->  | D178: =IF(ISNUMBER(SEARCH(بحث!$D$5,بيع!E178)),MAX($D$5:D177)+1,0) -> 0 | U178: 0 | X178: 0 | Y178: 0 | AA178: 0 | AD178: 0 | AE178: 0
B179: =IFERROR(VLOOKUP(ROWS($B$6:B179),$D$6:$E$1002,2,FALSE),"") ->  | D179: =IF(ISNUMBER(SEARCH(بحث!$D$5,بيع!E179)),MAX($D$5:D178)+1,0) -> 0 | U179: 0 | X179: 0 | Y179: 0 | AA179: 0 | AD179: 0 | AE179: 0
B180: =IFERROR(VLOOKUP(ROWS($B$6:B180),$D$6:$E$1002,2,FALSE),"") ->  | D180: =IF(ISNUMBER(SEARCH(بحث!$D$5,بيع!E180)),MAX($D$5:D179)+1,0) -> 0 | U180: 0 | X180: 0 | Y180: 0 | AA180: 0 | AD180: 0 | AE180: 0
B181: =IFERROR(VLOOKUP(ROWS($B$6:B181),$D$6:$E$1002,2,FALSE),"") ->  | D181: =IF(ISNUMBER(SEARCH(بحث!$D$5,بيع!E181)),MAX($D$5:D180)+1,0) -> 0 | U181: 0 | X181: 0 | Y181: 0 | AA181: 0 | AD181: 0 | AE181: 0
B182: =IFERROR(VLOOKUP(ROWS($B$6:B182),$D$6:$E$1002,2,FALSE),"") ->  | D182: =IF(ISNUMBER(SEARCH(بحث!$D$5,بيع!E182)),MAX($D$5:D181)+1,0) -> 0 | U182: 0 | X182: 0 | Y182: 0 | AA182: 0 | AD182: 0 | AE182: 0
B183: =IFERROR(VLOOKUP(ROWS($B$6:B183),$D$6:$E$1002,2,FALSE),"") ->  | D183: =IF(ISNUMBER(SEARCH(بحث!$D$5,بيع!E183)),MAX($D$5:D182)+1,0) -> 0 | U183: 0 | X183: 0 | Y183: 0 | AA183: 0 | AD183: 0 | AE183: 0
B184: =IFERROR(VLOOKUP(ROWS($B$6:B184),$D$6:$E$1002,2,FALSE),"") ->  | D184: =IF(ISNUMBER(SEARCH(بحث!$D$5,بيع!E184)),MAX($D$5:D183)+1,0) -> 0 | U184: 0 | X184: 0 | Y184: 0 | AA184: 0 | AD184: 0 | AE184: 0
B185: =IFERROR(VLOOKUP(ROWS($B$6:B185),$D$6:$E$1002,2,FALSE),"") ->  | D185: =IF(ISNUMBER(SEARCH(بحث!$D$5,بيع!E185)),MAX($D$5:D184)+1,0) -> 0 | U185: 0 | X185: 0 | Y185: 0 | AA185: 0 | AD185: 0 | AE185: 0
B186: =IFERROR(VLOOKUP(ROWS($B$6:B186),$D$6:$E$1002,2,FALSE),"") ->  | D186: =IF(ISNUMBER(SEARCH(بحث!$D$5,بيع!E186)),MAX($D$5:D185)+1,0) -> 0 | U186: 0 | X186: 0 | Y186: 0 | AA186: 0 | AD186: 0 | AE186: 0
B187: =IFERROR(VLOOKUP(ROWS($B$6:B187),$D$6:$E$1002,2,FALSE),"") ->  | D187: =IF(ISNUMBER(SEARCH(بحث!$D$5,بيع!E187)),MAX($D$5:D186)+1,0) -> 0 | U187: 0 | X187: 0 | Y187: 0 | AA187: 0 | AD187: 0 | AE187: 0
B188: =IFERROR(VLOOKUP(ROWS($B$6:B188),$D$6:$E$1002,2,FALSE),"") ->  | D188: =IF(ISNUMBER(SEARCH(بحث!$D$5,بيع!E188)),MAX($D$5:D187)+1,0) -> 0 | U188: 0 | X188: 0 | Y188: 0 | AA188: 0 | AD188: 0 | AE188: 0
B189: =IFERROR(VLOOKUP(ROWS($B$6:B189),$D$6:$E$1002,2,FALSE),"") ->  | D189: =IF(ISNUMBER(SEARCH(بحث!$D$5,بيع!E189)),MAX($D$5:D188)+1,0) -> 0 | U189: 0 | X189: 0 | Y189: 0 | AA189: 0 | AD189: 0 | AE189: 0
B190: =IFERROR(VLOOKUP(ROWS($B$6:B190),$D$6:$E$1002,2,FALSE),"") ->  | D190: =IF(ISNUMBER(SEARCH(بحث!$D$5,بيع!E190)),MAX($D$5:D189)+1,0) -> 0 | U190: 0 | X190: 0 | Y190: 0 | AA190: 0 | AD190: 0 | AE190: 0
B191: =IFERROR(VLOOKUP(ROWS($B$6:B191),$D$6:$E$1002,2,FALSE),"") ->  | D191: =IF(ISNUMBER(SEARCH(بحث!$D$5,بيع!E191)),MAX($D$5:D190)+1,0) -> 0 | U191: 0 | X191: 0 | Y191: 0 | AA191: 0 | AD191: 0 | AE191: 0
B192: =IFERROR(VLOOKUP(ROWS($B$6:B192),$D$6:$E$1002,2,FALSE),"") ->  | D192: =IF(ISNUMBER(SEARCH(بحث!$D$5,بيع!E192)),MAX($D$5:D191)+1,0) -> 0 | U192: 0 | X192: 0 | Y192: 0 | AA192: 0 | AD192: 0 | AE192: 0
B193: =IFERROR(VLOOKUP(ROWS($B$6:B193),$D$6:$E$1002,2,FALSE),"") ->  | D193: =IF(ISNUMBER(SEARCH(بحث!$D$5,بيع!E193)),MAX($D$5:D192)+1,0) -> 0 | U193: 0 | X193: 0 | Y193: 0 | AA193: 0 | AD193: 0 | AE193: 0
B194: =IFERROR(VLOOKUP(ROWS($B$6:B194),$D$6:$E$1002,2,FALSE),"") ->  | D194: =IF(ISNUMBER(SEARCH(بحث!$D$5,بيع!E194)),MAX($D$5:D193)+1,0) -> 0 | U194: 0 | X194: 0 | Y194: 0 | AA194: 0 | AD194: 0 | AE194: 0
B195: =IFERROR(VLOOKUP(ROWS($B$6:B195),$D$6:$E$1002,2,FALSE),"") ->  | D195: =IF(ISNUMBER(SEARCH(بحث!$D$5,بيع!E195)),MAX($D$5:D194)+1,0) -> 0 | U195: 0 | X195: 0 | Y195: 0 | AA195: 0 | AD195: 0 | AE195: 0
B196: =IFERROR(VLOOKUP(ROWS($B$6:B196),$D$6:$E$1002,2,FALSE),"") ->  | D196: =IF(ISNUMBER(SEARCH(بحث!$D$5,بيع!E196)),MAX($D$5:D195)+1,0) -> 0 | U196: 0 | X196: 0 | Y196: 0 | AA196: 0 | AD196: 0 | AE196: 0
B197: =IFERROR(VLOOKUP(ROWS($B$6:B197),$D$6:$E$1002,2,FALSE),"") ->  | D197: =IF(ISNUMBER(SEARCH(بحث!$D$5,بيع!E197)),MAX($D$5:D196)+1,0) -> 0 | U197: 0 | X197: 0 | Y197: 0 | AA197: 0 | AD197: 0 | AE197: 0
B198: =IFERROR(VLOOKUP(ROWS($B$6:B198),$D$6:$E$1002,2,FALSE),"") ->  | D198: =IF(ISNUMBER(SEARCH(بحث!$D$5,بيع!E198)),MAX($D$5:D197)+1,0) -> 0 | U198: 0 | X198: 0 | Y198: 0 | AA198: 0 | AD198: 0 | AE198: 0
B199: =IFERROR(VLOOKUP(ROWS($B$6:B199),$D$6:$E$1002,2,FALSE),"") ->  | D199: =IF(ISNUMBER(SEARCH(بحث!$D$5,بيع!E199)),MAX($D$5:D198)+1,0) -> 0 | U199: 0 | X199: 0 | Y199: 0 | AA199: 0 | AD199: 0 | AE199: 0
B200: =IFERROR(VLOOKUP(ROWS($B$6:B200),$D$6:$E$1002,2,FALSE),"") ->  | D200: =IF(ISNUMBER(SEARCH(بحث!$D$5,بيع!E200)),MAX($D$5:D199)+1,0) -> 0 | U200: 0 | X200: 0 | Y200: 0 | AA200: 0 | AD200: 0 | AE200: 0
B201: =IFERROR(VLOOKUP(ROWS($B$6:B201),$D$6:$E$1002,2,FALSE),"") ->  | D201: =IF(ISNUMBER(SEARCH(بحث!$D$5,بيع!E201)),MAX($D$5:D200)+1,0) -> 0 | U201: 0 | X201: 0 | Y201: 0 | AA201: 0 | AD201: 0 | AE201: 0
... 1091 more rows

Sheet مخزون
A1: الرقم | B1: البائع | C1: نوع السيارة | D1: لون السيارة | E1: الجير | F1: الموديل | G1: قوة المحرك | H1: نوع الوقود | I1: طريقة الشراء | J1: نقدا | K1: شيكات | L1: سعر الشراء | M1: اتفاقية الشراء | N1: مصاريف | O1: ملاحظات | P1: التكلفة النهائية | Q1: رقم الشاصي | R1: رقم الماتور | S1: التاريخ
A2: 1 | B2: كمال جمال ربيع الدويك | C2: فورد فوكس | D2: ابيض | E2: اوتوماتيك | F2: 2012 | G2: 1400 | H2: بنزين | I2: بدل | L2: 42865 | O2: تم تبديلها على بيكانتو بيج ساده ودفع 2000 فرقيه | P2: 42865 | S2: 15/5/2019
T3: مجموع الشراء | W3: راس المال
A4: 3 | B4: خالد بدر | C4: كيا مورنينج | D4: فيراني | E4: اوتوماتيك | F4: 2016 | G4: 1000 | H4: بنزين | I4: شيكات | K4: 48000 | L4: 48000 | Q4: KNABE511BGT354394 | T4: =SUM(T7,T10) -> 68000 | W4: نقدا | X4: شيكات
A5: 4 | B5: محمد سالم الكركي | C5: هونداي افانتي | D5: ابيض | E5: اوتوماتيك | F5: 2005 | G5: 1600 | H5: بنزين | I5: بدل | W5: 200000 | X5: 200000
A6: 5 | B6: خالد بدر | C6: كيا مورنينج | D6: اسود سبور | E6: اوتوماتيك | F6: 2017 | G6: 1000 | H6: بنزين | I6: نقدا وشيكات | J6: 20000 | T6: شراء نقدا | W6: المجموع
T7: =SUM(J:J) -> 20000 | W7: 400000
T9: شراء شيكات
T10: =SUM(K:K) -> 48000

Sheet تقرير راس المال
A1: راس المال نقدا | B1: راس المال شيكات | C1: مجموع راس المال | E1: مستحقات على معتصم | I1: مستحقات على عماد
A2: 200000 | B2: 200000 | C2: 400000 | E2: نقدا | F2: شيكات | I2: نقدا | J2: شيكات
E3: ='ديون عملاء'!Q10 -> 0 | F3: ='ديون عملاء'!R10 -> 0 | I3: ='ديون عملاء'!Q18 -> 0 | J3: ='ديون عملاء'!R18 -> 0
A4: رصيد على صندوق النقدي | B4: رصيد على صندوق الشيكات | C4: دين للشركة لراس المال
A5: 0 | B5: 0 | C5: 0 | E5: مستحقات الى معتصم | I5: مستحقات الى عماد
E6: نقدا | F6: شيكات | I6: نقدا | J6: شيكات
A7: شراء نقدا | B7: شراء شيكات | C7: المجموع | E7: ='ديون عملاء'!Q6 -> 0 | F7: ='ديون عملاء'!R6 -> 0 | I7: ='ديون عملاء'!Q14 -> 0 | J7: ='ديون عملاء'!R14 -> 0
A8: =شراء!AD12 -> 307050 | B8: =شراء!AD15-الصندوق!N16 -> 494998 | C8: =A8+B8 -> 802048
E9: مجمل الارباح
E10: =بيع!E2 -> 263294
A11: رصيد صندوق النقدي | B11: رصيد صندوق الشيكات | C11: المجموع
A12: =الصندوق!AF16 -> 115565 | B12: =الصندوق!N16 -> 271152 | C12: =A12+B12 -> 386717 | E12: مجمل الديون على الزبائن
E13: ='ديون عملاء'!O5 -> 1600
E15: مال مقبوض بالخزنة
E16: نقدا | F16: شيكات
E17: =الصندوق!AF16 -> 115565 | F17: =الصندوق!N16 -> 271152
E18: =E17+F17 -> 386717
E20: مجموع راس المال والمربح
E21: =E10+C2 -> 663294

Sheet الصندوق
A1: سجل صندوق شيكات | N1: مجموع دخول شيكات | R1: سجل صندوق نقدا | AF1: مجموع دخول نقدا
A3: دخول شيكات | I3: خروج شيكات | N3: =SUM(A5:A1001) -> 1113234 | R3: دخول نقدا | Y3: خروج نقدا | AC3: رقم السيارة | AF3: =SUM(R5:R1001) -> 325000
A4: المبلغ | B4: التاريخ | C4: سيارة | D4: ملاحظة | E4: مصدر السيارة | F4: عدد الشيكات | G4: الحالة | I4: المبلغ | J4: التاريخ | K4: التفاصيل | L4: نوع السيارة | R4: المبلغ | S4: التاريخ | T4: سيارة | U4: ملاحظة | V4: مصدر السيارة | W4: مصدر الدخل | Y4: المبلغ | Z4: التاريخ | AA4: ملاحظات | AB4: تفاصيل السيارة | AC4: بالشراء | AD4: بالبيع
A5: 53000 | B5: 23/1/2019 | C5: كيا استيشن أحمر 1600 "يزيد الشريف" | D5: باقي حساب عليه 37 الف | E5: سامر التميمي | F5: 20 | I5: 22000 | J5: 2019-01-29 | K5: رشوان 10+11 | L5: بيكانتو ابيض | R5: 7000 | S5: 2019-01-29 | U5: دفعة نقدا لتعديل راس المال | Y5: 26500 | Z5: 2019-01-29 | AB5: شراء بيكانتو | AC5: 10 | AD5: بالمخزن
A6: 12000 | B6: 24/1/2019 | C6: كيا فورتي سكني "سعدي سعيد ابو الحلاوة" | E6: معتصم بصل | F6: 4 | I6: 20500 | J6: 2019-01-29 | K6: رشوان 10+11 | L6: بيكانتو سلفر "سكني" | R6: 57500 | S6: 2019-01-29 | U6: دفعة نقدا لتعديل راس المال | Y6: 28000 | Z6: 2019-01-29 | AB6: شراء بيكانتو | AC6: 11 | AD6: بالمخزن
A7: 15500 | B7: 2019-01-29 | C7: من معتصم تعديل راس المال | I7: 4000 | J7: 2019-01-29 | K7: مع معتصم لتعديل راس المال | N7: مجموع خروج شيكات | Y7: 3000 | Z7: تعديل راس المال بين الشيكات والنقدي | AF7: مجموع خروج نقدا
I9: 15500 | K9: ثمن البيكانتو لرشوان "من معتصم لتعديل راس المال"
A10: 76000 | B10: 2019-02-02 | C10: سيات ابيزا ابيض "صلاح الدين علي عطيه عطا" | D10: اخر شيك 1000 بدل ترخيص وفحص بوليتيكنيك( غير مضاف ل 75 ) | E10: رشوان | F10: 29 | N10: =SUM(I5:I101) -> 842082 | R10: 100 | S10: 2019-02-02 | T10: بيكانتو ابيض | U10: بدل جنط | V10: رشوان | W10: رشوان | AF10: =SUM(Y5:Y97) -> 209435
A11: 850 | B11: 2019-02-03 | C11: بيكانتو فيراني جنط 16 "يحيى محمد اسماعيل ابو لوحه " | E11: رشوان | F11: 1 | I11: 51450 | J11: 2019-02-04 | K11: من عادل لمعتصم لشراء سيارات خالد بدر | L11: 13+14+15 | R11: 20000 | S11: 2019-02-03 | T11: بيكانتو فيراني | U11: جنط 16 | V11: رشوان | W11: يحيى ابو لوحه | Y11: 1000 | Z11: 2019-02-03 | AA11: سمسرة عن البيكانتو الفيراني جنط 16 | AB11: سمسرة بيكانتو جنط 16 | AC11: 3 | AD11: 5
A12: 51450 | B12: 2019-02-04 | C12: عادل القواسمي شراء سيارة بيكانتو ابيض بدون جنط | I12: 57600 | J12: 2019-02-04 | K12: لمعتصم لشراء سيارات خالد بدر | L12: 13+14+15 | R12: 1950 | S12: 2019-02-09 | U12: من دفعة يحيى ابو لوحه لسداد معتصم | Y12: 100 | Z12: 2019-02-03 | AA12: فحص كاظم الدويك | AB12: فورد ابيض عمومي | AC12: 12 | AD12: 6
A13: 37000 | B13: 2019-02-04 | C13: يزيد اقنيبي سكودا استيشن احمر دفعة باقي حسابه | E13: سامر التميمي | F13: 22 | I13: 14450 | J13: 26/2/2019 | K13: شراء هونداي اكسينت ديزل مالك البطران | L13: هونداي اكسينت ديزل | R13: 6050 | S13: 2019-02-09 | U13: باقي ال 8000 بعد تسديد ذمم معتصم | Y13: 27950 | Z13: 2019-02-04 | AA13: مع معتصم شراء سيارات من خالد بدر | AB13: بيكانتو اسود طحيني ابيض | AC13: 13+14+15
E14: رشوان | F14: 1 | I14: 10000 | J14: 2019-03-02 | K14: صرف الشيك نقدا من الشروف | L14: هونداي اكسينت ديزل | R14: 10000 | S14: 2019-03-02 | T14: اكسينت ديزل | U14: صرف شيك وتحويلة نقدا | V14: مالك البطران | W14: ابو حسن الشروف | Y14: 150 | Z14: 2019-02-07 | AA14: مصروف الفورد بيت لحم | AB14: فورد ابيض عمومي | AC14: 12 | AD14: 6
A15: 87500 | B15: 2019-02-26 | C15: شيكات بيع الهونداي الاكسينت ديزل بترولي | D15: للسيد محمد الشروف نوبا | E15: مالك بطران | F15: 19 | I15: 46000 | J15: 2019-03-10 | K15: دفعة لمالك عادل القواسمة ثمن فورد فوكس | L15: فورد فوكس اسود 2016 | N15: مجموع المتبقي بالصندوق شيكات | R15: 16800 | S15: 2019-03-09 | T15: اوبيل كورسا | U15: دفعة نقدية ثمن الاوبيل | V15: مهند النتشة | W15: وائل فنون | Y15: 2850 | Z15: 26/02/2019 | AA15: دفعة نقدية لاكمال ثمن سيارة مالك البطران (بعد تعديل المبلغ 3550-700 من مالك دفعه بدل فرقيه) | AB15: هونداي اكسينت ديزل | AC15: 16 | AD15: 12 | AF15: مجموع المتبقي بالصندوق نقدا
A16: 20000 | B16: 2019-03-02 | C16: شيكات بيع كيا ريو 2004 | D16: للسيد جويد ابو اسنينه | E16: معتصم بصل | F16: 9 | I16: 29700 | J16: 2019-03-10 | K16: دفعة شراء جيب هونداي توسان جويد ابو اسنينه | L16: جيب هونداي توسان | N16: =N3-N10 -> 271152 | R16: 1400 | S16: 2019-03-27 | U16: دفعه من شيك راجع لحمادة ناصر الدين- عماد ناصر الدين شهر 3 | V16: بدون | W16: صاحب الشيك | Y16: 1000 | Z16: 2019-03-01 | AA16: خصم من ثمن كيا ريو بعد البيع | AB16: كيا ريو 2004 | AC16: 8 | AD16: 13 | AF16: =AF3-AF10 -> 115565
A17: 45000 | B17: 2019-03-09 | C17: شيكات بيع الاوبيل كورسا | D17: من وائل فنون | E17: مهند النتشة | F17: 20 | I17: 20000 | J17: 16/3/2019 | K17: دفعة لمعتصم شيك بدل ديون مستحقه على الشركة | L17: فورد فوكس اسود 2016 | R17: 3000 | S17: 2019-03-28 | T17: كيا ريو | U17: صرف شيك وتحويلة نقدا | V17: معتصم بصل | W17: جويد ابو اسنينه | Y17: 20000 | Z17: 2019-03-10 | AA17: مع معتصم شراء فورد فوكس 2016 | AB17: فورد فوكس اسود 2016 من مالك عادل | AC17: 17 | AD17: 15
A18: 75000 | B18: 16/3/2019 | C18: شيكات بيع الفورد فوكس | D18: من مهدي ابو عامود نوبا | E18: مالك عادل القواسمه | F18: 22 | I18: 9500 | J18: 17/3/2019 | K18: دفعة لمعتصم شيكات بدل ديون مستحقه على الشركة | L18: فورد فوكس اسود 2016 | N18: يوجد شيكات بهويتي للصرف | R18: 1100 | S18: 2019-03-30 | U18: دفعه من شيك راجع لحمادة ناصر الدين- عماد ناصر الدين شهر 3 | V18: بدون | W18: صاحب الشيك | Y18: 300 | Z18: 2019-03-10 | AA18: شراء جيب هونداي توسان من جويد ابو اسنينه | AC18: 18 | AD18: 7
A19: 45000 | B19: 23/3/2019 | C19: شيكات بيع جيب توسان اسود | D19: من خالد جمعه محمد قديمات | E19: جويد ابو اسنينه | F19: 9 | I19: 3000 | J19: 2019-03-28 | K19: صرف الشيك نقدا من جويد ابو اسنينه | L19: كيا ريو | R19: 2250 | S19: 2019-04-03 | T19: اوبيل كورسا | U19: صرف شيك وتحويلة نقدا | V19: مهند النتشة | W19: تم صرفه نقدا بدل شراء جوال لحنين | Y19: 400 | Z19: 2019-03-11 | AA19: مصاريف فورد فوكس اريحا (150) بنزين (15)تشخيص (12) وصل نمره (20) نقل التامين (102) رسوم تنازل (93) روم دينمو + ثمن النمره (8) اكل ابو علاء | AB19: فورد فوكس اسود 2016 من مالك عادل | AC19: 17 | AD19: 15
A20: 54900 | B20: 13/4/2019 | C20: شيكات بيع سكودا استيشن اسود 2014 | D20: من رائد ابو سليمه | E20: خالد جمعه محمد قديمات | F20: 25 | G20: دفعه اولى "باقي حساب" | I20: 2250 | J20: 2019-03-30 | K20: صرف الشيك نقدا من وائل فنون | L20: اوبيل كورسا | R20: 2250 | S20: 2019-04-10 | T20: اوبيل كورسا | U20: صرف شيك وتحويلة نقدا | V20: مهند النتشة | W20: تم صرفه نقدا من البنك | Y20: 500 | Z20: 17/3/2019 | AA20: دفعة لمعتصم نقدا بدل ديون مستحقه على الشركة | AB20: فورد فوكس اسود 2016 من مالك عادل | AC20: 17 | AD20: 15
A21: 10000 | B21: 21/4/2019 | C21: شيكات بيع سكودا استيشن اسود 2014 | D21: من رائد ابو سليمه | E21: خالد جمعه محمد قديمات | F21: 10 | G21: دفعة ثانية "تسكير الحساب" | I21: 2250 | J21: 2019-04-03 | K21: صرف الشيك نقدا من وائل فنون | L21: تم صرفه بدل شراء جوال لحنين | R21: 20000 | S21: 13/4/2019 | T21: سكودا استيشن اسود | U21: دفعة نقدية ثمن سكودا استيشن من رائد ابو سليمه | V21: خالد جمعة محمد قديمات | W21: رائد ابو سليمه | Y21: 2500 | Z21: 25/3/2019 | AA21: شيك راجع لحمادة ناصر الدين من عماد ناصر الدين يسجل دين على معتصم شهر 3 | AC21: بدون | AD21: بدون
A22: 110000 | B22: 2019-05-09 | C22: شيكات بيع مرسيدس اسود 2008 رقمها بالشراء 21 | D22: تم البيع 110,000 ناقص 1000 سمسرة شيك لابو عبد الله ابو رموز | E22: محمود ابراهيم محمد ابو دريه | F22: 21 | I22: 1800 | J22: 2019-04-10 | K22: صرف الشيك نقدا من وائل فنون | L22: اوبيل كورسا | R22: 900 | S22: 2019-04-23 | U22: دفعه من شيك راجع لحمادة ناصر الدين- عماد ناصر الدين شهر 2 | V22: بدون | W22: صاحب الشيك | Y22: 1450 | Z22: 2019-09-03 | AA22: مصاريف سكودا استيشن اسود دراي كلين(200)فتح برميل بيئة(200) بوليش (250) كوشوك وجنطات(600)تعتيم(100)لمبة زينون (100) | AB22: سكودا استيشن اسود من خالد قديمات | AC22: 19 | AD22: 8
A23: 55450 | B23: 15/5/2019 | C23: شيكات بيع هونداي اكسينت 2016 رقمها بالشراء 22 | D23: الشيكات من شادي قباجه | E23: خالد بدر | F23: 20 | I23: 40000 | J23: 14/4/2019 | K23: شراء جيب شفروليت سلفر 2008 من همام دعنا | L23: شفروليت سلفر 2008 | R23: 4500 | S23: 2019-04-30 | T23: سكودا استيشن احمر | U23: صرف شيك وتحويلة نقدا | V23: سامر التميمي | W23: تم صرفه نقدا من البنك | Y23: 21000 | Z23: 14/4/2019 | AA23: شراء جيب شفروليت 2008 فضي من همام شريف محمد دعنا | AB23: شفروليت 2008 سلفر | AC23: 20
A24: 2000 | B24: 15/5/2019 | C24: دفعة عربون بيع بيكانتو بالشراء 15 | D24: من كمال جميل ربيع الدويك "صاحب فورد فوكس 2012" 23 | E24: خالد بدر | F24: 1 | I24: 2000 | J24: 2019-04-29 | K24: دفعه بدل شيك راجع لحمادة ناصر الدين من عماد ناصر الدين يسجل دين على معتصم شهر 4 | R24: 1000 | S24: 2019-05-02 | U24: دفعه من شيك راجع لحمادة ناصر الدين- عماد ناصر الدين شهر 2 | V24: بدون | W24: صاحب الشيك | Y24: 2500 | Z24: 2019-04-14 | AA24: شيك راجع لحمادة ناصر الدين من عماد ناصر الدين يسجل دين على معتصم شهر 2 | AC24: بدون | AD24: بدون
A25: 39900 | B25: 19/5/2019 | C25: دفعه اولى شيكات بيع بيكانتو ابيض رقمها بالشراء 14 | D25: من مجدي خلف قفيشة | E25: خالد بدر | F25: 15 | G25: دفعه اولى "باقي حساب" | I25: 12000 | K25: شراء مرسيدس اسود | L25: 21 | R25: 1800 | S25: 2019-05-02 | T25: اوبيل كورسا | U25: صرف شيك وتحويلة نقدا | V25: مهند النتشة | W25: تم صرفه نقدا من البنك | Y25: 700 | Z25: 2019-04-24 | AA25: دفعه ليد ابو علاء من ثمن تنك البيئه وبوليش جيب الشفر | AB25: شفروليت 2008 سلفر | AC25: 20
A26: 44000 | B26: 23/5/2019 | C26: دفعة اولى شيكات بيع بيكانتو بيج فتحه 6 | D26: من محمد عايد محمد عوض | E26: وليد الشريف | F26: 20 | G26: دفعه اولى "باقي حساب" | I26: 1000 | J26: 2019-05-09 | K26: دفعه لمعتصم اقنيبي بدل سمسرة (ابو عبد الله ابو رموز) | L26: مرسيدس اسود 21 | R26: 600 | S26: 2019-08-05 | U26: دفعه من شيك راجع لحمادة ناصر الدين- عماد ناصر الدين شهر 2 | V26: بدون | W26: صاحب الشيك | Y26: 2000 | Z26: 2019-04-25 | AA26: دفعه ليد طارق ابو عمر من ثمن تنك البيئه وبوليش جيب الشفر | AB26: شفروليت 2008 سلفر | AC26: 20
A27: 13000 | B27: 23/5/2019 | C27: دفعة اولى شيكات بيع بيكانتو اسود 13 | D27: من نجوان احمد عبد النبي الطقاطقه | E27: خالد بدر | F27: 5 | G27: دفعه اولى "باقي حساب" | I27: 45000 | J27: 15/5/2019 | K27: شراء من خالد بدر | L27: كيا سول بالشراء 22 | R27: 18550 | S27: 2019-08-05 | T27: هونداي اكسينت | U27: دفعة شادي قباجة | V27: خالد بدر | W27: شادي قباجه | Y27: 500 | Z27: 2019-04-29 | AA27: شيك راجع لحمادة ناصر الدين من عماد ناصر الدين يسجل دين على معتصم شهر 4 | AB27: (باقي المبلغ تم دفعه شيك بدل شيك)ملاحظة | AC27: بدون | AD27: بدون
A28: 10500 | B28: 25/5/2019 | C28: دفة ثانية شيكات بيع بيكانتو بيج فتحه 6 | D28: من محمد عايد محمد عوض | E28: وليد الشريف | F28: 4 | G28: دفعة ثانية "تسكير الحساب" | I28: 1000 | J28: 2019-05-20 | K28: تامين بيكانتو مجدي قفيشة | L28: بيكانتو ابيض 14 | R28: 1000 | S28: 2019-05-13 | U28: دفعه من شيك راجع لحمادة ناصر الدين- عماد ناصر الدين شهر 4 | V28: بدون | W28: رائد الجعبه | Y28: 500 | Z28: 2019-05-06 | AA28: ثمن درجات جيب السنتافيه الابيض تصليح دفعه للامانه لكماليات السيارات | AB28: لمعتصم | AC28: لمعتصم | AD28: لمعتصم
A29: 47000 | B29: 25/5/2019 | C29: دفعهة ثانية شيكات بيع بيكانتو اسود 13 | D29: من نجوان احمد عبد النبي الطقاطقه | E29: خالد بدر | F29: 18 | G29: دفعة ثانية "تسكير الحساب" | I29: 13300 | J29: 2019-10-06 | K29: دين لمعتصم شراء سبورتاج خالد بدر | R29: 1000 | S29: 20/5/2019 | U29: دفعه من شيك راجع لحمادة ناصر الدين- عماد ناصر الدين شهر 4 | V29: بدون | W29: رائد الجعبه | Y29: 25000 | Z29: 14/5/2019 | AA29: شراء كيا سول 2016 طحيني من خالد بدر رقمها بالشراء 22 | AB29: تم ايداعهم في بنك القدس حساب معتصم | AC29: 22
A30: 1000 | B30: 2019-03-06 | C30: دفعة ثالثه بدل الف النقدي | D30: من محمد عايد محمد عوض | E30: وليد الشريف | F30: 1 | G30: بدل الدفعه النقديه صفر حساب | I30: 291950 | J30: 22/6/2019 | K30: شراء 6 سيارات كيا مورنينج من خالد بدر | R30: 9000 | S30: 23/5/2019 | T30: كيا مورنينج فتحه بيج رقمها 6 | U30: دفعة نقديه اولى باقي 6000 شيقل لاكمال المبلغ | V30: وليد الشريف | W30: محمد عايد محمد عوض | Y30: 65 | Z30: 2019-05-21 | AA30: فحص كاظم الدويك | AB30: فورد فوكس ابيض | AC30: 23
A31: 6200 | B31: 18/6/2019 | C31: دفعة شيكات بدل الشيكات قرضه لمعتصم شراء سبورتاج خالد بدر | D31: دفعه سداد من دين معتصم عن شراء سبورتاج خالد بدر | I31: 2250 | J31: 2019-06-28 | K31: صرف شيك وائل فنون وتحويله نقدا | L31: اوبيل كورسا | M31: من شهاب شاور | R31: 5000 | S31: 25/5/2019 | T31: كيا مورنينج فتحه بيج رقمها 6 | U31: دفعة نقديه باقي 1000 يوم التنازل | V31: وليد الشريف | W31: محمد عايد محمد عوض | Y31: 2500 | Z31: 2019-05-23 | AA31: شيك راجع رائد الجعبه يسجل دين على معتصم شهر 5 | AC31: بدون | AD31: بدون
A32: 50000 | B32: 22/6/2019 | C32: دفعة ثمن كيا مورنينج ابيض رقمها 5 | D32: ضياء اسماعيل عمرو | E32: وليد الشريف | F32: 18 | G32: حساب صفر | I32: 51682 | K32: مع معتصم للسول مامون شاور؟؟ يجب اخذهم نقدا او شيكقات بقيمتهم | R32: 3000 | S32: 25/5/2019 | T32: كيا مورنينج اسود رقمها 13 | U32: دفعه نقدية باقي 2000 يوم الترخيص | V32: خالد بدر | W32: نجوان طقاقطه | Y32: 160 | Z32: 30/5/2019 | AA32: تنازل الفورد فوكس باسمي 102+ دينموميتر 58 | AB32: فورد فوكس ابيض | AC32: 23
A33: 25000 | B33: 24/6/2019 | C33: دفعه من مجدي قفيشة تسكير حساب بيكانتو ابيض 14 | D33: من مجدي خلف قفيشة | E33: خالد بدر | F33: 10 | G33: دفعة ثانية "تسكير الحساب" | I33: 5000 | K33: خروج شيك شهر 6 مجدي قفيشه لمعتصم | R33: 2000 | S33: 2019-05-26 | T33: كيا مورنينج اسود رقمها 13 | U33: دفعه نقدية صفر حساب | V33: خالد بدر | W33: نجوان طقاقطه | Y33: 9000 | Z33: 2019-06-02 | AA33: تقسيم مربح الكيا سول على معاذ وعماد ومعتصم 3 الاف لكل شخص | AB33: كيا سول شادي قباجه وبدها ع اكسينت | AC33: 22
A34: 54984 | B34: 2019-06-29 | C34: بيع بيكانتو بيج من خالد بدر رقمها 27 | D34: من رافت عبد الجليل القواسمه | E34: خالد بدر | F34: 24 | G34: تسكير حساب | R34: 500 | S34: 26/5/2019 | U34: دفعه من شيك راجع لحمادة ناصر الدين- عماد ناصر الدين شهر 4 | V34: بدون | W34: رائد الجعبه | Y34: 50 | Z34: 2019-06-22 | AA34: شراء 6 سيارات كيا مورنينج من خالد بدر "إكمال الحساب" (291,950) من اصل (292000) | AB34: 6 سيارات
A35: 50000 | B35: 2019-06-07 | C35: بيع بيكانتو فيراني سكني رقمها 26 | D35: من فؤاد قراقع | E35: خالد بدر | F35: 23 | G35: تسكير حساب | R35: 1500 | S35: 30/5/2019 | U35: دفعه من شيك راجع لحمادة ناصر الدين- عماد ناصر الدين شهر5 | V35: بدون | W35: رائد الجعبه | Y35: 2500 | Z35: 2019-06-28 | AA35: شيك راجع لحمادة ناصر الدين من عماد ناصر الدين يسجل دين على معتصم شهر 6 | AB35: تم تسليمه ليد عماد ناصر الدين | AC35: بدون | AD35: بدون
A36: 3000 | C36: الشك من معتصم فرقيه تبديل السول شادي قباجة ل الاكسينت | D36: احمد حسن محمد دبوس | R36: 1000 | S36: 2019-06-13 | U36: دفعه من شيك راجع لحمادة ناصر الدين- عماد ناصر الدين شهر5 | V36: بدون | W36: رائد الجعبه | Y36: 100 | Z36: 30/6/2019 | AA36: ثمن تنازل المرسيدس 21 على اسم عماد | AB36: 21 مرسيدس اسود | AC36: 21
R37: 500 | S37: 18/6/2019 | U37: دفعة ثمن تصليح جيب سنتافيه الابيض لمعتصم | V37: بدون | W37: معتصم | Y37: 10 | AA37: بنزين رافت عبد الجليل القواسمى بيكانتو رقمها 27 | AB37: بيكانتو من خالد بدر | AC37: 27
B38: صندوق الشيكات زيادة 500 شيقل | J38: صندوق الشيكات زيادة 500 شيقل | R38: 12000 | S38: 22/6/2019 | T38: كيا مورنينج ابيض رقمها 5 | U38: دفعة نقدية ثمن الكيا مورنينج | V38: وليد الشريف | W38: ضياء اسماعيل احمد عمرو
A39: 10000 | B39: 2019-07-25 | C39: شيكات بيع كيا مورنينج اسماء الخطيب 24 | D39: من اسماء ابو شرخ الخطيب | E39: خالد بدر | F39: 5 | G39: تسكير حساب | I39: 64900 | J39: 2019-07-23 | K39: ترجيع البيكانتو مجدي قفيشه | R39: 2250 | S39: 2019-06-28 | T39: اوبيل كورسا | U39: صرف شيك وتحويلة نقدا | V39: مهند النتشة | W39: تم صرفه من شهاب شاور
A40: 8000 | B40: 2019-08-19 | C40: دفعة شيكات بدل الشيكات قرضه لمعتصم شراء السبورتاج خالد بدر | D40: زياده فرقيه 900 شيكل تم خصمهم من قرضه لمعتصم 52 الف سول شاور اصبح المبلغ 41100 | L40: تذكر 37 الف شيكات شراء البيكانتو الاسود سبورت | R40: 10000 | S40: 2019-06-29 | T40: كيا مورنينج بيج 27 | U40: دفعه نقدية اولى عن بيع بيكانتو بيج 27 | V40: خالد بدر | W40: رافت القواسمي
I41: 2000 | J41: 2019-08-18 | K41: صرف شيك وتحويله نقدا فؤاد يحيى عبد الله قراقع شك رقم 5 | R41: 8000 | S41: 2019-06-07 | T41: كيا مورنينج فيراني 26 | U41: دفعة وتسكير حساب فؤاد قراقع | V41: خالد بدر | W41: فؤاد قراقع
R42: 1000 | S42: 2019-06-07 | U42: دفعه من شيك راجع لحمادة ناصر الدين- عماد ناصر الدين شهر 6 | V42: بدون | W42: رائد الجعبه
S43: الحساب مطابق | Z43: الحساب مطابق
R44: 500 | S44: 2019-07-15 | U44: دفعه من شيك راجع لحمادة ناصر الدين- عماد ناصر الدين شهر 6 | V44: بدون | W44: رائد الجعبه | Y44: 300 | Z44: 2019-07-15 | AA44: ثمن بطارية لفؤاد قراقع بيكانتو 26 | AC44: 26
R45: 1000 | S45: 2019-07-18 | U45: دفعه من شيك راجع لحمادة ناصر الدين- عماد ناصر الدين شهر 6 | V45: بدون | W45: رائد الجعبه | Y45: 18 | Z45: 2019-07-23 | AA45: ارجاع بيكانتو مجدي قفيشة اكمل قيمة الشيكات 18 نقدي
R46: 11500 | S46: 2019-07-23 | U46: مخاسر ترجيع كيا مورنينج مجدي قفيشة | W46: ابو سليمة | Y46: 300 | Z46: 2019-07-23 | AA46: ارجاع بيكانتو مجدي قفيشة تم تبديل شيكات مجدي مجير لخالد بدر واكمال الباقي 300 نقدا عن شك ال 5000 عن شهر 7 لخالد بدر عن 52 الف قرضه لمعتصم
R47: 47500 | S47: 2019-07-25 | U47: دفعة بيع بيكانتو اسماء الخطيب 24 | V47: خالد بدر | W47: اسماء الخطيب | Y47: 20 | Z47: 2019-07-25 | AA47: بنزين بكانتو اسماء الخطيب 24 | AB47: كيا بيكانتو ابيض 2017 | AC47: 24
R48: 6000 | S48: 2019-07-30 | U48: صرف شيك وتحويلة نقدا فؤاد قراقع شك رقم 10 | Y48: 3900 | Z48: 2019-07-25 | AA48: دين شخصي لمعاذ 1100 برادي + 300 الداخلية +2500 ع عيد الاضحى
R49: 19500 | S49: 2019-08-08 | U49: بيع بيكانتو "قفيشة"14 محمد سالم الكركي | V49: خالد بدر قفيشة | W49: محمد سالم الكركي | Y49: 20000 | Z49: 2019-08-04 | AA49: شراء بيكانتو اسود سبور اسود واحمر | AB49: بيكانتو اسود سبورت | AC49: 30
R50: 1500 | S50: 2019-08-10 | U50: دفعة من شيك راجع لحمادة ناصر الدين من عماد ناصر الدين يسجل دين على معتصم شهر 7 | V50: بدون | W50: رائد الجعبه | Y50: 2500 | Z50: 2019-08-08 | AA50: شيك راجع لحمادة ناصر الدين من عماد ناصر الدين يسجل دين على معتصم شهر 7 | AC50: بدون | AD50: بدون
R51: 1000 | S51: 2019-08-18 | U51: دفعة من شيك راجع لحمادة ناصر الدين من عماد ناصر الدين يسجل دين على معتصم شهر 7 | V51: بدون | W51: رائد الجعبه | Y51: 20 | AA51: بنزين هونداي افانتي 2005 | AC51: 31
R52: 2000 | S52: 2019-08-18 | U52: صرف شيك وتحويله نقدا فؤاد يحيى عبد الله قراقع شك رقم 5 | Y52: 52 | Z52: 2019-08-18 | AA52: حسن سيرة وسلوك ان تست | AC52: بدون
Y53: 40 | Z53: 2019-08-18 | AA53: بنزين بيكانتو فيراني رقم 28+29 | AC53: 28+29

Sheet ديون عملاء
A1: اسم الزبون | B1: السيارة | C1: الموديل | D1: رقمها بالشراء | E1: لون | F1: ملاحظات | G1: سعر البيع | H1: المبلغ المقبوض نقدا | I1: المبلغ المقبوض شيكات | J1: مجموع الدين | K1: دفعة نقدا | L1: دفعة شيكات | M1: خصوم | N1: المجموع | O1: ملاحظة
A2: يزيد قنيبي | B2: سكودا استيشن | C2: 2013 | E2: احمر | F2: يجب دفع عشر الاف شيك بدل نقدي | G2: 90000 | I2: 53000 | J2: =G2-I2-H2 -> 37000 | L2: 37000 | N2: =J2-K2-L2-M2 -> 0 | O2: تذكر تنزيل الدفعة من اتفاقية البيع
A3: سامر التميمي | B3: سكودا استيشن | C3: 2015 | E3: سكني "فيراني" | F3: يجب دفعهم نقدا | G3: 107000 | H3: 105500 | J3: =G3-I3-H3 -> 1500 | N3: =J3-K3-L3-M3 -> 1500
A4: يحيى محمد اسماعيل ابو لوحة | B4: بيكانتو | C4: 2015 | E4: سكني "فيراني" | F4: جنط 16 | G4: 58000 | H4: 20000 | I4: 850 | J4: 8000 | K4: 8000 | N4: =J4-K4-L4-M4 -> 0 | O4: مجمل الديون المتبقية | Q4: ذمم الى معتصم
A5: عادل القواسمي | B5: بيكانتو | C5: 2015 | E5: ابيض | F5: بدون جنط وبدون بصمه | G5: 52000 | H5: 0 | I5: 0 | J5: 52000 | L5: 51450 | M5: 550 | N5: 0 | O5: =SUM(N2:N99) -> 1600 | Q5: نقدا | R5: شيكات
A6: مالك البطران | B6: بيكانتو | C6: 2015 | E6: سلفر | G6: 48500 | H6: 0 | I6: 0 | J6: 700 | K6: 700 | N6: 0 | Q6: 0 | R6: 0
A7: رائد ابو سليمه | B7: سكودا استيشن | C7: 2014 | E7: اسود | G7: 85000 | H7: 20000 | I7: 54900 | J7: 10100 | L7: 10000 | N7: 100
A8: مجدي قفيشه | B8: كيا مورنينج | C8: 2015 | D8: 14 | E8: ابيض | G8: 64900 | H8: 0 | I8: 39900 | J8: 25000 | L8: 25000 | N8: 0 | Q8: ذمم على معتصم
A9: كمال جمال ربيع الدويك | B9: فورد فوكس | C9: 2012 | D9: 23 | E9: ابيض | F9: باقي 2000 خالد بدر بدل ضربة البيكانتو 15 | G9: 500 | J9: 500 | M9: 500 | N9: 0 | O9: باقي خصم 2000 خالد بدر بدل ضربتها | Q9: نقدا | R9: شيكات
A10: محمد عايد محمد عوض | B10: بيكانتو بيج فتحه | C10: 2015 | D10: 6 | E10: بيج | G10: 69500 | H10: 9000 | I10: 44000 | J10: 16500 | K10: 5000 | L10: 11500 | N10: 0 | Q10: 0 | R10: 0
A11: نجوان احمد عبد النبي طقاطقه | B11: بيكانتو اسود | C11: 2015 | D11: 13 | E11: اسود | G11: 65000 | H11: 0 | I11: 13000 | J11: 52000 | K11: 5000 | L11: 47000 | N11: 0
J12: 0 | N12: 0 | Q12: ذمم الى ابو علاء
J13: 0 | N13: 0 | Q13: نقدا | R13: شيكات
J14: 0 | N14: 0 | R14: 0
J15: 0 | N15: 0
J16: 0 | N16: 0 | Q16: ذمم على ابو علاء
J17: 0 | N17: 0 | Q17: نقدا | R17: شيكات
J18: 0 | N18: 0 | Q18: 0 | R18: 0
J19: 0 | N19: 0
J20: 0 | N20: 0
J21: 0 | N21: 0
J22: 0 | N22: 0
J23: 0 | N23: 0
J24: 0 | N24: 0
J25: 0 | N25: 0
J26: 0 | N26: 0
J27: 0 | N27: 0 | O27: موسى عاشور 56 الف محول على ابي
J28: 0 | N28: 0
J29: 0 | N29: 0
J30: 0 | N30: 0 | O30: 52 الف شيكات مع معتصم | P30: تم دفع 900 من 52 الف تاعون السول باقي 41100 | T30: المتبقي | U30: 41100
J31: 0 | N31: 0
J32: 0 | N32: 0 | O32: لا تنسى ازالته من صندوق خروج النقدي3900 دين شخصي لمعاذ
J33: 0 | N33: 0
J34: 0 | N34: 0 | O34: ديون يجب دفعها للصندوق النقدي فرق مربح السول والاكسينت
J35: 0 | N35: 0 | O35: 666.5 | P35: معتصم
J36: 0 | N36: 0 | O36: 666.5 | P36: عماد
J37: 0 | N37: 0 | O37: 667 | P37: معاذ
J38: 0 | N38: 0
J39: 0 | N39: 0 | O39: دين شخصي معاذ يجب دفعه لمعتصم2600
J40: 0 | N40: 0
J41: 0 | N41: 0
J42: 0 | N42: 0
J43: 0 | N43: 0
J44: 0 | N44: 0
J45: 0 | N45: 0
J46: 0 | N46: 0
J47: 0 | N47: 0
J48: 0 | N48: 0
J49: 0 | N49: 0
J50: 0 | N50: 0
J51: 0 | N51: 0
J52: 0 | N52: 0
J53: 0 | N53: 0
J54: 0 | N54: 0
J55: 0 | N55: 0
J56: 0 | N56: 0
J57: 0 | N57: 0
J58: 0 | N58: 0
J59: 0 | N59: 0
J60: 0 | N60: 0
J61: 0 | N61: 0
J62: 0 | N62: 0
J63: 0 | N63: 0
J64: 0 | N64: 0
J65: 0 | N65: 0
J66: =G66-I66-H66 -> 0 | N66: 0
J67: 0 | N67: =J67-K67-L67-M67 -> 0
J68: 0 | N68: 0
J69: 0 | N69: 0
J70: 0 | N70: 0
J71: 0 | N71: 0
J72: 0 | N72: 0
J73: 0 | N73: 0
J74: 0 | N74: 0
J75: 0 | N75: 0
J76: 0 | N76: 0
J77: 0 | N77: 0
J78: 0 | N78: 0
J79: 0 | N79: 0
J80: 0 | N80: 0
J81: 0 | N81: 0
J82: 0 | N82: 0
J83: 0 | N83: 0
J84: 0 | N84: 0
J85: 0 | N85: 0
J86: 0 | N86: 0
J87: 0 | N87: 0
J88: 0 | N88: 0
J89: 0 | N89: 0
J90: 0 | N90: 0
J91: 0 | N91: 0
J92: 0 | N92: 0
J93: 0 | N93: 0
J94: 0 | N94: 0
J95: 0 | N95: 0
J96: 0 | N96: 0
J97: 0 | N97: 0
J98: 0 | N98: 0
J99: 0 | N99: 0
J100: 0 | N100: 0
J101: 0 | N101: 0
J102: 0 | N102: 0
J103: 0 | N103: 0
J104: 0 | N104: 0
J105: 0 | N105: 0
J106: 0 | N106: 0
J107: 0 | N107: 0
J108: 0 | N108: 0
J109: 0 | N109: 0
J110: 0 | N110: 0
J111: 0 | N111: 0
J112: 0 | N112: 0
J113: 0 | N113: 0
J114: 0 | N114: 0
J115: 0 | N115: 0
J116: 0 | N116: 0
J117: 0 | N117: 0
J118: 0 | N118: 0
J119: 0 | N119: 0
J120: 0 | N120: 0
J121: 0 | N121: 0
J122: 0 | N122: 0
J123: 0 | N123: 0
J124: 0 | N124: 0
J125: 0 | N125: 0
J126: 0 | N126: 0
J127: 0 | N127: 0
J128: 0 | N128: 0
J129: 0 | N129: 0
J130: =G130-I130-H130 -> 0 | N130: 0
J131: 0 | N131: =J131-K131-L131-M131 -> 0
J132: 0 | N132: 0
J133: 0 | N133: 0
J134: 0 | N134: 0
J135: 0 | N135: 0
J136: 0 | N136: 0
J137: 0 | N137: 0
J138: 0 | N138: 0
J139: 0 | N139: 0
J140: 0 | N140: 0
J141: 0 | N141: 0
J142: 0 | N142: 0
J143: 0 | N143: 0
J144: 0 | N144: 0
J145: 0 | N145: 0
J146: 0 | N146: 0
J147: 0 | N147: 0
J148: 0 | N148: 0
J149: 0 | N149: 0
J150: 0 | N150: 0
J151: 0 | N151: 0
J152: 0 | N152: 0
J153: 0 | N153: 0
J154: 0 | N154: 0
J155: 0 | N155: 0
J156: 0 | N156: 0
J157: 0 | N157: 0
J158: 0 | N158: 0
J159: 0 | N159: 0
J160: 0 | N160: 0
J161: 0 | N161: 0
J162: 0 | N162: 0
J163: 0 | N163: 0
J164: 0 | N164: 0
J165: 0 | N165: 0
J166: 0 | N166: 0
J167: 0 | N167: 0
J168: 0 | N168: 0
J169: 0 | N169: 0
J170: 0 | N170: 0
J171: 0 | N171: 0
J172: 0 | N172: 0
J173: 0 | N173: 0
J174: 0 | N174: 0
J175: 0 | N175: 0
J176: 0 | N176: 0
J177: 0 | N177: 0
J178: 0 | N178: 0
J179: 0 | N179: 0
J180: 0 | N180: 0
J181: 0 | N181: 0
J182: 0 | N182: 0
J183: 0 | N183: 0
J184: 0 | N184: 0
J185: 0 | N185: 0
J186: 0 | N186: 0
J187: 0 | N187: 0
J188: 0 | N188: 0
J189: 0 | N189: 0
J190: 0 | N190: 0
J191: 0 | N191: 0
J192: 0 | N192: 0
J193: 0 | N193: 0
J194: =G194-I194-H194 -> 0 | N194: 0
J195: 0 | N195: =J195-K195-L195-M195 -> 0
J196: 0 | N196: 0
J197: 0 | N197: 0
J198: 0 | N198: 0
J199: 0 | N199: 0
J200: 0 | N200: 0
... 5344 more rows

Sheet سيارات مسجلة باسمي
A1: نوع السيارة | B1: رقمها | C1: لون السيارة | D1: موديل | E1: اسم المشتري | F1: تاريخ الترخيص القادم | G1: تاريخ التنازل باسمي | H1: رقم السيارة | I1: رقم صاحب المركبة | J1: رقم اخر | K1: رقم الكفيل | L1: تاريخ اخر شيك | N1: عنوان الزبون | O1: عنوان الكفيل
A2: سيتروين بدل الكادي ل ابي | B2: 0 | C2: احمر | E2: علاء فتحي ابو صوان | G2: تاريخ البيع | H2: 9442193 | I2: O598598107 | K2: O597524709
A3: هيونداي اكسينت | B3: 16 | C3: بترولي | E3: محمد شروف نوبا | G3: 2019-02-28 | H3: 9439495 | I3: O595187343
A4: جيب هونداي سنتافيه اللي فيه ضربة شصي | B4: 0 | C4: ابيض | E4: الجمل "مع عماد" | G4: تاريخ البيع | H4: 7529993 | I4: O562501074 | L4: 2019-06-18
A5: جيب هونداي توسان اسود من جويد ابو اسنينه | B5: 18 | C5: اسود | E5: خالد اقديمات - معتصم اقديمات | G5: 30-4-2019 | H5: 43087L | I5: O597397636
A6: كيا بيكانتو | B6: 14 | C6: ابيض | E6: مجدي خلف نعمان قفيشة | G6: 21/5/2019 | H6: 43217L | I6: o599163817
A7: كيا بيكانتو | B7: 13 | C7: اسود | E7: نجوان احمد عبد النبي طقاطقه/ نعيم | G7: 27/5/2019 | H7: 43269L | I7: O599927405
A8: كيا بيكانتو | B8: 6 | C8: بيج فتحه سقف | E8: محمد عايد محمد عوض | G8: 29/5/2019 | H8: 43302L | I8: O502957643
A9: شفروليت صدقي | B9: 0 | C9: ازرق | E9: مصطفى ناصر مصطفى درباس | G9: 27/5/2019 | H9: 9888692 | I9: O569162666 | J9: O22976017 | K9: O597790006 | L9: 25/12/2020 | N9: ام الشرايط-فوق المصيون/ رام الله دوار حبوب -فوق تحكسي الخطيب | O9: رافت خليل عيسى جبارين الرام -قصر الضيافه - عمارة مصطفى يغمور
A10: فورد فوكس | B10: 23 | C10: ابيض | H10: 9168894
A11: كيا بيكانتو | B11: 5 | C11: ابيض | E11: ضياء اسماعيل احمد عمرو | G11: 17/6/2019 | H11: 43442L | I11: O569594575
A12: كيا بيكانتو | B12: 27 | C12: بيج | D12: 2016 | E12: رافت عبد الجليل اسماعيل القواسمه | G12: 2019-02-07 | H12: 43569L | I12: O598918336 | J12: O569333704 | K12: O598301467
A13: سيات ابيزا صدقي | B13: 0 | C13: ابيض | D13: 2009 | E13: بلال ابو اسنينه/ معاذ شاور | G13: 2019-09-07 | H13: 7422094 | I13: O568049255 | J13: O528853328
A14: كيا بيكانتو | B14: 28 | C14: فيراني | D14: 2016 | E14: حازم الخضري

Sheet شيكات قيد التحصيل
I1: مجموع الشيكات الكل | K1: مجموع الشيكات بالصندوق
I2: =SUM(G:G) -> 265652 | K2: =SUM(G:G) -> 265652
A3: عدد | B3: مصدر الشيك | C3: نوع السيارة | D3: لون السيارة | E3: قوة المحرك | F3: رقمها بالشراء | G3: قيمة الشيك | H3: رقم الشيك | I3: البنك | J3: تاريخ الاستحقاق | K3: اسم صاحب الشيك | L3: صور الشيكات | M3: حالة الشيك
N4: المجموع
A5: 31 | B5: يزيد قنيبي | C5: سكودا استيشن | D5: احمر | E5: 1600 | G5: 1500 | H5: 1287 | I5: الاسكان | J5: 2020-05-30 | K5: يزيد محمد لطفي يوسف اقنيبي | N5: =SUM(G4:G8) -> 7500
A6: 33 | B6: يزيد قنيبي | C6: سكودا استيشن | D6: احمر | E6: 1600 | G6: 3000 | H6: 37494502 | I6: العربي | J6: 2020-06-15 | K6: عيسى علي عبد الفتاح ثوابته بيت فجار شارع شنه 0599045441
A7: 34 | B7: يزيد قنيبي | C7: سكودا استيشن | D7: احمر | E7: 1600 | G7: 1500 | H7: 1288 | I7: الاسكان | J7: 2020-06-30 | K7: يزيد محمد لطفي يوسف اقنيبي
A8: 37 | B8: يزيد قنيبي | C8: سكودا استيشن | D8: احمر | E8: 1600 | G8: 1500 | H8: 1289 | I8: الاسكان | J8: 2020-07-30 | K8: يزيد محمد لطفي يوسف اقنيبي
A9: عدد | B9: مصدر الشيك | C9: نوع السيارة | D9: لون السيارة | E9: قوة المحرك | G9: قيمة الشيك | H9: رقم الشيك | I9: البنك | J9: تاريخ الاستحقاق | K9: اسم صاحب الشيك | L9: صور الشيكات | M9: حالة الشيك
A10: 21 | B10: صلاح الدين علي عطية عطا | C10: سيات ابيزا | D10: ابيض | E10: 1254 تيربو | G10: 1600 | H10: 32 | I10: الاستثمار الفلسطيني | J10: 2020-05-20 | K10: صلاح الدين علي عطية بيت لحم واد فوكين 0522859051 | M10: قيد التحصيل
A11: 22 | B11: صلاح الدين علي عطية عطا | C11: سيات ابيزا | D11: ابيض | E11: 1255 تيربو | G11: 1600 | H11: 33 | I11: الاستثمار الفلسطيني | J11: 2020-06-20 | K11: صلاح الدين علي عطية بيت لحم واد فوكين 0522859051 | M11: قيد التحصيل
A12: 23 | B12: صلاح الدين علي عطية عطا | C12: سيات ابيزا | D12: ابيض | E12: 1256 تيربو | G12: 1600 | H12: 34 | I12: الاستثمار الفلسطيني | J12: 2020-07-20 | K12: صلاح الدين علي عطية بيت لحم واد فوكين 0522859051 | M12: قيد التحصيل
A13: 24 | B13: صلاح الدين علي عطية عطا | C13: سيات ابيزا | D13: ابيض | E13: 1257 تيربو | G13: 1600 | H13: 35 | I13: الاستثمار الفلسطيني | J13: 2020-08-20 | K13: صلاح الدين علي عطية بيت لحم واد فوكين 0522859051 | M13: قيد التحصيل
A14: 26 | B14: صلاح الدين علي عطية عطا | C14: سيات ابيزا | D14: ابيض | E14: 1259 تيربو | G14: 1600 | H14: 37 | I14: الاستثمار الفلسطيني | J14: 2020-10-20 | K14: صلاح الدين علي عطية بيت لحم واد فوكين 0522859051 | M14: قيد التحصيل
A15: عدد | B15: مصدر الشيك | C15: نوع السيارة | D15: لون السيارة | E15: قوة المحرك | G15: قيمة الشيك | H15: رقم الشيك | I15: البنك | J15: تاريخ الاستحقاق | K15: اسم صاحب الشيك | L15: صور الشيكات | M15: حالة الشيك
A16: عدد | B16: مصدر الشيك | C16: نوع السيارة | D16: لون السيارة | E16: قوة المحرك | G16: قيمة الشيك | H16: رقم الشيك | I16: البنك | J16: تاريخ الاستحقاق | K16: اسم صاحب الشيك | L16: صور الشيكات | M16: حالة الشيك
A18: 9 | B18: وائل موسى احمد فنون | C18: اوبيل كورسا | D18: سلفر | E18: 1400 | G18: 2250 | H18: 9 | I18: الاستثمار الفلسطيني | J18: 2019-11-15 | K18: وائل موسى احمد فنون 0522961464
A20: 12 | B20: وائل موسى احمد فنون | C20: اوبيل كورسا | D20: سلفر | E20: 1400 | G20: 2500 | H20: 12 | I20: الاستثمار الفلسطيني | J20: 2020-02-15 | K20: وائل موسى احمد فنون 0522961464
A21: 14 | B21: وائل موسى احمد فنون | C21: اوبيل كورسا | D21: سلفر | E21: 1400 | G21: 2250 | H21: 14 | I21: الاستثمار الفلسطيني | J21: 2020-04-15 | K21: وائل موسى احمد فنون 0522961464
A22: 15 | B22: وائل موسى احمد فنون | C22: اوبيل كورسا | D22: سلفر | E22: 1400 | G22: 2250 | H22: 15 | I22: الاستثمار الفلسطيني | J22: 2020-05-15 | K22: وائل موسى احمد فنون 0522961464
A23: 16 | B23: وائل موسى احمد فنون | C23: اوبيل كورسا | D23: سلفر | E23: 1400 | G23: 2250 | H23: 16 | I23: الاستثمار الفلسطيني | J23: 2020-06-15 | K23: وائل موسى احمد فنون 0522961464
A24: 17 | B24: وائل موسى احمد فنون | C24: اوبيل كورسا | D24: سلفر | E24: 1400 | G24: 2250 | H24: 17 | I24: الاستثمار الفلسطيني | J24: 2020-07-15 | K24: وائل موسى احمد فنون 0522961464
A25: 18 | B25: وائل موسى احمد فنون | C25: اوبيل كورسا | D25: سلفر | E25: 1400 | G25: 2250 | H25: 18 | I25: الاستثمار الفلسطيني | J25: 2020-08-15 | K25: وائل موسى احمد فنون 0522961464
A26: 19 | B26: وائل موسى احمد فنون | C26: اوبيل كورسا | D26: سلفر | E26: 1400 | G26: 2250 | H26: 19 | I26: الاستثمار الفلسطيني | J26: 2020-09-15 | K26: وائل موسى احمد فنون 0522961464
A27: عدد | B27: مصدر الشيك | C27: نوع السيارة | D27: لون السيارة | E27: قوة المحرك | G27: قيمة الشيك | H27: رقم الشيك | I27: البنك | J27: تاريخ الاستحقاق | K27: اسم صاحب الشيك
A28: 17 | B28: مهدي سمير محمود ابو عامود | C28: فورد فوكس | D28: اسود | E28: 1600 | G28: 2600 | H28: 1015 | I28: الاسكان | J28: 30/6/2020 | K28: مهدي سمير محمود ابو عامود نوبا بجانب مركز الشرطة 0595990134
A29: 18 | B29: مهدي سمير محمود ابو عامود | C29: فورد فوكس | D29: اسود | E29: 1600 | G29: 2600 | H29: 1016 | I29: الاسكان | J29: 30/7/2020 | K29: مهدي سمير محمود ابو عامود نوبا بجانب مركز الشرطة 0595990135
A30: 19 | B30: مهدي سمير محمود ابو عامود | C30: فورد فوكس | D30: اسود | E30: 1600 | G30: 2600 | H30: 1017 | I30: الاسكان | J30: 30/8/2020 | K30: مهدي سمير محمود ابو عامود نوبا بجانب مركز الشرطة 0595990136
A31: 22 | B31: مهدي سمير محمود ابو عامود | C31: فورد فوكس | D31: اسود | E31: 1600 | G31: 3700 | H31: 69 | I31: فلسطين | J31: 30/12/2020 | K31: سامر بسام ابو عامود نوبا-المشاهد 0597932504
A34: عدد | B34: مصدر الشيك | C34: نوع السيارة | D34: لون السيارة | E34: قوة المحرك | G34: قيمة الشيك | H34: رقم الشيك | I34: البنك | J34: تاريخ الاستحقاق | K34: اسم صاحب الشيك
A36: 10 | B36: رائد نصر رمضان ابو سليمه | C36: سكودا استيشن | D36: اسود | E36: 1600 | G36: 2000 | H36: 6 | I36: فلسطين | J36: 30/10/2019 | K36: رامي علي شلالدة سعير - قطيه 0599938012
A37: 11 | B37: رائد نصر رمضان ابو سليمه | C37: سكودا استيشن | D37: اسود | E37: 1600 | G37: 2000 | H37: 53 | I37: الاسلامي العربي | J37: 30/10/2019 | K37: هاني خضر عبد الغني رجبي جبل جوهر 0598131443
A38: 15 | B38: رائد نصر رمضان ابو سليمه | C38: سكودا استيشن | D38: اسود | E38: 1600 | G38: 2000 | H38: 8 | I38: فلسطين | J38: 30/12/2019 | K38: رامي علي شلالدة سعير - قطيه 0599938012
A42: 22 | B42: رائد نصر رمضان ابو سليمه | C42: سكودا استيشن | D42: اسود | E42: 1600 | G42: 2200 | H42: 1016 | I42: الاسكان | J42: 20/4/2020 | K42: هدايا ربحي عبد الله الحطبه حلحول
A43: 23 | B43: رائد نصر رمضان ابو سليمه | C43: سكودا استيشن | D43: اسود | E43: 1600 | G43: 2000 | H43: 13 | I43: فلسطين | J43: 30/4/2020 | K43: رامي علي شلالدة سعير - قطيه 0599938012
A44: 24 | B44: رائد نصر رمضان ابو سليمه | C44: سكودا استيشن | D44: اسود | E44: 1600 | G44: 2200 | H44: 1017 | I44: الاسكان | J44: 20/5/2020 | K44: هدايا ربحي عبد الله الحطبه حلحول | L44: صور الشيكات | M44: حالة الشيك
A45: 25 | B45: رائد نصر رمضان ابو سليمه | C45: سكودا استيشن | D45: اسود | E45: 1600 | G45: 2000 | H45: 14 | I45: فلسطين | J45: 30/5/2020 | K45: رامي علي شلالدة سعير - قطيه 0599938012
A46: عدد | B46: مصدر الشيك | C46: نوع السيارة | D46: لون السيارة | E46: قوة المحرك | G46: قيمة الشيك | H46: رقم الشيك | I46: البنك | J46: تاريخ الاستحقاق | K46: اسم صاحب الشيك
A48: 28 | B48: رائد نصر رمضان ابو سليمه | C48: سكودا استيشن | D48: اسود | E48: 1600 | G48: 1000 | H48: 63 | I48: فلسطين | J48: 30/12/2019 | K48: جهاد فلاح سدر االخليل 0599503321
A49: عدد | B49: مصدر الشيك | C49: نوع السيارة | D49: لون السيارة | E49: قوة المحرك | F49: رقمها بالشراء | G49: قيمة الشيك | H49: رقم الشيك | I49: البنك | J49: تاريخ الاستحقاق | K49: اسم صاحب الشيك
A50: 1 | B50: كمال جمال ربيع الدويك | C50: فورد فوكس | D50: ابيض | E50: 1400 | G50: 2000 | H50: 254 | I50: القاهرة عمان | J50: 30/10/2019 | K50: انشراح ابراهيم يوسف طويل ابو رمان 0597234663
A51: عدد | B51: مصدر الشيك | C51: نوع السيارة | D51: لون السيارة | E51: قوة المحرك | F51: رقمها بالشراء | G51: قيمة الشيك | H51: رقم الشيك | I51: البنك | J51: تاريخ الاستحقاق | K51: اسم صاحب الشيك
A52: عدد | B52: مصدر الشيك | C52: نوع السيارة | D52: لون السيارة | E52: قوة المحرك | F52: رقمها بالشراء | G52: قيمة الشيك | H52: رقم الشيك | I52: البنك | J52: تاريخ الاستحقاق | K52: اسم صاحب الشيك
A53: 7 | B53: محمد عايد محمد عوض | C53: كيا مورنينج فتحه | D53: بيج | E53: 1000 | F53: 6 | G53: 2200 | H53: 56 | I53: الاسلامي العربي | J53: 30/11/2019 | K53: محمد عايد محمد عوض يطا الحيله بجانب مدرسه الحيله 0502957643
A54: 8 | B54: محمد عايد محمد عوض | C54: كيا مورنينج فتحه | D54: بيج | E54: 1000 | F54: 6 | G54: 2200 | H54: 57 | I54: الاسلامي العربي | J54: 30/12/2019 | K54: محمد عايد محمد عوض يطا الحيله بجانب مدرسه الحيله 0502957643
A56: 12 | B56: محمد عايد محمد عوض | C56: كيا مورنينج فتحه | D56: بيج | E56: 1000 | F56: 6 | G56: 2200 | H56: 61 | I56: الاسلامي العربي | J56: 30/4/2020 | K56: محمد عايد محمد عوض يطا الحيله بجانب مدرسه الحيله 0502957643
A57: 13 | B57: محمد عايد محمد عوض | C57: كيا مورنينج فتحه | D57: بيج | E57: 1000 | F57: 6 | G57: 2200 | H57: 62 | I57: الاسلامي العربي | J57: 30/5/2020 | K57: محمد عايد محمد عوض يطا الحيله بجانب مدرسه الحيله 0502957643
A59: 15 | B59: محمد عايد محمد عوض | C59: كيا مورنينج فتحه | D59: بيج | E59: 1000 | F59: 6 | G59: 2200 | H59: 64 | I59: الاسلامي العربي | J59: 30/7/2020 | K59: محمد عايد محمد عوض يطا الحيله بجانب مدرسه الحيله 0502957643
A60: 16 | B60: محمد عايد محمد عوض | C60: كيا مورنينج فتحه | D60: بيج | E60: 1000 | F60: 6 | G60: 2200 | H60: 65 | I60: الاسلامي العربي | J60: 30/8/2020 | K60: محمد عايد محمد عوض يطا الحيله بجانب مدرسه الحيله 0502957643
A61: 18 | B61: محمد عايد محمد عوض | C61: كيا مورنينج فتحه | D61: بيج | E61: 1000 | F61: 6 | G61: 2200 | H61: 67 | I61: الاسلامي العربي | J61: 30/10/2020 | K61: محمد عايد محمد عوض يطا الحيله بجانب مدرسه الحيله 0502957643
A62: 21 | B62: محمد عايد محمد عوض | C62: كيا مورنينج فتحه | D62: بيج | E62: 1000 | F62: 6 | G62: 2200 | H62: 70 | I62: الاسلامي العربي | J62: 30/1/2021 | K62: محمد عايد محمد عوض يطا الحيله بجانب مدرسه الحيله 0502957643
A63: 22 | B63: محمد عايد محمد عوض | C63: كيا مورنينج فتحه | D63: بيج | E63: 1000 | F63: 6 | G63: 2500 | H63: 501 | I63: القاهرة عمان | J63: 28/2/2021 | K63: عيسى خليل محمود مخامرة يطا 0502957643
A64: 23 | B64: محمد عايد محمد عوض | C64: كيا مورنينج فتحه | D64: بيج | E64: 1000 | F64: 6 | G64: 2500 | H64: 507 | I64: القاهرة عمان | J64: 30/3/2021 | K64: عيسى خليل محمود مخامرة يطا 0502957644
A65: 24 | B65: محمد عايد محمد عوض | C65: كيا مورنينج فتحه | D65: بيج | E65: 1000 | F65: 6 | G65: 2500 | H65: 508 | I65: القاهرة عمان | J65: 30/4/2021 | K65: عيسى خليل محمود مخامرة يطا 0502957645
A66: 25 | B66: محمد عايد محمد عوض | C66: كيا مورنينج فتحه | D66: بيج | E66: 1000 | F66: 6 | G66: 3000 | H66: 79 | I66: فلسطين | J66: 30/5/2021 | K66: مهند عايد محمد عوض/يطا الحيله/0595163219
A67: عدد | B67: مصدر الشيك | C67: نوع السيارة | D67: لون السيارة | E67: قوة المحرك | F67: رقمها بالشراء | G67: قيمة الشيك | H67: رقم الشيك | I67: البنك | J67: تاريخ الاستحقاق | K67: اسم صاحب الشيك
A68: 2 | B68: نجوان احمد عبد النبي الطقاطقة | C68: كيا مورنينج | D68: اسود | E68: 1000 | F68: 13 | G68: 2600 | H68: 1447 | I68: الاسكان | J68: 30/8/2019 | K68: نجوان احمد طقاطقه 0599927405
A69: 6 | B69: نجوان احمد عبد النبي الطقاطقة | C69: كيا مورنينج | D69: اسود | E69: 1000 | F69: 13 | G69: 2600 | H69: 1451 | I69: الاسكان | J69: 30/12/2019 | K69: نجوان احمد طقاطقه 0599927405
A71: 16 | B71: نجوان احمد عبد النبي الطقاطقة | C71: كيا مورنينج | D71: اسود | E71: 1000 | F71: 13 | G71: 2600 | H71: 1461 | I71: الاسكان | J71: 30/10/2020 | K71: نجوان احمد طقاطقه 0599927405
A72: 17 | B72: نجوان احمد عبد النبي الطقاطقة | C72: كيا مورنينج | D72: اسود | E72: 1000 | F72: 13 | G72: 2600 | H72: 1462 | I72: الاسكان | J72: 30/11/2020 | K72: نجوان احمد طقاطقه 0599927405
A73: 18 | B73: نجوان احمد عبد النبي الطقاطقة | C73: كيا مورنينج | D73: اسود | E73: 1000 | F73: 13 | G73: 2600 | H73: 1463 | I73: الاسكان | J73: 30/12/2020 | K73: نجوان احمد طقاطقه 0599927405
A74: 19 | B74: نجوان احمد عبد النبي الطقاطقة | C74: كيا مورنينج | D74: اسود | E74: 1000 | F74: 13 | G74: 2600 | H74: 1464 | I74: الاسكان | J74: 30/1/2021 | K74: نجوان احمد طقاطقه 0599927405
A75: 20 | B75: نجوان احمد عبد النبي الطقاطقة | C75: كيا مورنينج | D75: اسود | E75: 1000 | F75: 13 | G75: 2600 | H75: 1465 | I75: الاسكان | J75: 30/2/2021 | K75: نجوان احمد طقاطقه 0599927405
A76: 21 | B76: نجوان احمد عبد النبي الطقاطقة | C76: كيا مورنينج | D76: اسود | E76: 1000 | F76: 13 | G76: 2600 | H76: 1466 | I76: الاسكان | J76: 30/3/2021 | K76: نجوان احمد طقاطقه 0599927405
A77: 22 | B77: نجوان احمد عبد النبي الطقاطقة | C77: كيا مورنينج | D77: اسود | E77: 1000 | F77: 13 | G77: 2600 | H77: 1467 | I77: الاسكان | J77: 30/4/2021 | K77: نجوان احمد طقاطقه 0599927405
A78: 23 | B78: نجوان احمد عبد النبي الطقاطقة | C78: كيا مورنينج | D78: اسود | E78: 1000 | F78: 13 | G78: 2800 | H78: 1468 | I78: الاسكان | J78: 30/5/2021 | K78: نجوان احمد طقاطقه 0599927405
A80: عدد | B80: اسم الزبون | C80: مصدر الشيك | D80: لون السيارة | E80: قوة المحرك | F80: رقمها بالشراء | G80: قيمة الشيك | H80: رقم الشيك | I80: البنك | J80: تاريخ الاستحقاق | K80: اسم صاحب الشيك
A81: 1 | B81: بشار جولف / سيتروين 6+1 2015 | C81: معتصم اقنيبي | D81: بدون | E81: بدون | F81: بدون | G81: 2500 | H81: 107 | I81: فلسطين | J81: 30/9/2019 | K81: احمد جميل ابو نواس-حلحول زبود 0595513915
A82: 2 | B82: بشار جولف / سيتروين 6+1 2016 | C82: معتصم اقنيبي | G82: 1200 | H82: 1012 | I82: الاسكان | J82: 30/12/2019 | K82: طلال يعقوب محمد ابو عريش حلحول
A83: 3 | B83: بشار جولف / سيتروين 6+1 2017 | C83: معتصم اقنيبي | G83: 2500 | H83: 110 | I83: فلسطين | J83: 30/12/2019 | K83: احمد جميل ابو نواس-حلحول زبود 0595513915
A84: عدد | B84: مصدر الشيك | C84: نوع السيارة | D84: لون السيارة | E84: قوة المحرك | F84: رقمها بالشراء | G84: قيمة الشيك | H84: رقم الشيك | I84: البنك | J84: تاريخ الاستحقاق | K84: اسم صاحب الشيك
A87: 3 | B87: ضياء اسماعيل احمد عمرو | C87: كيا مورنينج | D87: ابيض | E87: 1000 | F87: 5 | G87: 2700 | H87: 118 | I87: فلسطين | J87: 30/9/2019 | K87: ضياء اسماعيل احمد عمرو دورا بيت الروش التحتا 0569594577
A88: 4 | B88: ضياء اسماعيل احمد عمرو | C88: كيا مورنينج | D88: ابيض | E88: 1000 | F88: 5 | G88: 2700 | H88: 119 | I88: فلسطين | J88: 30/10/2019 | K88: ضياء اسماعيل احمد عمرو دورا بيت الروش التحتا 0569594578
A90: 6 | B90: ضياء اسماعيل احمد عمرو | C90: كيا مورنينج | D90: ابيض | E90: 1000 | F90: 5 | G90: 2700 | H90: 121 | I90: فلسطين | J90: 30/12/2019 | K90: ضياء اسماعيل احمد عمرو دورا بيت الروش التحتا 0569594580
A91: 7 | B91: ضياء اسماعيل احمد عمرو | C91: كيا مورنينج | D91: ابيض | E91: 1000 | F91: 5 | G91: 2700 | H91: 122 | I91: فلسطين | J91: 30/1/2020 | K91: ضياء اسماعيل احمد عمرو دورا بيت الروش التحتا 0569594581
A92: 8 | B92: ضياء اسماعيل احمد عمرو | C92: كيا مورنينج | D92: ابيض | E92: 1000 | F92: 5 | G92: 2700 | H92: 123 | I92: فلسطين | J92: 30/2/2020 | K92: ضياء اسماعيل احمد عمرو دورا بيت الروش التحتا 0569594582
L93: دفعة من معتصم بدل شيكات قرضة شراء سبورتاج ابيض من خالد بدر
L94: دفعة من معتصم بدل شيكات قرضة شراء سبورتاج ابيض من خالد بدر
L95: دفعة من معتصم بدل شيكات قرضة شراء سبورتاج ابيض من خالد بدر
A97: 13 | B97: ضياء اسماعيل احمد عمرو | C97: كيا مورنينج | D97: ابيض | E97: 1000 | F97: 5 | G97: 2700 | H97: 128 | I97: فلسطين | J97: 30/7/2020 | K97: ضياء اسماعيل احمد عمرو دورا بيت الروش التحتا 0569594587
A98: 14 | B98: ضياء اسماعيل احمد عمرو | C98: كيا مورنينج | D98: ابيض | E98: 1000 | F98: 5 | G98: 2700 | H98: 129 | I98: فلسطين | J98: 30/8/2020 | K98: ضياء اسماعيل احمد عمرو دورا بيت الروش التحتا 0569594588
A99: 15 | B99: ضياء اسماعيل احمد عمرو | C99: كيا مورنينج | D99: ابيض | E99: 1000 | F99: 5 | G99: 2700 | H99: 130 | I99: فلسطين | J99: 30/9/2020 | K99: ضياء اسماعيل احمد عمرو دورا بيت الروش التحتا 0569594589
A100: 16 | B100: ضياء اسماعيل احمد عمرو | C100: كيا مورنينج | D100: ابيض | E100: 1000 | F100: 5 | G100: 2700 | H100: 134 | I100: فلسطين | J100: 30/10/2020 | K100: ضياء اسماعيل احمد عمرو دورا بيت الروش التحتا 0569594590
A101: 17 | B101: ضياء اسماعيل احمد عمرو | C101: كيا مورنينج | D101: ابيض | E101: 1000 | F101: 5 | G101: 3400 | H101: 136 | I101: فلسطين | J101: 30/11/2020 | K101: ضياء اسماعيل احمد عمرو دورا بيت الروش التحتا 0569594591
A102: 18 | B102: ضياء اسماعيل احمد عمرو | C102: كيا مورنينج | D102: ابيض | E102: 1000 | F102: 5 | G102: 3400 | H102: 137 | I102: فلسطين | J102: 30/12/2020 | K102: ضياء اسماعيل احمد عمرو دورا بيت الروش التحتا 0569594592
A103: عدد | B103: مصدر الشيك | C103: نوع السيارة | D103: لون السيارة | E103: قوة المحرك | F103: رقمها بالشراء | G103: قيمة الشيك | H103: رقم الشيك | I103: البنك | J103: تاريخ الاستحقاق | K103: اسم صاحب الشيك
A104: 1 | B104: الشك من معتصم فرقيه تبديل السول | C104: شك فرقية تبديل كيا السول على اكسينت | D104: بدون | E104: بدون | G104: 3000 | H104: 208 | I104: فلسطين | J104: 2020-07-20 | K104: احمد حسن محمد دبوس بيت اولا ام علاس 0502270166
A105: عدد | B105: مصدر الشيك | C105: نوع السيارة | D105: لون السيارة | E105: قوة المحرك | F105: رقمها بالشراء | G105: قيمة الشيك | H105: رقم الشيك | I105: البنك | J105: تاريخ الاستحقاق | K105: اسم صاحب الشيك
A106: 1 | B106: رافت عبد الجليل اسماعيل القواسمه | C106: كيا مورنينج | D106: بيج | E106: 1000 | F106: 27 | G106: 2291 | H106: 91 | I106: الاسلامي العربي | J106: 2019-08-30 | K106: رافت عبد الجليل اسماعيل القواسمه ضاحية الرامه شركة روي 0598918336
A107: 3 | B107: رافت عبد الجليل اسماعيل القواسمه | C107: كيا مورنينج | D107: بيج | E107: 1000 | F107: 27 | G107: 2291 | H107: 93 | I107: الاسلامي العربي | J107: 2019-10-30 | K107: رافت عبد الجليل اسماعيل القواسمه ضاحية الرامه شركة روي 0598918336
A108: 4 | B108: رافت عبد الجليل اسماعيل القواسمه | C108: كيا مورنينج | D108: بيج | E108: 1000 | F108: 27 | G108: 2291 | H108: 94 | I108: الاسلامي العربي | J108: 2019-11-30 | K108: رافت عبد الجليل اسماعيل القواسمه ضاحية الرامه شركة روي 0598918336
A109: 5 | B109: رافت عبد الجليل اسماعيل القواسمه | C109: كيا مورنينج | D109: بيج | E109: 1000 | F109: 27 | G109: 2291 | H109: 95 | I109: الاسلامي العربي | J109: 2019-12-30 | K109: رافت عبد الجليل اسماعيل القواسمه ضاحية الرامه شركة روي 0598918336
A110: 6 | B110: رافت عبد الجليل اسماعيل القواسمه | C110: كيا مورنينج | D110: بيج | E110: 1000 | F110: 27 | G110: 2291 | H110: 96 | I110: الاسلامي العربي | J110: 2020-01-30 | K110: رافت عبد الجليل اسماعيل القواسمه ضاحية الرامه شركة روي 0598918336
A111: 8 | B111: رافت عبد الجليل اسماعيل القواسمه | C111: كيا مورنينج | D111: بيج | E111: 1000 | F111: 27 | G111: 2291 | H111: 98 | I111: الاسلامي العربي | J111: 2020-03-30 | K111: رافت عبد الجليل اسماعيل القواسمه ضاحية الرامه شركة روي 0598918336
A112: 9 | B112: رافت عبد الجليل اسماعيل القواسمه | C112: كيا مورنينج | D112: بيج | E112: 1000 | F112: 27 | G112: 2291 | H112: 99 | I112: الاسلامي العربي | J112: 2020-04-30 | K112: رافت عبد الجليل اسماعيل القواسمه ضاحية الرامه شركة روي 0598918336
A113: 10 | B113: رافت عبد الجليل اسماعيل القواسمه | C113: كيا مورنينج | D113: بيج | E113: 1000 | F113: 27 | G113: 2291 | H113: 100 | I113: الاسلامي العربي | J113: 2020-05-30 | K113: رافت عبد الجليل اسماعيل القواسمه ضاحية الرامه شركة روي 0598918336
A114: 11 | B114: رافت عبد الجليل اسماعيل القواسمه | C114: كيا مورنينج | D114: بيج | E114: 1000 | F114: 27 | G114: 2291 | H114: 101 | I114: الاسلامي العربي | J114: 2020-06-30 | K114: رافت عبد الجليل اسماعيل القواسمه ضاحية الرامه شركة روي 0598918336
A115: 12 | B115: رافت عبد الجليل اسماعيل القواسمه | C115: كيا مورنينج | D115: بيج | E115: 1000 | F115: 27 | G115: 2291 | H115: 102 | I115: الاسلامي العربي | J115: 2020-07-30 | K115: رافت عبد الجليل اسماعيل القواسمه ضاحية الرامه شركة روي 0598918336
A116: 13 | B116: رافت عبد الجليل اسماعيل القواسمه | C116: كيا مورنينج | D116: بيج | E116: 1000 | F116: 27 | G116: 2291 | H116: 103 | I116: الاسلامي العربي | J116: 2020-08-30 | K116: رافت عبد الجليل اسماعيل القواسمه ضاحية الرامه شركة روي 0598918336
A117: 14 | B117: رافت عبد الجليل اسماعيل القواسمه | C117: كيا مورنينج | D117: بيج | E117: 1000 | F117: 27 | G117: 2291 | H117: 104 | I117: الاسلامي العربي | J117: 2020-09-30 | K117: رافت عبد الجليل اسماعيل القواسمه ضاحية الرامه شركة روي 0598918336
A118: 15 | B118: رافت عبد الجليل اسماعيل القواسمه | C118: كيا مورنينج | D118: بيج | E118: 1000 | F118: 27 | G118: 2291 | H118: 105 | I118: الاسلامي العربي | J118: 2020-10-30 | K118: رافت عبد الجليل اسماعيل القواسمه ضاحية الرامه شركة روي 0598918336
A119: 16 | B119: رافت عبد الجليل اسماعيل القواسمه | C119: كيا مورنينج | D119: بيج | E119: 1000 | F119: 27 | G119: 2291 | H119: 106 | I119: الاسلامي العربي | J119: 2020-11-30 | K119: رافت عبد الجليل اسماعيل القواسمه ضاحية الرامه شركة روي 0598918336
A120: 17 | B120: رافت عبد الجليل اسماعيل القواسمه | C120: كيا مورنينج | D120: بيج | E120: 1000 | F120: 27 | G120: 2291 | H120: 107 | I120: الاسلامي العربي | J120: 2020-12-30 | K120: رافت عبد الجليل اسماعيل القواسمه ضاحية الرامه شركة روي 0598918336
A121: 18 | B121: رافت عبد الجليل اسماعيل القواسمه | C121: كيا مورنينج | D121: بيج | E121: 1000 | F121: 27 | G121: 2291 | H121: 108 | I121: الاسلامي العربي | J121: 2021-01-30 | K121: رافت عبد الجليل اسماعيل القواسمه ضاحية الرامه شركة روي 0598918336
A122: 19 | B122: رافت عبد الجليل اسماعيل القواسمه | C122: كيا مورنينج | D122: بيج | E122: 1000 | F122: 27 | G122: 2291 | H122: 109 | I122: الاسلامي العربي | J122: 30/02/2021 | K122: رافت عبد الجليل اسماعيل القواسمه ضاحية الرامه شركة روي 0598918336
A123: 20 | B123: رافت عبد الجليل اسماعيل القواسمه | C123: كيا مورنينج | D123: بيج | E123: 1000 | F123: 27 | G123: 2291 | H123: 110 | I123: الاسلامي العربي | J123: 2021-03-30 | K123: رافت عبد الجليل اسماعيل القواسمه ضاحية الرامه شركة روي 0598918336
A124: 21 | B124: رافت عبد الجليل اسماعيل القواسمه | C124: كيا مورنينج | D124: بيج | E124: 1000 | F124: 27 | G124: 2291 | H124: 84 | I124: الاسلامي العربي | J124: 2021-04-30 | K124: رافت عبد الجليل اسماعيل القواسمه ضاحية الرامه شركة روي 0598918336
A125: 22 | B125: رافت عبد الجليل اسماعيل القواسمه | C125: كيا مورنينج | D125: بيج | E125: 1000 | F125: 27 | G125: 2291 | H125: 86 | I125: الاسلامي العربي | J125: 2021-05-30 | K125: رافت عبد الجليل اسماعيل القواسمه ضاحية الرامه شركة روي 0598918336
A126: 23 | B126: رافت عبد الجليل اسماعيل القواسمه | C126: كيا مورنينج | D126: بيج | E126: 1000 | F126: 27 | G126: 2291 | H126: 87 | I126: الاسلامي العربي | J126: 2021-06-30 | K126: رافت عبد الجليل اسماعيل القواسمه ضاحية الرامه شركة روي 0598918336
A127: 24 | B127: رافت عبد الجليل اسماعيل القواسمه | C127: كيا مورنينج | D127: بيج | E127: 1000 | F127: 27 | G127: 2291 | H127: 88 | I127: الاسلامي العربي | J127: 2021-07-30 | K127: رافت عبد الجليل اسماعيل القواسمه ضاحية الرامه شركة روي 0598918336
A128: عدد | B128: مصدر الشيك | C128: نوع السيارة | D128: لون السيارة | E128: قوة المحرك | F128: رقمها بالشراء | G128: قيمة الشيك | H128: رقم الشيك | I128: البنك | J128: تاريخ الاستحقاق | K128: اسم صاحب الشيك
A132: 4 | B132: فؤاد يحيى عبد الله قراقع | C132: كيا مورنينج | D132: فيراني سكني | E132: 1000 | F132: 26 | G132: 2000 | H132: 6 | I132: الاسلامي العربي | J132: 15/9/2019 | K132: احمد يحيى عبد الله قراقع الدوحه قرب قاعة القدس 0569404045
A133: 5 | B133: فؤاد يحيى عبد الله قراقع | C133: كيا مورنينج | D133: فيراني سكني | E133: 1000 | F133: 26 | G133: 2000 | H133: 7 | I133: الاسلامي العربي | J133: 15/10/2019 | K133: احمد يحيى عبد الله قراقع الدوحه قرب قاعة القدس 0569404045
A134: 6 | B134: فؤاد يحيى عبد الله قراقع | C134: كيا مورنينج | D134: فيراني سكني | E134: 1000 | F134: 26 | G134: 2000 | H134: 8 | I134: الاسلامي العربي | J134: 15/11/2019 | K134: احمد يحيى عبد الله قراقع الدوحه قرب قاعة القدس 0569404045
A135: 7 | B135: فؤاد يحيى عبد الله قراقع | C135: كيا مورنينج | D135: فيراني سكني | E135: 1000 | F135: 26 | G135: 2000 | H135: 9 | I135: الاسلامي العربي | J135: 15/12/2019 | K135: احمد يحيى عبد الله قراقع الدوحه قرب قاعة القدس 0569404045
A136: 8 | B136: فؤاد يحيى عبد الله قراقع | C136: كيا مورنينج | D136: فيراني سكني | E136: 1000 | F136: 26 | G136: 2000 | H136: 10 | I136: الاسلامي العربي | J136: 15/1/2020 | K136: احمد يحيى عبد الله قراقع الدوحه قرب قاعة القدس 0569404045
A137: 9 | B137: فؤاد يحيى عبد الله قراقع | C137: كيا مورنينج | D137: فيراني سكني | E137: 1000 | F137: 26 | G137: 2000 | H137: 11 | I137: الاسلامي العربي | J137: 15/2/2020 | K137: احمد يحيى عبد الله قراقع الدوحه قرب قاعة القدس 0569404045
A138: 10 | B138: فؤاد يحيى عبد الله قراقع | C138: كيا مورنينج | D138: فيراني سكني | E138: 1000 | F138: 26 | G138: 2000 | H138: 12 | I138: الاسلامي العربي | J138: 15/3/2020 | K138: احمد يحيى عبد الله قراقع الدوحه قرب قاعة القدس 0569404045
A139: 11 | B139: فؤاد يحيى عبد الله قراقع | C139: كيا مورنينج | D139: فيراني سكني | E139: 1000 | F139: 26 | G139: 2000 | H139: 13 | I139: الاسلامي العربي | J139: 15/4/2020 | K139: احمد يحيى عبد الله قراقع الدوحه قرب قاعة القدس 0569404045
A140: 12 | B140: فؤاد يحيى عبد الله قراقع | C140: كيا مورنينج | D140: فيراني سكني | E140: 1000 | F140: 26 | G140: 2000 | H140: 14 | I140: الاسلامي العربي | J140: 15/5/2020 | K140: احمد يحيى عبد الله قراقع الدوحه قرب قاعة القدس 0569404045
A141: 13 | B141: فؤاد يحيى عبد الله قراقع | C141: كيا مورنينج | D141: فيراني سكني | E141: 1000 | F141: 26 | G141: 2000 | H141: 15 | I141: الاسلامي العربي | J141: 15/6/2020 | K141: احمد يحيى عبد الله قراقع الدوحه قرب قاعة القدس 0569404045
A142: 14 | B142: فؤاد يحيى عبد الله قراقع | C142: كيا مورنينج | D142: فيراني سكني | E142: 1000 | F142: 26 | G142: 2000 | H142: 16 | I142: الاسلامي العربي | J142: 15/7/2020 | K142: احمد يحيى عبد الله قراقع الدوحه قرب قاعة القدس 0569404045
A143: 15 | B143: فؤاد يحيى عبد الله قراقع | C143: كيا مورنينج | D143: فيراني سكني | E143: 1000 | F143: 26 | G143: 2000 | H143: 17 | I143: الاسلامي العربي | J143: 15/8/2020 | K143: احمد يحيى عبد الله قراقع الدوحه قرب قاعة القدس 0569404045
A144: 16 | B144: فؤاد يحيى عبد الله قراقع | C144: كيا مورنينج | D144: فيراني سكني | E144: 1000 | F144: 26 | G144: 2000 | H144: 18 | I144: الاسلامي العربي | J144: 15/9/2020 | K144: احمد يحيى عبد الله قراقع الدوحه قرب قاعة القدس 0569404045
A145: 17 | B145: فؤاد يحيى عبد الله قراقع | C145: كيا مورنينج | D145: فيراني سكني | E145: 1000 | F145: 26 | G145: 2000 | H145: 19 | I145: الاسلامي العربي | J145: 15/10/2020 | K145: احمد يحيى عبد الله قراقع الدوحه قرب قاعة القدس 0569404045
A146: 18 | B146: فؤاد يحيى عبد الله قراقع | C146: كيا مورنينج | D146: فيراني سكني | E146: 1000 | F146: 26 | G146: 2000 | H146: 20 | I146: الاسلامي العربي | J146: 15/11/2020 | K146: احمد يحيى عبد الله قراقع الدوحه قرب قاعة القدس 0569404045
A147: 19 | B147: فؤاد يحيى عبد الله قراقع | C147: كيا مورنينج | D147: فيراني سكني | E147: 1000 | F147: 26 | G147: 2000 | H147: 21 | I147: الاسلامي العربي | J147: 15/12/2020 | K147: احمد يحيى عبد الله قراقع الدوحه قرب قاعة القدس 0569404045
A148: 20 | B148: فؤاد يحيى عبد الله قراقع | C148: كيا مورنينج | D148: فيراني سكني | E148: 1000 | F148: 26 | G148: 2000 | H148: 22 | I148: الاسلامي العربي | J148: 15/1/2021 | K148: احمد يحيى عبد الله قراقع الدوحه قرب قاعة القدس 0569404045
A149: 21 | B149: فؤاد يحيى عبد الله قراقع | C149: كيا مورنينج | D149: فيراني سكني | E149: 1000 | F149: 26 | G149: 2000 | H149: 23 | I149: الاسلامي العربي | J149: 15/2/2021 | K149: احمد يحيى عبد الله قراقع الدوحه قرب قاعة القدس 0569404045
A150: 22 | B150: فؤاد يحيى عبد الله قراقع | C150: كيا مورنينج | D150: فيراني سكني | E150: 1000 | F150: 26 | G150: 2000 | H150: 24 | I150: الاسلامي العربي | J150: 15/3/2021 | K150: احمد يحيى عبد الله قراقع الدوحه قرب قاعة القدس 0569404045
A151: 23 | B151: فؤاد يحيى عبد الله قراقع | C151: كيا مورنينج | D151: فيراني سكني | E151: 1000 | F151: 26 | G151: 2000 | H151: 25 | I151: الاسلامي العربي | J151: 15/4/2021 | K151: احمد يحيى عبد الله قراقع الدوحه قرب قاعة القدس 0569404045
A152: عدد | B152: مصدر الشيك | C152: نوع السيارة | D152: لون السيارة | E152: قوة المحرك | F152: رقمها بالشراء | G152: قيمة الشيك | H152: رقم الشيك | I152: البنك | J152: تاريخ الاستحقاق | K152: اسم صاحب الشيك
A153: 1 | B153: اسماء محمد الخطيب | C153: كيا مورنينج | D153: ابيض | E153: 1000 | F153: 24 | G153: 2000 | H153: 66 | I153: فلسطين | J153: 2019-09-05 | K153: اسماء محمد الخطيب
A154: 2 | B154: اسماء محمد الخطيب | C154: كيا مورنينج | D154: ابيض | E154: 1000 | F154: 24 | G154: 2000 | H154: 67 | I154: فلسطين | J154: 2019-10-05 | K154: اسماء محمد الخطيب
A155: 3 | B155: اسماء محمد الخطيب | C155: كيا مورنينج | D155: ابيض | E155: 1000 | F155: 24 | G155: 2000 | H155: 68 | I155: فلسطين | J155: 2019-11-05 | K155: اسماء محمد الخطيب
A156: 4 | B156: اسماء محمد الخطيب | C156: كيا مورنينج | D156: ابيض | E156: 1000 | F156: 24 | G156: 2000 | H156: 69 | I156: فلسطين | J156: 2019-12-05 | K156: اسماء محمد الخطيب
A157: 5 | B157: اسماء محمد الخطيب | C157: كيا مورنينج | D157: ابيض | E157: 1000 | F157: 24 | G157: 2000 | H157: 70 | I157: فلسطين | J157: 2020-01-05 | K157: اسماء محمد الخطيب
A158: عدد | B158: مصدر الشيك | C158: نوع السيارة | D158: لون السيارة | E158: قوة المحرك | F158: رقمها بالشراء | G158: قيمة الشيك | H158: رقم الشيك | I158: البنك | J158: تاريخ الاستحقاق | K158: اسم صاحب الشيك
A159: 1 | B159: شركة الطيار | C159: معتصم اقنيبي | G159: 2500 | H159: 30245351 | I159: الاهلي الاردني | J159: 2020-10-30 | K159: زكريا حسين محمد زباينه 0568741798
A160: 2 | B160: شركة الطيار | C160: معتصم اقنيبي | G160: 5500 | H160: 415 | I160: فلسطين | J160: 2020-12-10 | K160: علي عبد الهادي شرحه دورا - الشرفه 0598629182
A161: عدد | B161: مصدر الشيك | C161: نوع السيارة | D161: لون السيارة | E161: قوة المحرك | F161: رقمها بالشراء | G161: قيمة الشيك | H161: رقم الشيك | I161: البنك | J161: تاريخ الاستحقاق | K161: اسم صاحب الشيك

Sheet شيكات مجيرة
G1: الوقت الان | I1: =NOW() -> 43712.0328 | J1: ←خاص الوقت المتبقي للصرف | K1: =NOW() -> 2019-09-04T00:47:13.830
G2: التاريخ | I2: =TODAY() -> 2019-09-04 | J2: مجموع الشيكات | K2: =SUM(G:G) -> 798350
A3: رقم | B3: اسم الزبون | C3: نوع السيارة | D3: لون السيارة | E3: قوة المحرك | G3: قيمة الشيك | H3: رقم الشيك | I3: البنك | J3: تاريخ الاستحقاق | K3: اسم صاحب الشيك | L3: مجيرلصالح | M3: عن سيارة رقم بالشراء
A4: 1 | B4: يزيد قنيبي | C4: سكودا استيشن | D4: احمر | E4: 1600 | G4: 1000 | H4: 100 | I4: فلسطين | J4: 2019-02-25 | K4: يونس باسم حلايقة الشيوخ وسط البلد 0599287083 | L4: رشوان | M4: 10+11
A5: 2 | B5: يزيد قنيبي | C5: سكودا استيشن | D5: احمر | E5: 1600 | G5: 1500 | H5: 64 | I5: القاهرة عمان | J5: 2019-03-25 | K5: محمد اسماعيل حموده الدوده حلحول الخليل 0592334962 | L5: رشوان | M5: 10+11
A6: 3 | B6: يزيد قنيبي | C6: سكودا استيشن | D6: احمر | E6: 1600 | G6: 1000 | H6: 2 | I6: فلسطين | J6: 2019-03-30 | K6: مهند محمد عبد الحافظ ابو شمعه مخيم العروب 0597137966 | L6: رشوان | M6: 10+11
A7: 4 | B7: يزيد قنيبي | C7: سكودا استيشن | D7: احمر | E7: 1600 | G7: 3000 | H7: 28 | I7: الاسلامي الفلسطيني | J7: 2019-04-30 | K7: نادر عبد الفتاح اسليميه اذنا خلة الغامقه 0569080816 | L7: رشوان | M7: 10+11
A8: 5 | B8: يزيد قنيبي | C8: سكودا استيشن | D8: احمر | E8: 1600 | G8: 3000 | H8: 29 | I8: الاسلامي الفلسطيني | J8: 2019-05-30 | K8: نادر عبد الفتاح اسليميه اذنا خلة الغامقه 0569080816 | L8: رشوان | M8: 10+11
A9: 6 | B9: يزيد قنيبي | C9: سكودا استيشن | D9: احمر | E9: 1600 | G9: 3000 | H9: 30 | I9: الاسلامي الفلسطيني | J9: 2019-06-30 | K9: نادر عبد الفتاح اسليميه اذنا خلة الغامقه 0569080816 | L9: رشوان | M9: 10+11
A10: 7 | B10: يزيد قنيبي | C10: سكودا استيشن | D10: احمر | E10: 1600 | G10: 3000 | H10: 1004 | I10: الاسكان | J10: 2019-07-30 | K10: عادل اسماعيل حموده دوده | L10: رشوان | M10: 10+11
A11: 8 | B11: يزيد قنيبي | C11: سكودا استيشن | D11: احمر | E11: 1600 | G11: 3000 | H11: 31 | I11: فلسطين | J11: 2019-08-05 | K11: نضال موسى شاكر دنديس دويربان 0599434153 | L11: رشوان | M11: 10+11
A12: 9 | B12: يزيد قنيبي | C12: سكودا استيشن | D12: احمر | E12: 1600 | G12: 3000 | H12: 193 | I12: الاسلامي الفلسطيني | J12: 2019-09-30 | K12: ايهاب عبد الفتاح اسليميه اذنا خلة الغامقه 0592377987 | L12: رشوان | M12: 10+11
A13: 10 | B13: يزيد قنيبي | C13: سكودا استيشن | D13: احمر | E13: 1600 | G13: 3000 | H13: 194 | I13: الاسلامي الفلسطيني | J13: 2019-10-30 | K13: ايهاب عبد الفتاح اسليميه اذنا خلة الغامقه 0592377987 | L13: رشوان | M13: 10+11
A14: 11 | B14: يزيد قنيبي | C14: سكودا استيشن | D14: احمر | E14: 1600 | G14: 3000 | H14: 195 | I14: الاسلامي الفلسطيني | J14: 2019-11-30 | K14: ايهاب عبد الفتاح اسليميه اذنا خلة الغامقه 0592377987 | L14: رشوان | M14: 10+11
A15: 12 | B15: يزيد قنيبي | C15: سكودا استيشن | D15: احمر | E15: 1600 | G15: 3000 | H15: 115 | I15: الاسلامي الفلسطيني | J15: 2019-12-15 | K15: سمر ابراهيم هاشم الشريف واد الهرية 0599838273 | L15: رشوان | M15: 10+11
A16: 14 | B16: يزيد قنيبي | C16: سكودا استيشن | D16: احمر | E16: 1600 | G16: 2500 | H16: 264 | I16: فلسطين | J16: 30/2/2020 | K16: سناء احمد طروه سعير وادي الشرق 0599640079 | L16: معتصم قنيبي | M16: تعديل حساب | N16: دفعة لمعتصم تعديل راس المال
A17: 19 | B17: يزيد قنيبي | C17: سكودا استيشن | D17: احمر | E17: 1600 | G17: 1500 | H17: 102 | I17: الاردن | J17: 2020-07-05 | K17: ماجده ذيب حسني التميمي الخليل 22299905 | L17: معتصم قنيبي | M17: تعديل حساب | N17: دفعة لمعتصم لتعديل راس المال
A18: رقم | B18: اسم الزبون | C18: نوع السيارة | D18: لون السيارة | E18: قوة المحرك | G18: قيمة الشيك | H18: رقم الشيك | I18: البنك | J18: تاريخ الاستحقاق | K18: اسم صاحب الشيك | L18: مجير لصالح | M18: عن سيارة
A19: 1 | B19: سعدي ابو الحلاوة | C19: كيا فورتي | D19: سكني | G19: 3000 | H19: 121 | I19: الاسلامي الفلسطيني | J19: 31/4/2019 | K19: انس رياض عمر مخلوف بيت لحم الكركفه احذية توب شوز 02276684 | L19: رشوان | M19: 10+11
A20: 2 | B20: سعدي ابو الحلاوة | C20: كيا فورتي | D20: سكني | G20: 3000 | H20: 164 | I20: الاسلامي الفلسطيني | J20: 31/4/2019 | K20: انس رياض عمر مخلوف بيت لحم الكركفه احذية توب شوز 02276685 | L20: رشوان | M20: 10+11
A21: 3 | B21: سعدي ابو الحلاوة | C21: كيا فورتي | D21: سكني | G21: 3000 | H21: 147 | I21: الاسلامي الفلسطيني | J21: 31/5/2019 | K21: انس رياض عمر مخلوف بيت لحم الكركفه احذية توب شوز 02276686 | L21: رشوان | M21: 10+11
A22: 4 | B22: سعدي ابو الحلاوة | C22: كيا فورتي | D22: سكني | G22: 3000 | H22: 144 | I22: الاسلامي الفلسطيني | J22: 2019-07-31 | K22: انس رياض عمر مخلوف بيت لحم الكركفه احذية توب شوز 02276687 | L22: رشوان | M22: 10+11
A23: رقم | B23: اسم الزبون | C23: نوع السيارة | D23: لون السيارة | E23: قوة المحرك | G23: قيمة الشيك | H23: رقم الشيك | I23: البنك | J23: تاريخ الاستحقاق | K23: اسم صاحب الشيك | L23: مجير لصالح | M23: عن سيارة
A24: 1 | B24: يزيد قنيبي | C24: سكودا استيشن | D24: احمر | E24: 1600 | G24: 3000 | H24: 1008 | I24: الاسكان | J24: 2020-01-30 | K24: عادل اسماعيل حموده دوده | L24: خالد بدر | M24: 13+14+15 | N24: معتصم
A25: رقم | B25: اسم الزبون | C25: نوع السيارة | D25: لون السيارة | E25: قوة المحرك | G25: قيمة الشيك | H25: رقم الشيك | I25: البنك | J25: تاريخ الاستحقاق | K25: اسم صاحب الشيك | L25: مجير لصالح | M25: عن سيارة
A26: 1 | B26: صلاح الدين علي عطية عطا | C26: سيات | D26: ابيض | E26: 1250 تيربو | G26: 3000 | H26: 286 | I26: الاسلامي الفلسطيني | J26: 2019-02-10 | K26: انصاف جميل محمد سليمان حوسان الخله 0587560600 | L26: خالد بدر | M26: 13+14+15
A27: 2 | B27: صلاح الدين علي عطية عطا | C27: سيات | D27: ابيض | E27: 1250 تيربو | G27: 15000 | H27: 22 | I27: الاستثمار الفلسطيني | J27: 2019-02-15 | K27: صلاح الدين علي عطية بيت لحم واد فوكين 0522859051 | L27: خالد بدر | M27: 13+14+15
A28: 3 | B28: صلاح الدين علي عطية عطا | C28: سيات | D28: ابيض | E28: 1250 تيربو | G28: 3000 | H28: 287 | I28: الاسلامي الفلسطيني | J28: 2019-03-10 | K28: انصاف جميل محمد سليمان حوسان الخله 0587560600 | L28: خالد بدر | M28: 13+14+15
A29: 4 | B29: صلاح الدين علي عطية عطا | C29: سيات | D29: ابيض | E29: 1250 تيربو | G29: 3000 | H29: 288 | I29: الاسلامي الفلسطيني | J29: 2019-04-10 | K29: انصاف جميل محمد سليمان حوسان الخله 0587560600 | L29: خالد بدر | M29: 13+14+15
A30: 5 | B30: صلاح الدين علي عطية عطا | C30: سيات | D30: ابيض | E30: 1250 تيربو | G30: 3000 | H30: 289 | I30: الاسلامي الفلسطيني | J30: 2019-05-10 | K30: انصاف جميل محمد سليمان حوسان الخله 0587560600 | L30: خالد بدر | M30: 13+14+15
A31: 6 | B31: صلاح الدين علي عطية عطا | C31: سيات | D31: ابيض | E31: 1250 تيربو | G31: 3500 | H31: 291 | I31: الاسلامي الفلسطيني | J31: 2019-06-10 | K31: انصاف جميل محمد سليمان حوسان الخله 0587560600 | L31: خالد بدر | M31: 13+14+15
A32: 7 | B32: صلاح الدين علي عطية عطا | C32: سيات | D32: ابيض | E32: 1250 تيربو | G32: 3500 | H32: 292 | I32: الاسلامي الفلسطيني | J32: 2019-07-10 | K32: انصاف جميل محمد سليمان حوسان الخله 0587560600 | L32: خالد بدر | M32: 13+14+15
A33: 8 | B33: صلاح الدين علي عطية عطا | C33: سيات | D33: ابيض | E33: 1250 تيربو | G33: 3500 | H33: 293 | I33: الاسلامي الفلسطيني | J33: 2019-08-10 | K33: انصاف جميل محمد سليمان حوسان الخله 0587560600 | L33: خالد بدر | M33: 13+14+15
A34: 9 | B34: صلاح الدين علي عطية عطا | C34: سيات | D34: ابيض | E34: 1250 تيربو | G34: 3500 | H34: 294 | I34: الاسلامي الفلسطيني | J34: 2019-09-10 | K34: انصاف جميل محمد سليمان حوسان الخله 0587560600 | L34: خالد بدر | M34: 13+14+15
A35: 10 | B35: صلاح الدين علي عطية عطا | C35: سيات | D35: ابيض | E35: 1250 تيربو | G35: 1600 | H35: 24 | I35: الاستثمار الفلسطيني | J35: 2019-09-20 | K35: صلاح الدين علي عطية بيت لحم واد فوكين 0522859051 | L35: خالد بدر | M35: 13+14+15
A36: 11 | B36: صلاح الدين علي عطية عطا | C36: سيات | D36: ابيض | E36: 1250 تيربو | G36: 1600 | H36: 25 | I36: الاستثمار الفلسطيني | J36: 2019-10-20 | K36: صلاح الدين علي عطية بيت لحم واد فوكين 0522859051 | L36: خالد بدر | M36: 13+14+15
A37: 12 | B37: صلاح الدين علي عطية عطا | C37: سيات | D37: ابيض | E37: 1250 تيربو | G37: 4000 | H37: 296 | I37: الاسلامي الفلسطيني | J37: 2019-11-10 | K37: انصاف جميل محمد سليمان حوسان الخله 0587560600 | L37: خالد بدر | M37: 13+14+15
A38: 13 | B38: صلاح الدين علي عطية عطا | C38: سيات | D38: ابيض | E38: 1250 تيربو | G38: 1600 | H38: 26 | I38: الاستثمار الفلسطيني | J38: 2019-11-20 | K38: صلاح الدين علي عطية بيت لحم واد فوكين 0522859051 | L38: خالد بدر | M38: 13+14+15
A39: 14 | B39: صلاح الدين علي عطية عطا | C39: سيات | D39: ابيض | E39: 1250 تيربو | G39: 1600 | H39: 27 | I39: الاستثمار الفلسطيني | J39: 2019-12-20 | K39: صلاح الدين علي عطية بيت لحم واد فوكين 0522859051 | L39: خالد بدر | M39: 13+14+15
A40: 15 | B40: صلاح الدين علي عطية عطا | C40: سيات | D40: ابيض | E40: 1250 تيربو | G40: 1600 | H40: 28 | I40: الاستثمار الفلسطيني | J40: 2020-01-20 | K40: صلاح الدين علي عطية بيت لحم واد فوكين 0522859051 | L40: خالد بدر | M40: 13+14+15
A41: 16 | B41: صلاح الدين علي عطية عطا | C41: سيات | D41: ابيض | E41: 1250 تيربو | G41: 1600 | H41: 29 | I41: الاستثمار الفلسطيني | J41: 2020-02-20 | K41: صلاح الدين علي عطية بيت لحم واد فوكين 0522859051 | L41: خالد بدر | M41: 13+14+15
A42: رقم | B42: اسم الزبون | C42: نوع السيارة | D42: لون السيارة | E42: قوة المحرك | G42: قيمة الشيك | H42: رقم الشيك | I42: البنك | J42: تاريخ الاستحقاق | K42: اسم صاحب الشيك
A44: رقم | B44: اسم الزبون | C44: نوع السيارة | D44: لون السيارة | E44: قوة المحرك | G44: قيمة الشيك | H44: رقم الشيك | I44: البنك | J44: تاريخ الاستحقاق | K44: اسم صاحب الشيك | L44: مجير لصالح | M44: عن سيارة
A45: 1 | B45: عادل القواسمي | C45: بيكانتو ابيض بدون جنط | D45: ابيض | E45: 1000 | G45: 5000 | H45: 328 | I45: القدس | J45: 2019-03-30 | K45: شركة الفرنس للادوات المنزلية نابلس الباذان | L45: خالد بدر | M45: 13+14+15
A46: 2 | B46: عادل القواسمي | C46: بيكانتو ابيض بدون جنط | D46: ابيض | E46: 1000 | G46: 2500 | H46: 1147 | I46: الاستثمار الفلسطيني | J46: 2019-04-30 | K46: شركة الوان للتسويق 0599294140 وائل | L46: مجير لصالح | M46: عن سيارة
A47: 3 | B47: عادل القواسمي | C47: بيكانتو ابيض بدون جنط | D47: ابيض | E47: 1000 | G47: 1450 | H47: 119 | I47: القاهرة عمان | J47: 2019-04-15 | K47: خولة عبد الحافظ احمد ابو لبده قلقيليه 0598887450 | L47: خالد بدر | M47: 13+14+15
A48: 4 | B48: عادل القواسمي | C48: بيكانتو ابيض بدون جنط | D48: ابيض | E48: 1000 | G48: 2500 | H48: 1148 | I48: الاستثمار الفلسطيني | J48: 2019-05-30 | K48: شركة الوان للتسويق 0599294140 وائل | L48: خالد بدر | M48: 13+14+15
A49: 5 | B49: عادل القواسمي | C49: بيكانتو ابيض بدون جنط | D49: ابيض | E49: 1000 | G49: 3500 | H49: 53 | I49: الاستثمار الفلسطيني | J49: 2019-05-31 | K49: عز الدين حمد خليل الهريمي بيت لحم شارع المهد 2741594 | L49: خالد بدر | M49: 13+14+15
A50: 6 | B50: عادل القواسمي | C50: بيكانتو ابيض بدون جنط | D50: ابيض | E50: 1000 | G50: 3200 | H50: 1149 | I50: الاستثمار الفلسطيني | J50: 2019-06-30 | K50: شركة الوان للتسويق 0599294140 وائل | L50: خالد بدر | M50: 13+14+15
A51: 7 | B51: عادل القواسمي | C51: بيكانتو ابيض بدون جنط | D51: ابيض | E51: 1000 | G51: 600 | H51: 622 | I51: القاهرة عمان | J51: 2019-06-07 | K51: عيسى محمود حمج علان سميرات بيت لحم 0599534646 | L51: خالد بدر | M51: 13+14+15
A52: 8 | B52: عادل القواسمي | C52: بيكانتو ابيض بدون جنط | D52: ابيض | E52: 1000 | G52: 3000 | H52: 71 | I52: الوطني | J52: 31/06/2019 | K52: طارق زياد نمر حمدان "عرابه" | L52: خالد بدر | M52: 13+14+15
A53: 9 | B53: عادل القواسمي | C53: بيكانتو ابيض بدون جنط | D53: ابيض | E53: 1000 | G53: 4000 | H53: 72 | I53: الوطني | J53: 2019-07-10 | K53: طارق زياد نمر حمدان "عرابه" | L53: خالد بدر | M53: 13+14+15
A54: 10 | B54: عادل القواسمي | C54: بيكانتو ابيض بدون جنط | D54: ابيض | E54: 1000 | G54: 3200 | H54: 1151 | I54: الاستثمار الفلسطيني | J54: 2019-08-30 | K54: شركة الوان للتسويق 0599294140 وائل | L54: خالد بدر | M54: 13+14+15
A55: 11 | B55: عادل القواسمي | C55: بيكانتو ابيض بدون جنط | D55: ابيض | E55: 1000 | G55: 5500 | H55: 270 | I55: القدس | J55: 2019-09-30 | K55: مالك عادل حسني قواسمه فرش الهوى 0597081206 | L55: خالد بدر | M55: 13+14+15
A56: 12 | B56: عادل القواسمي | C56: بيكانتو ابيض بدون جنط | D56: ابيض | E56: 1000 | G56: 5500 | H56: 271 | I56: القدس | J56: 2019-10-30 | K56: مالك عادل حسني قواسمه فرش الهوى 0597081206 | L56: خالد بدر | M56: 13+14+15
A57: 13 | B57: عادل القواسمي | C57: بيكانتو ابيض بدون جنط | D57: ابيض | E57: 1000 | G57: 5500 | H57: 272 | I57: القدس | J57: 2019-11-30 | K57: مالك عادل حسني قواسمه فرش الهوى 0597081206 | L57: خالد بدر | M57: 13+14+15
A58: 14 | B58: عادل القواسمي | C58: بيكانتو ابيض بدون جنط | D58: ابيض | E58: 1000 | G58: 6000 | H58: 273 | I58: القدس | J58: 2019-12-31 | K58: مالك عادل حسني قواسمه فرش الهوى 0597081206 | L58: خالد بدر | M58: 13+14+15
A59: رقم | B59: اسم الزبون | C59: نوع السيارة | D59: لون السيارة | E59: قوة المحرك | G59: قيمة الشيك | H59: رقم الشيك | I59: البنك | J59: تاريخ الاستحقاق | K59: اسم صاحب الشيك | L59: مجير لصالح | M59: عن سيارة بالشراء
A60: 1 | B60: يحيى محمد اسماعيل ابو لوحه | C60: بيكانتو جنط 16 | D60: فيراني | E60: 1000 | G60: 850 | H60: 1290 | I60: الاسكان | J60: 2019-05-28 | K60: هاشم عبد القادر درويش الطوس الخليل | L60: مالك البطران | M60: 16 هونداي اكسينت
A61: 2 | B61: صلاح الدين علي عطية عطا | C61: سيات ابيزا | D61: ابيض | E61: 1259 تبيرو | G61: 1600 | H61: 23 | I61: الاستثمار الفلسطيني | J61: 2019-08-20 | K61: صلاح الدين علي عطية بيت لحم واد فوكين 0522859051 | L61: مالك البطران | M61: 16 هونداي اكسينت
A62: 3 | B62: صلاح الدين علي عطية عطا | C62: سيات ابيزا | D62: ابيض | E62: 1252 تبيرو | G62: 3000 | H62: 19 | I62: فلسطين | J62: 2019-02-28 | K62: نفوز عبد المجيد النجار الفوار شارع بيت جبرين 0569436016 | L62: مالك البطران | M62: 16 هونداي اكسينت
A63: 4 | B63: يزيد قنيبي | C63: سكودا استيشن | D63: احمر | E63: 1600 | G63: 1000 | H63: 1282 | I63: الاسكان | J63: 2019-12-30 | K63: يزيد محمد لطفي يوسف اقنيبي | L63: مالك البطران | M63: 16 هونداي اكسينت
A64: 5 | B64: يزيد قنيبي | C64: سكودا استيشن | D64: احمر | E64: 1600 | G64: 1000 | H64: 1281 | I64: الاسكان | J64: 2019-11-30 | K64: يزيد محمد لطفي يوسف اقنيبي | L64: مالك البطران | M64: 16 هونداي اكسينت
A65: 6 | B65: يزيد قنيبي | C65: سكودا استيشن | D65: احمر | E65: 1600 | G65: 1000 | H65: 1280 | I65: الاسكان | J65: 2019-10-30 | K65: يزيد محمد لطفي يوسف اقنيبي | L65: مالك البطران | M65: 16 هونداي اكسينت
A66: 7 | B66: يزيد قنيبي | C66: سكودا استيشن | D66: احمر | E66: 1600 | G66: 1000 | H66: 1278 | I66: الاسكان | J66: 2019-08-20 | K66: يزيد محمد لطفي يوسف اقنيبي | L66: مالك البطران | M66: 16 هونداي اكسينت
A67: 8 | B67: يزيد قنيبي | C67: سكودا استيشن | D67: احمر | E67: 1600 | G67: 1000 | H67: 1279 | I67: الاسكان | J67: 2019-09-30 | K67: يزيد محمد لطفي يوسف اقنيبي | L67: مالك البطران | M67: 16 هونداي اكسينت
A68: 9 | B68: يزيد قنيبي | C68: سكودا استيشن | D68: احمر | E68: 1600 | G68: 1000 | H68: 1277 | I68: الاسكان | J68: 2019-07-20 | K68: يزيد محمد لطفي يوسف اقنيبي | L68: مالك البطران | M68: 16 هونداي اكسينت
A69: 10 | B69: يزيد قنيبي | C69: سكودا استيشن | D69: احمر | E69: 1600 | G69: 1000 | H69: 1276 | I69: الاسكان | J69: 2019-06-20 | K69: يزيد محمد لطفي يوسف اقنيبي | L69: مالك البطران | M69: 16 هونداي اكسينت
A70: 11 | B70: يزيد قنيبي | C70: سكودا استيشن | D70: احمر | E70: 1600 | G70: 1000 | H70: 1275 | I70: الاسكان | J70: 2019-05-20 | K70: يزيد محمد لطفي يوسف اقنيبي | L70: مالك البطران | M70: 16 هونداي اكسينت
A71: 12 | B71: يزيد قنيبي | C71: سكودا استيشن | D71: احمر | E71: 1600 | G71: 1000 | H71: 1274 | I71: الاسكان | J71: 2019-04-20 | K71: يزيد محمد لطفي يوسف اقنيبي | L71: مالك البطران | M71: 16 هونداي اكسينت
A72: رقم | B72: اسم الزبون | C72: نوع السيارة | D72: لون السيارة | E72: قوة المحرك | G72: قيمة الشيك | H72: رقم الشيك | I72: البنك | J72: تاريخ الاستحقاق | K72: اسم صاحب الشيك | L72: مجير لصالح | M72: عن سيارة بالشراء
A73: 1 | B73: محمد الشروف | C73: هونداي اكسينت | D73: بترولي | E73: 1600 | G73: 5000 | H73: 124 | I73: فلسطين | J73: 2019-04-30 | K73: يزن محمد الشروف نوبا 0598448028 | L73: مالك عادل القواسمة | M73: 17 فورد فوكس
A74: 2 | B74: محمد الشروف | C74: هونداي اكسينت | D74: بترولي | E74: 1600 | G74: 2500 | H74: 125 | I74: فلسطين | J74: 2019-05-30 | K74: يزن محمد الشروف نوبا 0598448029 | L74: مالك عادل القواسمة | M74: 17 فورد فوكس
A75: 3 | B75: محمد الشروف | C75: هونداي اكسينت | D75: بترولي | E75: 1600 | G75: 4000 | H75: 126 | I75: فلسطين | J75: 2019-06-30 | K75: يزن محمد الشروف نوبا 0598448030 | L75: مالك عادل القواسمة | M75: 17 فورد فوكس
A76: 4 | B76: محمد الشروف | C76: هونداي اكسينت | D76: بترولي | E76: 1600 | G76: 5000 | H76: 127 | I76: فلسطين | J76: 2019-07-30 | K76: يزن محمد الشروف نوبا 0598448031 | L76: مالك عادل القواسمة | M76: 17 فورد فوكس
A77: 5 | B77: محمد الشروف | C77: هونداي اكسينت | D77: بترولي | E77: 1600 | G77: 3500 | H77: 128 | I77: فلسطين | J77: 2019-08-30 | K77: يزن محمد الشروف نوبا 0598448032 | L77: مالك عادل القواسمة | M77: 17 فورد فوكس
A78: 6 | B78: محمد الشروف | C78: هونداي اكسينت | D78: بترولي | E78: 1600 | G78: 3500 | H78: 129 | I78: فلسطين | J78: 2019-09-30 | K78: يزن محمد الشروف نوبا 0598448033 | L78: مالك عادل القواسمة | M78: 17 فورد فوكس
A79: 7 | B79: محمد الشروف | C79: هونداي اكسينت | D79: بترولي | E79: 1600 | G79: 3500 | H79: 130 | I79: فلسطين | J79: 2019-10-30 | K79: يزن محمد الشروف نوبا 0598448034 | L79: مالك عادل القواسمة | M79: 17 فورد فوكس
A80: 8 | B80: محمد الشروف | C80: هونداي اكسينت | D80: بترولي | E80: 1600 | G80: 3500 | H80: 131 | I80: فلسطين | J80: 2019-11-30 | K80: يزن محمد الشروف نوبا 0598448035 | L80: مالك عادل القواسمة | M80: 17 فورد فوكس
A81: 9 | B81: محمد الشروف | C81: هونداي اكسينت | D81: بترولي | E81: 1600 | G81: 3500 | H81: 132 | I81: فلسطين | J81: 2019-12-30 | K81: يزن محمد الشروف نوبا 0598448036 | L81: مالك عادل القواسمة | M81: 17 فورد فوكس
A82: 10 | B82: محمد الشروف | C82: هونداي اكسينت | D82: بترولي | E82: 1600 | G82: 7500 | H82: 133 | I82: فلسطين | J82: 2020-02-28 | K82: يزن محمد الشروف نوبا 0598448037 | L82: مالك عادل القواسمة | M82: 17 فورد فوكس
A83: 11 | B83: يزيد قنيبي | C83: سكودا استيشن | D83: احمر | E83: 1600 | G83: 1500 | H83: 1284 | I83: الاسكان | J83: 30/2/2020 | K83: يزيد محمد لطفي يوسف اقنيبي | L83: مالك عادل القواسمة | M83: 17 فورد فوكس
A84: 1 | B84: محمد الشروف | C84: هونداي اكسينت | D84: بترولي | E84: 1600 | G84: 2000 | H84: 123 | I84: فلسطين | J84: 2019-03-30 | K84: يزن محمد الشروف نوبا 0598448027 | L84: مالك عادل القواسمة | M84: 17 فورد فوكس
A85: 22 | B85: يزيد قنيبي | C85: سكودا استيشن | D85: احمر | E85: 1600 | G85: 1000 | H85: 1283 | I85: الاسكان | J85: 2020-01-30 | K85: يزيد محمد لطفي يوسف اقنيبي | L85: مالك عادل القواسمة | M85: 17 فورد فوكس
A86: رقم | B86: اسم الزبون | C86: نوع السيارة | D86: لون السيارة | E86: قوة المحرك | G86: قيمة الشيك | H86: رقم الشيك | I86: البنك | J86: تاريخ الاستحقاق | K86: اسم صاحب الشيك | L86: مجير لصالح | M86: عن سيارة بالشراء
A87: 19 | B87: صلاح الدين علي عطية عطا | C87: سيات ابيزا | D87: ابيض | E87: 1252 تيربو | G87: 1600 | H87: 30 | I87: الاستثمار الفلسطيني | J87: 2020-03-20 | K87: صلاح الدين علي عطية بيت لحم واد فوكين 0522859051 | L87: جويد ابو اسنينة - سلم لمعتصم بدل فاقد | M87: توسان اسود 18
A88: 20 | B88: صلاح الدين علي عطية عطا | C88: سيات ابيزا | D88: ابيض | E88: 1253 تيربو | G88: 1600 | H88: 31 | I88: الاستثمار الفلسطيني | J88: 2020-04-20 | K88: صلاح الدين علي عطية بيت لحم واد فوكين 0522859051 | L88: جويد ابو اسنينة - سلم لمعتصم بدل فاقد | M88: توسان اسود 18
A89: 30 | B89: يزيد قنيبي | C89: سكودا استيشن | D89: احمر | E89: 1600 | G89: 1500 | H89: 1286 | I89: الاسكان | J89: 2020-04-30 | K89: يزيد محمد لطفي يوسف اقنيبي | L89: جويد ابو اسنينة - سلم لمعتصم بدل فاقد | M89: توسان اسود 18
A90: 28 | B90: يزيد قنيبي | C90: سكودا استيشن | D90: احمر | E90: 1600 | G90: 1500 | H90: 1285 | I90: الاسكان | J90: 2020-03-30 | K90: يزيد محمد لطفي يوسف اقنيبي | L90: جويد ابو اسنينة - سلم لمعتصم بدل فاقد | M90: توسان اسود 18
A91: 12 | B91: محمد الشروف | C91: هونداي اكسينت | D91: بترولي | E91: 1600 | G91: 6500 | H91: 134 | I91: فلسطين | J91: 2020-04-30 | K91: يزن محمد الشروف نوبا 0598448038 | L91: جويد ابو اسنينة - سلم لمعتصم بدل فاقد | M91: توسان اسود 18
A92: 2 | B92: جويد ابو اسنينة | C92: كيا ريو | D92: سلفر | E92: 1400 | G92: 2000 | H92: 23 | I92: فلسطين | J92: 2019-07-30 | K92: عبد العظيم رمضان احمد النتشه 0599373051 | L92: جويد ابو اسنينة - سلم لمعتصم بدل فاقد | M92: توسان اسود 18
A93: 3 | B93: جويد ابو اسنينة | C93: كيا ريو | D93: سلفر | E93: 1400 | G93: 2000 | H93: 14 | I93: القدس | J93: 2019-07-30 | K93: ثائر فواز رشيد السكافي 0594272776 | L93: جويد ابو اسنينة - سلم لمعتصم بدل فاقد | M93: توسان اسود 18
A94: 4 | B94: جويد ابو اسنينة | C94: كيا ريو | D94: سلفر | E94: 1400 | G94: 2000 | H94: 15 | I94: القدس | J94: 2019-08-30 | K94: ثائر فواز رشيد السكافي 0594272776 | L94: جويد ابو اسنينة - سلم لمعتصم بدل فاقد | M94: توسان اسود 18
A95: 5 | B95: جويد ابو اسنينة | C95: كيا ريو | D95: سلفر | E95: 1400 | G95: 2000 | H95: 24 | I95: فلسطين | J95: 2019-08-30 | K95: عبد العظيم رمضان احمد النتشه 0599373051 | L95: جويد ابو اسنينة - سلم لمعتصم بدل فاقد | M95: توسان اسود 18
A96: 6 | B96: جويد ابو اسنينة | C96: كيا ريو | D96: سلفر | E96: 1400 | G96: 2000 | H96: 16 | I96: القدس | J96: 2019-09-30 | K96: ثائر فواز رشيد السكافي 0594272776 | L96: جويد ابو اسنينة - سلم لمعتصم بدل فاقد | M96: توسان اسود 18
A97: 7 | B97: جويد ابو اسنينة | C97: كيا ريو | D97: سلفر | E97: 1400 | G97: 2000 | H97: 25 | I97: فلسطين | J97: 2019-09-30 | K97: عبد العظيم رمضان احمد النتشه 0599373051 | L97: جويد ابو اسنينة - سلم لمعتصم بدل فاقد | M97: توسان اسود 18
A98: 8 | B98: جويد ابو اسنينة | C98: كيا ريو | D98: سلفر | E98: 1400 | G98: 2000 | H98: 17 | I98: القدس | J98: 2019-10-30 | K98: ثائر فواز رشيد السكافي 0594272776 | L98: جويد ابو اسنينة - سلم لمعتصم بدل فاقد | M98: توسان اسود 18
A99: 9 | B99: جويد ابو اسنينة | C99: كيا ريو | D99: سلفر | E99: 1400 | G99: 3000 | H99: 28 | I99: الاسلامي الفلسطيني | J99: 2019-11-25 | K99: محمد باسم صبحي الهيموني 0569241276 | L99: جويد ابو اسنينة - سلم لمعتصم بدل فاقد | M99: توسان اسود 18
A100: رقم | B100: اسم الزبون | C100: نوع السيارة | D100: لون السيارة | E100: قوة المحرك | G100: قيمة الشيك | H100: رقم الشيك | I100: البنك | J100: تاريخ الاستحقاق | K100: اسم صاحب الشيك | L100: مجير لصالح | M100: عن سيارة بالشراء
A101: 1 | B101: مهدي سمير محمود ابو عامود | C101: فورد فوكس | D101: اسود | E101: 1600 | G101: 20000 | H101: 1020 | I101: الاسكان | J101: 17/3/2019 | K101: مهدي سمير محمود ابو عامود نوبا بجانب مركز الشرطة 0595990122 | L101: معتصم بدل ديون مستحقه على الشركة | M101: فورد فوكس 17
A102: رقم | B102: اسم الزبون | C102: نوع السيارة | D102: لون السيارة | E102: قوة المحرك | G102: قيمة الشيك | H102: رقم الشيك | I102: البنك | J102: تاريخ الاستحقاق | K102: اسم صاحب الشيك | L102: مجير لصالح | M102: عن سيارة بالشراء
A103: 2 | B103: مهدي سمير محمود ابو عامود | C103: فورد فوكس | D103: اسود | E103: 1600 | G103: 5000 | H103: 226 | I103: الاسلامي الفلسطيني | J103: 30/3/2019 | K103: نديم خليل احمد طميزة اذنا الزحليقه 0597256187 | L103: معتصم اقنيبي سداد ديون على الشركة | M103: 17 فورد فوكس
A104: 43 | B104: يزيد قنيبي | C104: سكودا استيشن | D104: احمر | E104: 1600 | G104: 4500 | H104: 1264 | I104: الاسكان | J104: 2019-03-20 | K104: يزيد محمد لطفي يوسف اقنيبي | L104: معتصم اقنيبي سداد ديون على الشركة | M104: 17 فورد فوكس
A105: رقم | B105: اسم الزبون | C105: نوع السيارة | D105: لون السيارة | E105: قوة المحرك | G105: قيمة الشيك | H105: رقم الشيك | I105: البنك | J105: تاريخ الاستحقاق | K105: اسم صاحب الشيك | L105: مجير لصالح | M105: عن سيارة بالشراء
A106: 1 | B106: مهدي سمير محمود ابو عامود | C106: فورد فوكس | D106: اسود | E106: 1600 | G106: 2000 | H106: 1002 | I106: الاسكان | J106: 30/5/2019 | K106: مهدي سمير محمود ابو عامود نوبا بجانب مركز الشرطة 0595990122 | L106: همام شريف محمد دعنا | M106: شفروليت سلفر20
A107: 2 | B107: رائد نصر رمضان ابو سليمه | C107: سكودا استيشن | D107: اسود | E107: 1600 | G107: 1000 | H107: 56 | I107: فلسطين | J107: 30/5/2019 | K107: جهاد فلاح سدر االخليل 0599503319 | L107: همام شريف محمد دعنا | M107: شفروليت سلفر20
A108: 3 | B108: مهدي سمير محمود ابو عامود | C108: فورد فوكس | D108: اسود | E108: 1600 | G108: 2000 | H108: 1009 | I108: الاسكان | J108: 30/12/2019 | K108: مهدي سمير محمود ابو عامود نوبا بجانب مركز الشرطة 0595990128 | L108: همام شريف محمد دعنا | M108: شفروليت سلفر20
A109: 4 | B109: مهدي سمير محمود ابو عامود | C109: فورد فوكس | D109: اسود | E109: 1600 | G109: 2600 | H109: 1014 | I109: الاسكان | J109: 30/5/2020 | K109: مهدي سمير محمود ابو عامود نوبا بجانب مركز الشرطة 0595990133 | L109: همام شريف محمد دعنا | M109: شفروليت سلفر20
A110: 5 | B110: مهدي سمير محمود ابو عامود | C110: فورد فوكس | D110: اسود | E110: 1600 | G110: 2000 | H110: 1008 | I110: الاسكان | J110: 30/11/2019 | K110: مهدي سمير محمود ابو عامود نوبا بجانب مركز الشرطة 0595990127 | L110: همام شريف محمد دعنا | M110: شفروليت سلفر20
A111: 6 | B111: مهدي سمير محمود ابو عامود | C111: فورد فوكس | D111: اسود | E111: 1600 | G111: 2000 | H111: 1006 | I111: الاسكان | J111: 30/9/2019 | K111: مهدي سمير محمود ابو عامود نوبا بجانب مركز الشرطة 0595990125 | L111: همام شريف محمد دعنا | M111: شفروليت سلفر20
A112: 7 | B112: رائد نصر رمضان ابو سليمه | C112: سكودا استيشن | D112: اسود | E112: 1600 | G112: 2000 | H112: 7 | I112: فلسطين | J112: 30/11/2019 | K112: رامي علي شلالدة سعير - قطيه 0599938012 | L112: همام شريف محمد دعنا | M112: شفروليت سلفر20
A113: 8 | B113: مهدي سمير محمود ابو عامود | C113: فورد فوكس | D113: اسود | E113: 1600 | G113: 2000 | H113: 1004 | I113: الاسكان | J113: 30/7/2019 | K113: مهدي سمير محمود ابو عامود نوبا بجانب مركز الشرطة 0595990123 | L113: همام شريف محمد دعنا | M113: شفروليت سلفر20
A114: 9 | B114: مهدي سمير محمود ابو عامود | C114: فورد فوكس | D114: اسود | E114: 1600 | G114: 2000 | H114: 1007 | I114: الاسكان | J114: 30/10/2019 | K114: مهدي سمير محمود ابو عامود نوبا بجانب مركز الشرطة 0595990126 | L114: همام شريف محمد دعنا | M114: شفروليت سلفر20
A115: 10 | B115: مهدي سمير محمود ابو عامود | C115: فورد فوكس | D115: اسود | E115: 1600 | G115: 2000 | H115: 1003 | I115: الاسكان | J115: 30/6/2019 | K115: مهدي سمير محمود ابو عامود نوبا بجانب مركز الشرطة 0595990122 | L115: همام شريف محمد دعنا | M115: شفروليت سلفر20
A116: 11 | B116: رائد نصر رمضان ابو سليمه | C116: سكودا استيشن | D116: اسود | E116: 1600 | G116: 8000 | H116: 117 | I116: فلسطين | J116: 30/9/2019 | K116: سهام محمد دبابسه ترقوميه - دوقاس الغربيه 0598824354 | L116: همام شريف محمد دعنا | M116: شفروليت سلفر20
A117: 12 | B117: رائد نصر رمضان ابو سليمه | C117: سكودا استيشن | D117: اسود | E117: 1600 | G117: 2000 | H117: 2 | I117: فلسطين | J117: 30/6/2019 | K117: رامي علي شلالدة سعير - قطيه 0599938012 | L117: همام شريف محمد دعنا | M117: شفروليت سلفر20
A118: 13 | B118: مهدي سمير محمود ابو عامود | C118: فورد فوكس | D118: اسود | E118: 1600 | G118: 2600 | H118: 1013 | I118: الاسكان | J118: 30/4/2020 | K118: مهدي سمير محمود ابو عامود نوبا بجانب مركز الشرطة 0595990132 | L118: همام شريف محمد دعنا | M118: شفروليت سلفر20
A119: 14 | B119: مهدي سمير محمود ابو عامود | C119: فورد فوكس | D119: اسود | E119: 1600 | G119: 2600 | H119: 1012 | I119: الاسكان | J119: 30/3/2020 | K119: مهدي سمير محمود ابو عامود نوبا بجانب مركز الشرطة 0595990131 | L119: همام شريف محمد دعنا | M119: شفروليت سلفر20
A120: 15 | B120: مهدي سمير محمود ابو عامود | C120: فورد فوكس | D120: اسود | E120: 1600 | G120: 2600 | H120: 1011 | I120: الاسكان | J120: 28/2/2020 | K120: مهدي سمير محمود ابو عامود نوبا بجانب مركز الشرطة 0595990130 | L120: همام شريف محمد دعنا | M120: شفروليت سلفر20
A121: 16 | B121: مهدي سمير محمود ابو عامود | C121: فورد فوكس | D121: اسود | E121: 1600 | G121: 2600 | H121: 1010 | I121: الاسكان | J121: 30/1/2020 | K121: مهدي سمير محمود ابو عامود نوبا بجانب مركز الشرطة 0595990129 | L121: همام شريف محمد دعنا | M121: شفروليت سلفر20
A122: رقم | B122: اسم الزبون | C122: نوع السيارة | D122: لون السيارة | E122: قوة المحرك | G122: قيمة الشيك | H122: رقم الشيك | I122: البنك | J122: تاريخ الاستحقاق | K122: اسم صاحب الشيك | L122: مجير لصالح | M122: عن سيارة بالشراء
A123: 1 | B123: مهدي سمير محمود ابو عامود | C123: فورد فوكس | D123: اسود | E123: 1600 | G123: 2000 | H123: 1001 | I123: الاسكان | J123: 30/4/2019 | K123: مهدي سمير محمود ابو عامود نوبا بجانب مركز الشرطة 0595990122 | L123: حماده ناصر الدين | M123: تم دفعه بدل شيك راجع عن معتصم
A124: رقم | B124: اسم الزبون | C124: نوع السيارة | D124: لون السيارة | E124: قوة المحرك | G124: قيمة الشيك | H124: رقم الشيك | I124: البنك | J124: تاريخ الاستحقاق | K124: اسم صاحب الشيك | L124: مجير لصالح | M124: عن سيارة بالشراء
A125: 30 | B125: رائد نصر رمضان ابو سليمه | C125: سكودا استيشن | D125: اسود | E125: 1600 | G125: 1000 | H125: 65 | I125: فلسطين | J125: 30/2/2020 | K125: جهاد فلاح سدر االخليل 0599503323 | L125: معتصم اقنيبي - عن مرسيدس شراء 21 | M125: مرسيدس شراء 21
A126: 31 | B126: رائد نصر رمضان ابو سليمه | C126: سكودا استيشن | D126: اسود | E126: 1600 | G126: 1000 | H126: 66 | I126: فلسطين | J126: 30/3/2020 | K126: جهاد فلاح سدر االخليل 0599503324 | L126: معتصم اقنيبي - عن مرسيدس شراء 21 | M126: مرسيدس شراء 21
A127: 32 | B127: رائد نصر رمضان ابو سليمه | C127: سكودا استيشن | D127: اسود | E127: 1600 | G127: 1000 | H127: 67 | I127: فلسطين | J127: 30/4/2020 | K127: جهاد فلاح سدر االخليل 0599503325 | L127: معتصم اقنيبي - عن مرسيدس شراء 21 | M127: مرسيدس شراء 21
A128: 33 | B128: رائد نصر رمضان ابو سليمه | C128: سكودا استيشن | D128: اسود | E128: 1600 | G128: 1000 | H128: 68 | I128: فلسطين | J128: 30/5/2020 | K128: جهاد فلاح سدر االخليل 0599503326 | L128: معتصم اقنيبي - عن مرسيدس شراء 21 | M128: مرسيدس شراء 21
A129: 34 | B129: رائد نصر رمضان ابو سليمه | C129: سكودا استيشن | D129: اسود | E129: 1600 | G129: 1000 | H129: 69 | I129: فلسطين | J129: 30/6/2020 | K129: جهاد فلاح سدر االخليل 0599503327 | L129: معتصم اقنيبي - عن مرسيدس شراء 21 | M129: مرسيدس شراء 21
A130: 35 | B130: رائد نصر رمضان ابو سليمه | C130: سكودا استيشن | D130: اسود | E130: 1600 | G130: 1000 | H130: 70 | I130: فلسطين | J130: 30/7/2020 | K130: جهاد فلاح سدر االخليل 0599503328 | L130: معتصم اقنيبي - عن مرسيدس شراء 21 | M130: مرسيدس شراء 21
A131: 38 | B131: يزيد قنيبي | C131: سكودا استيشن | D131: احمر | E131: 1600 | G131: 1500 | H131: 1290 | I131: الاسكان | J131: 2020-08-30 | K131: يزيد محمد لطفي يوسف اقنيبي | L131: معتصم اقنيبي - عن مرسيدس شراء 21 | M131: مرسيدس شراء 21
A132: 39 | B132: يزيد قنيبي | C132: سكودا استيشن | D132: احمر | E132: 1600 | G132: 1500 | H132: 1251 | I132: الاسكان | J132: 2020-09-30 | K132: يزيد محمد لطفي يوسف اقنيبي | L132: معتصم اقنيبي - عن مرسيدس شراء 21 | M132: مرسيدس شراء 21
A133: 18 | B133: محمد الشروف | C133: هونداي اكسينت | D133: بترولي | E133: 1600 | G133: 3000 | H133: 140 | I133: فلسطين | J133: 2020-12-30 | K133: يزن محمد الشروف نوبا 0598448044 | L133: معتصم اقنيبي - عن مرسيدس شراء 21 | M133: مرسيدس شراء 21
A134: رقم | B134: اسم الزبون | C134: نوع السيارة | D134: لون السيارة | E134: قوة المحرك | G134: قيمة الشيك | H134: رقم الشيك | I134: البنك | J134: تاريخ الاستحقاق | K134: اسم صاحب الشيك | L134: مجير لصالح | M134: عن سيارة بالشراء
A135: 29 | B135: صلاح الدين علي عطية عطا | C135: سيات ابيزا | D135: ابيض | E135: 1278 تبيرو | G135: 1000 | H135: 41 | I135: الاستثمار الفلسطيني | J135: 2020-12-30 | K135: صلاح الدين علي عطية بيت لحم واد فوكين 0522859051 | L135: معتصم اقنيبي (ابو عبد الله ابو رموز) | M135: بدل سمسرة مرسيدس اسود 21
A136: رقم | B136: اسم الزبون | C136: نوع السيارة | D136: لون السيارة | E136: قوة المحرك | G136: قيمة الشيك | H136: رقم الشيك | I136: البنك | J136: تاريخ الاستحقاق | K136: اسم صاحب الشيك | L136: مجير لصالح | M136: عن سيارة بالشراء
A137: 2 | B137: شادي قباجة | C137: هونداي اكسينت | D137: ابيض | E137: 1400 | G137: 4200 | H137: 30605434 | I137: الاسلامي الفلسطيني | J137: 20/7/2019 | K137: نعيم حسن محسن ثوابته بيت فجار 0595100633 | L137: خالد بدر | M137: هونداي اكسينت22 بالشراء
A138: 3 | B138: شادي قباجة | C138: هونداي اكسينت | D138: ابيض | E138: 1400 | G138: 2000 | H138: 82 | I138: الاسلامي العربي | J138: 15/8/2019 | K138: ابراهيم احمد حمدان حوامده السموع خله رفات مركز بن باز 0592322740 | L138: خالد بدر | M138: هونداي اكسينت22 بالشراء
A139: 4 | B139: شادي قباجة | C139: هونداي اكسينت | D139: ابيض | E139: 1400 | G139: 2000 | H139: 3 | I139: الاسلامي الفلسطيني | J139: 15/8/2019 | K139: محمد راشد مرشد عثمان قصراوي جبل ابو رمان 0599314771 | L139: خالد بدر | M139: هونداي اكسينت22 بالشراء
A140: 5 | B140: شادي قباجة | C140: هونداي اكسينت | D140: ابيض | E140: 1400 | G140: 4200 | H140: 30605435 | I140: الاسلامي الفلسطيني | J140: 20/9/2019 | K140: نعيم حسن محسن ثوابته بيت فجار 0595100633 | L140: خالد بدر | M140: هونداي اكسينت22 بالشراء
A141: 6 | B141: شادي قباجة | C141: هونداي اكسينت | D141: ابيض | E141: 1400 | G141: 2000 | H141: 5 | I141: الاسلامي الفلسطيني | J141: 15/10/2019 | K141: محمد راشد مرشد عثمان قصراوي جبل ابو رمان 0599314771 | L141: خالد بدر | M141: هونداي اكسينت22 بالشراء
A142: 7 | B142: شادي قباجة | C142: هونداي اكسينت | D142: ابيض | E142: 1400 | G142: 1000 | H142: 74 | I142: القدس | J142: 30/10/2019 | K142: فهمي محمود علي فطافطه ترقوميا خلة الجره مسج 0597399011 | L142: خالد بدر | M142: هونداي اكسينت22 بالشراء
A143: 9 | B143: شادي قباجة | C143: هونداي اكسينت | D143: ابيض | E143: 1400 | G143: 1500 | H143: 37406673 | I143: العربي | J143: 15/11/2019 | K143: حسن احمد حسن مرقطن ترقوميا واد المحاسل 0599432800 | L143: خالد بدر | M143: هونداي اكسينت22 بالشراء
A144: 10 | B144: شادي قباجة | C144: هونداي اكسينت | D144: ابيض | E144: 1400 | G144: 4200 | H144: 30605436 | I144: الاسلامي الفلسطيني | J144: 20/11/2019 | K144: نعيم حسن محسن ثوابته بيت فجار 0595100633 | L144: خالد بدر | M144: هونداي اكسينت22 بالشراء
A145: 11 | B145: شادي قباجة | C145: هونداي اكسينت | D145: ابيض | E145: 1400 | G145: 1000 | H145: 76 | I145: القدس | J145: 30/12/2019 | K145: فهمي محمود علي فطافطه ترقوميا خلة الجره مسج 0597399011 | L145: خالد بدر | M145: هونداي اكسينت22 بالشراء
A146: 12 | B146: شادي قباجة | C146: هونداي اكسينت | D146: ابيض | E146: 1400 | G146: 2000 | H146: 7 | I146: الاسلامي الفلسطيني | J146: 15/12/2019 | K146: محمد راشد مرشد عثمان قصراوي جبل ابو رمان 0599314771 | L146: خالد بدر | M146: هونداي اكسينت22 بالشراء
A147: 13 | B147: شادي قباجة | C147: هونداي اكسينت | D147: ابيض | E147: 1400 | G147: 4200 | H147: 30605437 | I147: الاسلامي الفلسطيني | J147: 20/1/2020 | K147: نعيم حسن محسن ثوابته بيت فجار 0595100633 | L147: خالد بدر | M147: هونداي اكسينت22 بالشراء
A148: 14 | B148: شادي قباجة | C148: هونداي اكسينت | D148: ابيض | E148: 1400 | G148: 2000 | H148: 8 | I148: الاسلامي الفلسطيني | J148: 15/1/2020 | K148: محمد راشد مرشد عثمان قصراوي جبل ابو رمان 0599314771 | L148: خالد بدر | M148: هونداي اكسينت22 بالشراء
A149: 15 | B149: شادي قباجة | C149: هونداي اكسينت | D149: ابيض | E149: 1400 | G149: 2300 | H149: 30064570 | I149: العربي | J149: 28/2/2020 | K149: ميساء جبر محمد ابراهيم بيت لحم ارطاس برك سليمان 0597270098 | L149: خالد بدر | M149: هونداي اكسينت22 بالشراء
A150: 16 | B150: شادي قباجة | C150: هونداي اكسينت | D150: ابيض | E150: 1400 | G150: 2000 | H150: 72 | I150: القدس | J150: 31/2/2020 | K150: احمد محمد الجعبه الحاووز الاول 0599097250 | L150: خالد بدر | M150: هونداي اكسينت22 بالشراء
A151: 17 | B151: شادي قباجة | C151: هونداي اكسينت | D151: ابيض | E151: 1400 | G151: 2000 | H151: 10 | I151: الاسلامي الفلسطيني | J151: 15/3/2020 | K151: محمد راشد مرشد عثمان قصراوي جبل ابو رمان 0599314771 | L151: خالد بدر | M151: هونداي اكسينت22 بالشراء
A152: 18 | B152: شادي قباجة | C152: هونداي اكسينت | D152: ابيض | E152: 1400 | G152: 4200 | H152: 30605438 | I152: الاسلامي الفلسطيني | J152: 20/3/2020 | K152: نعيم حسن محسن ثوابته بيت فجار 0595100633 | L152: خالد بدر | M152: هونداي اكسينت22 بالشراء
A153: 19 | B153: شادي قباجة | C153: هونداي اكسينت | D153: ابيض | E153: 1400 | G153: 4200 | H153: 30605439 | I153: الاسلامي الفلسطيني | J153: 20/5/2020 | K153: نعيم حسن محسن ثوابته بيت فجار 0595100633 | L153: خالد بدر | M153: هونداي اكسينت22 بالشراء
A154: رقم | B154: اسم الزبون | C154: نوع السيارة | D154: لون السيارة | E154: قوة المحرك | G154: قيمة الشيك | H154: رقم الشيك | I154: البنك | J154: تاريخ الاستحقاق | K154: اسم صاحب الشيك | L154: مجير لصالح | M154: عن سيارة بالشراء
A155: 29 | B155: رائد نصر رمضان ابو سليمه | C155: سكودا استيشن | D155: اسود | E155: 1600 | G155: 1000 | H155: 64 | I155: فلسطين | J155: 2020-01-30 | K155: جهاد فلاح سدر االخليل 0599503322 | L155: معتصم اقنيبي | M155: بدل تامين بيكانتو قفيشة 14
A156: رقم | B156: اسم الزبون | C156: نوع السيارة | D156: لون السيارة | E156: قوة المحرك | G156: قيمة الشيك | H156: رقم الشيك | I156: البنك | J156: تاريخ الاستحقاق | K156: اسم صاحب الشيك | L156: مجير لصالح | M156: عن سيارة بالشراء
A157: 20 | B157: رائد نصر رمضان ابو سليمه | C157: سكودا استيشن | D157: اسود | E157: 1600 | G157: 2200 | H157: 1015 | I157: الاسكان | J157: 20/3/2020 | K157: هدايا ربحي عبد الله الحطبه حلحول | L157: مجير لمعتصم قرضه شراء سبورتاج خالد بدر
A158: 18 | B158: رائد نصر رمضان ابو سليمه | C158: سكودا استيشن | D158: اسود | E158: 1600 | G158: 2200 | H158: 1014 | I158: الاسكان | J158: 20/2/2020 | K158: هدايا ربحي عبد الله الحطبه حلحول | L158: مجير لمعتصم قرضه شراء سبورتاج خالد بدر
A159: 19 | B159: رائد نصر رمضان ابو سليمه | C159: سكودا استيشن | D159: اسود | E159: 1600 | G159: 2000 | H159: 11 | I159: فلسطين | J159: 30/2/2020 | K159: رامي علي شلالدة سعير - قطيه 0599938012 | L159: مجير لمعتصم قرضه شراء سبورتاج خالد بدر
A160: 14 | B160: رائد نصر رمضان ابو سليمه | C160: سكودا استيشن | D160: اسود | E160: 1600 | G160: 2200 | H160: 1012 | I160: الاسكان | J160: 20/12/2019 | K160: هدايا ربحي عبد الله الحطبه حلحول | L160: مجير لمعتصم قرضه شراء سبورتاج خالد بدر
A161: 12 | B161: رائد نصر رمضان ابو سليمه | C161: سكودا استيشن | D161: اسود | E161: 1600 | G161: 2200 | H161: 1011 | I161: الاسكان | J161: 20/11/2019 | K161: هدايا ربحي عبد الله الحطبه حلحول | L161: مجير لمعتصم قرضه شراء سبورتاج خالد بدر
A162: 5 | B162: محمد عايد محمد عوض | C162: كيا مورنينج فتحه | D162: بيج | E162: 1000 | G162: 1000 | H162: 80 | I162: فلسطين | J162: 25/10/2019 | K162: مهند عايد محمد عوض/يطا الحيله/0595163219 | L162: مجير لمعتصم قرضه شراء سبورتاج خالد بدر
A163: 8 | B163: شادي قباجة | C163: كيا سول | D163: بيج | E163: 1600 | G163: 1500 | H163: 37406672 | I163: العربي | J163: 15/10/2019 | K163: حسن احمد حسن مرقطن ترقوميا واد المحاسل 0599432800 | L163: مجير لمعتصم قرضه شراء سبورتاج خالد بدر
A164: رقم | B164: اسم الزبون | C164: نوع السيارة | D164: لون السيارة | E164: قوة المحرك | F164: رقمها | G164: قيمة الشيك | H164: رقم الشيك | I164: البنك | J164: تاريخ الاستحقاق | K164: اسم صاحب الشيك | L164: مجير لصالح | M164: عن سيارة بالشراء
A165: 1 | B165: شادي قباجة | C165: هيونداي اكسينت | D165: ابيض | E165: 1600 | G165: 3950 | H165: 12115 | I165: الاستثمار الفلسطيني | J165: 25/6/2019 | K165: شركة سركو للمقاولات العامه بيت لحم واد معالى 0595226677 | L165: خالد بدر | M165: شراء 6 بيكانتو
A166: 1 | B166: خالد جمعة محمد قديمات | C166: توسان | D166: اسود | E166: 2000 | G166: 3000 | H166: 30546891 | I166: الاسلامي الفلسطيني | J166: 30/6/2019 | K166: خالد جمعة محمد قديمات خاراس وسط البلد 0595061410 | L166: خالد بدر | M166: شراء 6 بيكانتو
A167: 1 | B167: محمد عايد محمد عوض | C167: كيا مورنينج فتحه | D167: بيج | E167: 1000 | F167: 6 | G167: 2200 | H167: 51 | I167: الاسلامي العربي | J167: 30/6/2019 | K167: محمد عايد محمد عوض يطا الحيله بجانب مدرسه الحيله 0502957643 | L167: خالد بدر | M167: شراء 6 بيكانتو
A168: 5 | B168: وائل موسى احمد فنون | C168: اوبيل كورسا | D168: سلفر | E168: 1400 | G168: 2250 | H168: 5 | I168: الاستثمار الفلسطيني | J168: 2019-07-15 | K168: وائل موسى احمد فنون | L168: خالد بدر | M168: شراء 6 بيكانتو
A169: 2 | B169: محمد عايد محمد عوض | C169: كيا مورنينج فتحه | D169: بيج | E169: 1000 | F169: 6 | G169: 2200 | H169: 52 | I169: الاسلامي العربي | J169: 30/7/2019 | K169: محمد عايد محمد عوض يطا الحيله بجانب مدرسه الحيله 0502957643 | L169: خالد بدر | M169: شراء 6 بيكانتو
A170: 1 | B170: نجوان احمد عبد النبي الطقاطقة | C170: كيا مورنينج | D170: اسود | E170: 1000 | F170: 13 | G170: 2600 | H170: 1446 | I170: الاسكان | J170: 30/7/2019 | K170: نجوان احمد طقاطقه 0599927405 | L170: خالد بدر | M170: شراء 6 بيكانتو
A171: 1 | B171: ضياء اسماعيل محمد قرجه | C171: مرسيدس | D171: اسود | E171: 3000 | G171: 2000 | H171: 262 | I171: فلسطين | J171: 30/07/2019 | K171: ضياء اسماعيل محمد قرجه حلحول 0595204000 | L171: خالد بدر | M171: شراء 6 بيكانتو
A172: 3 | B172: رائد نصر رمضان ابو سليمه | C172: سكودا استيشن | D172: اسود | E172: 1600 | G172: 1000 | H172: 58 | I172: فلسطين | J172: 30/7/2019 | K172: جهاد فلاح سدر االخليل 0599503319 | L172: خالد بدر | M172: شراء 6 بيكانتو
A173: 4 | B173: رائد نصر رمضان ابو سليمه | C173: سكودا استيشن | D173: اسود | E173: 1600 | G173: 2000 | H173: 3 | I173: فلسطين | J173: 30/7/2019 | K173: رامي علي شلالدة سعير - قطيه 0599938012 | L173: خالد بدر | M173: شراء 6 بيكانتو
A174: 2 | B174: ضياء اسماعيل محمد قرجه | C174: مرسيدس | D174: اسود | E174: 3000 | G174: 5000 | H174: 263 | I174: فلسطين | J174: 30/08/2019 | K174: ضياء اسماعيل محمد قرجه حلحول 0595204000 | L174: خالد بدر | M174: شراء 6 بيكانتو
A175: 6 | B175: وائل موسى احمد فنون | C175: اوبيل كورسا | D175: سلفر | E175: 1400 | G175: 2250 | H175: 6 | I175: الاستثمار الفلسطيني | J175: 2019-08-15 | K175: وائل موسى احمد فنون | L175: خالد بدر | M175: شراء 6 بيكانتو
A176: 3 | B176: محمد عايد محمد عوض | C176: كيا مورنينج فتحه | D176: بيج | E176: 1000 | F176: 6 | G176: 2200 | H176: 53 | I176: الاسلامي العربي | J176: 30/8/2019 | K176: محمد عايد محمد عوض يطا الحيله بجانب مدرسه الحيله 0502957643 | L176: خالد بدر | M176: شراء 6 بيكانتو
A177: 6 | B177: رائد نصر رمضان ابو سليمه | C177: سكودا استيشن | D177: اسود | E177: 1600 | G177: 2000 | H177: 4 | I177: فلسطين | J177: 30/8/2019 | K177: رامي علي شلالدة سعير - قطيه 0599938012 | L177: خالد بدر | M177: شراء 6 بيكانتو
A178: 5 | B178: رائد نصر رمضان ابو سليمه | C178: سكودا استيشن | D178: اسود | E178: 1600 | G178: 1000 | H178: 59 | I178: فلسطين | J178: 30/8/2019 | K178: جهاد فلاح سدر االخليل 0599503319 | L178: خالد بدر | M178: شراء 6 بيكانتو
A179: 7 | B179: مهدي سمير محمود ابو عامود | C179: فورد فوكس | D179: اسود | E179: 1600 | G179: 2000 | H179: 1005 | I179: الاسكان | J179: 30/8/2019 | K179: مهدي سمير محمود ابو عامود نوبا بجانب مركز الشرطة 0595990124 | L179: خالد بدر | M179: شراء 6 بيكانتو
A180: 7 | B180: وائل موسى احمد فنون | C180: اوبيل كورسا | D180: سلفر | E180: 1400 | G180: 2250 | H180: 7 | I180: الاستثمار الفلسطيني | J180: 2019-09-15 | K180: وائل موسى احمد فنون | L180: خالد بدر | M180: شراء 6 بيكانتو
A181: 7 | B181: رائد نصر رمضان ابو سليمه | C181: سكودا استيشن | D181: اسود | E181: 1600 | G181: 2500 | H181: 93 | I181: الاسلامي الفلسطيني | J181: 15/9/2019 | K181: رفيدة محمد احمد قيمري جبل جوهر | L181: خالد بدر | M181: شراء 6 بيكانتو
A182: 4 | B182: محمد عايد محمد عوض | C182: كيا مورنينج فتحه | D182: بيج | E182: 1000 | F182: 6 | G182: 2200 | H182: 54 | I182: الاسلامي العربي | J182: 30/9/2019 | K182: محمد عايد محمد عوض يطا الحيله بجانب مدرسه الحيله 0502957643 | L182: خالد بدر | M182: شراء 6 بيكانتو
A183: 3 | B183: نجوان احمد عبد النبي الطقاطقة | C183: كيا مورنينج | D183: اسود | E183: 1000 | F183: 13 | G183: 2600 | H183: 1448 | I183: الاسكان | J183: 30/9/2019 | K183: نجوان احمد طقاطقه 0599927405 | L183: خالد بدر | M183: شراء 6 بيكانتو
A184: 3 | B184: ضياء اسماعيل محمد قرجه | C184: مرسيدس | D184: اسود | E184: 3000 | G184: 5000 | H184: 264 | I184: فلسطين | J184: 30/09/2019 | K184: ضياء اسماعيل محمد قرجه حلحول 0595204000 | L184: خالد بدر | M184: شراء 6 بيكانتو
A185: 2 | B185: خالد جمعة محمد قديمات | C185: توسان | D185: اسود | E185: 2000 | G185: 3000 | H185: 30546892 | I185: الاسلامي الفلسطيني | J185: 30/9/2019 | K185: خالد جمعة محمد قديمات خاراس وسط البلد 0595061411 | L185: خالد بدر | M185: شراء 6 بيكانتو
A186: 8 | B186: وائل موسى احمد فنون | C186: اوبيل كورسا | D186: سلفر | E186: 1400 | G186: 1500 | H186: 8 | I186: الاستثمار الفلسطيني | J186: 2019-10-15 | K186: وائل موسى احمد فنون | L186: خالد بدر | M186: شراء 6 بيكانتو
A187: 4 | B187: ضياء اسماعيل محمد قرجه | C187: مرسيدس | D187: اسود | E187: 3000 | G187: 5000 | H187: 265 | I187: فلسطين | J187: 30/10/2019 | K187: ضياء اسماعيل محمد قرجه حلحول 0595204000 | L187: خالد بدر | M187: شراء 6 بيكانتو
A188: 4 | B188: نجوان احمد عبد النبي الطقاطقة | C188: كيا مورنينج | D188: اسود | E188: 1000 | F188: 13 | G188: 2600 | H188: 1449 | I188: الاسكان | J188: 30/10/2019 | K188: نجوان احمد طقاطقه 0599927405 | L188: خالد بدر | M188: شراء 6 بيكانتو
A189: 26 | B189: رائد نصر رمضان ابو سليمه | C189: سكودا استيشن | D189: اسود | E189: 1600 | G189: 1000 | H189: 61 | I189: فلسطين | J189: 30/10/2019 | K189: جهاد فلاح سدر االخليل 0599503319 | L189: خالد بدر | M189: شراء 6 بيكانتو
A190: 6 | B190: محمد عايد محمد عوض | C190: كيا مورنينج فتحه | D190: بيج | E190: 1000 | F190: 6 | G190: 2200 | H190: 55 | I190: الاسلامي العربي | J190: 30/10/2019 | K190: محمد عايد محمد عوض يطا الحيله بجانب مدرسه الحيله 0502957643 | L190: خالد بدر | M190: شراء 6 بيكانتو
A191: 4 | B191: خالد جمعة محمد قديمات | C191: توسان | D191: اسود | E191: 2000 | G191: 7000 | H191: 30546894 | I191: الاسلامي الفلسطيني | J191: 30/11/2019 | K191: خالد جمعة محمد قديمات خاراس وسط البلد 0595061413 | L191: خالد بدر | M191: شراء 6 بيكانتو
A192: 5 | B192: نجوان احمد عبد النبي الطقاطقة | C192: كيا مورنينج | D192: اسود | E192: 1000 | F192: 13 | G192: 2600 | H192: 1450 | I192: الاسكان | J192: 30/11/2019 | K192: نجوان احمد طقاطقه 0599927405 | L192: خالد بدر | M192: شراء 6 بيكانتو
A193: 5 | B193: ضياء اسماعيل محمد قرجه | C193: مرسيدس | D193: اسود | E193: 3000 | G193: 5000 | H193: 266 | I193: فلسطين | J193: 30/11/2019 | K193: ضياء اسماعيل محمد قرجه حلحول 0595204000 | L193: خالد بدر | M193: شراء 6 بيكانتو
A194: 6 | B194: ضياء اسماعيل محمد قرجه | C194: مرسيدس | D194: اسود | E194: 3000 | G194: 1200 | H194: 75 | I194: الاستثمار الفلسطيني | J194: 30/11/2019 | K194: سعيد محمد احمد محسن 0598313014 | L194: خالد بدر | M194: شراء 6 بيكانتو
A195: 7 | B195: ضياء اسماعيل محمد قرجه | C195: مرسيدس | D195: اسود | E195: 3000 | G195: 3600 | H195: 681 | I195: فلسطين | J195: 25/12/2019 | K195: بلال احمد قرجه حلحول 0595424249 | L195: خالد بدر | M195: شراء 6 بيكانتو
A196: 8 | B196: ضياء اسماعيل محمد قرجه | C196: مرسيدس | D196: اسود | E196: 3000 | G196: 5000 | H196: 267 | I196: فلسطين | J196: 30/12/2019 | K196: ضياء اسماعيل محمد قرجه حلحول 0595204000 | L196: خالد بدر | M196: شراء 6 بيكانتو
A197: 5 | B197: خالد جمعة محمد قديمات | C197: توسان | D197: اسود | E197: 2000 | G197: 7000 | H197: 30546895 | I197: الاسلامي الفلسطيني | J197: 30/12/2019 | K197: خالد جمعة محمد قديمات خاراس وسط البلد 0595061414 | L197: خالد بدر | M197: شراء 6 بيكانتو
A198: 11 | B198: وائل موسى احمد فنون | C198: اوبيل كورسا | D198: سلفر | E198: 1400 | G198: 2500 | H198: 11 | I198: الاستثمار الفلسطيني | J198: 2020-01-15 | K198: وائل موسى احمد فنون | L198: خالد بدر | M198: شراء 6 بيكانتو
A199: 9 | B199: ضياء اسماعيل محمد قرجه | C199: مرسيدس | D199: اسود | E199: 3000 | G199: 1300 | H199: 73051 | I199: العربي | J199: 2020-10-01 | K199: منتصر عماد احمد ابو شرار العروب 0598277706 | L199: خالد بدر | M199: شراء 6 بيكانتو
A200: 7 | B200: نجوان احمد عبد النبي الطقاطقة | C200: كيا مورنينج | D200: اسود | E200: 1000 | F200: 13 | G200: 2600 | H200: 1452 | I200: الاسكان | J200: 30/1/2020 | K200: نجوان احمد طقاطقه 0599927405 | L200: خالد بدر | M200: شراء 6 بيكانتو
A201: 9 | B201: محمد عايد محمد عوض | C201: كيا مورنينج فتحه | D201: بيج | E201: 1000 | F201: 6 | G201: 2200 | H201: 58 | I201: الاسلامي العربي | J201: 30/1/2020 | K201: محمد عايد محمد عوض يطا الحيله بجانب مدرسه الحيله 0502957643 | L201: خالد بدر | M201: شراء 6 بيكانتو
... 96 more rows

Sheet بحث
D2: اسم الزبون في البيع
C5: بحث في | D5: اسماء محمد الخطيب
B9: نوع السيارة | D9: لون السيارة | F9: الموديل | H9: رقمها بالشراء | J9: سعر الشراء | L9: سعر البيع | N9: المربح
B11: =IFERROR(VLOOKUP($D$5,بيع!$E$6:$AI$20002,2,FALSE),"") ->  | D11: =IFERROR(VLOOKUP($D$5,بيع!$E$6:$AI$20002,3,FALSE),"") ->  | F11: =IFERROR(VLOOKUP($D$5,بيع!$E$6:$AI$20002,5,FALSE),"") ->  | H11: =IFERROR(VLOOKUP($D$5,بيع!$E$6:$AI$20002,7,FALSE),"") ->  | J11: =IFERROR(VLOOKUP($D$5,بيع!$E$6:$AI$20002,18,FALSE),"") ->  | L11: =IFERROR(VLOOKUP($D$5,بيع!$E$6:$AI$20002,19,FALSE),"") ->  | N11: =IFERROR(VLOOKUP($D$5,بيع!$E$6:$AI$20002,27,FALSE),"") -> 
B14: ديون | D14: رقم الشاصي
B16: =IFERROR(VLOOKUP($D$5,بيع!$E$6:$AI$20002,26,FALSE),"") ->  | D16: =IFERROR(VLOOKUP($D$5,بيع!$E$6:$AI$20002,29,FALSE),"") -> 
D22: سيارات مسجلة باسمي
B25: بحث برقم المركبة | D25: 43442L
B28: اسم المشتري | D28: نوع السيارة | F28: لون السيارة | H28: رقم الشراء | J28: رقم السيارة | L28: تاريخ التنازل باسمي | N28: تاريخ الترخيص القادم
B30: =INDEX('سيارات مسجلة باسمي'!E2:E1000,MATCH(بحث!$D$25,'سيارات مسجلة باسمي'!$H$2:$H$1000,0)) -> ضياء اسماعيل احمد عمرو | D30: =INDEX('سيارات مسجلة باسمي'!A2:A1000,MATCH(بحث!$D$25,'سيارات مسجلة باسمي'!$H$2:$H$1000,0)) -> كيا بيكانتو | F30: =INDEX('سيارات مسجلة باسمي'!C2:C1000,MATCH(بحث!$D$25,'سيارات مسجلة باسمي'!$H$2:$H$1000,0)) -> ابيض | H30: =INDEX('سيارات مسجلة باسمي'!B2:B1000,MATCH(بحث!$D$25,'سيارات مسجلة باسمي'!$H$2:$H$1000,0)) -> 5 | J30: =INDEX('سيارات مسجلة باسمي'!H2:H1000,MATCH(بحث!$D$25,'سيارات مسجلة باسمي'!$H$2:$H$1000,0)) -> 43442L | L30: =INDEX('سيارات مسجلة باسمي'!G2:G1000,MATCH(بحث!$D$25,'سيارات مسجلة باسمي'!$H$2:$H$1000,0)) -> 17/6/2019 | N30: =INDEX('سيارات مسجلة باسمي'!F2:F1000,MATCH(بحث!$D$25,'سيارات مسجلة باسمي'!$H$2:$H$1000,0)) -> 0
B34: رقم صاحب السيارة | D34: رقم اخر | E34: رقم الكفيل | G34: عنوان الزبون | K34: عنوان الكفيل | O34: تا ريخ اخر شيك
B36: =INDEX('سيارات مسجلة باسمي'!I2:I1000,MATCH(بحث!$D$25,'سيارات مسجلة باسمي'!$H$2:$H$1000,0)) -> O569594575 | D36: =INDEX('سيارات مسجلة باسمي'!J2:J1000,MATCH(بحث!$D$25,'سيارات مسجلة باسمي'!$H$2:$H$1000,0)) -> 0 | E36: =INDEX('سيارات مسجلة باسمي'!K2:K1000,MATCH(بحث!$D$25,'سيارات مسجلة باسمي'!$H$2:$H$1000,0)) -> 0 | G36: =INDEX('سيارات مسجلة باسمي'!N2:N1000,MATCH(بحث!$D$25,'سيارات مسجلة باسمي'!$H$2:$H$1000,0)) -> 0 | K36: =INDEX('سيارات مسجلة باسمي'!O2:O1000,MATCH(بحث!$D$25,'سيارات مسجلة باسمي'!$H$2:$H$1000,0)) -> 0 | O36: =INDEX('سيارات مسجلة باسمي'!L2:L1000,MATCH(بحث!$D$25,'سيارات مسجلة باسمي'!$H$2:$H$1000,0)) -> 0
D43: شيكات مقبوضة
B46: اسم صاحب الشيك | D46: رائد نصر رمضان ابو سليمه
B49: رقم الشيك | C49: اسم الزبون | D49: نوع السيارة | E49: لون السيارة | F49: قوة المحرك | G49: رقمها بالشراء | H49: قيمة الشيك | I49: رقم الشيك | J49: البنك | K49: تاريخ الاستحقاق | L49: اسم صاحب الشيك
B50: =INDEX('متابعة الشيكات'!A4:A20000,MATCH(بحث!$D$46,'متابعة الشيكات'!$B$4:$B$20000,0)) -> 1 | C50: =INDEX('متابعة الشيكات'!B4:B20000,MATCH(بحث!$D$46,'متابعة الشيكات'!$B$4:$B$20000,0)) -> رائد نصر رمضان ابو سليمه | D50: =INDEX('متابعة الشيكات'!C4:C20000,MATCH(بحث!$D$46,'متابعة الشيكات'!$B$4:$B$20000,0)) -> سكودا استيشن | E50: =INDEX('متابعة الشيكات'!D4:D20000,MATCH(بحث!$D$46,'متابعة الشيكات'!$B$4:$B$20000,0)) -> اسود | F50: =INDEX('متابعة الشيكات'!E4:E20000,MATCH(بحث!$D$46,'متابعة الشيكات'!$B$4:$B$20000,0)) -> 1600 | G50: =INDEX('متابعة الشيكات'!F4:F20000,MATCH(بحث!$D$46,'متابعة الشيكات'!$B$4:$B$20000,0)) -> 0 | H50: =INDEX('متابعة الشيكات'!G4:G20000,MATCH(بحث!$D$46,'متابعة الشيكات'!$B$4:$B$20000,0)) -> 1000 | I50: =INDEX('متابعة الشيكات'!H4:H20000,MATCH(بحث!$D$46,'متابعة الشيكات'!$B$4:$B$20000,0)) -> 56 | J50: =INDEX('متابعة الشيكات'!I4:I20000,MATCH(بحث!$D$46,'متابعة الشيكات'!$B$4:$B$20000,0)) -> فلسطين | K50: =INDEX('متابعة الشيكات'!J4:J20000,MATCH(بحث!$D$46,'متابعة الشيكات'!$B$4:$B$20000,0)) -> 30/5/2019 | L50: =INDEX('متابعة الشيكات'!K4:K20000,MATCH(بحث!$D$46,'متابعة الشيكات'!$B$4:$B$20000,0)) -> جهاد فلاح سدر االخليل 0599503319
B51: =INDEX('متابعة الشيكات'!A5:A20001,MATCH(بحث!$D$46,'متابعة الشيكات'!$B$4:$B$20000,0)) -> 2 | C51: =INDEX('متابعة الشيكات'!B5:B20001,MATCH(بحث!$D$46,'متابعة الشيكات'!$B$4:$B$20000,0)) -> رائد نصر رمضان ابو سليمه | D51: =INDEX('متابعة الشيكات'!C5:C20001,MATCH(بحث!$D$46,'متابعة الشيكات'!$B$4:$B$20000,0)) -> سكودا استيشن | E51: =INDEX('متابعة الشيكات'!D5:D20001,MATCH(بحث!$D$46,'متابعة الشيكات'!$B$4:$B$20000,0)) -> اسود | F51: =INDEX('متابعة الشيكات'!E5:E20001,MATCH(بحث!$D$46,'متابعة الشيكات'!$B$4:$B$20000,0)) -> 1600 | G51: =INDEX('متابعة الشيكات'!F5:F20001,MATCH(بحث!$D$46,'متابعة الشيكات'!$B$4:$B$20000,0)) -> 0 | H51: =INDEX('متابعة الشيكات'!G5:G20001,MATCH(بحث!$D$46,'متابعة الشيكات'!$B$4:$B$20000,0)) -> 2000 | I51: =INDEX('متابعة الشيكات'!H5:H20001,MATCH(بحث!$D$46,'متابعة الشيكات'!$B$4:$B$20000,0)) -> 2 | J51: =INDEX('متابعة الشيكات'!I5:I20001,MATCH(بحث!$D$46,'متابعة الشيكات'!$B$4:$B$20000,0)) -> فلسطين | K51: =INDEX('متابعة الشيكات'!J5:J20001,MATCH(بحث!$D$46,'متابعة الشيكات'!$B$4:$B$20000,0)) -> 30/6/2019 | L51: =INDEX('متابعة الشيكات'!K5:K20001,MATCH(بحث!$D$46,'متابعة الشيكات'!$B$4:$B$20000,0)) -> رامي علي شلالدة سعير - قطيه 0599938012
B52: =INDEX('متابعة الشيكات'!A6:A20002,MATCH(بحث!$D$46,'متابعة الشيكات'!$B$4:$B$20000,0)) -> 3 | C52: =INDEX('متابعة الشيكات'!B6:B20002,MATCH(بحث!$D$46,'متابعة الشيكات'!$B$4:$B$20000,0)) -> رائد نصر رمضان ابو سليمه | D52: =INDEX('متابعة الشيكات'!C6:C20002,MATCH(بحث!$D$46,'متابعة الشيكات'!$B$4:$B$20000,0)) -> سكودا استيشن | E52: =INDEX('متابعة الشيكات'!D6:D20002,MATCH(بحث!$D$46,'متابعة الشيكات'!$B$4:$B$20000,0)) -> اسود | F52: =INDEX('متابعة الشيكات'!E6:E20002,MATCH(بحث!$D$46,'متابعة الشيكات'!$B$4:$B$20000,0)) -> 1600 | G52: =INDEX('متابعة الشيكات'!F6:F20002,MATCH(بحث!$D$46,'متابعة الشيكات'!$B$4:$B$20000,0)) -> 0 | H52: =INDEX('متابعة الشيكات'!G6:G20002,MATCH(بحث!$D$46,'متابعة الشيكات'!$B$4:$B$20000,0)) -> 1000 | I52: =INDEX('متابعة الشيكات'!H6:H20002,MATCH(بحث!$D$46,'متابعة الشيكات'!$B$4:$B$20000,0)) -> 58 | J52: =INDEX('متابعة الشيكات'!I6:I20002,MATCH(بحث!$D$46,'متابعة الشيكات'!$B$4:$B$20000,0)) -> فلسطين | K52: =INDEX('متابعة الشيكات'!J6:J20002,MATCH(بحث!$D$46,'متابعة الشيكات'!$B$4:$B$20000,0)) -> 30/7/2019 | L52: =INDEX('متابعة الشيكات'!K6:K20002,MATCH(بحث!$D$46,'متابعة الشيكات'!$B$4:$B$20000,0)) -> جهاد فلاح سدر االخليل 0599503319
B53: =INDEX('متابعة الشيكات'!A7:A20003,MATCH(بحث!$D$46,'متابعة الشيكات'!$B$4:$B$20000,0)) -> 4 | C53: =INDEX('متابعة الشيكات'!B7:B20003,MATCH(بحث!$D$46,'متابعة الشيكات'!$B$4:$B$20000,0)) -> رائد نصر رمضان ابو سليمه | D53: =INDEX('متابعة الشيكات'!C7:C20003,MATCH(بحث!$D$46,'متابعة الشيكات'!$B$4:$B$20000,0)) -> سكودا استيشن | E53: =INDEX('متابعة الشيكات'!D7:D20003,MATCH(بحث!$D$46,'متابعة الشيكات'!$B$4:$B$20000,0)) -> اسود | F53: =INDEX('متابعة الشيكات'!E7:E20003,MATCH(بحث!$D$46,'متابعة الشيكات'!$B$4:$B$20000,0)) -> 1600 | G53: =INDEX('متابعة الشيكات'!F7:F20003,MATCH(بحث!$D$46,'متابعة الشيكات'!$B$4:$B$20000,0)) -> 0 | H53: =INDEX('متابعة الشيكات'!G7:G20003,MATCH(بحث!$D$46,'متابعة الشيكات'!$B$4:$B$20000,0)) -> 2000 | I53: =INDEX('متابعة الشيكات'!H7:H20003,MATCH(بحث!$D$46,'متابعة الشيكات'!$B$4:$B$20000,0)) -> 3 | J53: =INDEX('متابعة الشيكات'!I7:I20003,MATCH(بحث!$D$46,'متابعة الشيكات'!$B$4:$B$20000,0)) -> فلسطين | K53: =INDEX('متابعة الشيكات'!J7:J20003,MATCH(بحث!$D$46,'متابعة الشيكات'!$B$4:$B$20000,0)) -> 30/7/2019 | L53: =INDEX('متابعة الشيكات'!K7:K20003,MATCH(بحث!$D$46,'متابعة الشيكات'!$B$4:$B$20000,0)) -> رامي علي شلالدة سعير - قطيه 0599938012
B54: =INDEX('متابعة الشيكات'!A8:A20004,MATCH(بحث!$D$46,'متابعة الشيكات'!$B$4:$B$20000,0)) -> 5 | C54: =INDEX('متابعة الشيكات'!B8:B20004,MATCH(بحث!$D$46,'متابعة الشيكات'!$B$4:$B$20000,0)) -> رائد نصر رمضان ابو سليمه | D54: =INDEX('متابعة الشيكات'!C8:C20004,MATCH(بحث!$D$46,'متابعة الشيكات'!$B$4:$B$20000,0)) -> سكودا استيشن | E54: =INDEX('متابعة الشيكات'!D8:D20004,MATCH(بحث!$D$46,'متابعة الشيكات'!$B$4:$B$20000,0)) -> اسود | F54: =INDEX('متابعة الشيكات'!E8:E20004,MATCH(بحث!$D$46,'متابعة الشيكات'!$B$4:$B$20000,0)) -> 1600 | G54: =INDEX('متابعة الشيكات'!F8:F20004,MATCH(بحث!$D$46,'متابعة الشيكات'!$B$4:$B$20000,0)) -> 0 | H54: =INDEX('متابعة الشيكات'!G8:G20004,MATCH(بحث!$D$46,'متابعة الشيكات'!$B$4:$B$20000,0)) -> 1000 | I54: =INDEX('متابعة الشيكات'!H8:H20004,MATCH(بحث!$D$46,'متابعة الشيكات'!$B$4:$B$20000,0)) -> 59 | J54: =INDEX('متابعة الشيكات'!I8:I20004,MATCH(بحث!$D$46,'متابعة الشيكات'!$B$4:$B$20000,0)) -> فلسطين | K54: =INDEX('متابعة الشيكات'!J8:J20004,MATCH(بحث!$D$46,'متابعة الشيكات'!$B$4:$B$20000,0)) -> 30/8/2019 | L54: =INDEX('متابعة الشيكات'!K8:K20004,MATCH(بحث!$D$46,'متابعة الشيكات'!$B$4:$B$20000,0)) -> جهاد فلاح سدر االخليل 0599503319
B55: =INDEX('متابعة الشيكات'!A9:A20005,MATCH(بحث!$D$46,'متابعة الشيكات'!$B$4:$B$20000,0)) -> 6 | C55: =INDEX('متابعة الشيكات'!B9:B20005,MATCH(بحث!$D$46,'متابعة الشيكات'!$B$4:$B$20000,0)) -> رائد نصر رمضان ابو سليمه | D55: =INDEX('متابعة الشيكات'!C9:C20005,MATCH(بحث!$D$46,'متابعة الشيكات'!$B$4:$B$20000,0)) -> سكودا استيشن | E55: =INDEX('متابعة الشيكات'!D9:D20005,MATCH(بحث!$D$46,'متابعة الشيكات'!$B$4:$B$20000,0)) -> اسود | F55: =INDEX('متابعة الشيكات'!E9:E20005,MATCH(بحث!$D$46,'متابعة الشيكات'!$B$4:$B$20000,0)) -> 1600 | G55: =INDEX('متابعة الشيكات'!F9:F20005,MATCH(بحث!$D$46,'متابعة الشيكات'!$B$4:$B$20000,0)) -> 0 | H55: =INDEX('متابعة الشيكات'!G9:G20005,MATCH(بحث!$D$46,'متابعة الشيكات'!$B$4:$B$20000,0)) -> 2000 | I55: =INDEX('متابعة الشيكات'!H9:H20005,MATCH(بحث!$D$46,'متابعة الشيكات'!$B$4:$B$20000,0)) -> 4 | J55: =INDEX('متابعة الشيكات'!I9:I20005,MATCH(بحث!$D$46,'متابعة الشيكات'!$B$4:$B$20000,0)) -> فلسطين | K55: =INDEX('متابعة الشيكات'!J9:J20005,MATCH(بحث!$D$46,'متابعة الشيكات'!$B$4:$B$20000,0)) -> 30/8/2019 | L55: =INDEX('متابعة الشيكات'!K9:K20005,MATCH(بحث!$D$46,'متابعة الشيكات'!$B$4:$B$20000,0)) -> رامي علي شلالدة سعير - قطيه 0599938012
B56: =INDEX('متابعة الشيكات'!A10:A20006,MATCH(بحث!$D$46,'متابعة الشيكات'!$B$4:$B$20000,0)) -> 7 | C56: =INDEX('متابعة الشيكات'!B10:B20006,MATCH(بحث!$D$46,'متابعة الشيكات'!$B$4:$B$20000,0)) -> رائد نصر رمضان ابو سليمه | D56: =INDEX('متابعة الشيكات'!C10:C20006,MATCH(بحث!$D$46,'متابعة الشيكات'!$B$4:$B$20000,0)) -> سكودا استيشن | E56: =INDEX('متابعة الشيكات'!D10:D20006,MATCH(بحث!$D$46,'متابعة الشيكات'!$B$4:$B$20000,0)) -> اسود | F56: =INDEX('متابعة الشيكات'!E10:E20006,MATCH(بحث!$D$46,'متابعة الشيكات'!$B$4:$B$20000,0)) -> 1600 | G56: =INDEX('متابعة الشيكات'!F10:F20006,MATCH(بحث!$D$46,'متابعة الشيكات'!$B$4:$B$20000,0)) -> 0 | H56: =INDEX('متابعة الشيكات'!G10:G20006,MATCH(بحث!$D$46,'متابعة الشيكات'!$B$4:$B$20000,0)) -> 2500 | I56: =INDEX('متابعة الشيكات'!H10:H20006,MATCH(بحث!$D$46,'متابعة الشيكات'!$B$4:$B$20000,0)) -> 93 | J56: =INDEX('متابعة الشيكات'!I10:I20006,MATCH(بحث!$D$46,'متابعة الشيكات'!$B$4:$B$20000,0)) -> الاسلامي الفلسطيني | K56: =INDEX('متابعة الشيكات'!J10:J20006,MATCH(بحث!$D$46,'متابعة الشيكات'!$B$4:$B$20000,0)) -> 15/9/2019 | L56: =INDEX('متابعة الشيكات'!K10:K20006,MATCH(بحث!$D$46,'متابعة الشيكات'!$B$4:$B$20000,0)) -> رفيدة محمد احمد قيمري جبل جوهر
B57: =INDEX('متابعة الشيكات'!A11:A20007,MATCH(بحث!$D$46,'متابعة الشيكات'!$B$4:$B$20000,0)) -> 8 | C57: =INDEX('متابعة الشيكات'!B11:B20007,MATCH(بحث!$D$46,'متابعة الشيكات'!$B$4:$B$20000,0)) -> رائد نصر رمضان ابو سليمه | D57: =INDEX('متابعة الشيكات'!C11:C20007,MATCH(بحث!$D$46,'متابعة الشيكات'!$B$4:$B$20000,0)) -> سكودا استيشن | E57: =INDEX('متابعة الشيكات'!D11:D20007,MATCH(بحث!$D$46,'متابعة الشيكات'!$B$4:$B$20000,0)) -> اسود | F57: =INDEX('متابعة الشيكات'!E11:E20007,MATCH(بحث!$D$46,'متابعة الشيكات'!$B$4:$B$20000,0)) -> 1600 | G57: =INDEX('متابعة الشيكات'!F11:F20007,MATCH(بحث!$D$46,'متابعة الشيكات'!$B$4:$B$20000,0)) -> 0 | H57: =INDEX('متابعة الشيكات'!G11:G20007,MATCH(بحث!$D$46,'متابعة الشيكات'!$B$4:$B$20000,0)) -> 8000 | I57: =INDEX('متابعة الشيكات'!H11:H20007,MATCH(بحث!$D$46,'متابعة الشيكات'!$B$4:$B$20000,0)) -> 117 | J57: =INDEX('متابعة الشيكات'!I11:I20007,MATCH(بحث!$D$46,'متابعة الشيكات'!$B$4:$B$20000,0)) -> فلسطين | K57: =INDEX('متابعة الشيكات'!J11:J20007,MATCH(بحث!$D$46,'متابعة الشيكات'!$B$4:$B$20000,0)) -> 30/9/2019 | L57: =INDEX('متابعة الشيكات'!K11:K20007,MATCH(بحث!$D$46,'متابعة الشيكات'!$B$4:$B$20000,0)) -> سهام محمد دبابسه ترقوميه - دوقاس الغربيه 0598824354
B58: =INDEX('متابعة الشيكات'!A12:A20008,MATCH(بحث!$D$46,'متابعة الشيكات'!$B$4:$B$20000,0)) -> 9 | C58: =INDEX('متابعة الشيكات'!B12:B20008,MATCH(بحث!$D$46,'متابعة الشيكات'!$B$4:$B$20000,0)) -> رائد نصر رمضان ابو سليمه | D58: =INDEX('متابعة الشيكات'!C12:C20008,MATCH(بحث!$D$46,'متابعة الشيكات'!$B$4:$B$20000,0)) -> سكودا استيشن | E58: =INDEX('متابعة الشيكات'!D12:D20008,MATCH(بحث!$D$46,'متابعة الشيكات'!$B$4:$B$20000,0)) -> اسود | F58: =INDEX('متابعة الشيكات'!E12:E20008,MATCH(بحث!$D$46,'متابعة الشيكات'!$B$4:$B$20000,0)) -> 1600 | G58: =INDEX('متابعة الشيكات'!F12:F20008,MATCH(بحث!$D$46,'متابعة الشيكات'!$B$4:$B$20000,0)) -> 0 | H58: =INDEX('متابعة الشيكات'!G12:G20008,MATCH(بحث!$D$46,'متابعة الشيكات'!$B$4:$B$20000,0)) -> 2000 | I58: =INDEX('متابعة الشيكات'!H12:H20008,MATCH(بحث!$D$46,'متابعة الشيكات'!$B$4:$B$20000,0)) -> 5 | J58: =INDEX('متابعة الشيكات'!I12:I20008,MATCH(بحث!$D$46,'متابعة الشيكات'!$B$4:$B$20000,0)) -> فلسطين | K58: =INDEX('متابعة الشيكات'!J12:J20008,MATCH(بحث!$D$46,'متابعة الشيكات'!$B$4:$B$20000,0)) -> 30/9/2019 | L58: =INDEX('متابعة الشيكات'!K12:K20008,MATCH(بحث!$D$46,'متابعة الشيكات'!$B$4:$B$20000,0)) -> رامي علي شلالدة سعير - قطيه 0599938012
B59: =INDEX('متابعة الشيكات'!A13:A20009,MATCH(بحث!$D$46,'متابعة الشيكات'!$B$4:$B$20000,0)) -> 10 | C59: =INDEX('متابعة الشيكات'!B13:B20009,MATCH(بحث!$D$46,'متابعة الشيكات'!$B$4:$B$20000,0)) -> رائد نصر رمضان ابو سليمه | D59: =INDEX('متابعة الشيكات'!C13:C20009,MATCH(بحث!$D$46,'متابعة الشيكات'!$B$4:$B$20000,0)) -> سكودا استيشن | E59: =INDEX('متابعة الشيكات'!D13:D20009,MATCH(بحث!$D$46,'متابعة الشيكات'!$B$4:$B$20000,0)) -> اسود | F59: =INDEX('متابعة الشيكات'!E13:E20009,MATCH(بحث!$D$46,'متابعة الشيكات'!$B$4:$B$20000,0)) -> 1600 | G59: =INDEX('متابعة الشيكات'!F13:F20009,MATCH(بحث!$D$46,'متابعة الشيكات'!$B$4:$B$20000,0)) -> 0 | H59: =INDEX('متابعة الشيكات'!G13:G20009,MATCH(بحث!$D$46,'متابعة الشيكات'!$B$4:$B$20000,0)) -> 2000 | I59: =INDEX('متابعة الشيكات'!H13:H20009,MATCH(بحث!$D$46,'متابعة الشيكات'!$B$4:$B$20000,0)) -> 6 | J59: =INDEX('متابعة الشيكات'!I13:I20009,MATCH(بحث!$D$46,'متابعة الشيكات'!$B$4:$B$20000,0)) -> فلسطين | K59: =INDEX('متابعة الشيكات'!J13:J20009,MATCH(بحث!$D$46,'متابعة الشيكات'!$B$4:$B$20000,0)) -> 30/10/2019 | L59: =INDEX('متابعة الشيكات'!K13:K20009,MATCH(بحث!$D$46,'متابعة الشيكات'!$B$4:$B$20000,0)) -> رامي علي شلالدة سعير - قطيه 0599938012
B60: =INDEX('متابعة الشيكات'!A14:A20010,MATCH(بحث!$D$46,'متابعة الشيكات'!$B$4:$B$20000,0)) -> 11 | C60: =INDEX('متابعة الشيكات'!B14:B20010,MATCH(بحث!$D$46,'متابعة الشيكات'!$B$4:$B$20000,0)) -> رائد نصر رمضان ابو سليمه | D60: =INDEX('متابعة الشيكات'!C14:C20010,MATCH(بحث!$D$46,'متابعة الشيكات'!$B$4:$B$20000,0)) -> سكودا استيشن | E60: =INDEX('متابعة الشيكات'!D14:D20010,MATCH(بحث!$D$46,'متابعة الشيكات'!$B$4:$B$20000,0)) -> اسود | F60: =INDEX('متابعة الشيكات'!E14:E20010,MATCH(بحث!$D$46,'متابعة الشيكات'!$B$4:$B$20000,0)) -> 1600 | G60: =INDEX('متابعة الشيكات'!F14:F20010,MATCH(بحث!$D$46,'متابعة الشيكات'!$B$4:$B$20000,0)) -> 0 | H60: =INDEX('متابعة الشيكات'!G14:G20010,MATCH(بحث!$D$46,'متابعة الشيكات'!$B$4:$B$20000,0)) -> 2000 | I60: =INDEX('متابعة الشيكات'!H14:H20010,MATCH(بحث!$D$46,'متابعة الشيكات'!$B$4:$B$20000,0)) -> 53 | J60: =INDEX('متابعة الشيكات'!I14:I20010,MATCH(بحث!$D$46,'متابعة الشيكات'!$B$4:$B$20000,0)) -> الاسلامي العربي | K60: =INDEX('متابعة الشيكات'!J14:J20010,MATCH(بحث!$D$46,'متابعة الشيكات'!$B$4:$B$20000,0)) -> 30/10/2019 | L60: =INDEX('متابعة الشيكات'!K14:K20010,MATCH(بحث!$D$46,'متابعة الشيكات'!$B$4:$B$20000,0)) -> هاني خضر عبد الغني رجبي جبل جوهر 0598131443
B61: =INDEX('متابعة الشيكات'!A15:A20011,MATCH(بحث!$D$46,'متابعة الشيكات'!$B$4:$B$20000,0)) -> 12 | C61: =INDEX('متابعة الشيكات'!B15:B20011,MATCH(بحث!$D$46,'متابعة الشيكات'!$B$4:$B$20000,0)) -> رائد نصر رمضان ابو سليمه | D61: =INDEX('متابعة الشيكات'!C15:C20011,MATCH(بحث!$D$46,'متابعة الشيكات'!$B$4:$B$20000,0)) -> سكودا استيشن | E61: =INDEX('متابعة الشيكات'!D15:D20011,MATCH(بحث!$D$46,'متابعة الشيكات'!$B$4:$B$20000,0)) -> اسود | F61: =INDEX('متابعة الشيكات'!E15:E20011,MATCH(بحث!$D$46,'متابعة الشيكات'!$B$4:$B$20000,0)) -> 1600 | G61: =INDEX('متابعة الشيكات'!F15:F20011,MATCH(بحث!$D$46,'متابعة الشيكات'!$B$4:$B$20000,0)) -> 0 | H61: =INDEX('متابعة الشيكات'!G15:G20011,MATCH(بحث!$D$46,'متابعة الشيكات'!$B$4:$B$20000,0)) -> 2200 | I61: =INDEX('متابعة الشيكات'!H15:H20011,MATCH(بحث!$D$46,'متابعة الشيكات'!$B$4:$B$20000,0)) -> 1011 | J61: =INDEX('متابعة الشيكات'!I15:I20011,MATCH(بحث!$D$46,'متابعة الشيكات'!$B$4:$B$20000,0)) -> الاسكان | K61: =INDEX('متابعة الشيكات'!J15:J20011,MATCH(بحث!$D$46,'متابعة الشيكات'!$B$4:$B$20000,0)) -> 20/11/2019 | L61: =INDEX('متابعة الشيكات'!K15:K20011,MATCH(بحث!$D$46,'متابعة الشيكات'!$B$4:$B$20000,0)) -> هدايا ربحي عبد الله الحطبه حلحول
B62: =INDEX('متابعة الشيكات'!A16:A20012,MATCH(بحث!$D$46,'متابعة الشيكات'!$B$4:$B$20000,0)) -> 13 | C62: =INDEX('متابعة الشيكات'!B16:B20012,MATCH(بحث!$D$46,'متابعة الشيكات'!$B$4:$B$20000,0)) -> رائد نصر رمضان ابو سليمه | D62: =INDEX('متابعة الشيكات'!C16:C20012,MATCH(بحث!$D$46,'متابعة الشيكات'!$B$4:$B$20000,0)) -> سكودا استيشن | E62: =INDEX('متابعة الشيكات'!D16:D20012,MATCH(بحث!$D$46,'متابعة الشيكات'!$B$4:$B$20000,0)) -> اسود | F62: =INDEX('متابعة الشيكات'!E16:E20012,MATCH(بحث!$D$46,'متابعة الشيكات'!$B$4:$B$20000,0)) -> 1600 | G62: =INDEX('متابعة الشيكات'!F16:F20012,MATCH(بحث!$D$46,'متابعة الشيكات'!$B$4:$B$20000,0)) -> 0 | H62: =INDEX('متابعة الشيكات'!G16:G20012,MATCH(بحث!$D$46,'متابعة الشيكات'!$B$4:$B$20000,0)) -> 2000 | I62: =INDEX('متابعة الشيكات'!H16:H20012,MATCH(بحث!$D$46,'متابعة الشيكات'!$B$4:$B$20000,0)) -> 7 | J62: =INDEX('متابعة الشيكات'!I16:I20012,MATCH(بحث!$D$46,'متابعة الشيكات'!$B$4:$B$20000,0)) -> فلسطين | K62: =INDEX('متابعة الشيكات'!J16:J20012,MATCH(بحث!$D$46,'متابعة الشيكات'!$B$4:$B$20000,0)) -> 30/11/2019 | L62: =INDEX('متابعة الشيكات'!K16:K20012,MATCH(بحث!$D$46,'متابعة الشيكات'!$B$4:$B$20000,0)) -> رامي علي شلالدة سعير - قطيه 0599938012
B63: =INDEX('متابعة الشيكات'!A17:A20013,MATCH(بحث!$D$46,'متابعة الشيكات'!$B$4:$B$20000,0)) -> 14 | C63: =INDEX('متابعة الشيكات'!B17:B20013,MATCH(بحث!$D$46,'متابعة الشيكات'!$B$4:$B$20000,0)) -> رائد نصر رمضان ابو سليمه | D63: =INDEX('متابعة الشيكات'!C17:C20013,MATCH(بحث!$D$46,'متابعة الشيكات'!$B$4:$B$20000,0)) -> سكودا استيشن | E63: =INDEX('متابعة الشيكات'!D17:D20013,MATCH(بحث!$D$46,'متابعة الشيكات'!$B$4:$B$20000,0)) -> اسود | F63: =INDEX('متابعة الشيكات'!E17:E20013,MATCH(بحث!$D$46,'متابعة الشيكات'!$B$4:$B$20000,0)) -> 1600 | G63: =INDEX('متابعة الشيكات'!F17:F20013,MATCH(بحث!$D$46,'متابعة الشيكات'!$B$4:$B$20000,0)) -> 0 | H63: =INDEX('متابعة الشيكات'!G17:G20013,MATCH(بحث!$D$46,'متابعة الشيكات'!$B$4:$B$20000,0)) -> 2200 | I63: =INDEX('متابعة الشيكات'!H17:H20013,MATCH(بحث!$D$46,'متابعة الشيكات'!$B$4:$B$20000,0)) -> 1012 | J63: =INDEX('متابعة الشيكات'!I17:I20013,MATCH(بحث!$D$46,'متابعة الشيكات'!$B$4:$B$20000,0)) -> الاسكان | K63: =INDEX('متابعة الشيكات'!J17:J20013,MATCH(بحث!$D$46,'متابعة الشيكات'!$B$4:$B$20000,0)) -> 20/12/2019 | L63: =INDEX('متابعة الشيكات'!K17:K20013,MATCH(بحث!$D$46,'متابعة الشيكات'!$B$4:$B$20000,0)) -> هدايا ربحي عبد الله الحطبه حلحول
B64: =INDEX('متابعة الشيكات'!A18:A20014,MATCH(بحث!$D$46,'متابعة الشيكات'!$B$4:$B$20000,0)) -> 15 | C64: =INDEX('متابعة الشيكات'!B18:B20014,MATCH(بحث!$D$46,'متابعة الشيكات'!$B$4:$B$20000,0)) -> رائد نصر رمضان ابو سليمه | D64: =INDEX('متابعة الشيكات'!C18:C20014,MATCH(بحث!$D$46,'متابعة الشيكات'!$B$4:$B$20000,0)) -> سكودا استيشن | E64: =INDEX('متابعة الشيكات'!D18:D20014,MATCH(بحث!$D$46,'متابعة الشيكات'!$B$4:$B$20000,0)) -> اسود | F64: =INDEX('متابعة الشيكات'!E18:E20014,MATCH(بحث!$D$46,'متابعة الشيكات'!$B$4:$B$20000,0)) -> 1600 | G64: =INDEX('متابعة الشيكات'!F18:F20014,MATCH(بحث!$D$46,'متابعة الشيكات'!$B$4:$B$20000,0)) -> 0 | H64: =INDEX('متابعة الشيكات'!G18:G20014,MATCH(بحث!$D$46,'متابعة الشيكات'!$B$4:$B$20000,0)) -> 2000 | I64: =INDEX('متابعة الشيكات'!H18:H20014,MATCH(بحث!$D$46,'متابعة الشيكات'!$B$4:$B$20000,0)) -> 8 | J64: =INDEX('متابعة الشيكات'!I18:I20014,MATCH(بحث!$D$46,'متابعة الشيكات'!$B$4:$B$20000,0)) -> فلسطين | K64: =INDEX('متابعة الشيكات'!J18:J20014,MATCH(بحث!$D$46,'متابعة الشيكات'!$B$4:$B$20000,0)) -> 30/12/2019 | L64: =INDEX('متابعة الشيكات'!K18:K20014,MATCH(بحث!$D$46,'متابعة الشيكات'!$B$4:$B$20000,0)) -> رامي علي شلالدة سعير - قطيه 0599938012
B65: =INDEX('متابعة الشيكات'!A19:A20015,MATCH(بحث!$D$46,'متابعة الشيكات'!$B$4:$B$20000,0)) -> 16 | C65: =INDEX('متابعة الشيكات'!B19:B20015,MATCH(بحث!$D$46,'متابعة الشيكات'!$B$4:$B$20000,0)) -> رائد نصر رمضان ابو سليمه | D65: =INDEX('متابعة الشيكات'!C19:C20015,MATCH(بحث!$D$46,'متابعة الشيكات'!$B$4:$B$20000,0)) -> سكودا استيشن | E65: =INDEX('متابعة الشيكات'!D19:D20015,MATCH(بحث!$D$46,'متابعة الشيكات'!$B$4:$B$20000,0)) -> اسود | F65: =INDEX('متابعة الشيكات'!E19:E20015,MATCH(بحث!$D$46,'متابعة الشيكات'!$B$4:$B$20000,0)) -> 1600 | G65: =INDEX('متابعة الشيكات'!F19:F20015,MATCH(بحث!$D$46,'متابعة الشيكات'!$B$4:$B$20000,0)) -> 0 | H65: =INDEX('متابعة الشيكات'!G19:G20015,MATCH(بحث!$D$46,'متابعة الشيكات'!$B$4:$B$20000,0)) -> 2200 | I65: =INDEX('متابعة الشيكات'!H19:H20015,MATCH(بحث!$D$46,'متابعة الشيكات'!$B$4:$B$20000,0)) -> 1013 | J65: =INDEX('متابعة الشيكات'!I19:I20015,MATCH(بحث!$D$46,'متابعة الشيكات'!$B$4:$B$20000,0)) -> الاسكان | K65: =INDEX('متابعة الشيكات'!J19:J20015,MATCH(بحث!$D$46,'متابعة الشيكات'!$B$4:$B$20000,0)) -> 20/1/2020 | L65: =INDEX('متابعة الشيكات'!K19:K20015,MATCH(بحث!$D$46,'متابعة الشيكات'!$B$4:$B$20000,0)) -> هدايا ربحي عبد الله الحطبه حلحول
B66: =INDEX('متابعة الشيكات'!A20:A20016,MATCH(بحث!$D$46,'متابعة الشيكات'!$B$4:$B$20000,0)) -> 17 | C66: =INDEX('متابعة الشيكات'!B20:B20016,MATCH(بحث!$D$46,'متابعة الشيكات'!$B$4:$B$20000,0)) -> رائد نصر رمضان ابو سليمه | D66: =INDEX('متابعة الشيكات'!C20:C20016,MATCH(بحث!$D$46,'متابعة الشيكات'!$B$4:$B$20000,0)) -> سكودا استيشن | E66: =INDEX('متابعة الشيكات'!D20:D20016,MATCH(بحث!$D$46,'متابعة الشيكات'!$B$4:$B$20000,0)) -> اسود | F66: =INDEX('متابعة الشيكات'!E20:E20016,MATCH(بحث!$D$46,'متابعة الشيكات'!$B$4:$B$20000,0)) -> 1600 | G66: =INDEX('متابعة الشيكات'!F20:F20016,MATCH(بحث!$D$46,'متابعة الشيكات'!$B$4:$B$20000,0)) -> 0 | H66: =INDEX('متابعة الشيكات'!G20:G20016,MATCH(بحث!$D$46,'متابعة الشيكات'!$B$4:$B$20000,0)) -> 2000 | I66: =INDEX('متابعة الشيكات'!H20:H20016,MATCH(بحث!$D$46,'متابعة الشيكات'!$B$4:$B$20000,0)) -> 9 | J66: =INDEX('متابعة الشيكات'!I20:I20016,MATCH(بحث!$D$46,'متابعة الشيكات'!$B$4:$B$20000,0)) -> فلسطين | K66: =INDEX('متابعة الشيكات'!J20:J20016,MATCH(بحث!$D$46,'متابعة الشيكات'!$B$4:$B$20000,0)) -> 30/1/2020 | L66: =INDEX('متابعة الشيكات'!K20:K20016,MATCH(بحث!$D$46,'متابعة الشيكات'!$B$4:$B$20000,0)) -> رامي علي شلالدة سعير - قطيه 0599938012
B67: =INDEX('متابعة الشيكات'!A21:A20017,MATCH(بحث!$D$46,'متابعة الشيكات'!$B$4:$B$20000,0)) -> 18 | C67: =INDEX('متابعة الشيكات'!B21:B20017,MATCH(بحث!$D$46,'متابعة الشيكات'!$B$4:$B$20000,0)) -> رائد نصر رمضان ابو سليمه | D67: =INDEX('متابعة الشيكات'!C21:C20017,MATCH(بحث!$D$46,'متابعة الشيكات'!$B$4:$B$20000,0)) -> سكودا استيشن | E67: =INDEX('متابعة الشيكات'!D21:D20017,MATCH(بحث!$D$46,'متابعة الشيكات'!$B$4:$B$20000,0)) -> اسود | F67: =INDEX('متابعة الشيكات'!E21:E20017,MATCH(بحث!$D$46,'متابعة الشيكات'!$B$4:$B$20000,0)) -> 1600 | G67: =INDEX('متابعة الشيكات'!F21:F20017,MATCH(بحث!$D$46,'متابعة الشيكات'!$B$4:$B$20000,0)) -> 0 | H67: =INDEX('متابعة الشيكات'!G21:G20017,MATCH(بحث!$D$46,'متابعة الشيكات'!$B$4:$B$20000,0)) -> 2200 | I67: =INDEX('متابعة الشيكات'!H21:H20017,MATCH(بحث!$D$46,'متابعة الشيكات'!$B$4:$B$20000,0)) -> 1014 | J67: =INDEX('متابعة الشيكات'!I21:I20017,MATCH(بحث!$D$46,'متابعة الشيكات'!$B$4:$B$20000,0)) -> الاسكان | K67: =INDEX('متابعة الشيكات'!J21:J20017,MATCH(بحث!$D$46,'متابعة الشيكات'!$B$4:$B$20000,0)) -> 20/2/2020 | L67: =INDEX('متابعة الشيكات'!K21:K20017,MATCH(بحث!$D$46,'متابعة الشيكات'!$B$4:$B$20000,0)) -> هدايا ربحي عبد الله الحطبه حلحول
B68: =INDEX('متابعة الشيكات'!A22:A20018,MATCH(بحث!$D$46,'متابعة الشيكات'!$B$4:$B$20000,0)) -> 19 | C68: =INDEX('متابعة الشيكات'!B22:B20018,MATCH(بحث!$D$46,'متابعة الشيكات'!$B$4:$B$20000,0)) -> رائد نصر رمضان ابو سليمه | D68: =INDEX('متابعة الشيكات'!C22:C20018,MATCH(بحث!$D$46,'متابعة الشيكات'!$B$4:$B$20000,0)) -> سكودا استيشن | E68: =INDEX('متابعة الشيكات'!D22:D20018,MATCH(بحث!$D$46,'متابعة الشيكات'!$B$4:$B$20000,0)) -> اسود | F68: =INDEX('متابعة الشيكات'!E22:E20018,MATCH(بحث!$D$46,'متابعة الشيكات'!$B$4:$B$20000,0)) -> 1600 | G68: =INDEX('متابعة الشيكات'!F22:F20018,MATCH(بحث!$D$46,'متابعة الشيكات'!$B$4:$B$20000,0)) -> 0 | H68: =INDEX('متابعة الشيكات'!G22:G20018,MATCH(بحث!$D$46,'متابعة الشيكات'!$B$4:$B$20000,0)) -> 2000 | I68: =INDEX('متابعة الشيكات'!H22:H20018,MATCH(بحث!$D$46,'متابعة الشيكات'!$B$4:$B$20000,0)) -> 11 | J68: =INDEX('متابعة الشيكات'!I22:I20018,MATCH(بحث!$D$46,'متابعة الشيكات'!$B$4:$B$20000,0)) -> فلسطين | K68: =INDEX('متابعة الشيكات'!J22:J20018,MATCH(بحث!$D$46,'متابعة الشيكات'!$B$4:$B$20000,0)) -> 30/2/2020 | L68: =INDEX('متابعة الشيكات'!K22:K20018,MATCH(بحث!$D$46,'متابعة الشيكات'!$B$4:$B$20000,0)) -> رامي علي شلالدة سعير - قطيه 0599938012
B69: =INDEX('متابعة الشيكات'!A23:A20019,MATCH(بحث!$D$46,'متابعة الشيكات'!$B$4:$B$20000,0)) -> 20 | C69: =INDEX('متابعة الشيكات'!B23:B20019,MATCH(بحث!$D$46,'متابعة الشيكات'!$B$4:$B$20000,0)) -> رائد نصر رمضان ابو سليمه | D69: =INDEX('متابعة الشيكات'!C23:C20019,MATCH(بحث!$D$46,'متابعة الشيكات'!$B$4:$B$20000,0)) -> سكودا استيشن | E69: =INDEX('متابعة الشيكات'!D23:D20019,MATCH(بحث!$D$46,'متابعة الشيكات'!$B$4:$B$20000,0)) -> اسود | F69: =INDEX('متابعة الشيكات'!E23:E20019,MATCH(بحث!$D$46,'متابعة الشيكات'!$B$4:$B$20000,0)) -> 1600 | G69: =INDEX('متابعة الشيكات'!F23:F20019,MATCH(بحث!$D$46,'متابعة الشيكات'!$B$4:$B$20000,0)) -> 0 | H69: =INDEX('متابعة الشيكات'!G23:G20019,MATCH(بحث!$D$46,'متابعة الشيكات'!$B$4:$B$20000,0)) -> 2200 | I69: =INDEX('متابعة الشيكات'!H23:H20019,MATCH(بحث!$D$46,'متابعة الشيكات'!$B$4:$B$20000,0)) -> 1015 | J69: =INDEX('متابعة الشيكات'!I23:I20019,MATCH(بحث!$D$46,'متابعة الشيكات'!$B$4:$B$20000,0)) -> الاسكان | K69: =INDEX('متابعة الشيكات'!J23:J20019,MATCH(بحث!$D$46,'متابعة الشيكات'!$B$4:$B$20000,0)) -> 20/3/2020 | L69: =INDEX('متابعة الشيكات'!K23:K20019,MATCH(بحث!$D$46,'متابعة الشيكات'!$B$4:$B$20000,0)) -> هدايا ربحي عبد الله الحطبه حلحول
B70: =INDEX('متابعة الشيكات'!A24:A20020,MATCH(بحث!$D$46,'متابعة الشيكات'!$B$4:$B$20000,0)) -> 21 | C70: =INDEX('متابعة الشيكات'!B24:B20020,MATCH(بحث!$D$46,'متابعة الشيكات'!$B$4:$B$20000,0)) -> رائد نصر رمضان ابو سليمه | D70: =INDEX('متابعة الشيكات'!C24:C20020,MATCH(بحث!$D$46,'متابعة الشيكات'!$B$4:$B$20000,0)) -> سكودا استيشن | E70: =INDEX('متابعة الشيكات'!D24:D20020,MATCH(بحث!$D$46,'متابعة الشيكات'!$B$4:$B$20000,0)) -> اسود | F70: =INDEX('متابعة الشيكات'!E24:E20020,MATCH(بحث!$D$46,'متابعة الشيكات'!$B$4:$B$20000,0)) -> 1600 | G70: =INDEX('متابعة الشيكات'!F24:F20020,MATCH(بحث!$D$46,'متابعة الشيكات'!$B$4:$B$20000,0)) -> 0 | H70: =INDEX('متابعة الشيكات'!G24:G20020,MATCH(بحث!$D$46,'متابعة الشيكات'!$B$4:$B$20000,0)) -> 2000 | I70: =INDEX('متابعة الشيكات'!H24:H20020,MATCH(بحث!$D$46,'متابعة الشيكات'!$B$4:$B$20000,0)) -> 12 | J70: =INDEX('متابعة الشيكات'!I24:I20020,MATCH(بحث!$D$46,'متابعة الشيكات'!$B$4:$B$20000,0)) -> فلسطين | K70: =INDEX('متابعة الشيكات'!J24:J20020,MATCH(بحث!$D$46,'متابعة الشيكات'!$B$4:$B$20000,0)) -> 30/3/2020 | L70: =INDEX('متابعة الشيكات'!K24:K20020,MATCH(بحث!$D$46,'متابعة الشيكات'!$B$4:$B$20000,0)) -> رامي علي شلالدة سعير - قطيه 0599938012
B71: =INDEX('متابعة الشيكات'!A25:A20021,MATCH(بحث!$D$46,'متابعة الشيكات'!$B$4:$B$20000,0)) -> 22 | C71: =INDEX('متابعة الشيكات'!B25:B20021,MATCH(بحث!$D$46,'متابعة الشيكات'!$B$4:$B$20000,0)) -> رائد نصر رمضان ابو سليمه | D71: =INDEX('متابعة الشيكات'!C25:C20021,MATCH(بحث!$D$46,'متابعة الشيكات'!$B$4:$B$20000,0)) -> سكودا استيشن | E71: =INDEX('متابعة الشيكات'!D25:D20021,MATCH(بحث!$D$46,'متابعة الشيكات'!$B$4:$B$20000,0)) -> اسود | F71: =INDEX('متابعة الشيكات'!E25:E20021,MATCH(بحث!$D$46,'متابعة الشيكات'!$B$4:$B$20000,0)) -> 1600 | G71: =INDEX('متابعة الشيكات'!F25:F20021,MATCH(بحث!$D$46,'متابعة الشيكات'!$B$4:$B$20000,0)) -> 0 | H71: =INDEX('متابعة الشيكات'!G25:G20021,MATCH(بحث!$D$46,'متابعة الشيكات'!$B$4:$B$20000,0)) -> 2200 | I71: =INDEX('متابعة الشيكات'!H25:H20021,MATCH(بحث!$D$46,'متابعة الشيكات'!$B$4:$B$20000,0)) -> 1016 | J71: =INDEX('متابعة الشيكات'!I25:I20021,MATCH(بحث!$D$46,'متابعة الشيكات'!$B$4:$B$20000,0)) -> الاسكان | K71: =INDEX('متابعة الشيكات'!J25:J20021,MATCH(بحث!$D$46,'متابعة الشيكات'!$B$4:$B$20000,0)) -> 20/4/2020 | L71: =INDEX('متابعة الشيكات'!K25:K20021,MATCH(بحث!$D$46,'متابعة الشيكات'!$B$4:$B$20000,0)) -> هدايا ربحي عبد الله الحطبه حلحول
B72: =INDEX('متابعة الشيكات'!A26:A20022,MATCH(بحث!$D$46,'متابعة الشيكات'!$B$4:$B$20000,0)) -> 23 | C72: =INDEX('متابعة الشيكات'!B26:B20022,MATCH(بحث!$D$46,'متابعة الشيكات'!$B$4:$B$20000,0)) -> رائد نصر رمضان ابو سليمه | D72: =INDEX('متابعة الشيكات'!C26:C20022,MATCH(بحث!$D$46,'متابعة الشيكات'!$B$4:$B$20000,0)) -> سكودا استيشن | E72: =INDEX('متابعة الشيكات'!D26:D20022,MATCH(بحث!$D$46,'متابعة الشيكات'!$B$4:$B$20000,0)) -> اسود | F72: =INDEX('متابعة الشيكات'!E26:E20022,MATCH(بحث!$D$46,'متابعة الشيكات'!$B$4:$B$20000,0)) -> 1600 | G72: =INDEX('متابعة الشيكات'!F26:F20022,MATCH(بحث!$D$46,'متابعة الشيكات'!$B$4:$B$20000,0)) -> 0 | H72: =INDEX('متابعة الشيكات'!G26:G20022,MATCH(بحث!$D$46,'متابعة الشيكات'!$B$4:$B$20000,0)) -> 2000 | I72: =INDEX('متابعة الشيكات'!H26:H20022,MATCH(بحث!$D$46,'متابعة الشيكات'!$B$4:$B$20000,0)) -> 13 | J72: =INDEX('متابعة الشيكات'!I26:I20022,MATCH(بحث!$D$46,'متابعة الشيكات'!$B$4:$B$20000,0)) -> فلسطين | K72: =INDEX('متابعة الشيكات'!J26:J20022,MATCH(بحث!$D$46,'متابعة الشيكات'!$B$4:$B$20000,0)) -> 30/4/2020 | L72: =INDEX('متابعة الشيكات'!K26:K20022,MATCH(بحث!$D$46,'متابعة الشيكات'!$B$4:$B$20000,0)) -> رامي علي شلالدة سعير - قطيه 0599938012
B73: =INDEX('متابعة الشيكات'!A27:A20023,MATCH(بحث!$D$46,'متابعة الشيكات'!$B$4:$B$20000,0)) -> 24 | C73: =INDEX('متابعة الشيكات'!B27:B20023,MATCH(بحث!$D$46,'متابعة الشيكات'!$B$4:$B$20000,0)) -> رائد نصر رمضان ابو سليمه | D73: =INDEX('متابعة الشيكات'!C27:C20023,MATCH(بحث!$D$46,'متابعة الشيكات'!$B$4:$B$20000,0)) -> سكودا استيشن | E73: =INDEX('متابعة الشيكات'!D27:D20023,MATCH(بحث!$D$46,'متابعة الشيكات'!$B$4:$B$20000,0)) -> اسود | F73: =INDEX('متابعة الشيكات'!E27:E20023,MATCH(بحث!$D$46,'متابعة الشيكات'!$B$4:$B$20000,0)) -> 1600 | G73: =INDEX('متابعة الشيكات'!F27:F20023,MATCH(بحث!$D$46,'متابعة الشيكات'!$B$4:$B$20000,0)) -> 0 | H73: =INDEX('متابعة الشيكات'!G27:G20023,MATCH(بحث!$D$46,'متابعة الشيكات'!$B$4:$B$20000,0)) -> 2200 | I73: =INDEX('متابعة الشيكات'!H27:H20023,MATCH(بحث!$D$46,'متابعة الشيكات'!$B$4:$B$20000,0)) -> 1017 | J73: =INDEX('متابعة الشيكات'!I27:I20023,MATCH(بحث!$D$46,'متابعة الشيكات'!$B$4:$B$20000,0)) -> الاسكان | K73: =INDEX('متابعة الشيكات'!J27:J20023,MATCH(بحث!$D$46,'متابعة الشيكات'!$B$4:$B$20000,0)) -> 20/5/2020 | L73: =INDEX('متابعة الشيكات'!K27:K20023,MATCH(بحث!$D$46,'متابعة الشيكات'!$B$4:$B$20000,0)) -> هدايا ربحي عبد الله الحطبه حلحول
B74: =INDEX('متابعة الشيكات'!A28:A20024,MATCH(بحث!$D$46,'متابعة الشيكات'!$B$4:$B$20000,0)) -> 25 | C74: =INDEX('متابعة الشيكات'!B28:B20024,MATCH(بحث!$D$46,'متابعة الشيكات'!$B$4:$B$20000,0)) -> رائد نصر رمضان ابو سليمه | D74: =INDEX('متابعة الشيكات'!C28:C20024,MATCH(بحث!$D$46,'متابعة الشيكات'!$B$4:$B$20000,0)) -> سكودا استيشن | E74: =INDEX('متابعة الشيكات'!D28:D20024,MATCH(بحث!$D$46,'متابعة الشيكات'!$B$4:$B$20000,0)) -> اسود | F74: =INDEX('متابعة الشيكات'!E28:E20024,MATCH(بحث!$D$46,'متابعة الشيكات'!$B$4:$B$20000,0)) -> 1600 | G74: =INDEX('متابعة الشيكات'!F28:F20024,MATCH(بحث!$D$46,'متابعة الشيكات'!$B$4:$B$20000,0)) -> 0 | H74: =INDEX('متابعة الشيكات'!G28:G20024,MATCH(بحث!$D$46,'متابعة الشيكات'!$B$4:$B$20000,0)) -> 2000 | I74: =INDEX('متابعة الشيكات'!H28:H20024,MATCH(بحث!$D$46,'متابعة الشيكات'!$B$4:$B$20000,0)) -> 14 | J74: =INDEX('متابعة الشيكات'!I28:I20024,MATCH(بحث!$D$46,'متابعة الشيكات'!$B$4:$B$20000,0)) -> فلسطين | K74: =INDEX('متابعة الشيكات'!J28:J20024,MATCH(بحث!$D$46,'متابعة الشيكات'!$B$4:$B$20000,0)) -> 30/5/2020 | L74: =INDEX('متابعة الشيكات'!K28:K20024,MATCH(بحث!$D$46,'متابعة الشيكات'!$B$4:$B$20000,0)) -> رامي علي شلالدة سعير - قطيه 0599938012
B75: =INDEX('متابعة الشيكات'!A29:A20025,MATCH(بحث!$D$46,'متابعة الشيكات'!$B$4:$B$20000,0)) -> رقم الشيك | C75: =INDEX('متابعة الشيكات'!B29:B20025,MATCH(بحث!$D$46,'متابعة الشيكات'!$B$4:$B$20000,0)) -> اسم الزبون | D75: =INDEX('متابعة الشيكات'!C29:C20025,MATCH(بحث!$D$46,'متابعة الشيكات'!$B$4:$B$20000,0)) -> نوع السيارة | E75: =INDEX('متابعة الشيكات'!D29:D20025,MATCH(بحث!$D$46,'متابعة الشيكات'!$B$4:$B$20000,0)) -> لون السيارة | F75: =INDEX('متابعة الشيكات'!E29:E20025,MATCH(بحث!$D$46,'متابعة الشيكات'!$B$4:$B$20000,0)) -> قوة المحرك | G75: =INDEX('متابعة الشيكات'!F29:F20025,MATCH(بحث!$D$46,'متابعة الشيكات'!$B$4:$B$20000,0)) -> 0 | H75: =INDEX('متابعة الشيكات'!G29:G20025,MATCH(بحث!$D$46,'متابعة الشيكات'!$B$4:$B$20000,0)) -> قيمة الشيك | I75: =INDEX('متابعة الشيكات'!H29:H20025,MATCH(بحث!$D$46,'متابعة الشيكات'!$B$4:$B$20000,0)) -> رقم الشيك | J75: =INDEX('متابعة الشيكات'!I29:I20025,MATCH(بحث!$D$46,'متابعة الشيكات'!$B$4:$B$20000,0)) -> البنك | K75: =INDEX('متابعة الشيكات'!J29:J20025,MATCH(بحث!$D$46,'متابعة الشيكات'!$B$4:$B$20000,0)) -> تاريخ الاستحقاق | L75: =INDEX('متابعة الشيكات'!K29:K20025,MATCH(بحث!$D$46,'متابعة الشيكات'!$B$4:$B$20000,0)) -> اسم صاحب الشيك
B76: =INDEX('متابعة الشيكات'!A30:A20026,MATCH(بحث!$D$46,'متابعة الشيكات'!$B$4:$B$20000,0)) -> 26 | C76: =INDEX('متابعة الشيكات'!B30:B20026,MATCH(بحث!$D$46,'متابعة الشيكات'!$B$4:$B$20000,0)) -> رائد نصر رمضان ابو سليمه | D76: =INDEX('متابعة الشيكات'!C30:C20026,MATCH(بحث!$D$46,'متابعة الشيكات'!$B$4:$B$20000,0)) -> سكودا استيشن | E76: =INDEX('متابعة الشيكات'!D30:D20026,MATCH(بحث!$D$46,'متابعة الشيكات'!$B$4:$B$20000,0)) -> اسود | F76: =INDEX('متابعة الشيكات'!E30:E20026,MATCH(بحث!$D$46,'متابعة الشيكات'!$B$4:$B$20000,0)) -> 1600 | G76: =INDEX('متابعة الشيكات'!F30:F20026,MATCH(بحث!$D$46,'متابعة الشيكات'!$B$4:$B$20000,0)) -> 0 | H76: =INDEX('متابعة الشيكات'!G30:G20026,MATCH(بحث!$D$46,'متابعة الشيكات'!$B$4:$B$20000,0)) -> 1000 | I76: =INDEX('متابعة الشيكات'!H30:H20026,MATCH(بحث!$D$46,'متابعة الشيكات'!$B$4:$B$20000,0)) -> 61 | J76: =INDEX('متابعة الشيكات'!I30:I20026,MATCH(بحث!$D$46,'متابعة الشيكات'!$B$4:$B$20000,0)) -> فلسطين | K76: =INDEX('متابعة الشيكات'!J30:J20026,MATCH(بحث!$D$46,'متابعة الشيكات'!$B$4:$B$20000,0)) -> 30/10/2019 | L76: =INDEX('متابعة الشيكات'!K30:K20026,MATCH(بحث!$D$46,'متابعة الشيكات'!$B$4:$B$20000,0)) -> جهاد فلاح سدر االخليل 0599503319
B77: =INDEX('متابعة الشيكات'!A31:A20027,MATCH(بحث!$D$46,'متابعة الشيكات'!$B$4:$B$20000,0)) -> 27 | C77: =INDEX('متابعة الشيكات'!B31:B20027,MATCH(بحث!$D$46,'متابعة الشيكات'!$B$4:$B$20000,0)) -> رائد نصر رمضان ابو سليمه | D77: =INDEX('متابعة الشيكات'!C31:C20027,MATCH(بحث!$D$46,'متابعة الشيكات'!$B$4:$B$20000,0)) -> سكودا استيشن | E77: =INDEX('متابعة الشيكات'!D31:D20027,MATCH(بحث!$D$46,'متابعة الشيكات'!$B$4:$B$20000,0)) -> اسود | F77: =INDEX('متابعة الشيكات'!E31:E20027,MATCH(بحث!$D$46,'متابعة الشيكات'!$B$4:$B$20000,0)) -> 1600 | G77: =INDEX('متابعة الشيكات'!F31:F20027,MATCH(بحث!$D$46,'متابعة الشيكات'!$B$4:$B$20000,0)) -> 0 | H77: =INDEX('متابعة الشيكات'!G31:G20027,MATCH(بحث!$D$46,'متابعة الشيكات'!$B$4:$B$20000,0)) -> 1000 | I77: =INDEX('متابعة الشيكات'!H31:H20027,MATCH(بحث!$D$46,'متابعة الشيكات'!$B$4:$B$20000,0)) -> 62 | J77: =INDEX('متابعة الشيكات'!I31:I20027,MATCH(بحث!$D$46,'متابعة الشيكات'!$B$4:$B$20000,0)) -> فلسطين | K77: =INDEX('متابعة الشيكات'!J31:J20027,MATCH(بحث!$D$46,'متابعة الشيكات'!$B$4:$B$20000,0)) -> 30/11/2019 | L77: =INDEX('متابعة الشيكات'!K31:K20027,MATCH(بحث!$D$46,'متابعة الشيكات'!$B$4:$B$20000,0)) -> جهاد فلاح سدر االخليل 0599503320
B78: =INDEX('متابعة الشيكات'!A32:A20028,MATCH(بحث!$D$46,'متابعة الشيكات'!$B$4:$B$20000,0)) -> 28 | C78: =INDEX('متابعة الشيكات'!B32:B20028,MATCH(بحث!$D$46,'متابعة الشيكات'!$B$4:$B$20000,0)) -> رائد نصر رمضان ابو سليمه | D78: =INDEX('متابعة الشيكات'!C32:C20028,MATCH(بحث!$D$46,'متابعة الشيكات'!$B$4:$B$20000,0)) -> سكودا استيشن | E78: =INDEX('متابعة الشيكات'!D32:D20028,MATCH(بحث!$D$46,'متابعة الشيكات'!$B$4:$B$20000,0)) -> اسود | F78: =INDEX('متابعة الشيكات'!E32:E20028,MATCH(بحث!$D$46,'متابعة الشيكات'!$B$4:$B$20000,0)) -> 1600 | G78: =INDEX('متابعة الشيكات'!F32:F20028,MATCH(بحث!$D$46,'متابعة الشيكات'!$B$4:$B$20000,0)) -> 0 | H78: =INDEX('متابعة الشيكات'!G32:G20028,MATCH(بحث!$D$46,'متابعة الشيكات'!$B$4:$B$20000,0)) -> 1000 | I78: =INDEX('متابعة الشيكات'!H32:H20028,MATCH(بحث!$D$46,'متابعة الشيكات'!$B$4:$B$20000,0)) -> 63 | J78: =INDEX('متابعة الشيكات'!I32:I20028,MATCH(بحث!$D$46,'متابعة الشيكات'!$B$4:$B$20000,0)) -> فلسطين | K78: =INDEX('متابعة الشيكات'!J32:J20028,MATCH(بحث!$D$46,'متابعة الشيكات'!$B$4:$B$20000,0)) -> 30/12/2019 | L78: =INDEX('متابعة الشيكات'!K32:K20028,MATCH(بحث!$D$46,'متابعة الشيكات'!$B$4:$B$20000,0)) -> جهاد فلاح سدر االخليل 0599503321
B79: =INDEX('متابعة الشيكات'!A33:A20029,MATCH(بحث!$D$46,'متابعة الشيكات'!$B$4:$B$20000,0)) -> 29 | C79: =INDEX('متابعة الشيكات'!B33:B20029,MATCH(بحث!$D$46,'متابعة الشيكات'!$B$4:$B$20000,0)) -> رائد نصر رمضان ابو سليمه | D79: =INDEX('متابعة الشيكات'!C33:C20029,MATCH(بحث!$D$46,'متابعة الشيكات'!$B$4:$B$20000,0)) -> سكودا استيشن | E79: =INDEX('متابعة الشيكات'!D33:D20029,MATCH(بحث!$D$46,'متابعة الشيكات'!$B$4:$B$20000,0)) -> اسود | F79: =INDEX('متابعة الشيكات'!E33:E20029,MATCH(بحث!$D$46,'متابعة الشيكات'!$B$4:$B$20000,0)) -> 1600 | G79: =INDEX('متابعة الشيكات'!F33:F20029,MATCH(بحث!$D$46,'متابعة الشيكات'!$B$4:$B$20000,0)) -> 0 | H79: =INDEX('متابعة الشيكات'!G33:G20029,MATCH(بحث!$D$46,'متابعة الشيكات'!$B$4:$B$20000,0)) -> 1000 | I79: =INDEX('متابعة الشيكات'!H33:H20029,MATCH(بحث!$D$46,'متابعة الشيكات'!$B$4:$B$20000,0)) -> 64 | J79: =INDEX('متابعة الشيكات'!I33:I20029,MATCH(بحث!$D$46,'متابعة الشيكات'!$B$4:$B$20000,0)) -> فلسطين | K79: =INDEX('متابعة الشيكات'!J33:J20029,MATCH(بحث!$D$46,'متابعة الشيكات'!$B$4:$B$20000,0)) -> 30/1/2020 | L79: =INDEX('متابعة الشيكات'!K33:K20029,MATCH(بحث!$D$46,'متابعة الشيكات'!$B$4:$B$20000,0)) -> جهاد فلاح سدر االخليل 0599503322
B80: =INDEX('متابعة الشيكات'!A34:A20030,MATCH(بحث!$D$46,'متابعة الشيكات'!$B$4:$B$20000,0)) -> 30 | C80: =INDEX('متابعة الشيكات'!B34:B20030,MATCH(بحث!$D$46,'متابعة الشيكات'!$B$4:$B$20000,0)) -> رائد نصر رمضان ابو سليمه | D80: =INDEX('متابعة الشيكات'!C34:C20030,MATCH(بحث!$D$46,'متابعة الشيكات'!$B$4:$B$20000,0)) -> سكودا استيشن | E80: =INDEX('متابعة الشيكات'!D34:D20030,MATCH(بحث!$D$46,'متابعة الشيكات'!$B$4:$B$20000,0)) -> اسود | F80: =INDEX('متابعة الشيكات'!E34:E20030,MATCH(بحث!$D$46,'متابعة الشيكات'!$B$4:$B$20000,0)) -> 1600 | G80: =INDEX('متابعة الشيكات'!F34:F20030,MATCH(بحث!$D$46,'متابعة الشيكات'!$B$4:$B$20000,0)) -> 0 | H80: =INDEX('متابعة الشيكات'!G34:G20030,MATCH(بحث!$D$46,'متابعة الشيكات'!$B$4:$B$20000,0)) -> 1000 | I80: =INDEX('متابعة الشيكات'!H34:H20030,MATCH(بحث!$D$46,'متابعة الشيكات'!$B$4:$B$20000,0)) -> 65 | J80: =INDEX('متابعة الشيكات'!I34:I20030,MATCH(بحث!$D$46,'متابعة الشيكات'!$B$4:$B$20000,0)) -> فلسطين | K80: =INDEX('متابعة الشيكات'!J34:J20030,MATCH(بحث!$D$46,'متابعة الشيكات'!$B$4:$B$20000,0)) -> 30/2/2020 | L80: =INDEX('متابعة الشيكات'!K34:K20030,MATCH(بحث!$D$46,'متابعة الشيكات'!$B$4:$B$20000,0)) -> جهاد فلاح سدر االخليل 0599503323
B81: =INDEX('متابعة الشيكات'!A35:A20031,MATCH(بحث!$D$46,'متابعة الشيكات'!$B$4:$B$20000,0)) -> 31 | C81: =INDEX('متابعة الشيكات'!B35:B20031,MATCH(بحث!$D$46,'متابعة الشيكات'!$B$4:$B$20000,0)) -> رائد نصر رمضان ابو سليمه | D81: =INDEX('متابعة الشيكات'!C35:C20031,MATCH(بحث!$D$46,'متابعة الشيكات'!$B$4:$B$20000,0)) -> سكودا استيشن | E81: =INDEX('متابعة الشيكات'!D35:D20031,MATCH(بحث!$D$46,'متابعة الشيكات'!$B$4:$B$20000,0)) -> اسود | F81: =INDEX('متابعة الشيكات'!E35:E20031,MATCH(بحث!$D$46,'متابعة الشيكات'!$B$4:$B$20000,0)) -> 1600 | G81: =INDEX('متابعة الشيكات'!F35:F20031,MATCH(بحث!$D$46,'متابعة الشيكات'!$B$4:$B$20000,0)) -> 0 | H81: =INDEX('متابعة الشيكات'!G35:G20031,MATCH(بحث!$D$46,'متابعة الشيكات'!$B$4:$B$20000,0)) -> 1000 | I81: =INDEX('متابعة الشيكات'!H35:H20031,MATCH(بحث!$D$46,'متابعة الشيكات'!$B$4:$B$20000,0)) -> 66 | J81: =INDEX('متابعة الشيكات'!I35:I20031,MATCH(بحث!$D$46,'متابعة الشيكات'!$B$4:$B$20000,0)) -> فلسطين | K81: =INDEX('متابعة الشيكات'!J35:J20031,MATCH(بحث!$D$46,'متابعة الشيكات'!$B$4:$B$20000,0)) -> 30/3/2020 | L81: =INDEX('متابعة الشيكات'!K35:K20031,MATCH(بحث!$D$46,'متابعة الشيكات'!$B$4:$B$20000,0)) -> جهاد فلاح سدر االخليل 0599503324

Sheet ملاحظات
A1: لي سمسرة عن الروميستر مهند الشرباتي | B1: 500
A2: لي سمسرة عن جيب التوسان 2012/2011 ابو اسنينه العيزريه | B2: 500
A3: لي سمسرة عن جيب التوسان 2012/2011 ابو اسنينه العيزريه | B3: 500
A8: يوجد علينا تامين الفورد الفوكس حساب لابو همام + تامين قفيشه 1000(تم دفع شيك بتاريخ 20-5-2019 بقيمة 1000 قفيشة)
A11: تذكر الاتصال على ماهر الخضور قبض 700 باقي تامين بتابيخ 30/7/2019 لصالح الفورد فوكس حازم زلوم | B11: 700
A14: تذكر ادخال الشيك بدل السول للهونداي من احمد دبوس للحسابات وتزبيط حساب السول | B14: تم ادخاله جاهز
F16: 599663410

Sheet خرابش
A1: شراء بيكانتو من رشوان | B1: رقم الشيك
A2: 42500 شيكات مجيرة مني
A3: 32000 شيك شخصي من معتصم 1/2/2019 | B3: 454208
A4: شيك شخصي من معتصم 30/1/2019 بقيمة 3000 | B4: 454207 | D4: 3000 | E4: شيك يزيد
D5: قيمة الشيك | E5: شيكات سيات
D6: 3000 | H6: مستحقات على معتصم
D7: 15000 | H7: نقدا | I7: شيكات
D8: 3000 | H8: 0 | I8: 0
D9: 3000
D10: 3000 | H10: 42000 | I10: 15500
D11: 3000
D12: 3500 | G12: المجموع | H12: تفاصيل
D13: 3500 | G13: =SUM(D:D) -> 63050 | H13: 28 كيا فورتي | I13: المتبقي لاكمال راس المال | L13: مجموع K
D14: 3500 | H14: 15,500 سامر التميمي | L14: =SUM(K:K) -> 0 | P14: مجموع O
D15: 1600 | P15: =SUM(O:O) -> 0
D16: 3500
D17: 1600
D18: 1600
D19: 4000
D20: 1600
D21: 1600
D22: 1600 | E22: شيكات بيانتو
D23: 1600
D24: قيمة الشيك
D25: 850
